Workbook

Sheet Summary (EUE)
H1: As Per LAB-NLH-102, Attachment 1
B2: Year | C2: INCREASE DUE TO DATA CENTERS | H2: Year | I2: BASELINE (DATA CENTERS) | N2: Year | O2: BASELINE (NO DATA CENTERS)
C3: Total EUE (MWh) | D3: Total Fuel Consumed (L)1 | E3: Fuel Price Forecast2 | F3: Power Outage Costs ($) | I3: Total EUE (MWh) | J3: Total Fuel Consumed (L)1 | K3: Fuel Price Forecast2 | L3: Power Outage Costs ($) | O3: Total EUE (MWh) | P3: Total Fuel Consumed (L)1 | Q3: Fuel Price Forecast2 | R3: Power Outage Costs ($)
B4: 20193 | C4: =I4-O4 -> 40.10555432 | D4: =J4-P4 -> 12340.17056 | E4: 1.347 | F4: =L4-R4 -> 16622.20974 | H4: 20193 | I4: 386.3149216 | J4: 118866.1297 | K4: 1.347 | L4: 160112.6767 | N4: 20193 | O4: ='EUE Calculations - Baseline'!D5+'EUE Calculations - Baseline'!F5 -> 346.2093672 | P4: =O4*1000/3.25 -> 106525.9592 | Q4: 1.347 | R4: =P4*Q4 -> 143490.467
B5: 2020 | C5: 17.89280911 | D5: 5505.479727 | E5: 1.495 | F5: =L5-R5 -> 8230.692191 | H5: 2020 | I5: 71.06913568 | J5: 21867.42636 | K5: 1.495 | L5: 32691.80241 | N5: 2020 | O5: ='EUE Calculations - Baseline'!J5+'EUE Calculations - Baseline'!L5 -> 53.17632657 | P5: =O5*1000/3.25 -> 16361.94664 | Q5: 1.495 | R5: =P5*Q5 -> 24461.11022
B6: 2021 | C6: 17.91197961 | D6: 5511.378341 | E6: 1.405 | F6: 7743.486569 | H6: 2021 | I6: 71.42956669 | J6: 21978.32821 | K6: 1.405 | L6: 30879.55114 | N6: 2021 | O6: ='EUE Calculations - Baseline'!P5+'EUE Calculations - Baseline'!R5 -> 53.51758708 | P6: 16466.94987 | Q6: 1.405 | R6: 23136.06457
B7: 2022 | C7: 17.94073928 | D7: 5520.227472 | E7: 1.355 | F7: 7479.908225 | H7: 2022 | I7: 71.97111775 | J7: 22144.95931 | K7: 1.355 | L7: 30006.41986 | N7: 2022 | O7: ='EUE Calculations - Baseline'!V5+'EUE Calculations - Baseline'!X5 -> 54.03037847 | P7: 16624.73184 | Q7: 1.355 | R7: 22526.51164
B8: 2023 | C8: 17.95973376 | D8: 5526.071927 | E8: 1.345 | F8: 7432.566742 | H8: 2023 | I8: 72.33256307 | J8: 22256.17325 | K8: 1.345 | L8: 29934.55302 | N8: 2023 | O8: ='EUE Calculations - Baseline'!AB5+'EUE Calculations - Baseline'!AD5 -> 54.3728293 | P8: 16730.10132 | Q8: 1.345 | R8: 22501.98628
B9: 2024 | C9: 17.98792793 | D9: 5534.747055 | E9: 1.365 | F9: 7554.92973 | H9: 2024 | I9: 72.87522436 | J9: 22423.14596 | K9: 1.365 | L9: 30607.59423 | N9: 2024 | O9: ='EUE Calculations - Baseline'!AH5+'EUE Calculations - Baseline'!AJ5 -> 54.88729643 | P9: 16888.3989 | Q9: 1.365 | R9: 23052.6645
B10: 2025 | C10: 18.04463187 | D10: 5552.194421 | E10: 1.38 | F10: 7662.028302 | H10: 2025 | I10: 73.96310965 | J10: 22757.87989 | K10: 1.38 | L10: 31405.87425 | N10: 2025 | O10: ='EUE Calculations - Baseline'!AN5+'EUE Calculations - Baseline'!AP5 -> 55.91847778 | P10: 17205.68547 | Q10: 1.38 | R10: 23743.84595
B11: 2026 | C11: 18.09238131 | D11: 5566.886557 | E11: 1.405 | F11: 7821.475612 | H11: 2026 | I11: 74.87260756 | J11: 23037.7254 | K11: 1.405 | L11: 32368.00419 | N11: 2026 | O11: ='EUE Calculations - Baseline'!AT5+'EUE Calculations - Baseline'!AV5 -> 56.78022625 | P11: 17470.83885 | Q11: 1.405 | R11: 24546.52858
B12: 2027 | C12: 18.14141283 | D12: 5581.97318 | E12: 1.435 | F12: 8010.131513 | H12: 2027 | I12: 75.78536572 | J12: 23318.57407 | K12: 1.435 | L12: 33462.15378 | N12: 2027 | O12: ='EUE Calculations - Baseline'!AZ5+'EUE Calculations - Baseline'!BB5 -> 57.64395288 | P12: 17736.60089 | Q12: 1.435 | R12: 25452.02227
B13: 2028 | C13: 18.18986319 | D13: 5596.880981 | E13: 1.455 | F13: 8143.461827 | H13: 2028 | I13: 76.70073463 | J13: 23600.22604 | K13: 1.455 | L13: 34338.32889 | N13: 2028 | O13: ='EUE Calculations - Baseline'!BF5+'EUE Calculations - Baseline'!BH5 -> 58.51087144 | P13: 18003.34506 | Q13: 1.455 | R13: 26194.86706
B14: 2029 | C14: 18.23829688 | D14: 5611.783656 | E14: 1.48 | F14: 8305.439811 | H14: 2029 | I14: 77.61829777 | J14: 23882.55316 | K14: 1.48 | L14: 35346.17868 | N14: 2029 | O14: ='EUE Calculations - Baseline'!BL5+'EUE Calculations - Baseline'!BN5 -> 59.38000089 | P14: 18270.7695 | Q14: 1.48 | R14: 27040.73887
B15: 2030 | C15: 18.29701632 | D15: 5629.851175 | E15: 1.51 | F15: 8501.075274 | H15: 2030 | I15: 78.72323635 | J15: 24222.53426 | K15: 1.51 | L15: 36576.02673 | N15: 2030 | O15: ='EUE Calculations - Baseline'!BR5+'EUE Calculations - Baseline'!BT5 -> 60.42622003 | P15: 18592.68309 | Q15: 1.51 | R15: 28074.95146
B16: 2031 | C16: 18.34626294 | D16: 5645.003982 | E16: 1.535 | F16: 8665.081112 | H16: 2031 | I16: 79.64709228 | J16: 24506.79763 | K16: 1.535 | L16: 37617.93436 | N16: 2031 | O16: ='EUE Calculations - Baseline'!BX5+'EUE Calculations - Baseline'!BZ5 -> 61.30082934 | P16: 18861.79364 | Q16: 1.535 | R16: 28952.85324
B17: 2032 | C17: 18.39511392 | D17: 5660.035054 | E17: 1.565 | F17: 8857.954859 | H17: 2032 | I17: 80.57296406 | J17: 24791.68125 | K17: 1.565 | L17: 38798.98115 | N17: 2032 | O17: ='EUE Calculations - Baseline'!CD5+'EUE Calculations - Baseline'!CF5 -> 62.17785013 | P17: 19131.6462 | Q17: 1.565 | R17: 29941.0263
B18: 2033 | C18: 18.44386932 | D18: 5675.036713 | E18: 1.59 | F18: 9023.308374 | H18: 2033 | I18: 81.50163453 | J18: 25077.42601 | K18: 1.59 | L18: 39873.10735 | N18: 2033 | O18: ='EUE Calculations - Baseline'!CJ5+'EUE Calculations - Baseline'!CL5 -> 63.05776521 | P18: 19402.3893 | Q18: 1.59 | R18: 30849.79898
B19: 2034 | C19: 18.50256481 | D19: 5693.096864 | E19: 1.62 | F19: 9222.816919 | H19: 2034 | I19: 82.61977917 | J19: 25421.47051 | K19: 1.62 | L19: 41182.78223 | N19: 2034 | O19: ='EUE Calculations - Baseline'!CP5+'EUE Calculations - Baseline'!CR5 -> 64.11721436 | P19: 19728.37365 | Q19: 1.62 | R19: 31959.96531
B20: 2035 | C20: 18.55146354 | D20: 5708.142626 | E20: 1.65 | F20: 9418.435334 | H20: 2035 | I20: 83.55436243 | J20: 25709.03459 | K20: 1.65 | L20: 42419.90708 | N20: 2035 | O20: ='EUE Calculations - Baseline'!CV5+'EUE Calculations - Baseline'!CX5 -> 65.0028989 | P20: 20000.89197 | Q20: 1.65 | R20: 33001.47175
B21: 2036 | C21: 18.60110507 | D21: 5723.416946 | E21: 1.68 | F21: 9615.340469 | H21: 2036 | I21: 84.49183051 | J21: 25997.48631 | K21: 1.68 | L21: 43675.777 | N21: 2036 | O21: ='EUE Calculations - Baseline'!DB5+'EUE Calculations - Baseline'!DD5 -> 65.89072544 | P21: 20274.06936 | Q21: 1.68 | R21: 34060.43653
B22: 2037 | C22: 18.65203233 | D22: 5739.086872 | E22: 1.705 | F22: 9785.143117 | H22: 2037 | I22: 85.43265455 | J22: 26286.97063 | K22: 1.705 | L22: 44819.28492 | N22: 2037 | O22: ='EUE Calculations - Baseline'!DH5+'EUE Calculations - Baseline'!DJ5 -> 66.78062221 | P22: 20547.88376 | Q22: 1.705 | R22: 35034.14181
B23: 2038 | C23: 18.71406121 | D23: 5758.17268 | E23: 1.735 | F23: 9990.4296 | H23: 2038 | I23: 86.56576417 | J23: 26635.61975 | K23: 1.735 | L23: 46212.80026 | N23: 2038 | O23: ='EUE Calculations - Baseline'!DN5+'EUE Calculations - Baseline'!DP5 -> 67.85170297 | P23: 20877.44707 | Q23: 1.735 | R23: 36222.37066
B24: 2039 | C24: 18.76674267 | D24: 5774.382361 | E24: 1.765 | F24: 10191.78487 | H24: 2039 | I24: 87.51346681 | J24: 26927.22056 | K24: 1.765 | L24: 47526.54428 | N24: 2039 | O24: ='EUE Calculations - Baseline'!DT5+'EUE Calculations - Baseline'!DV5 -> 68.74672414 | P24: 21152.8382 | Q24: 1.765 | R24: 37334.75942
B25: 2040 | C25: 18.82029536 | D25: 5790.860111 | E25: 1.8 | F25: 10423.5482 | H25: 2040 | I25: 88.46385205 | J25: 27219.64678 | K25: 1.8 | L25: 48995.36421 | N25: 2040 | O25: ='EUE Calculations - Baseline'!DZ5+'EUE Calculations - Baseline'!EB5 -> 69.64355669 | P25: 21428.78667 | Q25: 1.8 | R25: 38571.81601
B26: 2041 | C26: 18.88644698 | D26: 5811.214456 | E26: 1.835 | F26: 10663.57853 | H26: 2041 | I26: 89.60834964 | J26: 27571.79989 | K26: 1.835 | L26: 50594.25279 | N26: 2041 | O26: ='EUE Calculations - Baseline'!EF5+'EUE Calculations - Baseline'!EH5 -> 70.72190265 | P26: 21760.58543 | Q26: 1.835 | R26: 39930.67427
B27: 2042 | C27: 18.94344701 | D27: 5828.752926 | E27: 1.87 | F27: 10899.76797 | H27: 2042 | I27: 90.56610545 | J27: 27866.49399 | K27: 1.87 | L27: 52110.34375 | N27: 2042 | O27: ='EUE Calculations - Baseline'!EL5+'EUE Calculations - Baseline'!EN5 -> 71.62265844 | P27: 22037.74106 | Q27: 1.87 | R27: 41210.57578
B28: 2043 | C28: 19.00073793 | D28: 5846.380901 | E28: 1.91 | F28: 11166.58752 | H28: 2043 | I28: 91.52684684 | J28: 28162.10672 | K28: 1.91 | L28: 53789.62383 | N28: 2043 | O28: ='EUE Calculations - Baseline'!ER5+'EUE Calculations - Baseline'!ET5 -> 72.52610891 | P28: 22315.72582 | Q28: 1.91 | R28: 42623.03631
B29: 2044 | C29: 19.05950522 | D29: 5864.463146 | E29: 1.945 | F29: 11406.38082 | H29: 2044 | I29: 92.49100917 | J29: 28458.77205 | K29: 1.945 | L29: 55352.31164 | N29: 2044 | O29: ='EUE Calculations - Baseline'!EX5+'EUE Calculations - Baseline'!EZ5 -> 73.43150395 | P29: 22594.30891 | Q29: 1.945 | R29: 43945.93082
B30: NOTES: 1 - Assumed Generator Efficiency of 3.25 kWh/L 2 - As per Table 3.2 (Page 13) in the Labrador Expansion Study 3 - Existing System. This would be prior to MF-HVY Interconnection | H30: NOTES: 1 - Assumed Generator Efficiency of 3.25 kWh/L 2 - As per Table 3.2 (Page 13) in the Labrador Expansion Study 3 - Existing System. This would be prior to MF-HVY Interconnection | N30: NOTES: 1 - Assumed Generator Efficiency of 3.25 kWh/L 2 - As per Table 3.2 (Page 13) in the Labrador Expansion Study 3 - Existing System. This would be prior to MF-HVY Interconnection
E33: CPV: | F33: =NPV(0.065,F4:F29) -> 113625.4342 | K33: CPV: | L33: =NPV(0.065,L4:L29) -> 571454.4363 | Q33: CPV: | R33: =NPV(0.065,R4:R29) -> 457829.0021

Sheet Load Data - Hourly
A1: Hourly Load Profile
E2: Peak: | F2: =MAX(F4:F8765) -> 67.3490963 | H2: Baseline Hourly Load Profiles (2019-2044)
A3: Date/Time | B3: T1(MW) | C3: T2(MW) | D3: T4 (MW) | E3: CT (MW) | F3: Total Load(MW) @ 138kV Bus | H3: 2019 | I3: =H3+1 -> 2020 | J3: 2021 | K3: 2022 | L3: 2023 | M3: 2024 | N3: 2025 | O3: 2026 | P3: 2027 | Q3: 2028 | R3: 2029 | S3: 2030 | T3: 2031 | U3: 2032 | V3: 2033 | W3: 2034 | X3: 2035 | Y3: 2036 | Z3: 2037 | AA3: 2038 | AB3: 2039 | AC3: 2040 | AD3: 2041 | AE3: 2042 | AF3: 2043 | AG3: 2044
A4: 2017-01-01 | B4: 21.50930977 | C4: 11.90556717 | D4: 11.90255928 | E4: 0 | F4: =SUM(B4:E4) -> 45.31743622 | H4: =F4*(Forecast!$C$8/$F$2) -> 48.70565703 | I4: =F4*(Forecast!$D$8/$F$2) -> 49.19180828 | J4: =F4*(Forecast!$E$8/$F$2) -> 49.32638302 | K4: =F4*(Forecast!$F$8/$F$2) -> 49.52824513 | L4: =F4*(Forecast!$G$8/$F$2) -> 49.66281988 | M4: =F4*(Forecast!$H$8/$F$2) -> 49.86468199 | N4: =F4*(Forecast!$I$8/$F$2) -> 50.26840621 | O4: =F4*(Forecast!$J$8/$F$2) -> 50.60484307 | P4: =F4*(Forecast!$K$8/$F$2) -> 50.94127992 | Q4: =F4*(Forecast!$L$8/$F$2) -> 51.27771678 | R4: =F4*(Forecast!$M$8/$F$2) -> 51.61415363 | S4: =F4*(Forecast!$N$8/$F$2) -> 52.01787786 | T4: =F4*(Forecast!$O$8/$F$2) -> 52.35431471 | U4: =F4*(Forecast!$P$8/$F$2) -> 52.69075157 | V4: =F4*(Forecast!$Q$8/$F$2) -> 53.02718842 | W4: =F4*(Forecast!$R$8/$F$2) -> 53.43091265 | X4: =F4*(Forecast!$S$8/$F$2) -> 53.7673495 | Y4: =F4*(Forecast!$T$8/$F$2) -> 54.10378635 | Z4: =F4*(Forecast!$U$8/$F$2) -> 54.44022321 | AA4: =F4*(Forecast!$V$8/$F$2) -> 54.84394743 | AB4: =F4*(Forecast!$W$8/$F$2) -> 55.18038429 | AC4: =F4*(Forecast!$X$8/$F$2) -> 55.51682114 | AD4: =F4*(Forecast!$Y$8/$F$2) -> 55.92054537 | AE4: =F4*(Forecast!$Z$8/$F$2) -> 56.25698222 | AF4: =F4*(Forecast!$AA$8/$F$2) -> 56.59341908 | AG4: =F4*(Forecast!$AB$8/$F$2) -> 56.92985593
A5: 2017-01-01T01:00:00 | B5: 21.72950745 | C5: 11.89333439 | D5: 11.89130878 | E5: 0 | F5: =SUM(B5:E5) -> 45.51415062 | H5: =F5*(Forecast!$C$8/$F$2) -> 48.91707905 | I5: =F5*(Forecast!$D$8/$F$2) -> 49.4053406 | J5: =F5*(Forecast!$E$8/$F$2) -> 49.5404995 | K5: =F5*(Forecast!$F$8/$F$2) -> 49.74323786 | L5: =F5*(Forecast!$G$8/$F$2) -> 49.87839676 | M5: =F5*(Forecast!$H$8/$F$2) -> 50.08113512 | N5: =F5*(Forecast!$I$8/$F$2) -> 50.48661184 | O5: =F5*(Forecast!$J$8/$F$2) -> 50.8245091 | P5: =F5*(Forecast!$K$8/$F$2) -> 51.16240636 | Q5: =F5*(Forecast!$L$8/$F$2) -> 51.50030363 | R5: =F5*(Forecast!$M$8/$F$2) -> 51.83820089 | S5: =F5*(Forecast!$N$8/$F$2) -> 52.24367761 | T5: =F5*(Forecast!$O$8/$F$2) -> 52.58157487 | U5: =F5*(Forecast!$P$8/$F$2) -> 52.91947213 | V5: =F5*(Forecast!$Q$8/$F$2) -> 53.25736939 | W5: =F5*(Forecast!$R$8/$F$2) -> 53.66284611 | X5: =F5*(Forecast!$S$8/$F$2) -> 54.00074337 | Y5: =F5*(Forecast!$T$8/$F$2) -> 54.33864064 | Z5: =F5*(Forecast!$U$8/$F$2) -> 54.6765379 | AA5: =F5*(Forecast!$V$8/$F$2) -> 55.08201462 | AB5: =F5*(Forecast!$W$8/$F$2) -> 55.41991188 | AC5: =F5*(Forecast!$X$8/$F$2) -> 55.75780914 | AD5: =F5*(Forecast!$Y$8/$F$2) -> 56.16328586 | AE5: =F5*(Forecast!$Z$8/$F$2) -> 56.50118312 | AF5: =F5*(Forecast!$AA$8/$F$2) -> 56.83908038 | AG5: =F5*(Forecast!$AB$8/$F$2) -> 57.17697765
A6: 2017-01-01T02:00:00 | B6: 21.35857201 | C6: 11.8955946 | D6: 11.89983654 | E6: 0 | F6: =SUM(B6:E6) -> 45.15400314 | H6: =F6*(Forecast!$C$8/$F$2) -> 48.53000465 | I6: =F6*(Forecast!$D$8/$F$2) -> 49.01440265 | J6: =F6*(Forecast!$E$8/$F$2) -> 49.14849206 | K6: =F6*(Forecast!$F$8/$F$2) -> 49.34962617 | L6: =F6*(Forecast!$G$8/$F$2) -> 49.48371558 | M6: =F6*(Forecast!$H$8/$F$2) -> 49.6848497 | N6: =F6*(Forecast!$I$8/$F$2) -> 50.08711793 | O6: =F6*(Forecast!$J$8/$F$2) -> 50.42234146 | P6: =F6*(Forecast!$K$8/$F$2) -> 50.75756498 | Q6: =F6*(Forecast!$L$8/$F$2) -> 51.09278851 | R6: =F6*(Forecast!$M$8/$F$2) -> 51.42801204 | S6: =F6*(Forecast!$N$8/$F$2) -> 51.83028027 | T6: =F6*(Forecast!$O$8/$F$2) -> 52.1655038 | U6: =F6*(Forecast!$P$8/$F$2) -> 52.50072732 | V6: =F6*(Forecast!$Q$8/$F$2) -> 52.83595085 | W6: =F6*(Forecast!$R$8/$F$2) -> 53.23821908 | X6: =F6*(Forecast!$S$8/$F$2) -> 53.57344261 | Y6: =F6*(Forecast!$T$8/$F$2) -> 53.90866613 | Z6: =F6*(Forecast!$U$8/$F$2) -> 54.24388966 | AA6: =F6*(Forecast!$V$8/$F$2) -> 54.64615789 | AB6: =F6*(Forecast!$W$8/$F$2) -> 54.98138142 | AC6: =F6*(Forecast!$X$8/$F$2) -> 55.31660495 | AD6: =F6*(Forecast!$Y$8/$F$2) -> 55.71887318 | AE6: =F6*(Forecast!$Z$8/$F$2) -> 56.0540967 | AF6: =F6*(Forecast!$AA$8/$F$2) -> 56.38932023 | AG6: =F6*(Forecast!$AB$8/$F$2) -> 56.72454376
A7: 2017-01-01T03:00:00 | B7: 21.24563026 | C7: 11.98687172 | D7: 11.96931267 | E7: 0 | F7: 45.20181465 | H7: =F7*(Forecast!$C$8/$F$2) -> 48.58139085 | I7: =F7*(Forecast!$D$8/$F$2) -> 49.06630175 | J7: =F7*(Forecast!$E$8/$F$2) -> 49.20053315 | K7: =F7*(Forecast!$F$8/$F$2) -> 49.40188023 | L7: =F7*(Forecast!$G$8/$F$2) -> 49.53611163 | M7: =F7*(Forecast!$H$8/$F$2) -> 49.73745871 | N7: =F7*(Forecast!$I$8/$F$2) -> 50.14015289 | O7: =F7*(Forecast!$J$8/$F$2) -> 50.47573137 | P7: =F7*(Forecast!$K$8/$F$2) -> 50.81130985 | Q7: =F7*(Forecast!$L$8/$F$2) -> 51.14688833 | R7: =F7*(Forecast!$M$8/$F$2) -> 51.48246681 | S7: =F7*(Forecast!$N$8/$F$2) -> 51.88516098 | T7: =F7*(Forecast!$O$8/$F$2) -> 52.22073946 | U7: =F7*(Forecast!$P$8/$F$2) -> 52.55631794 | V7: =F7*(Forecast!$Q$8/$F$2) -> 52.89189642 | W7: =F7*(Forecast!$R$8/$F$2) -> 53.2945906 | X7: =F7*(Forecast!$S$8/$F$2) -> 53.63016907 | Y7: =F7*(Forecast!$T$8/$F$2) -> 53.96574755 | Z7: =F7*(Forecast!$U$8/$F$2) -> 54.30132603 | AA7: =F7*(Forecast!$V$8/$F$2) -> 54.70402021 | AB7: =F7*(Forecast!$W$8/$F$2) -> 55.03959869 | AC7: =F7*(Forecast!$X$8/$F$2) -> 55.37517717 | AD7: =F7*(Forecast!$Y$8/$F$2) -> 55.77787134 | AE7: =F7*(Forecast!$Z$8/$F$2) -> 56.11344982 | AF7: =F7*(Forecast!$AA$8/$F$2) -> 56.4490283 | AG7: =F7*(Forecast!$AB$8/$F$2) -> 56.78460678
A8: 2017-01-01T04:00:00 | B8: 21.42563057 | C8: 12.0781498 | D8: 12.03878784 | E8: 0 | F8: 45.54256821 | H8: =F8*(Forecast!$C$8/$F$2) -> 48.94762132 | I8: =F8*(Forecast!$D$8/$F$2) -> 49.43618772 | J8: =F8*(Forecast!$E$8/$F$2) -> 49.57143101 | K8: =F8*(Forecast!$F$8/$F$2) -> 49.77429595 | L8: =F8*(Forecast!$G$8/$F$2) -> 49.90953925 | M8: =F8*(Forecast!$H$8/$F$2) -> 50.11240419 | N8: =F8*(Forecast!$I$8/$F$2) -> 50.51813407 | O8: =F8*(Forecast!$J$8/$F$2) -> 50.85624231 | P8: =F8*(Forecast!$K$8/$F$2) -> 51.19435054 | Q8: =F8*(Forecast!$L$8/$F$2) -> 51.53245878 | R8: =F8*(Forecast!$M$8/$F$2) -> 51.87056701 | S8: =F8*(Forecast!$N$8/$F$2) -> 52.2762969 | T8: =F8*(Forecast!$O$8/$F$2) -> 52.61440513 | U8: =F8*(Forecast!$P$8/$F$2) -> 52.95251337 | V8: =F8*(Forecast!$Q$8/$F$2) -> 53.2906216 | W8: =F8*(Forecast!$R$8/$F$2) -> 53.69635148 | X8: =F8*(Forecast!$S$8/$F$2) -> 54.03445972 | Y8: =F8*(Forecast!$T$8/$F$2) -> 54.37256795 | Z8: =F8*(Forecast!$U$8/$F$2) -> 54.71067619 | AA8: =F8*(Forecast!$V$8/$F$2) -> 55.11640607 | AB8: =F8*(Forecast!$W$8/$F$2) -> 55.45451431 | AC8: =F8*(Forecast!$X$8/$F$2) -> 55.79262254 | AD8: =F8*(Forecast!$Y$8/$F$2) -> 56.19835243 | AE8: =F8*(Forecast!$Z$8/$F$2) -> 56.53646066 | AF8: =F8*(Forecast!$AA$8/$F$2) -> 56.8745689 | AG8: =F8*(Forecast!$AB$8/$F$2) -> 57.21267713
A9: 2017-01-01T05:00:00 | B9: 21.34294319 | C9: 12.16942787 | D9: 12.10826397 | E9: 0 | F9: 45.62063503 | H9: =F9*(Forecast!$C$8/$F$2) -> 49.03152492 | I9: =F9*(Forecast!$D$8/$F$2) -> 49.52092879 | J9: =F9*(Forecast!$E$8/$F$2) -> 49.65640392 | K9: =F9*(Forecast!$F$8/$F$2) -> 49.8596166 | L9: =F9*(Forecast!$G$8/$F$2) -> 49.99509172 | M9: =F9*(Forecast!$H$8/$F$2) -> 50.1983044 | N9: =F9*(Forecast!$I$8/$F$2) -> 50.60472977 | O9: =F9*(Forecast!$J$8/$F$2) -> 50.94341757 | P9: =F9*(Forecast!$K$8/$F$2) -> 51.28210537 | Q9: =F9*(Forecast!$L$8/$F$2) -> 51.62079318 | R9: =F9*(Forecast!$M$8/$F$2) -> 51.95948098 | S9: =F9*(Forecast!$N$8/$F$2) -> 52.36590635 | T9: =F9*(Forecast!$O$8/$F$2) -> 52.70459415 | U9: =F9*(Forecast!$P$8/$F$2) -> 53.04328195 | V9: =F9*(Forecast!$Q$8/$F$2) -> 53.38196976 | W9: =F9*(Forecast!$R$8/$F$2) -> 53.78839512 | X9: =F9*(Forecast!$S$8/$F$2) -> 54.12708293 | Y9: =F9*(Forecast!$T$8/$F$2) -> 54.46577073 | Z9: =F9*(Forecast!$U$8/$F$2) -> 54.80445853 | AA9: =F9*(Forecast!$V$8/$F$2) -> 55.2108839 | AB9: =F9*(Forecast!$W$8/$F$2) -> 55.5495717 | AC9: =F9*(Forecast!$X$8/$F$2) -> 55.88825951 | AD9: =F9*(Forecast!$Y$8/$F$2) -> 56.29468487 | AE9: =F9*(Forecast!$Z$8/$F$2) -> 56.63337268 | AF9: =F9*(Forecast!$AA$8/$F$2) -> 56.97206048 | AG9: =F9*(Forecast!$AB$8/$F$2) -> 57.31074828
A10: 2017-01-01T06:00:00 | B10: 21.52479744 | C10: 12.26070595 | D10: 12.17773914 | E10: 0 | F10: 45.96324253 | H10: =F10*(Forecast!$C$8/$F$2) -> 49.39974794 | I10: =F10*(Forecast!$D$8/$F$2) -> 49.8928272 | J10: =F10*(Forecast!$E$8/$F$2) -> 50.02931973 | K10: =F10*(Forecast!$F$8/$F$2) -> 50.23405853 | L10: =F10*(Forecast!$G$8/$F$2) -> 50.37055106 | M10: =F10*(Forecast!$H$8/$F$2) -> 50.57528985 | N10: =F10*(Forecast!$I$8/$F$2) -> 50.98476744 | O10: =F10*(Forecast!$J$8/$F$2) -> 51.32599876 | P10: =F10*(Forecast!$K$8/$F$2) -> 51.66723008 | Q10: =F10*(Forecast!$L$8/$F$2) -> 52.00846141 | R10: =F10*(Forecast!$M$8/$F$2) -> 52.34969273 | S10: =F10*(Forecast!$N$8/$F$2) -> 52.75917032 | T10: =F10*(Forecast!$O$8/$F$2) -> 53.10040164 | U10: =F10*(Forecast!$P$8/$F$2) -> 53.44163297 | V10: =F10*(Forecast!$Q$8/$F$2) -> 53.78286429 | W10: =F10*(Forecast!$R$8/$F$2) -> 54.19234188 | X10: =F10*(Forecast!$S$8/$F$2) -> 54.5335732 | Y10: =F10*(Forecast!$T$8/$F$2) -> 54.87480453 | Z10: =F10*(Forecast!$U$8/$F$2) -> 55.21603585 | AA10: =F10*(Forecast!$V$8/$F$2) -> 55.62551344 | AB10: =F10*(Forecast!$W$8/$F$2) -> 55.96674476 | AC10: =F10*(Forecast!$X$8/$F$2) -> 56.30797608 | AD10: =F10*(Forecast!$Y$8/$F$2) -> 56.71745367 | AE10: =F10*(Forecast!$Z$8/$F$2) -> 57.058685 | AF10: =F10*(Forecast!$AA$8/$F$2) -> 57.39991632 | AG10: =F10*(Forecast!$AB$8/$F$2) -> 57.74114764
A11: 2017-01-01T07:00:00 | B11: 21.95833206 | C11: 12.38655949 | D11: 12.25815678 | E11: 0 | F11: 46.60304832 | H11: =F11*(Forecast!$C$8/$F$2) -> 50.0873897 | I11: =F11*(Forecast!$D$8/$F$2) -> 50.5873326 | J11: =F11*(Forecast!$E$8/$F$2) -> 50.7257251 | K11: =F11*(Forecast!$F$8/$F$2) -> 50.93331384 | L11: =F11*(Forecast!$G$8/$F$2) -> 51.07170634 | M11: =F11*(Forecast!$H$8/$F$2) -> 51.27929509 | N11: =F11*(Forecast!$I$8/$F$2) -> 51.69447258 | O11: =F11*(Forecast!$J$8/$F$2) -> 52.04045382 | P11: =F11*(Forecast!$K$8/$F$2) -> 52.38643507 | Q11: =F11*(Forecast!$L$8/$F$2) -> 52.73241631 | R11: =F11*(Forecast!$M$8/$F$2) -> 53.07839756 | S11: =F11*(Forecast!$N$8/$F$2) -> 53.49357505 | T11: =F11*(Forecast!$O$8/$F$2) -> 53.8395563 | U11: =F11*(Forecast!$P$8/$F$2) -> 54.18553754 | V11: =F11*(Forecast!$Q$8/$F$2) -> 54.53151879 | W11: =F11*(Forecast!$R$8/$F$2) -> 54.94669628 | X11: =F11*(Forecast!$S$8/$F$2) -> 55.29267752 | Y11: =F11*(Forecast!$T$8/$F$2) -> 55.63865877 | Z11: =F11*(Forecast!$U$8/$F$2) -> 55.98464001 | AA11: =F11*(Forecast!$V$8/$F$2) -> 56.39981751 | AB11: =F11*(Forecast!$W$8/$F$2) -> 56.74579875 | AC11: =F11*(Forecast!$X$8/$F$2) -> 57.09178 | AD11: =F11*(Forecast!$Y$8/$F$2) -> 57.50695749 | AE11: =F11*(Forecast!$Z$8/$F$2) -> 57.85293873 | AF11: =F11*(Forecast!$AA$8/$F$2) -> 58.19891998 | AG11: =F11*(Forecast!$AB$8/$F$2) -> 58.54490122
A12: 2017-01-01T08:00:00 | B12: 22.43002892 | C12: 12.64248371 | D12: 12.5003891 | E12: 0 | F12: 47.57290173 | H12: =F12*(Forecast!$C$8/$F$2) -> 51.12975553 | I12: =F12*(Forecast!$D$8/$F$2) -> 51.64010271 | J12: =F12*(Forecast!$E$8/$F$2) -> 51.78137529 | K12: =F12*(Forecast!$F$8/$F$2) -> 51.99328415 | L12: =F12*(Forecast!$G$8/$F$2) -> 52.13455673 | M12: =F12*(Forecast!$H$8/$F$2) -> 52.34646559 | N12: =F12*(Forecast!$I$8/$F$2) -> 52.77028332 | O12: =F12*(Forecast!$J$8/$F$2) -> 53.12346476 | P12: =F12*(Forecast!$K$8/$F$2) -> 53.4766462 | Q12: =F12*(Forecast!$L$8/$F$2) -> 53.82982765 | R12: =F12*(Forecast!$M$8/$F$2) -> 54.18300909 | S12: =F12*(Forecast!$N$8/$F$2) -> 54.60682682 | T12: =F12*(Forecast!$O$8/$F$2) -> 54.96000826 | U12: =F12*(Forecast!$P$8/$F$2) -> 55.3131897 | V12: =F12*(Forecast!$Q$8/$F$2) -> 55.66637114 | W12: =F12*(Forecast!$R$8/$F$2) -> 56.09018887 | X12: =F12*(Forecast!$S$8/$F$2) -> 56.44337031 | Y12: =F12*(Forecast!$T$8/$F$2) -> 56.79655175 | Z12: =F12*(Forecast!$U$8/$F$2) -> 57.14973319 | AA12: =F12*(Forecast!$V$8/$F$2) -> 57.57355092 | AB12: =F12*(Forecast!$W$8/$F$2) -> 57.92673236 | AC12: =F12*(Forecast!$X$8/$F$2) -> 58.2799138 | AD12: =F12*(Forecast!$Y$8/$F$2) -> 58.70373153 | AE12: =F12*(Forecast!$Z$8/$F$2) -> 59.05691297 | AF12: =F12*(Forecast!$AA$8/$F$2) -> 59.41009441 | AG12: =F12*(Forecast!$AB$8/$F$2) -> 59.76327585
A13: 2017-01-01T09:00:00 | B13: 22.50563049 | C13: 12.89840698 | D13: 12.74262238 | E13: 0 | F13: 48.14665985 | H13: =F13*(Forecast!$C$8/$F$2) -> 51.74641148 | I13: =F13*(Forecast!$D$8/$F$2) -> 52.26291376 | J13: =F13*(Forecast!$E$8/$F$2) -> 52.40589017 | K13: =F13*(Forecast!$F$8/$F$2) -> 52.62035478 | L13: =F13*(Forecast!$G$8/$F$2) -> 52.76333119 | M13: =F13*(Forecast!$H$8/$F$2) -> 52.9777958 | N13: =F13*(Forecast!$I$8/$F$2) -> 53.40672503 | O13: =F13*(Forecast!$J$8/$F$2) -> 53.76416606 | P13: =F13*(Forecast!$K$8/$F$2) -> 54.12160708 | Q13: =F13*(Forecast!$L$8/$F$2) -> 54.4790481 | R13: =F13*(Forecast!$M$8/$F$2) -> 54.83648913 | S13: =F13*(Forecast!$N$8/$F$2) -> 55.26541835 | T13: =F13*(Forecast!$O$8/$F$2) -> 55.62285938 | U13: =F13*(Forecast!$P$8/$F$2) -> 55.9803004 | V13: =F13*(Forecast!$Q$8/$F$2) -> 56.33774143 | W13: =F13*(Forecast!$R$8/$F$2) -> 56.76667065 | X13: =F13*(Forecast!$S$8/$F$2) -> 57.12411168 | Y13: =F13*(Forecast!$T$8/$F$2) -> 57.4815527 | Z13: =F13*(Forecast!$U$8/$F$2) -> 57.83899373 | AA13: =F13*(Forecast!$V$8/$F$2) -> 58.26792295 | AB13: =F13*(Forecast!$W$8/$F$2) -> 58.62536398 | AC13: =F13*(Forecast!$X$8/$F$2) -> 58.982805 | AD13: =F13*(Forecast!$Y$8/$F$2) -> 59.41173423 | AE13: =F13*(Forecast!$Z$8/$F$2) -> 59.76917525 | AF13: =F13*(Forecast!$AA$8/$F$2) -> 60.12661628 | AG13: =F13*(Forecast!$AB$8/$F$2) -> 60.4840573
A14: 2017-01-01T10:00:00 | B14: 23.2655201 | C14: 13.15433121 | D14: 12.98485565 | E14: 0 | F14: 49.40470695 | H14: =F14*(Forecast!$C$8/$F$2) -> 53.09851821 | I14: =F14*(Forecast!$D$8/$F$2) -> 53.62851643 | J14: =F14*(Forecast!$E$8/$F$2) -> 53.77522874 | K14: =F14*(Forecast!$F$8/$F$2) -> 53.9952972 | L14: =F14*(Forecast!$G$8/$F$2) -> 54.14200951 | M14: =F14*(Forecast!$H$8/$F$2) -> 54.36207797 | N14: =F14*(Forecast!$I$8/$F$2) -> 54.80221489 | O14: =F14*(Forecast!$J$8/$F$2) -> 55.16899567 | P14: =F14*(Forecast!$K$8/$F$2) -> 55.53577644 | Q14: =F14*(Forecast!$L$8/$F$2) -> 55.90255721 | R14: =F14*(Forecast!$M$8/$F$2) -> 56.26933798 | S14: =F14*(Forecast!$N$8/$F$2) -> 56.7094749 | T14: =F14*(Forecast!$O$8/$F$2) -> 57.07625568 | U14: =F14*(Forecast!$P$8/$F$2) -> 57.44303645 | V14: =F14*(Forecast!$Q$8/$F$2) -> 57.80981722 | W14: =F14*(Forecast!$R$8/$F$2) -> 58.24995414 | X14: =F14*(Forecast!$S$8/$F$2) -> 58.61673491 | Y14: =F14*(Forecast!$T$8/$F$2) -> 58.98351569 | Z14: =F14*(Forecast!$U$8/$F$2) -> 59.35029646 | AA14: =F14*(Forecast!$V$8/$F$2) -> 59.79043338 | AB14: =F14*(Forecast!$W$8/$F$2) -> 60.15721415 | AC14: =F14*(Forecast!$X$8/$F$2) -> 60.52399492 | AD14: =F14*(Forecast!$Y$8/$F$2) -> 60.96413185 | AE14: =F14*(Forecast!$Z$8/$F$2) -> 61.33091262 | AF14: =F14*(Forecast!$AA$8/$F$2) -> 61.69769339 | AG14: =F14*(Forecast!$AB$8/$F$2) -> 62.06447416
A15: 2017-01-01T11:00:00 | B15: 23.409338 | C15: 13.14089966 | D15: 12.97297764 | E15: 0 | F15: 49.52321529 | H15: =F15*(Forecast!$C$8/$F$2) -> 53.22588699 | I15: =F15*(Forecast!$D$8/$F$2) -> 53.75715653 | J15: =F15*(Forecast!$E$8/$F$2) -> 53.90422076 | K15: =F15*(Forecast!$F$8/$F$2) -> 54.1248171 | L15: =F15*(Forecast!$G$8/$F$2) -> 54.27188133 | M15: =F15*(Forecast!$H$8/$F$2) -> 54.49247768 | N15: =F15*(Forecast!$I$8/$F$2) -> 54.93367037 | O15: =F15*(Forecast!$J$8/$F$2) -> 55.30133095 | P15: =F15*(Forecast!$K$8/$F$2) -> 55.66899153 | Q15: =F15*(Forecast!$L$8/$F$2) -> 56.03665211 | R15: =F15*(Forecast!$M$8/$F$2) -> 56.40431268 | S15: =F15*(Forecast!$N$8/$F$2) -> 56.84550538 | T15: =F15*(Forecast!$O$8/$F$2) -> 57.21316596 | U15: =F15*(Forecast!$P$8/$F$2) -> 57.58082653 | V15: =F15*(Forecast!$Q$8/$F$2) -> 57.94848711 | W15: =F15*(Forecast!$R$8/$F$2) -> 58.3896798 | X15: =F15*(Forecast!$S$8/$F$2) -> 58.75734038 | Y15: =F15*(Forecast!$T$8/$F$2) -> 59.12500096 | Z15: =F15*(Forecast!$U$8/$F$2) -> 59.49266154 | AA15: =F15*(Forecast!$V$8/$F$2) -> 59.93385423 | AB15: =F15*(Forecast!$W$8/$F$2) -> 60.30151481 | AC15: =F15*(Forecast!$X$8/$F$2) -> 60.66917538 | AD15: =F15*(Forecast!$Y$8/$F$2) -> 61.11036808 | AE15: =F15*(Forecast!$Z$8/$F$2) -> 61.47802866 | AF15: =F15*(Forecast!$AA$8/$F$2) -> 61.84568923 | AG15: =F15*(Forecast!$AB$8/$F$2) -> 62.21334981
A16: 2017-01-01T12:00:00 | B16: 22.8656311 | C16: 13.00833035 | D16: 12.86200619 | E16: 0 | F16: 48.73596764 | H16: =F16*(Forecast!$C$8/$F$2) -> 52.37977967 | I16: =F16*(Forecast!$D$8/$F$2) -> 52.90260386 | J16: =F16*(Forecast!$E$8/$F$2) -> 53.04733028 | K16: =F16*(Forecast!$F$8/$F$2) -> 53.26441991 | L16: =F16*(Forecast!$G$8/$F$2) -> 53.40914633 | M16: =F16*(Forecast!$H$8/$F$2) -> 53.62623596 | N16: =F16*(Forecast!$I$8/$F$2) -> 54.06041521 | O16: =F16*(Forecast!$J$8/$F$2) -> 54.42223126 | P16: =F16*(Forecast!$K$8/$F$2) -> 54.78404731 | Q16: =F16*(Forecast!$L$8/$F$2) -> 55.14586336 | R16: =F16*(Forecast!$M$8/$F$2) -> 55.5076794 | S16: =F16*(Forecast!$N$8/$F$2) -> 55.94185866 | T16: =F16*(Forecast!$O$8/$F$2) -> 56.30367471 | U16: =F16*(Forecast!$P$8/$F$2) -> 56.66549075 | V16: =F16*(Forecast!$Q$8/$F$2) -> 57.0273068 | W16: =F16*(Forecast!$R$8/$F$2) -> 57.46148606 | X16: =F16*(Forecast!$S$8/$F$2) -> 57.82330211 | Y16: =F16*(Forecast!$T$8/$F$2) -> 58.18511815 | Z16: =F16*(Forecast!$U$8/$F$2) -> 58.5469342 | AA16: =F16*(Forecast!$V$8/$F$2) -> 58.98111346 | AB16: =F16*(Forecast!$W$8/$F$2) -> 59.34292951 | AC16: =F16*(Forecast!$X$8/$F$2) -> 59.70474555 | AD16: =F16*(Forecast!$Y$8/$F$2) -> 60.13892481 | AE16: =F16*(Forecast!$Z$8/$F$2) -> 60.50074086 | AF16: =F16*(Forecast!$AA$8/$F$2) -> 60.8625569 | AG16: =F16*(Forecast!$AB$8/$F$2) -> 61.22437295
A17: 2017-01-01T13:00:00 | B17: 22.46775246 | C17: 12.87576103 | D17: 12.75103474 | E17: 0 | F17: 48.09454823 | H17: =F17*(Forecast!$C$8/$F$2) -> 51.69040365 | I17: =F17*(Forecast!$D$8/$F$2) -> 52.2063469 | J17: =F17*(Forecast!$E$8/$F$2) -> 52.34916855 | K17: =F17*(Forecast!$F$8/$F$2) -> 52.56340104 | L17: =F17*(Forecast!$G$8/$F$2) -> 52.7062227 | M17: =F17*(Forecast!$H$8/$F$2) -> 52.92045519 | N17: =F17*(Forecast!$I$8/$F$2) -> 53.34892016 | O17: =F17*(Forecast!$J$8/$F$2) -> 53.70597431 | P17: =F17*(Forecast!$K$8/$F$2) -> 54.06302846 | Q17: =F17*(Forecast!$L$8/$F$2) -> 54.4200826 | R17: =F17*(Forecast!$M$8/$F$2) -> 54.77713675 | S17: =F17*(Forecast!$N$8/$F$2) -> 55.20560173 | T17: =F17*(Forecast!$O$8/$F$2) -> 55.56265587 | U17: =F17*(Forecast!$P$8/$F$2) -> 55.91971002 | V17: =F17*(Forecast!$Q$8/$F$2) -> 56.27676417 | W17: =F17*(Forecast!$R$8/$F$2) -> 56.70522914 | X17: =F17*(Forecast!$S$8/$F$2) -> 57.06228329 | Y17: =F17*(Forecast!$T$8/$F$2) -> 57.41933744 | Z17: =F17*(Forecast!$U$8/$F$2) -> 57.77639158 | AA17: =F17*(Forecast!$V$8/$F$2) -> 58.20485656 | AB17: =F17*(Forecast!$W$8/$F$2) -> 58.56191071 | AC17: =F17*(Forecast!$X$8/$F$2) -> 58.91896485 | AD17: =F17*(Forecast!$Y$8/$F$2) -> 59.34742983 | AE17: =F17*(Forecast!$Z$8/$F$2) -> 59.70448398 | AF17: =F17*(Forecast!$AA$8/$F$2) -> 60.06153812 | AG17: =F17*(Forecast!$AB$8/$F$2) -> 60.41859227
A18: 2017-01-01T14:00:00 | B18: 22.14562988 | C18: 12.74319077 | D18: 12.64006329 | E18: 0 | F18: 47.52888393 | H18: =F18*(Forecast!$C$8/$F$2) -> 51.08244669 | I18: =F18*(Forecast!$D$8/$F$2) -> 51.59232166 | J18: =F18*(Forecast!$E$8/$F$2) -> 51.73346352 | K18: =F18*(Forecast!$F$8/$F$2) -> 51.94517631 | L18: =F18*(Forecast!$G$8/$F$2) -> 52.08631817 | M18: =F18*(Forecast!$H$8/$F$2) -> 52.29803097 | N18: =F18*(Forecast!$I$8/$F$2) -> 52.72145655 | O18: =F18*(Forecast!$J$8/$F$2) -> 53.0743112 | P18: =F18*(Forecast!$K$8/$F$2) -> 53.42716585 | Q18: =F18*(Forecast!$L$8/$F$2) -> 53.78002051 | R18: =F18*(Forecast!$M$8/$F$2) -> 54.13287516 | S18: =F18*(Forecast!$N$8/$F$2) -> 54.55630074 | T18: =F18*(Forecast!$O$8/$F$2) -> 54.90915539 | U18: =F18*(Forecast!$P$8/$F$2) -> 55.26201005 | V18: =F18*(Forecast!$Q$8/$F$2) -> 55.6148647 | W18: =F18*(Forecast!$R$8/$F$2) -> 56.03829028 | X18: =F18*(Forecast!$S$8/$F$2) -> 56.39114493 | Y18: =F18*(Forecast!$T$8/$F$2) -> 56.74399959 | Z18: =F18*(Forecast!$U$8/$F$2) -> 57.09685424 | AA18: =F18*(Forecast!$V$8/$F$2) -> 57.52027982 | AB18: =F18*(Forecast!$W$8/$F$2) -> 57.87313447 | AC18: =F18*(Forecast!$X$8/$F$2) -> 58.22598913 | AD18: =F18*(Forecast!$Y$8/$F$2) -> 58.64941471 | AE18: =F18*(Forecast!$Z$8/$F$2) -> 59.00226936 | AF18: =F18*(Forecast!$AA$8/$F$2) -> 59.35512402 | AG18: =F18*(Forecast!$AB$8/$F$2) -> 59.70797867
A19: 2017-01-01T15:00:00 | B19: 22.19150543 | C19: 12.61062145 | D19: 12.52909088 | E19: 0 | F19: 47.33121777 | H19: =F19*(Forecast!$C$8/$F$2) -> 50.87000174 | I19: =F19*(Forecast!$D$8/$F$2) -> 51.37775621 | J19: =F19*(Forecast!$E$8/$F$2) -> 51.51831108 | K19: =F19*(Forecast!$F$8/$F$2) -> 51.72914339 | L19: =F19*(Forecast!$G$8/$F$2) -> 51.86969826 | M19: =F19*(Forecast!$H$8/$F$2) -> 52.08053056 | N19: =F19*(Forecast!$I$8/$F$2) -> 52.50219518 | O19: =F19*(Forecast!$J$8/$F$2) -> 52.85358235 | P19: =F19*(Forecast!$K$8/$F$2) -> 53.20496953 | Q19: =F19*(Forecast!$L$8/$F$2) -> 53.55635671 | R19: =F19*(Forecast!$M$8/$F$2) -> 53.90774389 | S19: =F19*(Forecast!$N$8/$F$2) -> 54.3294085 | T19: =F19*(Forecast!$O$8/$F$2) -> 54.68079568 | U19: =F19*(Forecast!$P$8/$F$2) -> 55.03218286 | V19: =F19*(Forecast!$Q$8/$F$2) -> 55.38357004 | W19: =F19*(Forecast!$R$8/$F$2) -> 55.80523465 | X19: =F19*(Forecast!$S$8/$F$2) -> 56.15662183 | Y19: =F19*(Forecast!$T$8/$F$2) -> 56.50800901 | Z19: =F19*(Forecast!$U$8/$F$2) -> 56.85939618 | AA19: =F19*(Forecast!$V$8/$F$2) -> 57.2810608 | AB19: =F19*(Forecast!$W$8/$F$2) -> 57.63244797 | AC19: =F19*(Forecast!$X$8/$F$2) -> 57.98383515 | AD19: =F19*(Forecast!$Y$8/$F$2) -> 58.40549977 | AE19: =F19*(Forecast!$Z$8/$F$2) -> 58.75688694 | AF19: =F19*(Forecast!$AA$8/$F$2) -> 59.10827412 | AG19: =F19*(Forecast!$AB$8/$F$2) -> 59.4596613
A20: 2017-01-01T16:00:00 | B20: 23.18883514 | C20: 13.08124638 | D20: 13.06451416 | E20: 0 | F20: 49.33459568 | H20: =F20*(Forecast!$C$8/$F$2) -> 53.02316497 | I20: =F20*(Forecast!$D$8/$F$2) -> 53.55241105 | J20: =F20*(Forecast!$E$8/$F$2) -> 53.69891516 | K20: =F20*(Forecast!$F$8/$F$2) -> 53.91867132 | L20: =F20*(Forecast!$G$8/$F$2) -> 54.06517542 | M20: =F20*(Forecast!$H$8/$F$2) -> 54.28493158 | N20: =F20*(Forecast!$I$8/$F$2) -> 54.7244439 | O20: =F20*(Forecast!$J$8/$F$2) -> 55.09070417 | P20: =F20*(Forecast!$K$8/$F$2) -> 55.45696443 | Q20: =F20*(Forecast!$L$8/$F$2) -> 55.8232247 | R20: =F20*(Forecast!$M$8/$F$2) -> 56.18948496 | S20: =F20*(Forecast!$N$8/$F$2) -> 56.62899728 | T20: =F20*(Forecast!$O$8/$F$2) -> 56.99525754 | U20: =F20*(Forecast!$P$8/$F$2) -> 57.36151781 | V20: =F20*(Forecast!$Q$8/$F$2) -> 57.72777807 | W20: =F20*(Forecast!$R$8/$F$2) -> 58.16729039 | X20: =F20*(Forecast!$S$8/$F$2) -> 58.53355065 | Y20: =F20*(Forecast!$T$8/$F$2) -> 58.89981092 | Z20: =F20*(Forecast!$U$8/$F$2) -> 59.26607118 | AA20: =F20*(Forecast!$V$8/$F$2) -> 59.7055835 | AB20: =F20*(Forecast!$W$8/$F$2) -> 60.07184377 | AC20: =F20*(Forecast!$X$8/$F$2) -> 60.43810403 | AD20: =F20*(Forecast!$Y$8/$F$2) -> 60.87761635 | AE20: =F20*(Forecast!$Z$8/$F$2) -> 61.24387661 | AF20: =F20*(Forecast!$AA$8/$F$2) -> 61.61013688 | AG20: =F20*(Forecast!$AB$8/$F$2) -> 61.97639714
A21: 2017-01-01T17:00:00 | B21: 24.58265305 | C21: 13.58619404 | D21: 13.46062851 | E21: 0 | F21: 51.62947559 | H21: =F21*(Forecast!$C$8/$F$2) -> 55.48962476 | I21: =F21*(Forecast!$D$8/$F$2) -> 56.04348959 | J21: =F21*(Forecast!$E$8/$F$2) -> 56.19680858 | K21: =F21*(Forecast!$F$8/$F$2) -> 56.42678705 | L21: =F21*(Forecast!$G$8/$F$2) -> 56.58010604 | M21: =F21*(Forecast!$H$8/$F$2) -> 56.81008452 | N21: =F21*(Forecast!$I$8/$F$2) -> 57.27004147 | O21: =F21*(Forecast!$J$8/$F$2) -> 57.65333894 | P21: =F21*(Forecast!$K$8/$F$2) -> 58.0366364 | Q21: =F21*(Forecast!$L$8/$F$2) -> 58.41993387 | R21: =F21*(Forecast!$M$8/$F$2) -> 58.80323133 | S21: =F21*(Forecast!$N$8/$F$2) -> 59.26318829 | T21: =F21*(Forecast!$O$8/$F$2) -> 59.64648575 | U21: =F21*(Forecast!$P$8/$F$2) -> 60.02978321 | V21: =F21*(Forecast!$Q$8/$F$2) -> 60.41308068 | W21: =F21*(Forecast!$R$8/$F$2) -> 60.87303763 | X21: =F21*(Forecast!$S$8/$F$2) -> 61.2563351 | Y21: =F21*(Forecast!$T$8/$F$2) -> 61.63963256 | Z21: =F21*(Forecast!$U$8/$F$2) -> 62.02293003 | AA21: =F21*(Forecast!$V$8/$F$2) -> 62.48288698 | AB21: =F21*(Forecast!$W$8/$F$2) -> 62.86618445 | AC21: =F21*(Forecast!$X$8/$F$2) -> 63.24948191 | AD21: =F21*(Forecast!$Y$8/$F$2) -> 63.70943887 | AE21: =F21*(Forecast!$Z$8/$F$2) -> 64.09273633 | AF21: =F21*(Forecast!$AA$8/$F$2) -> 64.47603379 | AG21: =F21*(Forecast!$AB$8/$F$2) -> 64.85933126
A22: 2017-01-01T18:00:00 | B22: 24.39533234 | C22: 13.82706165 | D22: 13.63517284 | E22: 0 | F22: 51.85756683 | H22: =F22*(Forecast!$C$8/$F$2) -> 55.73476955 | I22: =F22*(Forecast!$D$8/$F$2) -> 56.29108128 | J22: =F22*(Forecast!$E$8/$F$2) -> 56.4450776 | K22: =F22*(Forecast!$F$8/$F$2) -> 56.67607209 | L22: =F22*(Forecast!$G$8/$F$2) -> 56.83006842 | M22: =F22*(Forecast!$H$8/$F$2) -> 57.06106291 | N22: =F22*(Forecast!$I$8/$F$2) -> 57.52305188 | O22: =F22*(Forecast!$J$8/$F$2) -> 57.9080427 | P22: =F22*(Forecast!$K$8/$F$2) -> 58.29303351 | Q22: =F22*(Forecast!$L$8/$F$2) -> 58.67802433 | R22: =F22*(Forecast!$M$8/$F$2) -> 59.06301514 | S22: =F22*(Forecast!$N$8/$F$2) -> 59.52500412 | T22: =F22*(Forecast!$O$8/$F$2) -> 59.90999493 | U22: =F22*(Forecast!$P$8/$F$2) -> 60.29498575 | V22: =F22*(Forecast!$Q$8/$F$2) -> 60.67997656 | W22: =F22*(Forecast!$R$8/$F$2) -> 61.14196554 | X22: =F22*(Forecast!$S$8/$F$2) -> 61.52695635 | Y22: =F22*(Forecast!$T$8/$F$2) -> 61.91194717 | Z22: =F22*(Forecast!$U$8/$F$2) -> 62.29693798 | AA22: =F22*(Forecast!$V$8/$F$2) -> 62.75892696 | AB22: =F22*(Forecast!$W$8/$F$2) -> 63.14391777 | AC22: =F22*(Forecast!$X$8/$F$2) -> 63.52890859 | AD22: =F22*(Forecast!$Y$8/$F$2) -> 63.99089756 | AE22: =F22*(Forecast!$Z$8/$F$2) -> 64.37588838 | AF22: =F22*(Forecast!$AA$8/$F$2) -> 64.76087919 | AG22: =F22*(Forecast!$AB$8/$F$2) -> 65.14587
A23: 2017-01-01T19:00:00 | B23: 24.24751854 | C23: 13.74790192 | D23: 13.5116024 | E23: 0 | F23: 51.50702286 | H23: =F23*(Forecast!$C$8/$F$2) -> 55.35801667 | I23: =F23*(Forecast!$D$8/$F$2) -> 55.91056787 | J23: =F23*(Forecast!$E$8/$F$2) -> 56.06352322 | K23: =F23*(Forecast!$F$8/$F$2) -> 56.29295625 | L23: =F23*(Forecast!$G$8/$F$2) -> 56.4459116 | M23: =F23*(Forecast!$H$8/$F$2) -> 56.67534462 | N23: =F23*(Forecast!$I$8/$F$2) -> 57.13421067 | O23: =F23*(Forecast!$J$8/$F$2) -> 57.51659904 | P23: =F23*(Forecast!$K$8/$F$2) -> 57.89898742 | Q23: =F23*(Forecast!$L$8/$F$2) -> 58.28137579 | R23: =F23*(Forecast!$M$8/$F$2) -> 58.66376417 | S23: =F23*(Forecast!$N$8/$F$2) -> 59.12263021 | T23: =F23*(Forecast!$O$8/$F$2) -> 59.50501859 | U23: =F23*(Forecast!$P$8/$F$2) -> 59.88740696 | V23: =F23*(Forecast!$Q$8/$F$2) -> 60.26979534 | W23: =F23*(Forecast!$R$8/$F$2) -> 60.72866139 | X23: =F23*(Forecast!$S$8/$F$2) -> 61.11104976 | Y23: =F23*(Forecast!$T$8/$F$2) -> 61.49343813 | Z23: =F23*(Forecast!$U$8/$F$2) -> 61.87582651 | AA23: =F23*(Forecast!$V$8/$F$2) -> 62.33469256 | AB23: =F23*(Forecast!$W$8/$F$2) -> 62.71708093 | AC23: =F23*(Forecast!$X$8/$F$2) -> 63.0994693 | AD23: =F23*(Forecast!$Y$8/$F$2) -> 63.55833535 | AE23: =F23*(Forecast!$Z$8/$F$2) -> 63.94072373 | AF23: =F23*(Forecast!$AA$8/$F$2) -> 64.3231121 | AG23: =F23*(Forecast!$AB$8/$F$2) -> 64.70550048
A24: 2017-01-01T20:00:00 | B24: 23.92915726 | C24: 13.66874218 | D24: 13.37387848 | E24: 0 | F24: 50.97177792 | H24: =F24*(Forecast!$C$8/$F$2) -> 54.7827534 | I24: =F24*(Forecast!$D$8/$F$2) -> 55.32956266 | J24: =F24*(Forecast!$E$8/$F$2) -> 55.48092855 | K24: =F24*(Forecast!$F$8/$F$2) -> 55.70797738 | L24: =F24*(Forecast!$G$8/$F$2) -> 55.85934326 | M24: =F24*(Forecast!$H$8/$F$2) -> 56.08639209 | N24: =F24*(Forecast!$I$8/$F$2) -> 56.54048974 | O24: =F24*(Forecast!$J$8/$F$2) -> 56.91890446 | P24: =F24*(Forecast!$K$8/$F$2) -> 57.29731917 | Q24: =F24*(Forecast!$L$8/$F$2) -> 57.67573388 | R24: =F24*(Forecast!$M$8/$F$2) -> 58.0541486 | S24: =F24*(Forecast!$N$8/$F$2) -> 58.50824625 | T24: =F24*(Forecast!$O$8/$F$2) -> 58.88666097 | U24: =F24*(Forecast!$P$8/$F$2) -> 59.26507568 | V24: =F24*(Forecast!$Q$8/$F$2) -> 59.64349039 | W24: =F24*(Forecast!$R$8/$F$2) -> 60.09758805 | X24: =F24*(Forecast!$S$8/$F$2) -> 60.47600276 | Y24: =F24*(Forecast!$T$8/$F$2) -> 60.85441747 | Z24: =F24*(Forecast!$U$8/$F$2) -> 61.23283219 | AA24: =F24*(Forecast!$V$8/$F$2) -> 61.68692984 | AB24: =F24*(Forecast!$W$8/$F$2) -> 62.06534456 | AC24: =F24*(Forecast!$X$8/$F$2) -> 62.44375927 | AD24: =F24*(Forecast!$Y$8/$F$2) -> 62.89785693 | AE24: =F24*(Forecast!$Z$8/$F$2) -> 63.27627164 | AF24: =F24*(Forecast!$AA$8/$F$2) -> 63.65468635 | AG24: =F24*(Forecast!$AB$8/$F$2) -> 64.03310106
A25: 2017-01-01T21:00:00 | B25: 23.96710205 | C25: 13.58958244 | D25: 13.17973328 | E25: 0 | F25: 50.73641777 | H25: =F25*(Forecast!$C$8/$F$2) -> 54.52979623 | I25: =F25*(Forecast!$D$8/$F$2) -> 55.07408062 | J25: =F25*(Forecast!$E$8/$F$2) -> 55.22474758 | K25: =F25*(Forecast!$F$8/$F$2) -> 55.45074802 | L25: =F25*(Forecast!$G$8/$F$2) -> 55.60141498 | M25: =F25*(Forecast!$H$8/$F$2) -> 55.82741542 | N25: =F25*(Forecast!$I$8/$F$2) -> 56.27941629 | O25: =F25*(Forecast!$J$8/$F$2) -> 56.65608369 | P25: =F25*(Forecast!$K$8/$F$2) -> 57.03275109 | Q25: =F25*(Forecast!$L$8/$F$2) -> 57.40941849 | R25: =F25*(Forecast!$M$8/$F$2) -> 57.78608589 | S25: =F25*(Forecast!$N$8/$F$2) -> 58.23808677 | T25: =F25*(Forecast!$O$8/$F$2) -> 58.61475416 | U25: =F25*(Forecast!$P$8/$F$2) -> 58.99142156 | V25: =F25*(Forecast!$Q$8/$F$2) -> 59.36808896 | W25: =F25*(Forecast!$R$8/$F$2) -> 59.82008984 | X25: =F25*(Forecast!$S$8/$F$2) -> 60.19675724 | Y25: =F25*(Forecast!$T$8/$F$2) -> 60.57342464 | Z25: =F25*(Forecast!$U$8/$F$2) -> 60.95009203 | AA25: =F25*(Forecast!$V$8/$F$2) -> 61.40209291 | AB25: =F25*(Forecast!$W$8/$F$2) -> 61.77876031 | AC25: =F25*(Forecast!$X$8/$F$2) -> 62.15542771 | AD25: =F25*(Forecast!$Y$8/$F$2) -> 62.60742859 | AE25: =F25*(Forecast!$Z$8/$F$2) -> 62.98409599 | AF25: =F25*(Forecast!$AA$8/$F$2) -> 63.36076338 | AG25: =F25*(Forecast!$AB$8/$F$2) -> 63.73743078
A26: 2017-01-01T22:00:00 | B26: 23.58563042 | C26: 13.51042366 | D26: 12.98558807 | E26: 0 | F26: 50.08164215 | H26: =F26*(Forecast!$C$8/$F$2) -> 53.8260654 | I26: =F26*(Forecast!$D$8/$F$2) -> 54.36332557 | J26: =F26*(Forecast!$E$8/$F$2) -> 54.5120481 | K26: =F26*(Forecast!$F$8/$F$2) -> 54.73513191 | L26: =F26*(Forecast!$G$8/$F$2) -> 54.88385445 | M26: =F26*(Forecast!$H$8/$F$2) -> 55.10693825 | N26: =F26*(Forecast!$I$8/$F$2) -> 55.55310586 | O26: =F26*(Forecast!$J$8/$F$2) -> 55.9249122 | P26: =F26*(Forecast!$K$8/$F$2) -> 56.29671854 | Q26: =F26*(Forecast!$L$8/$F$2) -> 56.66852488 | R26: =F26*(Forecast!$M$8/$F$2) -> 57.04033122 | S26: =F26*(Forecast!$N$8/$F$2) -> 57.48649883 | T26: =F26*(Forecast!$O$8/$F$2) -> 57.85830517 | U26: =F26*(Forecast!$P$8/$F$2) -> 58.23011152 | V26: =F26*(Forecast!$Q$8/$F$2) -> 58.60191786 | W26: =F26*(Forecast!$R$8/$F$2) -> 59.04808547 | X26: =F26*(Forecast!$S$8/$F$2) -> 59.41989181 | Y26: =F26*(Forecast!$T$8/$F$2) -> 59.79169815 | Z26: =F26*(Forecast!$U$8/$F$2) -> 60.16350449 | AA26: =F26*(Forecast!$V$8/$F$2) -> 60.6096721 | AB26: =F26*(Forecast!$W$8/$F$2) -> 60.98147844 | AC26: =F26*(Forecast!$X$8/$F$2) -> 61.35328478 | AD26: =F26*(Forecast!$Y$8/$F$2) -> 61.79945239 | AE26: =F26*(Forecast!$Z$8/$F$2) -> 62.17125873 | AF26: =F26*(Forecast!$AA$8/$F$2) -> 62.54306507 | AG26: =F26*(Forecast!$AB$8/$F$2) -> 62.91487141
A27: 2017-01-01T23:00:00 | B27: 23.3570385 | C27: 13.18545532 | D27: 12.79144382 | E27: 0 | F27: 49.33393764 | H27: =F27*(Forecast!$C$8/$F$2) -> 53.02245774 | I27: =F27*(Forecast!$D$8/$F$2) -> 53.55169676 | J27: =F27*(Forecast!$E$8/$F$2) -> 53.69819891 | K27: =F27*(Forecast!$F$8/$F$2) -> 53.91795214 | L27: =F27*(Forecast!$G$8/$F$2) -> 54.06445429 | M27: =F27*(Forecast!$H$8/$F$2) -> 54.28420752 | N27: =F27*(Forecast!$I$8/$F$2) -> 54.72371397 | O27: =F27*(Forecast!$J$8/$F$2) -> 55.08996935 | P27: =F27*(Forecast!$K$8/$F$2) -> 55.45622473 | Q27: =F27*(Forecast!$L$8/$F$2) -> 55.82248011 | R27: =F27*(Forecast!$M$8/$F$2) -> 56.18873549 | S27: =F27*(Forecast!$N$8/$F$2) -> 56.62824195 | T27: =F27*(Forecast!$O$8/$F$2) -> 56.99449733 | U27: =F27*(Forecast!$P$8/$F$2) -> 57.36075271 | V27: =F27*(Forecast!$Q$8/$F$2) -> 57.72700809 | W27: =F27*(Forecast!$R$8/$F$2) -> 58.16651454 | X27: =F27*(Forecast!$S$8/$F$2) -> 58.53276992 | Y27: =F27*(Forecast!$T$8/$F$2) -> 58.8990253 | Z27: =F27*(Forecast!$U$8/$F$2) -> 59.26528068 | AA27: =F27*(Forecast!$V$8/$F$2) -> 59.70478714 | AB27: =F27*(Forecast!$W$8/$F$2) -> 60.07104252 | AC27: =F27*(Forecast!$X$8/$F$2) -> 60.43729789 | AD27: =F27*(Forecast!$Y$8/$F$2) -> 60.87680435 | AE27: =F27*(Forecast!$Z$8/$F$2) -> 61.24305973 | AF27: =F27*(Forecast!$AA$8/$F$2) -> 61.60931511 | AG27: =F27*(Forecast!$AB$8/$F$2) -> 61.97557049
A28: 2017-01-02 | B28: 22.50563049 | C28: 12.58505535 | D28: 12.49870682 | E28: 0 | F28: 47.58939266 | H28: =F28*(Forecast!$C$8/$F$2) -> 51.14747944 | I28: =F28*(Forecast!$D$8/$F$2) -> 51.65800353 | J28: =F28*(Forecast!$E$8/$F$2) -> 51.79932507 | K28: =F28*(Forecast!$F$8/$F$2) -> 52.0113074 | L28: =F28*(Forecast!$G$8/$F$2) -> 52.15262894 | M28: =F28*(Forecast!$H$8/$F$2) -> 52.36461127 | N28: =F28*(Forecast!$I$8/$F$2) -> 52.78857591 | O28: =F28*(Forecast!$J$8/$F$2) -> 53.14187978 | P28: =F28*(Forecast!$K$8/$F$2) -> 53.49518365 | Q28: =F28*(Forecast!$L$8/$F$2) -> 53.84848752 | R28: =F28*(Forecast!$M$8/$F$2) -> 54.20179139 | S28: =F28*(Forecast!$N$8/$F$2) -> 54.62575603 | T28: =F28*(Forecast!$O$8/$F$2) -> 54.9790599 | U28: =F28*(Forecast!$P$8/$F$2) -> 55.33236377 | V28: =F28*(Forecast!$Q$8/$F$2) -> 55.68566764 | W28: =F28*(Forecast!$R$8/$F$2) -> 56.10963228 | X28: =F28*(Forecast!$S$8/$F$2) -> 56.46293615 | Y28: =F28*(Forecast!$T$8/$F$2) -> 56.81624002 | Z28: =F28*(Forecast!$U$8/$F$2) -> 57.16954389 | AA28: =F28*(Forecast!$V$8/$F$2) -> 57.59350853 | AB28: =F28*(Forecast!$W$8/$F$2) -> 57.9468124 | AC28: =F28*(Forecast!$X$8/$F$2) -> 58.30011627 | AD28: =F28*(Forecast!$Y$8/$F$2) -> 58.72408092 | AE28: =F28*(Forecast!$Z$8/$F$2) -> 59.07738479 | AF28: =F28*(Forecast!$AA$8/$F$2) -> 59.43068866 | AG28: =F28*(Forecast!$AB$8/$F$2) -> 59.78399253
A29: 2017-01-02T01:00:00 | B29: 22.14832306 | C29: 12.52428246 | D29: 12.45042515 | E29: 0 | F29: 47.12303066 | H29: =F29*(Forecast!$C$8/$F$2) -> 50.64624924 | I29: =F29*(Forecast!$D$8/$F$2) -> 51.15177034 | J29: =F29*(Forecast!$E$8/$F$2) -> 51.29170698 | K29: =F29*(Forecast!$F$8/$F$2) -> 51.50161194 | L29: =F29*(Forecast!$G$8/$F$2) -> 51.64154858 | M29: =F29*(Forecast!$H$8/$F$2) -> 51.85145353 | N29: =F29*(Forecast!$I$8/$F$2) -> 52.27126345 | O29: =F29*(Forecast!$J$8/$F$2) -> 52.62110504 | P29: =F29*(Forecast!$K$8/$F$2) -> 52.97094664 | Q29: =F29*(Forecast!$L$8/$F$2) -> 53.32078824 | R29: =F29*(Forecast!$M$8/$F$2) -> 53.67062983 | S29: =F29*(Forecast!$N$8/$F$2) -> 54.09043975 | T29: =F29*(Forecast!$O$8/$F$2) -> 54.44028134 | U29: =F29*(Forecast!$P$8/$F$2) -> 54.79012294 | V29: =F29*(Forecast!$Q$8/$F$2) -> 55.13996453 | W29: =F29*(Forecast!$R$8/$F$2) -> 55.55977445 | X29: =F29*(Forecast!$S$8/$F$2) -> 55.90961605 | Y29: =F29*(Forecast!$T$8/$F$2) -> 56.25945764 | Z29: =F29*(Forecast!$U$8/$F$2) -> 56.60929924 | AA29: =F29*(Forecast!$V$8/$F$2) -> 57.02910915 | AB29: =F29*(Forecast!$W$8/$F$2) -> 57.37895075 | AC29: =F29*(Forecast!$X$8/$F$2) -> 57.72879234 | AD29: =F29*(Forecast!$Y$8/$F$2) -> 58.14860226 | AE29: =F29*(Forecast!$Z$8/$F$2) -> 58.49844386 | AF29: =F29*(Forecast!$AA$8/$F$2) -> 58.84828545 | AG29: =F29*(Forecast!$AB$8/$F$2) -> 59.19812705
A30: 2017-01-02T02:00:00 | B30: 22.02285576 | C30: 12.46351051 | D30: 12.40214348 | E30: 0 | F30: 46.88850975 | H30: =F30*(Forecast!$C$8/$F$2) -> 50.39419404 | I30: =F30*(Forecast!$D$8/$F$2) -> 50.89719928 | J30: =F30*(Forecast!$E$8/$F$2) -> 51.03643949 | K30: =F30*(Forecast!$F$8/$F$2) -> 51.24529979 | L30: =F30*(Forecast!$G$8/$F$2) -> 51.38454 | M30: =F30*(Forecast!$H$8/$F$2) -> 51.59340031 | N30: =F30*(Forecast!$I$8/$F$2) -> 52.01112092 | O30: =F30*(Forecast!$J$8/$F$2) -> 52.35922143 | P30: =F30*(Forecast!$K$8/$F$2) -> 52.70732194 | Q30: =F30*(Forecast!$L$8/$F$2) -> 53.05542245 | R30: =F30*(Forecast!$M$8/$F$2) -> 53.40352297 | S30: =F30*(Forecast!$N$8/$F$2) -> 53.82124358 | T30: =F30*(Forecast!$O$8/$F$2) -> 54.16934409 | U30: =F30*(Forecast!$P$8/$F$2) -> 54.5174446 | V30: =F30*(Forecast!$Q$8/$F$2) -> 54.86554511 | W30: =F30*(Forecast!$R$8/$F$2) -> 55.28326573 | X30: =F30*(Forecast!$S$8/$F$2) -> 55.63136624 | Y30: =F30*(Forecast!$T$8/$F$2) -> 55.97946675 | Z30: =F30*(Forecast!$U$8/$F$2) -> 56.32756726 | AA30: =F30*(Forecast!$V$8/$F$2) -> 56.74528788 | AB30: =F30*(Forecast!$W$8/$F$2) -> 57.09338839 | AC30: =F30*(Forecast!$X$8/$F$2) -> 57.4414889 | AD30: =F30*(Forecast!$Y$8/$F$2) -> 57.85920951 | AE30: =F30*(Forecast!$Z$8/$F$2) -> 58.20731003 | AF30: =F30*(Forecast!$AA$8/$F$2) -> 58.55541054 | AG30: =F30*(Forecast!$AB$8/$F$2) -> 58.90351105
A31: 2017-01-02T03:00:00 | B31: 21.79093933 | C31: 12.40273762 | D31: 12.35386276 | E31: 0 | F31: 46.54753971 | H31: =F31*(Forecast!$C$8/$F$2) -> 50.02773091 | I31: =F31*(Forecast!$D$8/$F$2) -> 50.52707833 | J31: =F31*(Forecast!$E$8/$F$2) -> 50.66530599 | K31: =F31*(Forecast!$F$8/$F$2) -> 50.87264747 | L31: =F31*(Forecast!$G$8/$F$2) -> 51.01087513 | M31: =F31*(Forecast!$H$8/$F$2) -> 51.21821662 | N31: =F31*(Forecast!$I$8/$F$2) -> 51.6328996 | O31: =F31*(Forecast!$J$8/$F$2) -> 51.97846875 | P31: =F31*(Forecast!$K$8/$F$2) -> 52.3240379 | Q31: =F31*(Forecast!$L$8/$F$2) -> 52.66960705 | R31: =F31*(Forecast!$M$8/$F$2) -> 53.0151762 | S31: =F31*(Forecast!$N$8/$F$2) -> 53.42985917 | T31: =F31*(Forecast!$O$8/$F$2) -> 53.77542832 | U31: =F31*(Forecast!$P$8/$F$2) -> 54.12099747 | V31: =F31*(Forecast!$Q$8/$F$2) -> 54.46656662 | W31: =F31*(Forecast!$R$8/$F$2) -> 54.8812496 | X31: =F31*(Forecast!$S$8/$F$2) -> 55.22681875 | Y31: =F31*(Forecast!$T$8/$F$2) -> 55.57238789 | Z31: =F31*(Forecast!$U$8/$F$2) -> 55.91795704 | AA31: =F31*(Forecast!$V$8/$F$2) -> 56.33264002 | AB31: =F31*(Forecast!$W$8/$F$2) -> 56.67820917 | AC31: =F31*(Forecast!$X$8/$F$2) -> 57.02377832 | AD31: =F31*(Forecast!$Y$8/$F$2) -> 57.4384613 | AE31: =F31*(Forecast!$Z$8/$F$2) -> 57.78403044 | AF31: =F31*(Forecast!$AA$8/$F$2) -> 58.12959959 | AG31: =F31*(Forecast!$AB$8/$F$2) -> 58.47516874
A32: 2017-01-02T04:00:00 | B32: 21.7320118 | C32: 12.34196472 | D32: 12.30558109 | E32: 0 | F32: 46.37955761 | H32: =F32*(Forecast!$C$8/$F$2) -> 49.84718939 | I32: =F32*(Forecast!$D$8/$F$2) -> 50.34473475 | J32: =F32*(Forecast!$E$8/$F$2) -> 50.48246357 | K32: =F32*(Forecast!$F$8/$F$2) -> 50.6890568 | L32: =F32*(Forecast!$G$8/$F$2) -> 50.82678562 | M32: =F32*(Forecast!$H$8/$F$2) -> 51.03337885 | N32: =F32*(Forecast!$I$8/$F$2) -> 51.44656531 | O32: =F32*(Forecast!$J$8/$F$2) -> 51.79088736 | P32: =F32*(Forecast!$K$8/$F$2) -> 52.1352094 | Q32: =F32*(Forecast!$L$8/$F$2) -> 52.47953145 | R32: =F32*(Forecast!$M$8/$F$2) -> 52.8238535 | S32: =F32*(Forecast!$N$8/$F$2) -> 53.23703996 | T32: =F32*(Forecast!$O$8/$F$2) -> 53.58136201 | U32: =F32*(Forecast!$P$8/$F$2) -> 53.92568406 | V32: =F32*(Forecast!$Q$8/$F$2) -> 54.2700061 | W32: =F32*(Forecast!$R$8/$F$2) -> 54.68319256 | X32: =F32*(Forecast!$S$8/$F$2) -> 55.02751461 | Y32: =F32*(Forecast!$T$8/$F$2) -> 55.37183666 | Z32: =F32*(Forecast!$U$8/$F$2) -> 55.71615871 | AA32: =F32*(Forecast!$V$8/$F$2) -> 56.12934517 | AB32: =F32*(Forecast!$W$8/$F$2) -> 56.47366722 | AC32: =F32*(Forecast!$X$8/$F$2) -> 56.81798926 | AD32: =F32*(Forecast!$Y$8/$F$2) -> 57.23117572 | AE32: =F32*(Forecast!$Z$8/$F$2) -> 57.57549777 | AF32: =F32*(Forecast!$AA$8/$F$2) -> 57.91981982 | AG32: =F32*(Forecast!$AB$8/$F$2) -> 58.26414187
A33: 2017-01-02T05:00:00 | B33: 21.78562927 | C33: 12.46980858 | D33: 12.25729942 | E33: 0 | F33: 46.51273727 | H33: =F33*(Forecast!$C$8/$F$2) -> 49.99032642 | I33: =F33*(Forecast!$D$8/$F$2) -> 50.48930049 | J33: =F33*(Forecast!$E$8/$F$2) -> 50.6274248 | K33: =F33*(Forecast!$F$8/$F$2) -> 50.83461126 | L33: =F33*(Forecast!$G$8/$F$2) -> 50.97273557 | M33: =F33*(Forecast!$H$8/$F$2) -> 51.17992204 | N33: =F33*(Forecast!$I$8/$F$2) -> 51.59429497 | O33: =F33*(Forecast!$J$8/$F$2) -> 51.93960574 | P33: =F33*(Forecast!$K$8/$F$2) -> 52.28491652 | Q33: =F33*(Forecast!$L$8/$F$2) -> 52.63022729 | R33: =F33*(Forecast!$M$8/$F$2) -> 52.97553807 | S33: =F33*(Forecast!$N$8/$F$2) -> 53.389911 | T33: =F33*(Forecast!$O$8/$F$2) -> 53.73522177 | U33: =F33*(Forecast!$P$8/$F$2) -> 54.08053255 | V33: =F33*(Forecast!$Q$8/$F$2) -> 54.42584332 | W33: =F33*(Forecast!$R$8/$F$2) -> 54.84021625 | X33: =F33*(Forecast!$S$8/$F$2) -> 55.18552703 | Y33: =F33*(Forecast!$T$8/$F$2) -> 55.5308378 | Z33: =F33*(Forecast!$U$8/$F$2) -> 55.87614858 | AA33: =F33*(Forecast!$V$8/$F$2) -> 56.29052151 | AB33: =F33*(Forecast!$W$8/$F$2) -> 56.63583228 | AC33: =F33*(Forecast!$X$8/$F$2) -> 56.98114306 | AD33: =F33*(Forecast!$Y$8/$F$2) -> 57.39551599 | AE33: =F33*(Forecast!$Z$8/$F$2) -> 57.74082676 | AF33: =F33*(Forecast!$AA$8/$F$2) -> 58.08613754 | AG33: =F33*(Forecast!$AB$8/$F$2) -> 58.43144831
A34: 2017-01-02T06:00:00 | B34: 21.96562958 | C34: 12.63108253 | D34: 12.42690563 | E34: 0 | F34: 47.02361774 | H34: =F34*(Forecast!$C$8/$F$2) -> 50.53940357 | I34: =F34*(Forecast!$D$8/$F$2) -> 51.04385821 | J34: =F34*(Forecast!$E$8/$F$2) -> 51.18349963 | K34: =F34*(Forecast!$F$8/$F$2) -> 51.39296176 | L34: =F34*(Forecast!$G$8/$F$2) -> 51.53260318 | M34: =F34*(Forecast!$H$8/$F$2) -> 51.74206532 | N34: =F34*(Forecast!$I$8/$F$2) -> 52.16098958 | O34: =F34*(Forecast!$J$8/$F$2) -> 52.51009314 | P34: =F34*(Forecast!$K$8/$F$2) -> 52.85919669 | Q34: =F34*(Forecast!$L$8/$F$2) -> 53.20830024 | R34: =F34*(Forecast!$M$8/$F$2) -> 53.5574038 | S34: =F34*(Forecast!$N$8/$F$2) -> 53.97632806 | T34: =F34*(Forecast!$O$8/$F$2) -> 54.32543162 | U34: =F34*(Forecast!$P$8/$F$2) -> 54.67453517 | V34: =F34*(Forecast!$Q$8/$F$2) -> 55.02363872 | W34: =F34*(Forecast!$R$8/$F$2) -> 55.44256299 | X34: =F34*(Forecast!$S$8/$F$2) -> 55.79166654 | Y34: =F34*(Forecast!$T$8/$F$2) -> 56.1407701 | Z34: =F34*(Forecast!$U$8/$F$2) -> 56.48987365 | AA34: =F34*(Forecast!$V$8/$F$2) -> 56.90879791 | AB34: =F34*(Forecast!$W$8/$F$2) -> 57.25790147 | AC34: =F34*(Forecast!$X$8/$F$2) -> 57.60700502 | AD34: =F34*(Forecast!$Y$8/$F$2) -> 58.02592929 | AE34: =F34*(Forecast!$Z$8/$F$2) -> 58.37503284 | AF34: =F34*(Forecast!$AA$8/$F$2) -> 58.7241364 | AG34: =F34*(Forecast!$AB$8/$F$2) -> 59.07323995
A35: 2017-01-02T07:00:00 | B35: 22.50563049 | C35: 12.79235744 | D35: 12.68989277 | E35: 0 | F35: 47.98788071 | H35: =F35*(Forecast!$C$8/$F$2) -> 51.57576099 | I35: =F35*(Forecast!$D$8/$F$2) -> 52.09055994 | J35: =F35*(Forecast!$E$8/$F$2) -> 52.23306483 | K35: =F35*(Forecast!$F$8/$F$2) -> 52.44682218 | L35: =F35*(Forecast!$G$8/$F$2) -> 52.58932708 | M35: =F35*(Forecast!$H$8/$F$2) -> 52.80308443 | N35: =F35*(Forecast!$I$8/$F$2) -> 53.23059913 | O35: =F35*(Forecast!$J$8/$F$2) -> 53.58686137 | P35: =F35*(Forecast!$K$8/$F$2) -> 53.94312362 | Q35: =F35*(Forecast!$L$8/$F$2) -> 54.29938586 | R35: =F35*(Forecast!$M$8/$F$2) -> 54.65564811 | S35: =F35*(Forecast!$N$8/$F$2) -> 55.08316281 | T35: =F35*(Forecast!$O$8/$F$2) -> 55.43942505 | U35: =F35*(Forecast!$P$8/$F$2) -> 55.7956873 | V35: =F35*(Forecast!$Q$8/$F$2) -> 56.15194955 | W35: =F35*(Forecast!$R$8/$F$2) -> 56.57946424 | X35: =F35*(Forecast!$S$8/$F$2) -> 56.93572649 | Y35: =F35*(Forecast!$T$8/$F$2) -> 57.29198874 | Z35: =F35*(Forecast!$U$8/$F$2) -> 57.64825098 | AA35: =F35*(Forecast!$V$8/$F$2) -> 58.07576568 | AB35: =F35*(Forecast!$W$8/$F$2) -> 58.43202793 | AC35: =F35*(Forecast!$X$8/$F$2) -> 58.78829017 | AD35: =F35*(Forecast!$Y$8/$F$2) -> 59.21580487 | AE35: =F35*(Forecast!$Z$8/$F$2) -> 59.57206711 | AF35: =F35*(Forecast!$AA$8/$F$2) -> 59.92832936 | AG35: =F35*(Forecast!$AB$8/$F$2) -> 60.28459161
A36: 2017-01-02T08:00:00 | B36: 23.38747215 | C36: 12.98738384 | D36: 12.92156219 | E36: 0 | F36: 49.29641819 | H36: =F36*(Forecast!$C$8/$F$2) -> 52.98213309 | I36: =F36*(Forecast!$D$8/$F$2) -> 53.51096961 | J36: =F36*(Forecast!$E$8/$F$2) -> 53.65736035 | K36: =F36*(Forecast!$F$8/$F$2) -> 53.87694645 | L36: =F36*(Forecast!$G$8/$F$2) -> 54.02333718 | M36: =F36*(Forecast!$H$8/$F$2) -> 54.24292328 | N36: =F36*(Forecast!$I$8/$F$2) -> 54.68209549 | O36: =F36*(Forecast!$J$8/$F$2) -> 55.04807232 | P36: =F36*(Forecast!$K$8/$F$2) -> 55.41404916 | Q36: =F36*(Forecast!$L$8/$F$2) -> 55.78002599 | R36: =F36*(Forecast!$M$8/$F$2) -> 56.14600283 | S36: =F36*(Forecast!$N$8/$F$2) -> 56.58517503 | T36: =F36*(Forecast!$O$8/$F$2) -> 56.95115186 | U36: =F36*(Forecast!$P$8/$F$2) -> 57.3171287 | V36: =F36*(Forecast!$Q$8/$F$2) -> 57.68310553 | W36: =F36*(Forecast!$R$8/$F$2) -> 58.12227773 | X36: =F36*(Forecast!$S$8/$F$2) -> 58.48825457 | Y36: =F36*(Forecast!$T$8/$F$2) -> 58.8542314 | Z36: =F36*(Forecast!$U$8/$F$2) -> 59.22020824 | AA36: =F36*(Forecast!$V$8/$F$2) -> 59.65938044 | AB36: =F36*(Forecast!$W$8/$F$2) -> 60.02535728 | AC36: =F36*(Forecast!$X$8/$F$2) -> 60.39133411 | AD36: =F36*(Forecast!$Y$8/$F$2) -> 60.83050631 | AE36: =F36*(Forecast!$Z$8/$F$2) -> 61.19648315 | AF36: =F36*(Forecast!$AA$8/$F$2) -> 61.56245998 | AG36: =F36*(Forecast!$AB$8/$F$2) -> 61.92843682
A37: 2017-01-02T09:00:00 | B37: 23.40563011 | C37: 13.21601295 | D37: 13.0816803 | E37: 0 | F37: 49.70332336 | H37: =F37*(Forecast!$C$8/$F$2) -> 53.41946109 | I37: =F37*(Forecast!$D$8/$F$2) -> 53.95266277 | J37: =F37*(Forecast!$E$8/$F$2) -> 54.10026185 | K37: =F37*(Forecast!$F$8/$F$2) -> 54.32166047 | L37: =F37*(Forecast!$G$8/$F$2) -> 54.46925955 | M37: =F37*(Forecast!$H$8/$F$2) -> 54.69065817 | N37: =F37*(Forecast!$I$8/$F$2) -> 55.13345541 | O37: =F37*(Forecast!$J$8/$F$2) -> 55.50245311 | P37: =F37*(Forecast!$K$8/$F$2) -> 55.87145081 | Q37: =F37*(Forecast!$L$8/$F$2) -> 56.24044851 | R37: =F37*(Forecast!$M$8/$F$2) -> 56.60944621 | S37: =F37*(Forecast!$N$8/$F$2) -> 57.05224345 | T37: =F37*(Forecast!$O$8/$F$2) -> 57.42124116 | U37: =F37*(Forecast!$P$8/$F$2) -> 57.79023886 | V37: =F37*(Forecast!$Q$8/$F$2) -> 58.15923656 | W37: =F37*(Forecast!$R$8/$F$2) -> 58.6020338 | X37: =F37*(Forecast!$S$8/$F$2) -> 58.9710315 | Y37: =F37*(Forecast!$T$8/$F$2) -> 59.3400292 | Z37: =F37*(Forecast!$U$8/$F$2) -> 59.7090269 | AA37: =F37*(Forecast!$V$8/$F$2) -> 60.15182414 | AB37: =F37*(Forecast!$W$8/$F$2) -> 60.52082184 | AC37: =F37*(Forecast!$X$8/$F$2) -> 60.88981954 | AD37: =F37*(Forecast!$Y$8/$F$2) -> 61.33261678 | AE37: =F37*(Forecast!$Z$8/$F$2) -> 61.70161448 | AF37: =F37*(Forecast!$AA$8/$F$2) -> 62.07061218 | AG37: =F37*(Forecast!$AB$8/$F$2) -> 62.43960989
A38: 2017-01-02T10:00:00 | B38: 23.72570801 | C38: 13.44464207 | D38: 13.23281479 | E38: 0 | F38: 50.40316486 | H38: =F38*(Forecast!$C$8/$F$2) -> 54.17162721 | I38: =F38*(Forecast!$D$8/$F$2) -> 54.71233657 | J38: =F38*(Forecast!$E$8/$F$2) -> 54.8620139 | K38: =F38*(Forecast!$F$8/$F$2) -> 55.08652989 | L38: =F38*(Forecast!$G$8/$F$2) -> 55.23620722 | M38: =F38*(Forecast!$H$8/$F$2) -> 55.46072322 | N38: =F38*(Forecast!$I$8/$F$2) -> 55.90975521 | O38: =F38*(Forecast!$J$8/$F$2) -> 56.28394854 | P38: =F38*(Forecast!$K$8/$F$2) -> 56.65814187 | Q38: =F38*(Forecast!$L$8/$F$2) -> 57.03233519 | R38: =F38*(Forecast!$M$8/$F$2) -> 57.40652852 | S38: =F38*(Forecast!$N$8/$F$2) -> 57.85556051 | T38: =F38*(Forecast!$O$8/$F$2) -> 58.22975384 | U38: =F38*(Forecast!$P$8/$F$2) -> 58.60394717 | V38: =F38*(Forecast!$Q$8/$F$2) -> 58.9781405 | W38: =F38*(Forecast!$R$8/$F$2) -> 59.42717249 | X38: =F38*(Forecast!$S$8/$F$2) -> 59.80136582 | Y38: =F38*(Forecast!$T$8/$F$2) -> 60.17555914 | Z38: =F38*(Forecast!$U$8/$F$2) -> 60.54975247 | AA38: =F38*(Forecast!$V$8/$F$2) -> 60.99878446 | AB38: =F38*(Forecast!$W$8/$F$2) -> 61.37297779 | AC38: =F38*(Forecast!$X$8/$F$2) -> 61.74717112 | AD38: =F38*(Forecast!$Y$8/$F$2) -> 62.19620311 | AE38: =F38*(Forecast!$Z$8/$F$2) -> 62.57039644 | AF38: =F38*(Forecast!$AA$8/$F$2) -> 62.94458977 | AG38: =F38*(Forecast!$AB$8/$F$2) -> 63.31878309
A39: 2017-01-02T11:00:00 | B39: 24.05591011 | C39: 13.44295311 | D39: 13.23281479 | E39: 0 | F39: 50.73167801 | H39: =F39*(Forecast!$C$8/$F$2) -> 54.52470209 | I39: =F39*(Forecast!$D$8/$F$2) -> 55.06893564 | J39: =F39*(Forecast!$E$8/$F$2) -> 55.21958852 | K39: =F39*(Forecast!$F$8/$F$2) -> 55.44556785 | L39: =F39*(Forecast!$G$8/$F$2) -> 55.59622073 | M39: =F39*(Forecast!$H$8/$F$2) -> 55.82220006 | N39: =F39*(Forecast!$I$8/$F$2) -> 56.27415871 | O39: =F39*(Forecast!$J$8/$F$2) -> 56.65079092 | P39: =F39*(Forecast!$K$8/$F$2) -> 57.02742313 | Q39: =F39*(Forecast!$L$8/$F$2) -> 57.40405534 | R39: =F39*(Forecast!$M$8/$F$2) -> 57.78068755 | S39: =F39*(Forecast!$N$8/$F$2) -> 58.2326462 | T39: =F39*(Forecast!$O$8/$F$2) -> 58.60927841 | U39: =F39*(Forecast!$P$8/$F$2) -> 58.98591062 | V39: =F39*(Forecast!$Q$8/$F$2) -> 59.36254283 | W39: =F39*(Forecast!$R$8/$F$2) -> 59.81450149 | X39: =F39*(Forecast!$S$8/$F$2) -> 60.1911337 | Y39: =F39*(Forecast!$T$8/$F$2) -> 60.56776591 | Z39: =F39*(Forecast!$U$8/$F$2) -> 60.94439812 | AA39: =F39*(Forecast!$V$8/$F$2) -> 61.39635677 | AB39: =F39*(Forecast!$W$8/$F$2) -> 61.77298898 | AC39: =F39*(Forecast!$X$8/$F$2) -> 62.14962119 | AD39: =F39*(Forecast!$Y$8/$F$2) -> 62.60157984 | AE39: =F39*(Forecast!$Z$8/$F$2) -> 62.97821205 | AF39: =F39*(Forecast!$AA$8/$F$2) -> 63.35484426 | AG39: =F39*(Forecast!$AB$8/$F$2) -> 63.73147648
A40: 2017-01-02T12:00:00 | B40: 24.12562943 | C40: 13.61462402 | D40: 13.23281479 | E40: 0 | F40: 50.97306824 | H40: =F40*(Forecast!$C$8/$F$2) -> 54.7841402 | I40: =F40*(Forecast!$D$8/$F$2) -> 55.3309633 | J40: =F40*(Forecast!$E$8/$F$2) -> 55.48233302 | K40: =F40*(Forecast!$F$8/$F$2) -> 55.70938759 | L40: =F40*(Forecast!$G$8/$F$2) -> 55.86075731 | M40: =F40*(Forecast!$H$8/$F$2) -> 56.08781188 | N40: =F40*(Forecast!$I$8/$F$2) -> 56.54192103 | O40: =F40*(Forecast!$J$8/$F$2) -> 56.92034533 | P40: =F40*(Forecast!$K$8/$F$2) -> 57.29876962 | Q40: =F40*(Forecast!$L$8/$F$2) -> 57.67719391 | R40: =F40*(Forecast!$M$8/$F$2) -> 58.0556182 | S40: =F40*(Forecast!$N$8/$F$2) -> 58.50972736 | T40: =F40*(Forecast!$O$8/$F$2) -> 58.88815165 | U40: =F40*(Forecast!$P$8/$F$2) -> 59.26657594 | V40: =F40*(Forecast!$Q$8/$F$2) -> 59.64500023 | W40: =F40*(Forecast!$R$8/$F$2) -> 60.09910938 | X40: =F40*(Forecast!$S$8/$F$2) -> 60.47753368 | Y40: =F40*(Forecast!$T$8/$F$2) -> 60.85595797 | Z40: =F40*(Forecast!$U$8/$F$2) -> 61.23438226 | AA40: =F40*(Forecast!$V$8/$F$2) -> 61.68849141 | AB40: =F40*(Forecast!$W$8/$F$2) -> 62.06691571 | AC40: =F40*(Forecast!$X$8/$F$2) -> 62.44534 | AD40: =F40*(Forecast!$Y$8/$F$2) -> 62.89944915 | AE40: =F40*(Forecast!$Z$8/$F$2) -> 63.27787344 | AF40: =F40*(Forecast!$AA$8/$F$2) -> 63.65629773 | AG40: =F40*(Forecast!$AB$8/$F$2) -> 64.03472203
A41: 2017-01-02T13:00:00 | B41: 24.26888657 | C41: 13.56608868 | D41: 13.23281479 | E41: 0 | F41: 51.06779003 | H41: =F41*(Forecast!$C$8/$F$2) -> 54.885944 | I41: =F41*(Forecast!$D$8/$F$2) -> 55.43378324 | J41: =F41*(Forecast!$E$8/$F$2) -> 55.58543425 | K41: =F41*(Forecast!$F$8/$F$2) -> 55.81291075 | L41: =F41*(Forecast!$G$8/$F$2) -> 55.96456175 | M41: =F41*(Forecast!$H$8/$F$2) -> 56.19203826 | N41: =F41*(Forecast!$I$8/$F$2) -> 56.64699127 | O41: =F41*(Forecast!$J$8/$F$2) -> 57.02611878 | P41: =F41*(Forecast!$K$8/$F$2) -> 57.40524628 | Q41: =F41*(Forecast!$L$8/$F$2) -> 57.78437379 | R41: =F41*(Forecast!$M$8/$F$2) -> 58.1635013 | S41: =F41*(Forecast!$N$8/$F$2) -> 58.61845431 | T41: =F41*(Forecast!$O$8/$F$2) -> 58.99758181 | U41: =F41*(Forecast!$P$8/$F$2) -> 59.37670932 | V41: =F41*(Forecast!$Q$8/$F$2) -> 59.75583683 | W41: =F41*(Forecast!$R$8/$F$2) -> 60.21078984 | X41: =F41*(Forecast!$S$8/$F$2) -> 60.58991735 | Y41: =F41*(Forecast!$T$8/$F$2) -> 60.96904485 | Z41: =F41*(Forecast!$U$8/$F$2) -> 61.34817236 | AA41: =F41*(Forecast!$V$8/$F$2) -> 61.80312537 | AB41: =F41*(Forecast!$W$8/$F$2) -> 62.18225288 | AC41: =F41*(Forecast!$X$8/$F$2) -> 62.56138039 | AD41: =F41*(Forecast!$Y$8/$F$2) -> 63.0163334 | AE41: =F41*(Forecast!$Z$8/$F$2) -> 63.3954609 | AF41: =F41*(Forecast!$AA$8/$F$2) -> 63.77458841 | AG41: =F41*(Forecast!$AB$8/$F$2) -> 64.15371592
A42: 2017-01-02T14:00:00 | B42: 23.47564697 | C42: 13.37244129 | D42: 13.1535387 | E42: 0 | F42: 50.00162697 | H42: =F42*(Forecast!$C$8/$F$2) -> 53.74006778 | I42: =F42*(Forecast!$D$8/$F$2) -> 54.27646956 | J42: =F42*(Forecast!$E$8/$F$2) -> 54.42495448 | K42: =F42*(Forecast!$F$8/$F$2) -> 54.64768187 | L42: =F42*(Forecast!$G$8/$F$2) -> 54.79616679 | M42: =F42*(Forecast!$H$8/$F$2) -> 55.01889418 | N42: =F42*(Forecast!$I$8/$F$2) -> 55.46434895 | O42: =F42*(Forecast!$J$8/$F$2) -> 55.83556126 | P42: =F42*(Forecast!$K$8/$F$2) -> 56.20677356 | Q42: =F42*(Forecast!$L$8/$F$2) -> 56.57798587 | R42: =F42*(Forecast!$M$8/$F$2) -> 56.94919818 | S42: =F42*(Forecast!$N$8/$F$2) -> 57.39465295 | T42: =F42*(Forecast!$O$8/$F$2) -> 57.76586526 | U42: =F42*(Forecast!$P$8/$F$2) -> 58.13707757 | V42: =F42*(Forecast!$Q$8/$F$2) -> 58.50828987 | W42: =F42*(Forecast!$R$8/$F$2) -> 58.95374464 | X42: =F42*(Forecast!$S$8/$F$2) -> 59.32495695 | Y42: =F42*(Forecast!$T$8/$F$2) -> 59.69616926 | Z42: =F42*(Forecast!$U$8/$F$2) -> 60.06738157 | AA42: =F42*(Forecast!$V$8/$F$2) -> 60.51283634 | AB42: =F42*(Forecast!$W$8/$F$2) -> 60.88404865 | AC42: =F42*(Forecast!$X$8/$F$2) -> 61.25526095 | AD42: =F42*(Forecast!$Y$8/$F$2) -> 61.70071572 | AE42: =F42*(Forecast!$Z$8/$F$2) -> 62.07192803 | AF42: =F42*(Forecast!$AA$8/$F$2) -> 62.44314034 | AG42: =F42*(Forecast!$AB$8/$F$2) -> 62.81435265
A43: 2017-01-02T15:00:00 | B43: 22.9798336 | C43: 13.17879391 | D43: 13.03818226 | E43: 0 | F43: 49.19680977 | H43: =F43*(Forecast!$C$8/$F$2) -> 52.87507731 | I43: =F43*(Forecast!$D$8/$F$2) -> 53.40284526 | J43: =F43*(Forecast!$E$8/$F$2) -> 53.5489402 | K43: =F43*(Forecast!$F$8/$F$2) -> 53.76808261 | L43: =F43*(Forecast!$G$8/$F$2) -> 53.91417754 | M43: =F43*(Forecast!$H$8/$F$2) -> 54.13331995 | N43: =F43*(Forecast!$I$8/$F$2) -> 54.57160476 | O43: =F43*(Forecast!$J$8/$F$2) -> 54.9368421 | P43: =F43*(Forecast!$K$8/$F$2) -> 55.30207944 | Q43: =F43*(Forecast!$L$8/$F$2) -> 55.66731678 | R43: =F43*(Forecast!$M$8/$F$2) -> 56.03255412 | S43: =F43*(Forecast!$N$8/$F$2) -> 56.47083893 | T43: =F43*(Forecast!$O$8/$F$2) -> 56.83607627 | U43: =F43*(Forecast!$P$8/$F$2) -> 57.20131362 | V43: =F43*(Forecast!$Q$8/$F$2) -> 57.56655096 | W43: =F43*(Forecast!$R$8/$F$2) -> 58.00483577 | X43: =F43*(Forecast!$S$8/$F$2) -> 58.37007311 | Y43: =F43*(Forecast!$T$8/$F$2) -> 58.73531045 | Z43: =F43*(Forecast!$U$8/$F$2) -> 59.10054779 | AA43: =F43*(Forecast!$V$8/$F$2) -> 59.5388326 | AB43: =F43*(Forecast!$W$8/$F$2) -> 59.90406994 | AC43: =F43*(Forecast!$X$8/$F$2) -> 60.26930728 | AD43: =F43*(Forecast!$Y$8/$F$2) -> 60.70759209 | AE43: =F43*(Forecast!$Z$8/$F$2) -> 61.07282944 | AF43: =F43*(Forecast!$AA$8/$F$2) -> 61.43806678 | AG43: =F43*(Forecast!$AB$8/$F$2) -> 61.80330412
A44: 2017-01-02T16:00:00 | B44: 23.76563072 | C44: 13.25530434 | D44: 13.17662239 | E44: 0 | F44: 50.19755745 | H44: =F44*(Forecast!$C$8/$F$2) -> 53.95064727 | I44: =F44*(Forecast!$D$8/$F$2) -> 54.48915094 | J44: =F44*(Forecast!$E$8/$F$2) -> 54.6382177 | K44: =F44*(Forecast!$F$8/$F$2) -> 54.86181783 | L44: =F44*(Forecast!$G$8/$F$2) -> 55.01088459 | M44: =F44*(Forecast!$H$8/$F$2) -> 55.23448473 | N44: =F44*(Forecast!$I$8/$F$2) -> 55.68168501 | O44: =F44*(Forecast!$J$8/$F$2) -> 56.0543519 | P44: =F44*(Forecast!$K$8/$F$2) -> 56.4270188 | Q44: =F44*(Forecast!$L$8/$F$2) -> 56.7996857 | R44: =F44*(Forecast!$M$8/$F$2) -> 57.17235259 | S44: =F44*(Forecast!$N$8/$F$2) -> 57.61955287 | T44: =F44*(Forecast!$O$8/$F$2) -> 57.99221977 | U44: =F44*(Forecast!$P$8/$F$2) -> 58.36488666 | V44: =F44*(Forecast!$Q$8/$F$2) -> 58.73755356 | W44: =F44*(Forecast!$R$8/$F$2) -> 59.18475384 | X44: =F44*(Forecast!$S$8/$F$2) -> 59.55742073 | Y44: =F44*(Forecast!$T$8/$F$2) -> 59.93008763 | Z44: =F44*(Forecast!$U$8/$F$2) -> 60.30275453 | AA44: =F44*(Forecast!$V$8/$F$2) -> 60.7499548 | AB44: =F44*(Forecast!$W$8/$F$2) -> 61.1226217 | AC44: =F44*(Forecast!$X$8/$F$2) -> 61.4952886 | AD44: =F44*(Forecast!$Y$8/$F$2) -> 61.94248887 | AE44: =F44*(Forecast!$Z$8/$F$2) -> 62.31515577 | AF44: =F44*(Forecast!$AA$8/$F$2) -> 62.68782267 | AG44: =F44*(Forecast!$AB$8/$F$2) -> 63.06048956
A45: 2017-01-02T17:00:00 | B45: 25.06502914 | C45: 13.82038021 | D45: 13.79337406 | E45: 0 | F45: 52.67878342 | H45: =F45*(Forecast!$C$8/$F$2) -> 56.61738553 | I45: =F45*(Forecast!$D$8/$F$2) -> 57.18250701 | J45: =F45*(Forecast!$E$8/$F$2) -> 57.33894202 | K45: =F45*(Forecast!$F$8/$F$2) -> 57.57359454 | L45: =F45*(Forecast!$G$8/$F$2) -> 57.73002955 | M45: =F45*(Forecast!$H$8/$F$2) -> 57.96468207 | N45: =F45*(Forecast!$I$8/$F$2) -> 58.43398711 | O45: =F45*(Forecast!$J$8/$F$2) -> 58.82507464 | P45: =F45*(Forecast!$K$8/$F$2) -> 59.21616217 | Q45: =F45*(Forecast!$L$8/$F$2) -> 59.6072497 | R45: =F45*(Forecast!$M$8/$F$2) -> 59.99833723 | S45: =F45*(Forecast!$N$8/$F$2) -> 60.46764226 | T45: =F45*(Forecast!$O$8/$F$2) -> 60.85872979 | U45: =F45*(Forecast!$P$8/$F$2) -> 61.24981732 | V45: =F45*(Forecast!$Q$8/$F$2) -> 61.64090485 | W45: =F45*(Forecast!$R$8/$F$2) -> 62.11020989 | X45: =F45*(Forecast!$S$8/$F$2) -> 62.50129742 | Y45: =F45*(Forecast!$T$8/$F$2) -> 62.89238495 | Z45: =F45*(Forecast!$U$8/$F$2) -> 63.28347248 | AA45: =F45*(Forecast!$V$8/$F$2) -> 63.75277751 | AB45: =F45*(Forecast!$W$8/$F$2) -> 64.14386504 | AC45: =F45*(Forecast!$X$8/$F$2) -> 64.53495257 | AD45: =F45*(Forecast!$Y$8/$F$2) -> 65.00425761 | AE45: =F45*(Forecast!$Z$8/$F$2) -> 65.39534514 | AF45: =F45*(Forecast!$AA$8/$F$2) -> 65.78643267 | AG45: =F45*(Forecast!$AB$8/$F$2) -> 66.1775202
A46: 2017-01-02T18:00:00 | B46: 25.22674561 | C46: 14.05952835 | D46: 13.9226532 | E46: 0 | F46: 53.20892715 | H46: =F46*(Forecast!$C$8/$F$2) -> 57.1871662 | I46: =F46*(Forecast!$D$8/$F$2) -> 57.75797489 | J46: =F46*(Forecast!$E$8/$F$2) -> 57.91598422 | K46: =F46*(Forecast!$F$8/$F$2) -> 58.15299821 | L46: =F46*(Forecast!$G$8/$F$2) -> 58.31100754 | M46: =F46*(Forecast!$H$8/$F$2) -> 58.54802153 | N46: =F46*(Forecast!$I$8/$F$2) -> 59.02204952 | O46: =F46*(Forecast!$J$8/$F$2) -> 59.41707284 | P46: =F46*(Forecast!$K$8/$F$2) -> 59.81209615 | Q46: =F46*(Forecast!$L$8/$F$2) -> 60.20711947 | R46: =F46*(Forecast!$M$8/$F$2) -> 60.60214279 | S46: =F46*(Forecast!$N$8/$F$2) -> 61.07617078 | T46: =F46*(Forecast!$O$8/$F$2) -> 61.4711941 | U46: =F46*(Forecast!$P$8/$F$2) -> 61.86621742 | V46: =F46*(Forecast!$Q$8/$F$2) -> 62.26124073 | W46: =F46*(Forecast!$R$8/$F$2) -> 62.73526872 | X46: =F46*(Forecast!$S$8/$F$2) -> 63.13029204 | Y46: =F46*(Forecast!$T$8/$F$2) -> 63.52531536 | Z46: =F46*(Forecast!$U$8/$F$2) -> 63.92033868 | AA46: =F46*(Forecast!$V$8/$F$2) -> 64.39436666 | AB46: =F46*(Forecast!$W$8/$F$2) -> 64.78938998 | AC46: =F46*(Forecast!$X$8/$F$2) -> 65.1844133 | AD46: =F46*(Forecast!$Y$8/$F$2) -> 65.65844128 | AE46: =F46*(Forecast!$Z$8/$F$2) -> 66.0534646 | AF46: =F46*(Forecast!$AA$8/$F$2) -> 66.44848792 | AG46: =F46*(Forecast!$AB$8/$F$2) -> 66.84351124
A47: 2017-01-02T19:00:00 | B47: 24.72007942 | C47: 13.77281475 | D47: 13.5900116 | E47: 0 | F47: 52.08290577 | H47: =F47*(Forecast!$C$8/$F$2) -> 55.97695627 | I47: =F47*(Forecast!$D$8/$F$2) -> 56.53568536 | J47: =F47*(Forecast!$E$8/$F$2) -> 56.69035085 | K47: =F47*(Forecast!$F$8/$F$2) -> 56.92234909 | L47: =F47*(Forecast!$G$8/$F$2) -> 57.07701458 | M47: =F47*(Forecast!$H$8/$F$2) -> 57.30901282 | N47: =F47*(Forecast!$I$8/$F$2) -> 57.7730093 | O47: =F47*(Forecast!$J$8/$F$2) -> 58.15967303 | P47: =F47*(Forecast!$K$8/$F$2) -> 58.54633676 | Q47: =F47*(Forecast!$L$8/$F$2) -> 58.93300049 | R47: =F47*(Forecast!$M$8/$F$2) -> 59.31966422 | S47: =F47*(Forecast!$N$8/$F$2) -> 59.7836607 | T47: =F47*(Forecast!$O$8/$F$2) -> 60.17032443 | U47: =F47*(Forecast!$P$8/$F$2) -> 60.55698816 | V47: =F47*(Forecast!$Q$8/$F$2) -> 60.9436519 | W47: =F47*(Forecast!$R$8/$F$2) -> 61.40764837 | X47: =F47*(Forecast!$S$8/$F$2) -> 61.79431211 | Y47: =F47*(Forecast!$T$8/$F$2) -> 62.18097584 | Z47: =F47*(Forecast!$U$8/$F$2) -> 62.56763957 | AA47: =F47*(Forecast!$V$8/$F$2) -> 63.03163605 | AB47: =F47*(Forecast!$W$8/$F$2) -> 63.41829978 | AC47: =F47*(Forecast!$X$8/$F$2) -> 63.80496351 | AD47: =F47*(Forecast!$Y$8/$F$2) -> 64.26895999 | AE47: =F47*(Forecast!$Z$8/$F$2) -> 64.65562372 | AF47: =F47*(Forecast!$AA$8/$F$2) -> 65.04228745 | AG47: =F47*(Forecast!$AB$8/$F$2) -> 65.42895118
A48: 2017-01-02T20:00:00 | B48: 25.02563095 | C48: 13.77281475 | D48: 13.56243706 | E48: 0 | F48: 52.36088276 | H48: =F48*(Forecast!$C$8/$F$2) -> 56.27571659 | I48: =F48*(Forecast!$D$8/$F$2) -> 56.83742773 | J48: =F48*(Forecast!$E$8/$F$2) -> 56.99291871 | K48: =F48*(Forecast!$F$8/$F$2) -> 57.22615517 | L48: =F48*(Forecast!$G$8/$F$2) -> 57.38164614 | M48: =F48*(Forecast!$H$8/$F$2) -> 57.6148826 | N48: =F48*(Forecast!$I$8/$F$2) -> 58.08135552 | O48: =F48*(Forecast!$J$8/$F$2) -> 58.47008295 | P48: =F48*(Forecast!$K$8/$F$2) -> 58.85881039 | Q48: =F48*(Forecast!$L$8/$F$2) -> 59.24753782 | R48: =F48*(Forecast!$M$8/$F$2) -> 59.63626526 | S48: =F48*(Forecast!$N$8/$F$2) -> 60.10273818 | T48: =F48*(Forecast!$O$8/$F$2) -> 60.49146561 | U48: =F48*(Forecast!$P$8/$F$2) -> 60.88019304 | V48: =F48*(Forecast!$Q$8/$F$2) -> 61.26892048 | W48: =F48*(Forecast!$R$8/$F$2) -> 61.7353934 | X48: =F48*(Forecast!$S$8/$F$2) -> 62.12412083 | Y48: =F48*(Forecast!$T$8/$F$2) -> 62.51284827 | Z48: =F48*(Forecast!$U$8/$F$2) -> 62.9015757 | AA48: =F48*(Forecast!$V$8/$F$2) -> 63.36804862 | AB48: =F48*(Forecast!$W$8/$F$2) -> 63.75677606 | AC48: =F48*(Forecast!$X$8/$F$2) -> 64.14550349 | AD48: =F48*(Forecast!$Y$8/$F$2) -> 64.61197641 | AE48: =F48*(Forecast!$Z$8/$F$2) -> 65.00070384 | AF48: =F48*(Forecast!$AA$8/$F$2) -> 65.38943128 | AG48: =F48*(Forecast!$AB$8/$F$2) -> 65.77815871
A49: 2017-01-02T21:00:00 | B49: 24.79276657 | C49: 13.77281475 | D49: 13.53486252 | E49: 0 | F49: 52.10044384 | H49: =F49*(Forecast!$C$8/$F$2) -> 55.99580559 | I49: =F49*(Forecast!$D$8/$F$2) -> 56.55472283 | J49: =F49*(Forecast!$E$8/$F$2) -> 56.7094404 | K49: =F49*(Forecast!$F$8/$F$2) -> 56.94151676 | L49: =F49*(Forecast!$G$8/$F$2) -> 57.09623434 | M49: =F49*(Forecast!$H$8/$F$2) -> 57.3283107 | N49: =F49*(Forecast!$I$8/$F$2) -> 57.79246342 | O49: =F49*(Forecast!$J$8/$F$2) -> 58.17925735 | P49: =F49*(Forecast!$K$8/$F$2) -> 58.56605129 | Q49: =F49*(Forecast!$L$8/$F$2) -> 58.95284522 | R49: =F49*(Forecast!$M$8/$F$2) -> 59.33963916 | S49: =F49*(Forecast!$N$8/$F$2) -> 59.80379188 | T49: =F49*(Forecast!$O$8/$F$2) -> 60.19058581 | U49: =F49*(Forecast!$P$8/$F$2) -> 60.57737974 | V49: =F49*(Forecast!$Q$8/$F$2) -> 60.96417368 | W49: =F49*(Forecast!$R$8/$F$2) -> 61.4283264 | X49: =F49*(Forecast!$S$8/$F$2) -> 61.81512033 | Y49: =F49*(Forecast!$T$8/$F$2) -> 62.20191427 | Z49: =F49*(Forecast!$U$8/$F$2) -> 62.5887082 | AA49: =F49*(Forecast!$V$8/$F$2) -> 63.05286092 | AB49: =F49*(Forecast!$W$8/$F$2) -> 63.43965486 | AC49: =F49*(Forecast!$X$8/$F$2) -> 63.82644879 | AD49: =F49*(Forecast!$Y$8/$F$2) -> 64.29060151 | AE49: =F49*(Forecast!$Z$8/$F$2) -> 64.67739545 | AF49: =F49*(Forecast!$AA$8/$F$2) -> 65.06418938 | AG49: =F49*(Forecast!$AB$8/$F$2) -> 65.45098332
A50: 2017-01-02T22:00:00 | B50: 24.66563034 | C50: 13.71368122 | D50: 13.50728798 | E50: 0 | F50: 51.88659954 | H50: =F50*(Forecast!$C$8/$F$2) -> 55.76597293 | I50: =F50*(Forecast!$D$8/$F$2) -> 56.32259611 | J50: =F50*(Forecast!$E$8/$F$2) -> 56.47667865 | K50: =F50*(Forecast!$F$8/$F$2) -> 56.70780246 | L50: =F50*(Forecast!$G$8/$F$2) -> 56.86188501 | M50: =F50*(Forecast!$H$8/$F$2) -> 57.09300882 | N50: =F50*(Forecast!$I$8/$F$2) -> 57.55525644 | O50: =F50*(Forecast!$J$8/$F$2) -> 57.94046279 | P50: =F50*(Forecast!$K$8/$F$2) -> 58.32566915 | Q50: =F50*(Forecast!$L$8/$F$2) -> 58.7108755 | R50: =F50*(Forecast!$M$8/$F$2) -> 59.09608185 | S50: =F50*(Forecast!$N$8/$F$2) -> 59.55832948 | T50: =F50*(Forecast!$O$8/$F$2) -> 59.94353583 | U50: =F50*(Forecast!$P$8/$F$2) -> 60.32874218 | V50: =F50*(Forecast!$Q$8/$F$2) -> 60.71394854 | W50: =F50*(Forecast!$R$8/$F$2) -> 61.17619616 | X50: =F50*(Forecast!$S$8/$F$2) -> 61.56140251 | Y50: =F50*(Forecast!$T$8/$F$2) -> 61.94660887 | Z50: =F50*(Forecast!$U$8/$F$2) -> 62.33181522 | AA50: =F50*(Forecast!$V$8/$F$2) -> 62.79406284 | AB50: =F50*(Forecast!$W$8/$F$2) -> 63.1792692 | AC50: =F50*(Forecast!$X$8/$F$2) -> 63.56447555 | AD50: =F50*(Forecast!$Y$8/$F$2) -> 64.02672317 | AE50: =F50*(Forecast!$Z$8/$F$2) -> 64.41192953 | AF50: =F50*(Forecast!$AA$8/$F$2) -> 64.79713588 | AG50: =F50*(Forecast!$AB$8/$F$2) -> 65.18234223
A51: 2017-01-02T23:00:00 | B51: 24.46164513 | C51: 13.56118679 | D51: 13.38448906 | E51: 0 | F51: 51.40732098 | H51: =F51*(Forecast!$C$8/$F$2) -> 55.25086044 | I51: =F51*(Forecast!$D$8/$F$2) -> 55.80234207 | J51: =F51*(Forecast!$E$8/$F$2) -> 55.95500135 | K51: =F51*(Forecast!$F$8/$F$2) -> 56.18399026 | L51: =F51*(Forecast!$G$8/$F$2) -> 56.33664953 | M51: =F51*(Forecast!$H$8/$F$2) -> 56.56563844 | N51: =F51*(Forecast!$I$8/$F$2) -> 57.02361627 | O51: =F51*(Forecast!$J$8/$F$2) -> 57.40526446 | P51: =F51*(Forecast!$K$8/$F$2) -> 57.78691264 | Q51: =F51*(Forecast!$L$8/$F$2) -> 58.16856083 | R51: =F51*(Forecast!$M$8/$F$2) -> 58.55020902 | S51: =F51*(Forecast!$N$8/$F$2) -> 59.00818684 | T51: =F51*(Forecast!$O$8/$F$2) -> 59.38983503 | U51: =F51*(Forecast!$P$8/$F$2) -> 59.77148321 | V51: =F51*(Forecast!$Q$8/$F$2) -> 60.1531314 | W51: =F51*(Forecast!$R$8/$F$2) -> 60.61110923 | X51: =F51*(Forecast!$S$8/$F$2) -> 60.99275741 | Y51: =F51*(Forecast!$T$8/$F$2) -> 61.3744056 | Z51: =F51*(Forecast!$U$8/$F$2) -> 61.75605379 | AA51: =F51*(Forecast!$V$8/$F$2) -> 62.21403161 | AB51: =F51*(Forecast!$W$8/$F$2) -> 62.5956798 | AC51: =F51*(Forecast!$X$8/$F$2) -> 62.97732798 | AD51: =F51*(Forecast!$Y$8/$F$2) -> 63.43530581 | AE51: =F51*(Forecast!$Z$8/$F$2) -> 63.81695399 | AF51: =F51*(Forecast!$AA$8/$F$2) -> 64.19860218 | AG51: =F51*(Forecast!$AB$8/$F$2) -> 64.58025037
A52: 2017-01-03 | B52: 23.50285721 | C52: 13.42015266 | D52: 12.8799572 | E52: 0 | F52: 49.80296707 | H52: =F52*(Forecast!$C$8/$F$2) -> 53.5265548 | I52: =F52*(Forecast!$D$8/$F$2) -> 54.06082542 | J52: =F52*(Forecast!$E$8/$F$2) -> 54.2087204 | K52: =F52*(Forecast!$F$8/$F$2) -> 54.43056288 | L52: =F52*(Forecast!$G$8/$F$2) -> 54.57845786 | M52: =F52*(Forecast!$H$8/$F$2) -> 54.80030033 | N52: =F52*(Forecast!$I$8/$F$2) -> 55.24398528 | O52: =F52*(Forecast!$J$8/$F$2) -> 55.61372274 | P52: =F52*(Forecast!$K$8/$F$2) -> 55.98346019 | Q52: =F52*(Forecast!$L$8/$F$2) -> 56.35319765 | R52: =F52*(Forecast!$M$8/$F$2) -> 56.72293511 | S52: =F52*(Forecast!$N$8/$F$2) -> 57.16662005 | T52: =F52*(Forecast!$O$8/$F$2) -> 57.53635751 | U52: =F52*(Forecast!$P$8/$F$2) -> 57.90609496 | V52: =F52*(Forecast!$Q$8/$F$2) -> 58.27583242 | W52: =F52*(Forecast!$R$8/$F$2) -> 58.71951737 | X52: =F52*(Forecast!$S$8/$F$2) -> 59.08925482 | Y52: =F52*(Forecast!$T$8/$F$2) -> 59.45899228 | Z52: =F52*(Forecast!$U$8/$F$2) -> 59.82872974 | AA52: =F52*(Forecast!$V$8/$F$2) -> 60.27241468 | AB52: =F52*(Forecast!$W$8/$F$2) -> 60.64215214 | AC52: =F52*(Forecast!$X$8/$F$2) -> 61.0118896 | AD52: =F52*(Forecast!$Y$8/$F$2) -> 61.45557454 | AE52: =F52*(Forecast!$Z$8/$F$2) -> 61.825312 | AF52: =F52*(Forecast!$AA$8/$F$2) -> 62.19504946 | AG52: =F52*(Forecast!$AB$8/$F$2) -> 62.56478691
A53: 2017-01-03T01:00:00 | B53: 23.18184662 | C53: 13.2853775 | D53: 12.90496922 | E53: 0 | F53: 49.37219334 | H53: =F53*(Forecast!$C$8/$F$2) -> 53.06357367 | I53: =F53*(Forecast!$D$8/$F$2) -> 53.59322309 | J53: =F53*(Forecast!$E$8/$F$2) -> 53.73983884 | K53: =F53*(Forecast!$F$8/$F$2) -> 53.95976248 | L53: =F53*(Forecast!$G$8/$F$2) -> 54.10637823 | M53: =F53*(Forecast!$H$8/$F$2) -> 54.32630187 | N53: =F53*(Forecast!$I$8/$F$2) -> 54.76614913 | O53: =F53*(Forecast!$J$8/$F$2) -> 55.13268852 | P53: =F53*(Forecast!$K$8/$F$2) -> 55.49922791 | Q53: =F53*(Forecast!$L$8/$F$2) -> 55.8657673 | R53: =F53*(Forecast!$M$8/$F$2) -> 56.23230669 | S53: =F53*(Forecast!$N$8/$F$2) -> 56.67215396 | T53: =F53*(Forecast!$O$8/$F$2) -> 57.03869335 | U53: =F53*(Forecast!$P$8/$F$2) -> 57.40523274 | V53: =F53*(Forecast!$Q$8/$F$2) -> 57.77177213 | W53: =F53*(Forecast!$R$8/$F$2) -> 58.2116194 | X53: =F53*(Forecast!$S$8/$F$2) -> 58.57815879 | Y53: =F53*(Forecast!$T$8/$F$2) -> 58.94469818 | Z53: =F53*(Forecast!$U$8/$F$2) -> 59.31123757 | AA53: =F53*(Forecast!$V$8/$F$2) -> 59.75108484 | AB53: =F53*(Forecast!$W$8/$F$2) -> 60.11762423 | AC53: =F53*(Forecast!$X$8/$F$2) -> 60.48416362 | AD53: =F53*(Forecast!$Y$8/$F$2) -> 60.92401088 | AE53: =F53*(Forecast!$Z$8/$F$2) -> 61.29055027 | AF53: =F53*(Forecast!$AA$8/$F$2) -> 61.65708966 | AG53: =F53*(Forecast!$AB$8/$F$2) -> 62.02362905
A54: 2017-01-03T02:00:00 | B54: 23.14931297 | C54: 13.15060234 | D54: 12.92998028 | E54: 0 | F54: 49.22989559 | H54: =F54*(Forecast!$C$8/$F$2) -> 52.91063684 | I54: =F54*(Forecast!$D$8/$F$2) -> 53.43875973 | J54: =F54*(Forecast!$E$8/$F$2) -> 53.58495292 | K54: =F54*(Forecast!$F$8/$F$2) -> 53.8042427 | L54: =F54*(Forecast!$G$8/$F$2) -> 53.95043589 | M54: =F54*(Forecast!$H$8/$F$2) -> 54.16972567 | N54: =F54*(Forecast!$I$8/$F$2) -> 54.60830524 | O54: =F54*(Forecast!$J$8/$F$2) -> 54.97378821 | P54: =F54*(Forecast!$K$8/$F$2) -> 55.33927118 | Q54: =F54*(Forecast!$L$8/$F$2) -> 55.70475415 | R54: =F54*(Forecast!$M$8/$F$2) -> 56.07023712 | S54: =F54*(Forecast!$N$8/$F$2) -> 56.50881668 | T54: =F54*(Forecast!$O$8/$F$2) -> 56.87429965 | U54: =F54*(Forecast!$P$8/$F$2) -> 57.23978262 | V54: =F54*(Forecast!$Q$8/$F$2) -> 57.6052656 | W54: =F54*(Forecast!$R$8/$F$2) -> 58.04384516 | X54: =F54*(Forecast!$S$8/$F$2) -> 58.40932813 | Y54: =F54*(Forecast!$T$8/$F$2) -> 58.7748111 | Z54: =F54*(Forecast!$U$8/$F$2) -> 59.14029407 | AA54: =F54*(Forecast!$V$8/$F$2) -> 59.57887364 | AB54: =F54*(Forecast!$W$8/$F$2) -> 59.94435661 | AC54: =F54*(Forecast!$X$8/$F$2) -> 60.30983958 | AD54: =F54*(Forecast!$Y$8/$F$2) -> 60.74841914 | AE54: =F54*(Forecast!$Z$8/$F$2) -> 61.11390212 | AF54: =F54*(Forecast!$AA$8/$F$2) -> 61.47938509 | AG54: =F54*(Forecast!$AB$8/$F$2) -> 61.84486806
A55: 2017-01-03T03:00:00 | B55: 23.13803673 | C55: 13.14281559 | D55: 12.95499229 | E55: 0 | F55: 49.23584461 | H55: =F55*(Forecast!$C$8/$F$2) -> 52.91703064 | I55: =F55*(Forecast!$D$8/$F$2) -> 53.44521735 | J55: =F55*(Forecast!$E$8/$F$2) -> 53.59142821 | K55: =F55*(Forecast!$F$8/$F$2) -> 53.81074449 | L55: =F55*(Forecast!$G$8/$F$2) -> 53.95695535 | M55: =F55*(Forecast!$H$8/$F$2) -> 54.17627163 | N55: =F55*(Forecast!$I$8/$F$2) -> 54.61490419 | O55: =F55*(Forecast!$J$8/$F$2) -> 54.98043133 | P55: =F55*(Forecast!$K$8/$F$2) -> 55.34595846 | Q55: =F55*(Forecast!$L$8/$F$2) -> 55.7114856 | R55: =F55*(Forecast!$M$8/$F$2) -> 56.07701274 | S55: =F55*(Forecast!$N$8/$F$2) -> 56.5156453 | T55: =F55*(Forecast!$O$8/$F$2) -> 56.88117244 | U55: =F55*(Forecast!$P$8/$F$2) -> 57.24669957 | V55: =F55*(Forecast!$Q$8/$F$2) -> 57.61222671 | W55: =F55*(Forecast!$R$8/$F$2) -> 58.05085927 | X55: =F55*(Forecast!$S$8/$F$2) -> 58.41638641 | Y55: =F55*(Forecast!$T$8/$F$2) -> 58.78191355 | Z55: =F55*(Forecast!$U$8/$F$2) -> 59.14744068 | AA55: =F55*(Forecast!$V$8/$F$2) -> 59.58607325 | AB55: =F55*(Forecast!$W$8/$F$2) -> 59.95160038 | AC55: =F55*(Forecast!$X$8/$F$2) -> 60.31712752 | AD55: =F55*(Forecast!$Y$8/$F$2) -> 60.75576008 | AE55: =F55*(Forecast!$Z$8/$F$2) -> 61.12128722 | AF55: =F55*(Forecast!$AA$8/$F$2) -> 61.48681435 | AG55: =F55*(Forecast!$AB$8/$F$2) -> 61.85234149
A56: 2017-01-03T04:00:00 | B56: 23.22562981 | C56: 13.20981503 | D56: 13.08456707 | E56: 0 | F56: 49.5200119 | H56: =F56*(Forecast!$C$8/$F$2) -> 53.22244409 | I56: =F56*(Forecast!$D$8/$F$2) -> 53.75367926 | J56: =F56*(Forecast!$E$8/$F$2) -> 53.90073398 | K56: =F56*(Forecast!$F$8/$F$2) -> 54.12131606 | L56: =F56*(Forecast!$G$8/$F$2) -> 54.26837078 | M56: =F56*(Forecast!$H$8/$F$2) -> 54.48895285 | N56: =F56*(Forecast!$I$8/$F$2) -> 54.93011701 | O56: =F56*(Forecast!$J$8/$F$2) -> 55.2977538 | P56: =F56*(Forecast!$K$8/$F$2) -> 55.6653906 | Q56: =F56*(Forecast!$L$8/$F$2) -> 56.0330274 | R56: =F56*(Forecast!$M$8/$F$2) -> 56.40066419 | S56: =F56*(Forecast!$N$8/$F$2) -> 56.84182835 | T56: =F56*(Forecast!$O$8/$F$2) -> 57.20946514 | U56: =F56*(Forecast!$P$8/$F$2) -> 57.57710194 | V56: =F56*(Forecast!$Q$8/$F$2) -> 57.94473873 | W56: =F56*(Forecast!$R$8/$F$2) -> 58.38590289 | X56: =F56*(Forecast!$S$8/$F$2) -> 58.75353968 | Y56: =F56*(Forecast!$T$8/$F$2) -> 59.12117648 | Z56: =F56*(Forecast!$U$8/$F$2) -> 59.48881327 | AA56: =F56*(Forecast!$V$8/$F$2) -> 59.92997743 | AB56: =F56*(Forecast!$W$8/$F$2) -> 60.29761422 | AC56: =F56*(Forecast!$X$8/$F$2) -> 60.66525102 | AD56: =F56*(Forecast!$Y$8/$F$2) -> 61.10641518 | AE56: =F56*(Forecast!$Z$8/$F$2) -> 61.47405197 | AF56: =F56*(Forecast!$AA$8/$F$2) -> 61.84168877 | AG56: =F56*(Forecast!$AB$8/$F$2) -> 62.20932556
A57: 2017-01-03T05:00:00 | B57: 23.48687935 | C57: 13.36828899 | D57: 13.2617321 | E57: 0 | F57: 50.11690044 | H57: =F57*(Forecast!$C$8/$F$2) -> 53.86395983 | I57: =F57*(Forecast!$D$8/$F$2) -> 54.40159824 | J57: =F57*(Forecast!$E$8/$F$2) -> 54.55042548 | K57: =F57*(Forecast!$F$8/$F$2) -> 54.77366633 | L57: =F57*(Forecast!$G$8/$F$2) -> 54.92249357 | M57: =F57*(Forecast!$H$8/$F$2) -> 55.14573443 | N57: =F57*(Forecast!$I$8/$F$2) -> 55.59221615 | O57: =F57*(Forecast!$J$8/$F$2) -> 55.96428425 | P57: =F57*(Forecast!$K$8/$F$2) -> 56.33635235 | Q57: =F57*(Forecast!$L$8/$F$2) -> 56.70842045 | R57: =F57*(Forecast!$M$8/$F$2) -> 57.08048855 | S57: =F57*(Forecast!$N$8/$F$2) -> 57.52697027 | T57: =F57*(Forecast!$O$8/$F$2) -> 57.89903837 | U57: =F57*(Forecast!$P$8/$F$2) -> 58.27110646 | V57: =F57*(Forecast!$Q$8/$F$2) -> 58.64317456 | W57: =F57*(Forecast!$R$8/$F$2) -> 59.08965628 | X57: =F57*(Forecast!$S$8/$F$2) -> 59.46172438 | Y57: =F57*(Forecast!$T$8/$F$2) -> 59.83379248 | Z57: =F57*(Forecast!$U$8/$F$2) -> 60.20586058 | AA57: =F57*(Forecast!$V$8/$F$2) -> 60.6523423 | AB57: =F57*(Forecast!$W$8/$F$2) -> 61.0244104 | AC57: =F57*(Forecast!$X$8/$F$2) -> 61.39647849 | AD57: =F57*(Forecast!$Y$8/$F$2) -> 61.84296021 | AE57: =F57*(Forecast!$Z$8/$F$2) -> 62.21502831 | AF57: =F57*(Forecast!$AA$8/$F$2) -> 62.58709641 | AG57: =F57*(Forecast!$AB$8/$F$2) -> 62.95916451
A58: 2017-01-03T06:00:00 | B58: 23.96103859 | C58: 13.52931309 | D58: 13.48090935 | E58: 0 | F58: 50.97126102 | H58: =F58*(Forecast!$C$8/$F$2) -> 54.78219786 | I58: =F58*(Forecast!$D$8/$F$2) -> 55.32900158 | J58: =F58*(Forecast!$E$8/$F$2) -> 55.48036593 | K58: =F58*(Forecast!$F$8/$F$2) -> 55.70741246 | L58: =F58*(Forecast!$G$8/$F$2) -> 55.85877681 | M58: =F58*(Forecast!$H$8/$F$2) -> 56.08582333 | N58: =F58*(Forecast!$I$8/$F$2) -> 56.53991638 | O58: =F58*(Forecast!$J$8/$F$2) -> 56.91832726 | P58: =F58*(Forecast!$K$8/$F$2) -> 57.29673813 | Q58: =F58*(Forecast!$L$8/$F$2) -> 57.67514901 | R58: =F58*(Forecast!$M$8/$F$2) -> 58.05355988 | S58: =F58*(Forecast!$N$8/$F$2) -> 58.50765294 | T58: =F58*(Forecast!$O$8/$F$2) -> 58.88606381 | U58: =F58*(Forecast!$P$8/$F$2) -> 59.26447469 | V58: =F58*(Forecast!$Q$8/$F$2) -> 59.64288556 | W58: =F58*(Forecast!$R$8/$F$2) -> 60.09697861 | X58: =F58*(Forecast!$S$8/$F$2) -> 60.47538949 | Y58: =F58*(Forecast!$T$8/$F$2) -> 60.85380037 | Z58: =F58*(Forecast!$U$8/$F$2) -> 61.23221124 | AA58: =F58*(Forecast!$V$8/$F$2) -> 61.68630429 | AB58: =F58*(Forecast!$W$8/$F$2) -> 62.06471517 | AC58: =F58*(Forecast!$X$8/$F$2) -> 62.44312604 | AD58: =F58*(Forecast!$Y$8/$F$2) -> 62.89721909 | AE58: =F58*(Forecast!$Z$8/$F$2) -> 63.27562997 | AF58: =F58*(Forecast!$AA$8/$F$2) -> 63.65404085 | AG58: =F58*(Forecast!$AB$8/$F$2) -> 64.03245172
A59: 2017-01-03T07:00:00 | B59: 25.28768921 | C59: 13.97546673 | D59: 14.10260963 | E59: 0 | F59: 53.36576557 | H59: =F59*(Forecast!$C$8/$F$2) -> 57.35573086 | I59: =F59*(Forecast!$D$8/$F$2) -> 57.92822207 | J59: =F59*(Forecast!$E$8/$F$2) -> 58.08669714 | K59: =F59*(Forecast!$F$8/$F$2) -> 58.32440975 | L59: =F59*(Forecast!$G$8/$F$2) -> 58.48288483 | M59: =F59*(Forecast!$H$8/$F$2) -> 58.72059744 | N59: =F59*(Forecast!$I$8/$F$2) -> 59.19602267 | O59: =F59*(Forecast!$J$8/$F$2) -> 59.59221036 | P59: =F59*(Forecast!$K$8/$F$2) -> 59.98839805 | Q59: =F59*(Forecast!$L$8/$F$2) -> 60.38458573 | R59: =F59*(Forecast!$M$8/$F$2) -> 60.78077342 | S59: =F59*(Forecast!$N$8/$F$2) -> 61.25619865 | T59: =F59*(Forecast!$O$8/$F$2) -> 61.65238634 | U59: =F59*(Forecast!$P$8/$F$2) -> 62.04857403 | V59: =F59*(Forecast!$Q$8/$F$2) -> 62.44476171 | W59: =F59*(Forecast!$R$8/$F$2) -> 62.92018694 | X59: =F59*(Forecast!$S$8/$F$2) -> 63.31637463 | Y59: =F59*(Forecast!$T$8/$F$2) -> 63.71256232 | Z59: =F59*(Forecast!$U$8/$F$2) -> 64.10875001 | AA59: =F59*(Forecast!$V$8/$F$2) -> 64.58417523 | AB59: =F59*(Forecast!$W$8/$F$2) -> 64.98036292 | AC59: =F59*(Forecast!$X$8/$F$2) -> 65.37655061 | AD59: =F59*(Forecast!$Y$8/$F$2) -> 65.85197584 | AE59: =F59*(Forecast!$Z$8/$F$2) -> 66.24816352 | AF59: =F59*(Forecast!$AA$8/$F$2) -> 66.64435121 | AG59: =F59*(Forecast!$AB$8/$F$2) -> 67.0405389
A60: 2017-01-03T08:00:00 | B60: 27.30619621 | C60: 14.99068069 | D60: 14.81017017 | E60: 0 | F60: 57.10704708 | H60: =F60*(Forecast!$C$8/$F$2) -> 61.37673445 | I60: =F60*(Forecast!$D$8/$F$2) -> 61.98936096 | J60: =F60*(Forecast!$E$8/$F$2) -> 62.15894615 | K60: =F60*(Forecast!$F$8/$F$2) -> 62.41332394 | L60: =F60*(Forecast!$G$8/$F$2) -> 62.58290913 | M60: =F60*(Forecast!$H$8/$F$2) -> 62.83728692 | N60: =F60*(Forecast!$I$8/$F$2) -> 63.34604249 | O60: =F60*(Forecast!$J$8/$F$2) -> 63.77000547 | P60: =F60*(Forecast!$K$8/$F$2) -> 64.19396845 | Q60: =F60*(Forecast!$L$8/$F$2) -> 64.61793143 | R60: =F60*(Forecast!$M$8/$F$2) -> 65.04189441 | S60: =F60*(Forecast!$N$8/$F$2) -> 65.55064999 | T60: =F60*(Forecast!$O$8/$F$2) -> 65.97461297 | U60: =F60*(Forecast!$P$8/$F$2) -> 66.39857595 | V60: =F60*(Forecast!$Q$8/$F$2) -> 66.82253893 | W60: =F60*(Forecast!$R$8/$F$2) -> 67.3312945 | X60: =F60*(Forecast!$S$8/$F$2) -> 67.75525748 | Y60: =F60*(Forecast!$T$8/$F$2) -> 68.17922046 | Z60: =F60*(Forecast!$U$8/$F$2) -> 68.60318344 | AA60: =F60*(Forecast!$V$8/$F$2) -> 69.11193902 | AB60: =F60*(Forecast!$W$8/$F$2) -> 69.535902 | AC60: =F60*(Forecast!$X$8/$F$2) -> 69.95986497 | AD60: =F60*(Forecast!$Y$8/$F$2) -> 70.46862055 | AE60: =F60*(Forecast!$Z$8/$F$2) -> 70.89258353 | AF60: =F60*(Forecast!$AA$8/$F$2) -> 71.31654651 | AG60: =F60*(Forecast!$AB$8/$F$2) -> 71.74050949
A61: 2017-01-03T09:00:00 | B61: 27.37561035 | C61: 15.28126431 | D61: 15.09272766 | E61: 0 | F61: 57.74960232 | H61: =F61*(Forecast!$C$8/$F$2) -> 62.06733122 | I61: =F61*(Forecast!$D$8/$F$2) -> 62.68685086 | J61: =F61*(Forecast!$E$8/$F$2) -> 62.85834418 | K61: =F61*(Forecast!$F$8/$F$2) -> 63.11558417 | L61: =F61*(Forecast!$G$8/$F$2) -> 63.28707749 | M61: =F61*(Forecast!$H$8/$F$2) -> 63.54431748 | N61: =F61*(Forecast!$I$8/$F$2) -> 64.05879746 | O61: =F61*(Forecast!$J$8/$F$2) -> 64.48753077 | P61: =F61*(Forecast!$K$8/$F$2) -> 64.91626408 | Q61: =F61*(Forecast!$L$8/$F$2) -> 65.3449974 | R61: =F61*(Forecast!$M$8/$F$2) -> 65.77373071 | S61: =F61*(Forecast!$N$8/$F$2) -> 66.28821068 | T61: =F61*(Forecast!$O$8/$F$2) -> 66.716944 | U61: =F61*(Forecast!$P$8/$F$2) -> 67.14567731 | V61: =F61*(Forecast!$Q$8/$F$2) -> 67.57441062 | W61: =F61*(Forecast!$R$8/$F$2) -> 68.0888906 | X61: =F61*(Forecast!$S$8/$F$2) -> 68.51762391 | Y61: =F61*(Forecast!$T$8/$F$2) -> 68.94635722 | Z61: =F61*(Forecast!$U$8/$F$2) -> 69.37509053 | AA61: =F61*(Forecast!$V$8/$F$2) -> 69.88957051 | AB61: =F61*(Forecast!$W$8/$F$2) -> 70.31830382 | AC61: =F61*(Forecast!$X$8/$F$2) -> 70.74703713 | AD61: =F61*(Forecast!$Y$8/$F$2) -> 71.26151711 | AE61: =F61*(Forecast!$Z$8/$F$2) -> 71.69025042 | AF61: =F61*(Forecast!$AA$8/$F$2) -> 72.11898374 | AG61: =F61*(Forecast!$AB$8/$F$2) -> 72.54771705
A62: 2017-01-03T10:00:00 | B62: 26.92703629 | C62: 15.05168247 | D62: 14.97326756 | E62: 0 | F62: 56.95198631 | H62: =F62*(Forecast!$C$8/$F$2) -> 61.21008035 | I62: =F62*(Forecast!$D$8/$F$2) -> 61.82104341 | J62: =F62*(Forecast!$E$8/$F$2) -> 61.99016814 | K62: =F62*(Forecast!$F$8/$F$2) -> 62.24385522 | L62: =F62*(Forecast!$G$8/$F$2) -> 62.41297994 | M62: =F62*(Forecast!$H$8/$F$2) -> 62.66666703 | N62: =F62*(Forecast!$I$8/$F$2) -> 63.1740412 | O62: =F62*(Forecast!$J$8/$F$2) -> 63.59685301 | P62: =F62*(Forecast!$K$8/$F$2) -> 64.01966481 | Q62: =F62*(Forecast!$L$8/$F$2) -> 64.44247662 | R62: =F62*(Forecast!$M$8/$F$2) -> 64.86528843 | S62: =F62*(Forecast!$N$8/$F$2) -> 65.3726626 | T62: =F62*(Forecast!$O$8/$F$2) -> 65.79547441 | U62: =F62*(Forecast!$P$8/$F$2) -> 66.21828621 | V62: =F62*(Forecast!$Q$8/$F$2) -> 66.64109802 | W62: =F62*(Forecast!$R$8/$F$2) -> 67.14847219 | X62: =F62*(Forecast!$S$8/$F$2) -> 67.571284 | Y62: =F62*(Forecast!$T$8/$F$2) -> 67.99409581 | Z62: =F62*(Forecast!$U$8/$F$2) -> 68.41690761 | AA62: =F62*(Forecast!$V$8/$F$2) -> 68.92428178 | AB62: =F62*(Forecast!$W$8/$F$2) -> 69.34709359 | AC62: =F62*(Forecast!$X$8/$F$2) -> 69.7699054 | AD62: =F62*(Forecast!$Y$8/$F$2) -> 70.27727957 | AE62: =F62*(Forecast!$Z$8/$F$2) -> 70.70009138 | AF62: =F62*(Forecast!$AA$8/$F$2) -> 71.12290318 | AG62: =F62*(Forecast!$AB$8/$F$2) -> 71.54571499
A63: 2017-01-03T11:00:00 | B63: 26.21761322 | C63: 14.49799347 | D63: 14.51048279 | E63: 0 | F63: 55.22608948 | H63: =F63*(Forecast!$C$8/$F$2) -> 59.35514445 | I63: =F63*(Forecast!$D$8/$F$2) -> 59.94759263 | J63: =F63*(Forecast!$E$8/$F$2) -> 60.11159213 | K63: =F63*(Forecast!$F$8/$F$2) -> 60.35759138 | L63: =F63*(Forecast!$G$8/$F$2) -> 60.52159087 | M63: =F63*(Forecast!$H$8/$F$2) -> 60.76759012 | N63: =F63*(Forecast!$I$8/$F$2) -> 61.25958861 | O63: =F63*(Forecast!$J$8/$F$2) -> 61.66958735 | P63: =F63*(Forecast!$K$8/$F$2) -> 62.07958609 | Q63: =F63*(Forecast!$L$8/$F$2) -> 62.48958483 | R63: =F63*(Forecast!$M$8/$F$2) -> 62.89958357 | S63: =F63*(Forecast!$N$8/$F$2) -> 63.39158206 | T63: =F63*(Forecast!$O$8/$F$2) -> 63.80158081 | U63: =F63*(Forecast!$P$8/$F$2) -> 64.21157955 | V63: =F63*(Forecast!$Q$8/$F$2) -> 64.62157829 | W63: =F63*(Forecast!$R$8/$F$2) -> 65.11357678 | X63: =F63*(Forecast!$S$8/$F$2) -> 65.52357552 | Y63: =F63*(Forecast!$T$8/$F$2) -> 65.93357426 | Z63: =F63*(Forecast!$U$8/$F$2) -> 66.343573 | AA63: =F63*(Forecast!$V$8/$F$2) -> 66.83557149 | AB63: =F63*(Forecast!$W$8/$F$2) -> 67.24557024 | AC63: =F63*(Forecast!$X$8/$F$2) -> 67.65556898 | AD63: =F63*(Forecast!$Y$8/$F$2) -> 68.14756747 | AE63: =F63*(Forecast!$Z$8/$F$2) -> 68.55756621 | AF63: =F63*(Forecast!$AA$8/$F$2) -> 68.96756495 | AG63: =F63*(Forecast!$AB$8/$F$2) -> 69.37756369
A64: 2017-01-03T12:00:00 | B64: 25.21515465 | C64: 14.04225063 | D64: 13.93152142 | E64: 0 | F64: 53.1889267 | H64: =F64*(Forecast!$C$8/$F$2) -> 57.16567038 | I64: =F64*(Forecast!$D$8/$F$2) -> 57.73626452 | J64: =F64*(Forecast!$E$8/$F$2) -> 57.89421445 | K64: =F64*(Forecast!$F$8/$F$2) -> 58.13113935 | L64: =F64*(Forecast!$G$8/$F$2) -> 58.28908929 | M64: =F64*(Forecast!$H$8/$F$2) -> 58.52601419 | N64: =F64*(Forecast!$I$8/$F$2) -> 58.99986399 | O64: =F64*(Forecast!$J$8/$F$2) -> 59.39473883 | P64: =F64*(Forecast!$K$8/$F$2) -> 59.78961366 | Q64: =F64*(Forecast!$L$8/$F$2) -> 60.1844885 | R64: =F64*(Forecast!$M$8/$F$2) -> 60.57936333 | S64: =F64*(Forecast!$N$8/$F$2) -> 61.05321314 | T64: =F64*(Forecast!$O$8/$F$2) -> 61.44808797 | U64: =F64*(Forecast!$P$8/$F$2) -> 61.84296281 | V64: =F64*(Forecast!$Q$8/$F$2) -> 62.23783764 | W64: =F64*(Forecast!$R$8/$F$2) -> 62.71168745 | X64: =F64*(Forecast!$S$8/$F$2) -> 63.10656228 | Y64: =F64*(Forecast!$T$8/$F$2) -> 63.50143712 | Z64: =F64*(Forecast!$U$8/$F$2) -> 63.89631196 | AA64: =F64*(Forecast!$V$8/$F$2) -> 64.37016176 | AB64: =F64*(Forecast!$W$8/$F$2) -> 64.76503659 | AC64: =F64*(Forecast!$X$8/$F$2) -> 65.15991143 | AD64: =F64*(Forecast!$Y$8/$F$2) -> 65.63376123 | AE64: =F64*(Forecast!$Z$8/$F$2) -> 66.02863607 | AF64: =F64*(Forecast!$AA$8/$F$2) -> 66.42351091 | AG64: =F64*(Forecast!$AB$8/$F$2) -> 66.81838574
A65: 2017-01-03T13:00:00 | B65: 24.63158035 | C65: 13.76830292 | D65: 13.76265049 | E65: 0 | F65: 52.16253376 | H65: =F65*(Forecast!$C$8/$F$2) -> 56.06253775 | I65: =F65*(Forecast!$D$8/$F$2) -> 56.62212107 | J65: =F65*(Forecast!$E$8/$F$2) -> 56.77702303 | K65: =F65*(Forecast!$F$8/$F$2) -> 57.00937596 | L65: =F65*(Forecast!$G$8/$F$2) -> 57.16427792 | M65: =F65*(Forecast!$H$8/$F$2) -> 57.39663085 | N65: =F65*(Forecast!$I$8/$F$2) -> 57.86133672 | O65: =F65*(Forecast!$J$8/$F$2) -> 58.24859161 | P65: =F65*(Forecast!$K$8/$F$2) -> 58.6358465 | Q65: =F65*(Forecast!$L$8/$F$2) -> 59.02310139 | R65: =F65*(Forecast!$M$8/$F$2) -> 59.41035628 | S65: =F65*(Forecast!$N$8/$F$2) -> 59.87506215 | T65: =F65*(Forecast!$O$8/$F$2) -> 60.26231704 | U65: =F65*(Forecast!$P$8/$F$2) -> 60.64957193 | V65: =F65*(Forecast!$Q$8/$F$2) -> 61.03682682 | W65: =F65*(Forecast!$R$8/$F$2) -> 61.50153268 | X65: =F65*(Forecast!$S$8/$F$2) -> 61.88878757 | Y65: =F65*(Forecast!$T$8/$F$2) -> 62.27604246 | Z65: =F65*(Forecast!$U$8/$F$2) -> 62.66329735 | AA65: =F65*(Forecast!$V$8/$F$2) -> 63.12800322 | AB65: =F65*(Forecast!$W$8/$F$2) -> 63.51525811 | AC65: =F65*(Forecast!$X$8/$F$2) -> 63.902513 | AD65: =F65*(Forecast!$Y$8/$F$2) -> 64.36721887 | AE65: =F65*(Forecast!$Z$8/$F$2) -> 64.75447376 | AF65: =F65*(Forecast!$AA$8/$F$2) -> 65.14172865 | AG65: =F65*(Forecast!$AB$8/$F$2) -> 65.52898354
A66: 2017-01-03T14:00:00 | B66: 24.48563004 | C66: 13.53174877 | D66: 13.63266087 | E66: 0 | F66: 51.65003967 | H66: =F66*(Forecast!$C$8/$F$2) -> 55.51172634 | I66: =F66*(Forecast!$D$8/$F$2) -> 56.06581178 | J66: =F66*(Forecast!$E$8/$F$2) -> 56.21919183 | K66: =F66*(Forecast!$F$8/$F$2) -> 56.44926191 | L66: =F66*(Forecast!$G$8/$F$2) -> 56.60264196 | M66: =F66*(Forecast!$H$8/$F$2) -> 56.83271204 | N66: =F66*(Forecast!$I$8/$F$2) -> 57.2928522 | O66: =F66*(Forecast!$J$8/$F$2) -> 57.67630233 | P66: =F66*(Forecast!$K$8/$F$2) -> 58.05975246 | Q66: =F66*(Forecast!$L$8/$F$2) -> 58.44320259 | R66: =F66*(Forecast!$M$8/$F$2) -> 58.82665272 | S66: =F66*(Forecast!$N$8/$F$2) -> 59.28679288 | T66: =F66*(Forecast!$O$8/$F$2) -> 59.67024301 | U66: =F66*(Forecast!$P$8/$F$2) -> 60.05369315 | V66: =F66*(Forecast!$Q$8/$F$2) -> 60.43714328 | W66: =F66*(Forecast!$R$8/$F$2) -> 60.89728343 | X66: =F66*(Forecast!$S$8/$F$2) -> 61.28073357 | Y66: =F66*(Forecast!$T$8/$F$2) -> 61.6641837 | Z66: =F66*(Forecast!$U$8/$F$2) -> 62.04763383 | AA66: =F66*(Forecast!$V$8/$F$2) -> 62.50777399 | AB66: =F66*(Forecast!$W$8/$F$2) -> 62.89122412 | AC66: =F66*(Forecast!$X$8/$F$2) -> 63.27467425 | AD66: =F66*(Forecast!$Y$8/$F$2) -> 63.73481441 | AE66: =F66*(Forecast!$Z$8/$F$2) -> 64.11826454 | AF66: =F66*(Forecast!$AA$8/$F$2) -> 64.50171467 | AG66: =F66*(Forecast!$AB$8/$F$2) -> 64.8851648
A67: 2017-01-03T15:00:00 | B67: 24.1830349 | C67: 13.71440601 | D67: 13.50346184 | E67: 0 | F67: 51.40090275 | H67: =F67*(Forecast!$C$8/$F$2) -> 55.24396235 | I67: =F67*(Forecast!$D$8/$F$2) -> 55.79537512 | J67: =F67*(Forecast!$E$8/$F$2) -> 55.94801534 | K67: =F67*(Forecast!$F$8/$F$2) -> 56.17697566 | L67: =F67*(Forecast!$G$8/$F$2) -> 56.32961588 | M67: =F67*(Forecast!$H$8/$F$2) -> 56.5585762 | N67: =F67*(Forecast!$I$8/$F$2) -> 57.01649684 | O67: =F67*(Forecast!$J$8/$F$2) -> 57.39809738 | P67: =F67*(Forecast!$K$8/$F$2) -> 57.77969792 | Q67: =F67*(Forecast!$L$8/$F$2) -> 58.16129846 | R67: =F67*(Forecast!$M$8/$F$2) -> 58.542899 | S67: =F67*(Forecast!$N$8/$F$2) -> 59.00081964 | T67: =F67*(Forecast!$O$8/$F$2) -> 59.38242018 | U67: =F67*(Forecast!$P$8/$F$2) -> 59.76402072 | V67: =F67*(Forecast!$Q$8/$F$2) -> 60.14562125 | W67: =F67*(Forecast!$R$8/$F$2) -> 60.6035419 | X67: =F67*(Forecast!$S$8/$F$2) -> 60.98514244 | Y67: =F67*(Forecast!$T$8/$F$2) -> 61.36674298 | Z67: =F67*(Forecast!$U$8/$F$2) -> 61.74834351 | AA67: =F67*(Forecast!$V$8/$F$2) -> 62.20626416 | AB67: =F67*(Forecast!$W$8/$F$2) -> 62.5878647 | AC67: =F67*(Forecast!$X$8/$F$2) -> 62.96946523 | AD67: =F67*(Forecast!$Y$8/$F$2) -> 63.42738588 | AE67: =F67*(Forecast!$Z$8/$F$2) -> 63.80898642 | AF67: =F67*(Forecast!$AA$8/$F$2) -> 64.19058696 | AG67: =F67*(Forecast!$AB$8/$F$2) -> 64.57218749
A68: 2017-01-03T16:00:00 | B68: 25.45364189 | C68: 14.32095814 | D68: 14.10490036 | E68: 0 | F68: 53.87950039 | H68: =F68*(Forecast!$C$8/$F$2) -> 57.90787577 | I68: =F68*(Forecast!$D$8/$F$2) -> 58.48587816 | J68: =F68*(Forecast!$E$8/$F$2) -> 58.64587883 | K68: =F68*(Forecast!$F$8/$F$2) -> 58.88587982 | L68: =F68*(Forecast!$G$8/$F$2) -> 59.04588048 | M68: =F68*(Forecast!$H$8/$F$2) -> 59.28588148 | N68: =F68*(Forecast!$I$8/$F$2) -> 59.76588347 | O68: =F68*(Forecast!$J$8/$F$2) -> 60.16588513 | P68: =F68*(Forecast!$K$8/$F$2) -> 60.56588679 | Q68: =F68*(Forecast!$L$8/$F$2) -> 60.96588844 | R68: =F68*(Forecast!$M$8/$F$2) -> 61.3658901 | S68: =F68*(Forecast!$N$8/$F$2) -> 61.84589209 | T68: =F68*(Forecast!$O$8/$F$2) -> 62.24589375 | U68: =F68*(Forecast!$P$8/$F$2) -> 62.64589541 | V68: =F68*(Forecast!$Q$8/$F$2) -> 63.04589707 | W68: =F68*(Forecast!$R$8/$F$2) -> 63.52589906 | X68: =F68*(Forecast!$S$8/$F$2) -> 63.92590071 | Y68: =F68*(Forecast!$T$8/$F$2) -> 64.32590237 | Z68: =F68*(Forecast!$U$8/$F$2) -> 64.72590403 | AA68: =F68*(Forecast!$V$8/$F$2) -> 65.20590602 | AB68: =F68*(Forecast!$W$8/$F$2) -> 65.60590768 | AC68: =F68*(Forecast!$X$8/$F$2) -> 66.00590934 | AD68: =F68*(Forecast!$Y$8/$F$2) -> 66.48591133 | AE68: =F68*(Forecast!$Z$8/$F$2) -> 66.88591298 | AF68: =F68*(Forecast!$AA$8/$F$2) -> 67.28591464 | AG68: =F68*(Forecast!$AB$8/$F$2) -> 67.6859163
A69: 2017-01-03T17:00:00 | B69: 27.02175903 | C69: 15.03207016 | D69: 14.94221878 | E69: 0 | F69: 56.99604797 | H69: =F69*(Forecast!$C$8/$F$2) -> 61.25743634 | I69: =F69*(Forecast!$D$8/$F$2) -> 61.86887209 | J69: =F69*(Forecast!$E$8/$F$2) -> 62.03812765 | K69: =F69*(Forecast!$F$8/$F$2) -> 62.29201101 | L69: =F69*(Forecast!$G$8/$F$2) -> 62.46126658 | M69: =F69*(Forecast!$H$8/$F$2) -> 62.71514993 | N69: =F69*(Forecast!$I$8/$F$2) -> 63.22291663 | O69: =F69*(Forecast!$J$8/$F$2) -> 63.64605556 | P69: =F69*(Forecast!$K$8/$F$2) -> 64.06919448 | Q69: =F69*(Forecast!$L$8/$F$2) -> 64.4923334 | R69: =F69*(Forecast!$M$8/$F$2) -> 64.91547232 | S69: =F69*(Forecast!$N$8/$F$2) -> 65.42323903 | T69: =F69*(Forecast!$O$8/$F$2) -> 65.84637795 | U69: =F69*(Forecast!$P$8/$F$2) -> 66.26951687 | V69: =F69*(Forecast!$Q$8/$F$2) -> 66.69265579 | W69: =F69*(Forecast!$R$8/$F$2) -> 67.2004225 | X69: =F69*(Forecast!$S$8/$F$2) -> 67.62356142 | Y69: =F69*(Forecast!$T$8/$F$2) -> 68.04670034 | Z69: =F69*(Forecast!$U$8/$F$2) -> 68.46983926 | AA69: =F69*(Forecast!$V$8/$F$2) -> 68.97760597 | AB69: =F69*(Forecast!$W$8/$F$2) -> 69.40074489 | AC69: =F69*(Forecast!$X$8/$F$2) -> 69.82388381 | AD69: =F69*(Forecast!$Y$8/$F$2) -> 70.33165052 | AE69: =F69*(Forecast!$Z$8/$F$2) -> 70.75478944 | AF69: =F69*(Forecast!$AA$8/$F$2) -> 71.17792836 | AG69: =F69*(Forecast!$AB$8/$F$2) -> 71.60106728
A70: 2017-01-03T18:00:00 | B70: 26.97820663 | C70: 14.99857235 | D70: 14.90869808 | E70: 0 | F70: =SUM(B70:E70) -> 56.88547707 | H70: =F70*(Forecast!$C$8/$F$2) -> 61.13859845 | I70: =F70*(Forecast!$D$8/$F$2) -> 61.74884802 | J70: =F70*(Forecast!$E$8/$F$2) -> 61.91777524 | K70: =F70*(Forecast!$F$8/$F$2) -> 62.17116606 | L70: =F70*(Forecast!$G$8/$F$2) -> 62.34009328 | M70: =F70*(Forecast!$H$8/$F$2) -> 62.59348411 | N70: =F70*(Forecast!$I$8/$F$2) -> 63.10026576 | O70: =F70*(Forecast!$J$8/$F$2) -> 63.5225838 | P70: =F70*(Forecast!$K$8/$F$2) -> 63.94490184 | Q70: =F70*(Forecast!$L$8/$F$2) -> 64.36721989 | R70: =F70*(Forecast!$M$8/$F$2) -> 64.78953793 | S70: =F70*(Forecast!$N$8/$F$2) -> 65.29631958 | T70: =F70*(Forecast!$O$8/$F$2) -> 65.71863762 | U70: =F70*(Forecast!$P$8/$F$2) -> 66.14095567 | V70: =F70*(Forecast!$Q$8/$F$2) -> 66.56327371 | W70: =F70*(Forecast!$R$8/$F$2) -> 67.07005536 | X70: =F70*(Forecast!$S$8/$F$2) -> 67.4923734 | Y70: =F70*(Forecast!$T$8/$F$2) -> 67.91469145 | Z70: =F70*(Forecast!$U$8/$F$2) -> 68.33700949 | AA70: =F70*(Forecast!$V$8/$F$2) -> 68.84379114 | AB70: =F70*(Forecast!$W$8/$F$2) -> 69.26610918 | AC70: =F70*(Forecast!$X$8/$F$2) -> 69.68842723 | AD70: =F70*(Forecast!$Y$8/$F$2) -> 70.19520888 | AE70: =F70*(Forecast!$Z$8/$F$2) -> 70.61752692 | AF70: =F70*(Forecast!$AA$8/$F$2) -> 71.03984496 | AG70: =F70*(Forecast!$AB$8/$F$2) -> 71.46216301
A71: 2017-01-03T19:00:00 | B71: 26.79801369 | C71: 14.96507359 | D71: 14.87517643 | E71: 0 | F71: 56.6382637 | H71: =F71*(Forecast!$C$8/$F$2) -> 60.87290184 | I71: =F71*(Forecast!$D$8/$F$2) -> 61.48049938 | J71: =F71*(Forecast!$E$8/$F$2) -> 61.64869247 | K71: =F71*(Forecast!$F$8/$F$2) -> 61.90098211 | L71: =F71*(Forecast!$G$8/$F$2) -> 62.0691752 | M71: =F71*(Forecast!$H$8/$F$2) -> 62.32146484 | N71: =F71*(Forecast!$I$8/$F$2) -> 62.82604412 | O71: =F71*(Forecast!$J$8/$F$2) -> 63.24652685 | P71: =F71*(Forecast!$K$8/$F$2) -> 63.66700957 | Q71: =F71*(Forecast!$L$8/$F$2) -> 64.0874923 | R71: =F71*(Forecast!$M$8/$F$2) -> 64.50797503 | S71: =F71*(Forecast!$N$8/$F$2) -> 65.01255431 | T71: =F71*(Forecast!$O$8/$F$2) -> 65.43303704 | U71: =F71*(Forecast!$P$8/$F$2) -> 65.85351977 | V71: =F71*(Forecast!$Q$8/$F$2) -> 66.2740025 | W71: =F71*(Forecast!$R$8/$F$2) -> 66.77858177 | X71: =F71*(Forecast!$S$8/$F$2) -> 67.1990645 | Y71: =F71*(Forecast!$T$8/$F$2) -> 67.61954723 | Z71: =F71*(Forecast!$U$8/$F$2) -> 68.04002996 | AA71: =F71*(Forecast!$V$8/$F$2) -> 68.54460924 | AB71: =F71*(Forecast!$W$8/$F$2) -> 68.96509197 | AC71: =F71*(Forecast!$X$8/$F$2) -> 69.3855747 | AD71: =F71*(Forecast!$Y$8/$F$2) -> 69.89015397 | AE71: =F71*(Forecast!$Z$8/$F$2) -> 70.3106367 | AF71: =F71*(Forecast!$AA$8/$F$2) -> 70.73111943 | AG71: =F71*(Forecast!$AB$8/$F$2) -> 71.15160216
A72: 2017-01-03T20:00:00 | B72: 27.00563049 | C72: 14.93157482 | D72: 14.84165573 | E72: 0 | F72: 56.77886105 | H72: =F72*(Forecast!$C$8/$F$2) -> 61.02401113 | I72: =F72*(Forecast!$D$8/$F$2) -> 61.63311696 | J72: =F72*(Forecast!$E$8/$F$2) -> 61.80172757 | K72: =F72*(Forecast!$F$8/$F$2) -> 62.05464349 | L72: =F72*(Forecast!$G$8/$F$2) -> 62.2232541 | M72: =F72*(Forecast!$H$8/$F$2) -> 62.47617001 | N72: =F72*(Forecast!$I$8/$F$2) -> 62.98200184 | O72: =F72*(Forecast!$J$8/$F$2) -> 63.40352837 | P72: =F72*(Forecast!$K$8/$F$2) -> 63.82505489 | Q72: =F72*(Forecast!$L$8/$F$2) -> 64.24658142 | R72: =F72*(Forecast!$M$8/$F$2) -> 64.66810794 | S72: =F72*(Forecast!$N$8/$F$2) -> 65.17393977 | T72: =F72*(Forecast!$O$8/$F$2) -> 65.5954663 | U72: =F72*(Forecast!$P$8/$F$2) -> 66.01699282 | V72: =F72*(Forecast!$Q$8/$F$2) -> 66.43851935 | W72: =F72*(Forecast!$R$8/$F$2) -> 66.94435118 | X72: =F72*(Forecast!$S$8/$F$2) -> 67.3658777 | Y72: =F72*(Forecast!$T$8/$F$2) -> 67.78740423 | Z72: =F72*(Forecast!$U$8/$F$2) -> 68.20893075 | AA72: =F72*(Forecast!$V$8/$F$2) -> 68.71476258 | AB72: =F72*(Forecast!$W$8/$F$2) -> 69.13628911 | AC72: =F72*(Forecast!$X$8/$F$2) -> 69.55781563 | AD72: =F72*(Forecast!$Y$8/$F$2) -> 70.06364746 | AE72: =F72*(Forecast!$Z$8/$F$2) -> 70.48517399 | AF72: =F72*(Forecast!$AA$8/$F$2) -> 70.90670051 | AG72: =F72*(Forecast!$AB$8/$F$2) -> 71.32822704
A73: 2017-01-03T21:00:00 | B73: 26.72915268 | C73: 14.89807606 | D73: 14.80813408 | E73: 0 | F73: 56.43536282 | H73: =F73*(Forecast!$C$8/$F$2) -> 60.65483078 | I73: =F73*(Forecast!$D$8/$F$2) -> 61.26025167 | J73: =F73*(Forecast!$E$8/$F$2) -> 61.42784223 | K73: =F73*(Forecast!$F$8/$F$2) -> 61.67922806 | L73: =F73*(Forecast!$G$8/$F$2) -> 61.84681862 | M73: =F73*(Forecast!$H$8/$F$2) -> 62.09820446 | N73: =F73*(Forecast!$I$8/$F$2) -> 62.60097613 | O73: =F73*(Forecast!$J$8/$F$2) -> 63.01995252 | P73: =F73*(Forecast!$K$8/$F$2) -> 63.43892891 | Q73: =F73*(Forecast!$L$8/$F$2) -> 63.85790531 | R73: =F73*(Forecast!$M$8/$F$2) -> 64.2768817 | S73: =F73*(Forecast!$N$8/$F$2) -> 64.77965337 | T73: =F73*(Forecast!$O$8/$F$2) -> 65.19862976 | U73: =F73*(Forecast!$P$8/$F$2) -> 65.61760615 | V73: =F73*(Forecast!$Q$8/$F$2) -> 66.03658255 | W73: =F73*(Forecast!$R$8/$F$2) -> 66.53935422 | X73: =F73*(Forecast!$S$8/$F$2) -> 66.95833061 | Y73: =F73*(Forecast!$T$8/$F$2) -> 67.377307 | Z73: =F73*(Forecast!$U$8/$F$2) -> 67.7962834 | AA73: =F73*(Forecast!$V$8/$F$2) -> 68.29905507 | AB73: =F73*(Forecast!$W$8/$F$2) -> 68.71803146 | AC73: =F73*(Forecast!$X$8/$F$2) -> 69.13700785 | AD73: =F73*(Forecast!$Y$8/$F$2) -> 69.63977952 | AE73: =F73*(Forecast!$Z$8/$F$2) -> 70.05875591 | AF73: =F73*(Forecast!$AA$8/$F$2) -> 70.47773231 | AG73: =F73*(Forecast!$AB$8/$F$2) -> 70.8967087
A74: 2017-01-03T22:00:00 | B74: 26.69569206 | C74: 14.86457729 | D74: 14.77461338 | E74: 0 | F74: 56.33488274 | H74: =F74*(Forecast!$C$8/$F$2) -> 60.54683817 | I74: =F74*(Forecast!$D$8/$F$2) -> 61.15118114 | J74: =F74*(Forecast!$E$8/$F$2) -> 61.31847331 | K74: =F74*(Forecast!$F$8/$F$2) -> 61.56941157 | L74: =F74*(Forecast!$G$8/$F$2) -> 61.73670374 | M74: =F74*(Forecast!$H$8/$F$2) -> 61.987642 | N74: =F74*(Forecast!$I$8/$F$2) -> 62.48951851 | O74: =F74*(Forecast!$J$8/$F$2) -> 62.90774894 | P74: =F74*(Forecast!$K$8/$F$2) -> 63.32597937 | Q74: =F74*(Forecast!$L$8/$F$2) -> 63.74420979 | R74: =F74*(Forecast!$M$8/$F$2) -> 64.16244022 | S74: =F74*(Forecast!$N$8/$F$2) -> 64.66431674 | T74: =F74*(Forecast!$O$8/$F$2) -> 65.08254716 | U74: =F74*(Forecast!$P$8/$F$2) -> 65.50077759 | V74: =F74*(Forecast!$Q$8/$F$2) -> 65.91900802 | W74: =F74*(Forecast!$R$8/$F$2) -> 66.42088453 | X74: =F74*(Forecast!$S$8/$F$2) -> 66.83911496 | Y74: =F74*(Forecast!$T$8/$F$2) -> 67.25734539 | Z74: =F74*(Forecast!$U$8/$F$2) -> 67.67557582 | AA74: =F74*(Forecast!$V$8/$F$2) -> 68.17745233 | AB74: =F74*(Forecast!$W$8/$F$2) -> 68.59568276 | AC74: =F74*(Forecast!$X$8/$F$2) -> 69.01391319 | AD74: =F74*(Forecast!$Y$8/$F$2) -> 69.5157897 | AE74: =F74*(Forecast!$Z$8/$F$2) -> 69.93402013 | AF74: =F74*(Forecast!$AA$8/$F$2) -> 70.35225056 | AG74: =F74*(Forecast!$AB$8/$F$2) -> 70.77048098
A75: 2017-01-03T23:00:00 | B75: 26.28563118 | C75: 14.84206676 | D75: 14.70751286 | E75: 0 | F75: 55.8352108 | H75: =F75*(Forecast!$C$8/$F$2) -> 60.00980757 | I75: =F75*(Forecast!$D$8/$F$2) -> 60.60879022 | J75: =F75*(Forecast!$E$8/$F$2) -> 60.77459856 | K75: =F75*(Forecast!$F$8/$F$2) -> 61.02331108 | L75: =F75*(Forecast!$G$8/$F$2) -> 61.18911942 | M75: =F75*(Forecast!$H$8/$F$2) -> 61.43783194 | N75: =F75*(Forecast!$I$8/$F$2) -> 61.93525697 | O75: =F75*(Forecast!$J$8/$F$2) -> 62.34977783 | P75: =F75*(Forecast!$K$8/$F$2) -> 62.7642987 | Q75: =F75*(Forecast!$L$8/$F$2) -> 63.17881956 | R75: =F75*(Forecast!$M$8/$F$2) -> 63.59334042 | S75: =F75*(Forecast!$N$8/$F$2) -> 64.09076545 | T75: =F75*(Forecast!$O$8/$F$2) -> 64.50528631 | U75: =F75*(Forecast!$P$8/$F$2) -> 64.91980717 | V75: =F75*(Forecast!$Q$8/$F$2) -> 65.33432804 | W75: =F75*(Forecast!$R$8/$F$2) -> 65.83175307 | X75: =F75*(Forecast!$S$8/$F$2) -> 66.24627393 | Y75: =F75*(Forecast!$T$8/$F$2) -> 66.66079479 | Z75: =F75*(Forecast!$U$8/$F$2) -> 67.07531565 | AA75: =F75*(Forecast!$V$8/$F$2) -> 67.57274069 | AB75: =F75*(Forecast!$W$8/$F$2) -> 67.98726155 | AC75: =F75*(Forecast!$X$8/$F$2) -> 68.40178241 | AD75: =F75*(Forecast!$Y$8/$F$2) -> 68.89920744 | AE75: =F75*(Forecast!$Z$8/$F$2) -> 69.3137283 | AF75: =F75*(Forecast!$AA$8/$F$2) -> 69.72824916 | AG75: =F75*(Forecast!$AB$8/$F$2) -> 70.14277003
A76: 2017-01-04 | B76: 25.92563057 | C76: 14.8255024 | D76: 14.62217617 | E76: 0 | F76: 55.37330914 | H76: =F76*(Forecast!$C$8/$F$2) -> 59.51337119 | I76: =F76*(Forecast!$D$8/$F$2) -> 60.1073987 | J76: =F76*(Forecast!$E$8/$F$2) -> 60.27183538 | K76: =F76*(Forecast!$F$8/$F$2) -> 60.5184904 | L76: =F76*(Forecast!$G$8/$F$2) -> 60.68292708 | M76: =F76*(Forecast!$H$8/$F$2) -> 60.9295821 | N76: =F76*(Forecast!$I$8/$F$2) -> 61.42289214 | O76: =F76*(Forecast!$J$8/$F$2) -> 61.83398384 | P76: =F76*(Forecast!$K$8/$F$2) -> 62.24507555 | Q76: =F76*(Forecast!$L$8/$F$2) -> 62.65616725 | R76: =F76*(Forecast!$M$8/$F$2) -> 63.06725895 | S76: =F76*(Forecast!$N$8/$F$2) -> 63.56056899 | T76: =F76*(Forecast!$O$8/$F$2) -> 63.97166069 | U76: =F76*(Forecast!$P$8/$F$2) -> 64.38275239 | V76: =F76*(Forecast!$Q$8/$F$2) -> 64.79384409 | W76: =F76*(Forecast!$R$8/$F$2) -> 65.28715413 | X76: =F76*(Forecast!$S$8/$F$2) -> 65.69824583 | Y76: =F76*(Forecast!$T$8/$F$2) -> 66.10933754 | Z76: =F76*(Forecast!$U$8/$F$2) -> 66.52042924 | AA76: =F76*(Forecast!$V$8/$F$2) -> 67.01373928 | AB76: =F76*(Forecast!$W$8/$F$2) -> 67.42483098 | AC76: =F76*(Forecast!$X$8/$F$2) -> 67.83592268 | AD76: =F76*(Forecast!$Y$8/$F$2) -> 68.32923272 | AE76: =F76*(Forecast!$Z$8/$F$2) -> 68.74032442 | AF76: =F76*(Forecast!$AA$8/$F$2) -> 69.15141612 | AG76: =F76*(Forecast!$AB$8/$F$2) -> 69.56250783
A77: 2017-01-04T01:00:00 | B77: 25.93134689 | C77: 14.80893803 | D77: 14.53684044 | E77: 0 | F77: 55.27712536 | H77: =F77*(Forecast!$C$8/$F$2) -> 59.4099961 | I77: =F77*(Forecast!$D$8/$F$2) -> 60.00299178 | J77: =F77*(Forecast!$E$8/$F$2) -> 60.16714283 | K77: =F77*(Forecast!$F$8/$F$2) -> 60.41336941 | L77: =F77*(Forecast!$G$8/$F$2) -> 60.57752047 | M77: =F77*(Forecast!$H$8/$F$2) -> 60.82374704 | N77: =F77*(Forecast!$I$8/$F$2) -> 61.3162002 | O77: =F77*(Forecast!$J$8/$F$2) -> 61.72657784 | P77: =F77*(Forecast!$K$8/$F$2) -> 62.13695547 | Q77: =F77*(Forecast!$L$8/$F$2) -> 62.5473331 | R77: =F77*(Forecast!$M$8/$F$2) -> 62.95771073 | S77: =F77*(Forecast!$N$8/$F$2) -> 63.45016389 | T77: =F77*(Forecast!$O$8/$F$2) -> 63.86054152 | U77: =F77*(Forecast!$P$8/$F$2) -> 64.27091916 | V77: =F77*(Forecast!$Q$8/$F$2) -> 64.68129679 | W77: =F77*(Forecast!$R$8/$F$2) -> 65.17374995 | X77: =F77*(Forecast!$S$8/$F$2) -> 65.58412758 | Y77: =F77*(Forecast!$T$8/$F$2) -> 65.99450521 | Z77: =F77*(Forecast!$U$8/$F$2) -> 66.40488284 | AA77: =F77*(Forecast!$V$8/$F$2) -> 66.897336 | AB77: =F77*(Forecast!$W$8/$F$2) -> 67.30771364 | AC77: =F77*(Forecast!$X$8/$F$2) -> 67.71809127 | AD77: =F77*(Forecast!$Y$8/$F$2) -> 68.21054443 | AE77: =F77*(Forecast!$Z$8/$F$2) -> 68.62092206 | AF77: =F77*(Forecast!$AA$8/$F$2) -> 69.03129969 | AG77: =F77*(Forecast!$AB$8/$F$2) -> 69.44167732
A78: 2017-01-04T02:00:00 | B78: 26.01774406 | C78: 14.79237366 | D78: 14.45150375 | E78: 0 | F78: 55.26162148 | H78: =F78*(Forecast!$C$8/$F$2) -> 59.39333305 | I78: =F78*(Forecast!$D$8/$F$2) -> 59.98616241 | J78: =F78*(Forecast!$E$8/$F$2) -> 60.15026742 | K78: =F78*(Forecast!$F$8/$F$2) -> 60.39642494 | L78: =F78*(Forecast!$G$8/$F$2) -> 60.56052995 | M78: =F78*(Forecast!$H$8/$F$2) -> 60.80668747 | N78: =F78*(Forecast!$I$8/$F$2) -> 61.29900251 | O78: =F78*(Forecast!$J$8/$F$2) -> 61.70926504 | P78: =F78*(Forecast!$K$8/$F$2) -> 62.11952757 | Q78: =F78*(Forecast!$L$8/$F$2) -> 62.5297901 | R78: =F78*(Forecast!$M$8/$F$2) -> 62.94005263 | S78: =F78*(Forecast!$N$8/$F$2) -> 63.43236767 | T78: =F78*(Forecast!$O$8/$F$2) -> 63.8426302 | U78: =F78*(Forecast!$P$8/$F$2) -> 64.25289273 | V78: =F78*(Forecast!$Q$8/$F$2) -> 64.66315526 | W78: =F78*(Forecast!$R$8/$F$2) -> 65.1554703 | X78: =F78*(Forecast!$S$8/$F$2) -> 65.56573283 | Y78: =F78*(Forecast!$T$8/$F$2) -> 65.97599537 | Z78: =F78*(Forecast!$U$8/$F$2) -> 66.3862579 | AA78: =F78*(Forecast!$V$8/$F$2) -> 66.87857293 | AB78: =F78*(Forecast!$W$8/$F$2) -> 67.28883547 | AC78: =F78*(Forecast!$X$8/$F$2) -> 67.699098 | AD78: =F78*(Forecast!$Y$8/$F$2) -> 68.19141304 | AE78: =F78*(Forecast!$Z$8/$F$2) -> 68.60167557 | AF78: =F78*(Forecast!$AA$8/$F$2) -> 69.0119381 | AG78: =F78*(Forecast!$AB$8/$F$2) -> 69.42220063
A79: 2017-01-04T03:00:00 | B79: 25.8344593 | C79: 14.77580929 | D79: 14.31445217 | E79: 0 | F79: 54.92472076 | H79: =F79*(Forecast!$C$8/$F$2) -> 59.03124349 | I79: =F79*(Forecast!$D$8/$F$2) -> 59.62045868 | J79: =F79*(Forecast!$E$8/$F$2) -> 59.78356323 | K79: =F79*(Forecast!$F$8/$F$2) -> 60.02822006 | L79: =F79*(Forecast!$G$8/$F$2) -> 60.19132461 | M79: =F79*(Forecast!$H$8/$F$2) -> 60.43598144 | N79: =F79*(Forecast!$I$8/$F$2) -> 60.9252951 | O79: =F79*(Forecast!$J$8/$F$2) -> 61.33305647 | P79: =F79*(Forecast!$K$8/$F$2) -> 61.74081785 | Q79: =F79*(Forecast!$L$8/$F$2) -> 62.14857923 | R79: =F79*(Forecast!$M$8/$F$2) -> 62.55634061 | S79: =F79*(Forecast!$N$8/$F$2) -> 63.04565427 | T79: =F79*(Forecast!$O$8/$F$2) -> 63.45341565 | U79: =F79*(Forecast!$P$8/$F$2) -> 63.86117702 | V79: =F79*(Forecast!$Q$8/$F$2) -> 64.2689384 | W79: =F79*(Forecast!$R$8/$F$2) -> 64.75825206 | X79: =F79*(Forecast!$S$8/$F$2) -> 65.16601344 | Y79: =F79*(Forecast!$T$8/$F$2) -> 65.57377482 | Z79: =F79*(Forecast!$U$8/$F$2) -> 65.9815362 | AA79: =F79*(Forecast!$V$8/$F$2) -> 66.47084985 | AB79: =F79*(Forecast!$W$8/$F$2) -> 66.87861123 | AC79: =F79*(Forecast!$X$8/$F$2) -> 67.28637261 | AD79: =F79*(Forecast!$Y$8/$F$2) -> 67.77568626 | AE79: =F79*(Forecast!$Z$8/$F$2) -> 68.18344764 | AF79: =F79*(Forecast!$AA$8/$F$2) -> 68.59120902 | AG79: =F79*(Forecast!$AB$8/$F$2) -> 68.9989704
A80: 2017-01-04T04:00:00 | B80: 26.28953552 | C80: 14.80102921 | D80: 14.55595493 | E80: 0 | F80: 55.64651966 | H80: =F80*(Forecast!$C$8/$F$2) -> 59.80700868 | I80: =F80*(Forecast!$D$8/$F$2) -> 60.4039671 | J80: =F80*(Forecast!$E$8/$F$2) -> 60.56921511 | K80: =F80*(Forecast!$F$8/$F$2) -> 60.81708712 | L80: =F80*(Forecast!$G$8/$F$2) -> 60.98233513 | M80: =F80*(Forecast!$H$8/$F$2) -> 61.23020714 | N80: =F80*(Forecast!$I$8/$F$2) -> 61.72595116 | O80: =F80*(Forecast!$J$8/$F$2) -> 62.13907118 | P80: =F80*(Forecast!$K$8/$F$2) -> 62.55219119 | Q80: =F80*(Forecast!$L$8/$F$2) -> 62.96531121 | R80: =F80*(Forecast!$M$8/$F$2) -> 63.37843123 | S80: =F80*(Forecast!$N$8/$F$2) -> 63.87417525 | T80: =F80*(Forecast!$O$8/$F$2) -> 64.28729527 | U80: =F80*(Forecast!$P$8/$F$2) -> 64.70041528 | V80: =F80*(Forecast!$Q$8/$F$2) -> 65.1135353 | W80: =F80*(Forecast!$R$8/$F$2) -> 65.60927932 | X80: =F80*(Forecast!$S$8/$F$2) -> 66.02239934 | Y80: =F80*(Forecast!$T$8/$F$2) -> 66.43551936 | Z80: =F80*(Forecast!$U$8/$F$2) -> 66.84863938 | AA80: =F80*(Forecast!$V$8/$F$2) -> 67.3443834 | AB80: =F80*(Forecast!$W$8/$F$2) -> 67.75750341 | AC80: =F80*(Forecast!$X$8/$F$2) -> 68.17062343 | AD80: =F80*(Forecast!$Y$8/$F$2) -> 68.66636745 | AE80: =F80*(Forecast!$Z$8/$F$2) -> 69.07948747 | AF80: =F80*(Forecast!$AA$8/$F$2) -> 69.49260749 | AG80: =F80*(Forecast!$AB$8/$F$2) -> 69.9057275
A81: 2017-01-04T05:00:00 | B81: 26.53868294 | C81: 14.97831154 | D81: 14.7974577 | E81: 0 | F81: 56.31445217 | H81: =F81*(Forecast!$C$8/$F$2) -> 60.52488009 | I81: =F81*(Forecast!$D$8/$F$2) -> 61.12900388 | J81: =F81*(Forecast!$E$8/$F$2) -> 61.29623538 | K81: =F81*(Forecast!$F$8/$F$2) -> 61.54708264 | L81: =F81*(Forecast!$G$8/$F$2) -> 61.71431414 | M81: =F81*(Forecast!$H$8/$F$2) -> 61.96516139 | N81: =F81*(Forecast!$I$8/$F$2) -> 62.46685589 | O81: =F81*(Forecast!$J$8/$F$2) -> 62.88493464 | P81: =F81*(Forecast!$K$8/$F$2) -> 63.30301339 | Q81: =F81*(Forecast!$L$8/$F$2) -> 63.72109214 | R81: =F81*(Forecast!$M$8/$F$2) -> 64.13917089 | S81: =F81*(Forecast!$N$8/$F$2) -> 64.6408654 | T81: =F81*(Forecast!$O$8/$F$2) -> 65.05894415 | U81: =F81*(Forecast!$P$8/$F$2) -> 65.4770229 | V81: =F81*(Forecast!$Q$8/$F$2) -> 65.89510165 | W81: =F81*(Forecast!$R$8/$F$2) -> 66.39679615 | X81: =F81*(Forecast!$S$8/$F$2) -> 66.8148749 | Y81: =F81*(Forecast!$T$8/$F$2) -> 67.23295365 | Z81: =F81*(Forecast!$U$8/$F$2) -> 67.65103241 | AA81: =F81*(Forecast!$V$8/$F$2) -> 68.15272691 | AB81: =F81*(Forecast!$W$8/$F$2) -> 68.57080566 | AC81: =F81*(Forecast!$X$8/$F$2) -> 68.98888441 | AD81: =F81*(Forecast!$Y$8/$F$2) -> 69.49057891 | AE81: =F81*(Forecast!$Z$8/$F$2) -> 69.90865766 | AF81: =F81*(Forecast!$AA$8/$F$2) -> 70.32673641 | AG81: =F81*(Forecast!$AB$8/$F$2) -> 70.74481517
A82: 2017-01-04T06:00:00 | B82: 26.82563019 | C82: 15.15559292 | D82: 15.03896046 | E82: 0.000237445216 | F82: 57.02042101 | H82: =F82*(Forecast!$C$8/$F$2) -> 61.28363166 | I82: =F82*(Forecast!$D$8/$F$2) -> 61.89532887 | J82: =F82*(Forecast!$E$8/$F$2) -> 62.06465682 | K82: =F82*(Forecast!$F$8/$F$2) -> 62.31864874 | L82: =F82*(Forecast!$G$8/$F$2) -> 62.48797668 | M82: =F82*(Forecast!$H$8/$F$2) -> 62.7419686 | N82: =F82*(Forecast!$I$8/$F$2) -> 63.24995245 | O82: =F82*(Forecast!$J$8/$F$2) -> 63.67327231 | P82: =F82*(Forecast!$K$8/$F$2) -> 64.09659218 | Q82: =F82*(Forecast!$L$8/$F$2) -> 64.51991205 | R82: =F82*(Forecast!$M$8/$F$2) -> 64.94323191 | S82: =F82*(Forecast!$N$8/$F$2) -> 65.45121575 | T82: =F82*(Forecast!$O$8/$F$2) -> 65.87453562 | U82: =F82*(Forecast!$P$8/$F$2) -> 66.29785549 | V82: =F82*(Forecast!$Q$8/$F$2) -> 66.72117536 | W82: =F82*(Forecast!$R$8/$F$2) -> 67.2291592 | X82: =F82*(Forecast!$S$8/$F$2) -> 67.65247906 | Y82: =F82*(Forecast!$T$8/$F$2) -> 68.07579893 | Z82: =F82*(Forecast!$U$8/$F$2) -> 68.4991188 | AA82: =F82*(Forecast!$V$8/$F$2) -> 69.00710264 | AB82: =F82*(Forecast!$W$8/$F$2) -> 69.43042251 | AC82: =F82*(Forecast!$X$8/$F$2) -> 69.85374237 | AD82: =F82*(Forecast!$Y$8/$F$2) -> 70.36172621 | AE82: =F82*(Forecast!$Z$8/$F$2) -> 70.78504608 | AF82: =F82*(Forecast!$AA$8/$F$2) -> 71.20836595 | AG82: =F82*(Forecast!$AB$8/$F$2) -> 71.63168582
A83: 2017-01-04T07:00:00 | B83: 28.1176548 | C83: 15.64131546 | D83: 15.70950794 | E83: 0.0005687641096 | F83: 59.46904697 | H83: =F83*(Forecast!$C$8/$F$2) -> 63.91533253 | I83: =F83*(Forecast!$D$8/$F$2) -> 64.55329783 | J83: =F83*(Forecast!$E$8/$F$2) -> 64.72989722 | K83: =F83*(Forecast!$F$8/$F$2) -> 64.99479631 | L83: =F83*(Forecast!$G$8/$F$2) -> 65.1713957 | M83: =F83*(Forecast!$H$8/$F$2) -> 65.43629478 | N83: =F83*(Forecast!$I$8/$F$2) -> 65.96609296 | O83: =F83*(Forecast!$J$8/$F$2) -> 66.40759143 | P83: =F83*(Forecast!$K$8/$F$2) -> 66.84908991 | Q83: =F83*(Forecast!$L$8/$F$2) -> 67.29058839 | R83: =F83*(Forecast!$M$8/$F$2) -> 67.73208687 | S83: =F83*(Forecast!$N$8/$F$2) -> 68.26188504 | T83: =F83*(Forecast!$O$8/$F$2) -> 68.70338352 | U83: =F83*(Forecast!$P$8/$F$2) -> 69.14488199 | V83: =F83*(Forecast!$Q$8/$F$2) -> 69.58638047 | W83: =F83*(Forecast!$R$8/$F$2) -> 70.11617865 | X83: =F83*(Forecast!$S$8/$F$2) -> 70.55767712 | Y83: =F83*(Forecast!$T$8/$F$2) -> 70.9991756 | Z83: =F83*(Forecast!$U$8/$F$2) -> 71.44067408 | AA83: =F83*(Forecast!$V$8/$F$2) -> 71.97047225 | AB83: =F83*(Forecast!$W$8/$F$2) -> 72.41197073 | AC83: =F83*(Forecast!$X$8/$F$2) -> 72.85346921 | AD83: =F83*(Forecast!$Y$8/$F$2) -> 73.38326738 | AE83: =F83*(Forecast!$Z$8/$F$2) -> 73.82476586 | AF83: =F83*(Forecast!$AA$8/$F$2) -> 74.26626433 | AG83: =F83*(Forecast!$AB$8/$F$2) -> 74.70776281
A84: 2017-01-04T08:00:00 | B84: 29.98998642 | C84: 16.81089401 | D84: 16.54601669 | E84: 0.0009000830469 | F84: 63.34779721 | H84: =F84*(Forecast!$C$8/$F$2) -> 68.0840829 | I84: =F84*(Forecast!$D$8/$F$2) -> 68.76365821 | J84: =F84*(Forecast!$E$8/$F$2) -> 68.95177595 | K84: =F84*(Forecast!$F$8/$F$2) -> 69.23395255 | L84: =F84*(Forecast!$G$8/$F$2) -> 69.42207029 | M84: =F84*(Forecast!$H$8/$F$2) -> 69.70424689 | N84: =F84*(Forecast!$I$8/$F$2) -> 70.26860009 | O84: =F84*(Forecast!$J$8/$F$2) -> 70.73889443 | P84: =F84*(Forecast!$K$8/$F$2) -> 71.20918877 | Q84: =F84*(Forecast!$L$8/$F$2) -> 71.6794831 | R84: =F84*(Forecast!$M$8/$F$2) -> 72.14977744 | S84: =F84*(Forecast!$N$8/$F$2) -> 72.71413065 | T84: =F84*(Forecast!$O$8/$F$2) -> 73.18442498 | U84: =F84*(Forecast!$P$8/$F$2) -> 73.65471932 | V84: =F84*(Forecast!$Q$8/$F$2) -> 74.12501366 | W84: =F84*(Forecast!$R$8/$F$2) -> 74.68936686 | X84: =F84*(Forecast!$S$8/$F$2) -> 75.1596612 | Y84: =F84*(Forecast!$T$8/$F$2) -> 75.62995554 | Z84: =F84*(Forecast!$U$8/$F$2) -> 76.10024987 | AA84: =F84*(Forecast!$V$8/$F$2) -> 76.66460308 | AB84: =F84*(Forecast!$W$8/$F$2) -> 77.13489742 | AC84: =F84*(Forecast!$X$8/$F$2) -> 77.60519175 | AD84: =F84*(Forecast!$Y$8/$F$2) -> 78.16954496 | AE84: =F84*(Forecast!$Z$8/$F$2) -> 78.63983929 | AF84: =F84*(Forecast!$AA$8/$F$2) -> 79.11013363 | AG84: =F84*(Forecast!$AB$8/$F$2) -> 79.58042797
A85: 2017-01-04T09:00:00 | B85: 30.21087265 | C85: 16.79135704 | D85: 16.43444633 | E85: 0.001231401926 | F85: 63.43790743 | H85: =F85*(Forecast!$C$8/$F$2) -> 68.18093033 | I85: =F85*(Forecast!$D$8/$F$2) -> 68.86147232 | J85: =F85*(Forecast!$E$8/$F$2) -> 69.04985765 | K85: =F85*(Forecast!$F$8/$F$2) -> 69.33243564 | L85: =F85*(Forecast!$G$8/$F$2) -> 69.52082096 | M85: =F85*(Forecast!$H$8/$F$2) -> 69.80339895 | N85: =F85*(Forecast!$I$8/$F$2) -> 70.36855493 | O85: =F85*(Forecast!$J$8/$F$2) -> 70.83951825 | P85: =F85*(Forecast!$K$8/$F$2) -> 71.31048156 | Q85: =F85*(Forecast!$L$8/$F$2) -> 71.78144488 | R85: =F85*(Forecast!$M$8/$F$2) -> 72.2524082 | S85: =F85*(Forecast!$N$8/$F$2) -> 72.81756417 | T85: =F85*(Forecast!$O$8/$F$2) -> 73.28852749 | U85: =F85*(Forecast!$P$8/$F$2) -> 73.75949081 | V85: =F85*(Forecast!$Q$8/$F$2) -> 74.23045412 | W85: =F85*(Forecast!$R$8/$F$2) -> 74.7956101 | X85: =F85*(Forecast!$S$8/$F$2) -> 75.26657342 | Y85: =F85*(Forecast!$T$8/$F$2) -> 75.73753673 | Z85: =F85*(Forecast!$U$8/$F$2) -> 76.20850005 | AA85: =F85*(Forecast!$V$8/$F$2) -> 76.77365603 | AB85: =F85*(Forecast!$W$8/$F$2) -> 77.24461934 | AC85: =F85*(Forecast!$X$8/$F$2) -> 77.71558266 | AD85: =F85*(Forecast!$Y$8/$F$2) -> 78.28073864 | AE85: =F85*(Forecast!$Z$8/$F$2) -> 78.75170195 | AF85: =F85*(Forecast!$AA$8/$F$2) -> 79.22266527 | AG85: =F85*(Forecast!$AB$8/$F$2) -> 79.69362859
A86: 2017-01-04T10:00:00 | B86: 29.80814552 | C86: 16.56281471 | D86: 16.38281441 | E86: 0.001562720863 | F86: 62.75533736 | H86: =F86*(Forecast!$C$8/$F$2) -> 67.44732697 | I86: =F86*(Forecast!$D$8/$F$2) -> 68.12054657 | J86: =F86*(Forecast!$E$8/$F$2) -> 68.30690493 | K86: =F86*(Forecast!$F$8/$F$2) -> 68.58644248 | L86: =F86*(Forecast!$G$8/$F$2) -> 68.77280084 | M86: =F86*(Forecast!$H$8/$F$2) -> 69.05233839 | N86: =F86*(Forecast!$I$8/$F$2) -> 69.61141349 | O86: =F86*(Forecast!$J$8/$F$2) -> 70.0773094 | P86: =F86*(Forecast!$K$8/$F$2) -> 70.54320531 | Q86: =F86*(Forecast!$L$8/$F$2) -> 71.00910122 | R86: =F86*(Forecast!$M$8/$F$2) -> 71.47499714 | S86: =F86*(Forecast!$N$8/$F$2) -> 72.03407223 | T86: =F86*(Forecast!$O$8/$F$2) -> 72.49996814 | U86: =F86*(Forecast!$P$8/$F$2) -> 72.96586406 | V86: =F86*(Forecast!$Q$8/$F$2) -> 73.43175997 | W86: =F86*(Forecast!$R$8/$F$2) -> 73.99083506 | X86: =F86*(Forecast!$S$8/$F$2) -> 74.45673098 | Y86: =F86*(Forecast!$T$8/$F$2) -> 74.92262689 | Z86: =F86*(Forecast!$U$8/$F$2) -> 75.3885228 | AA86: =F86*(Forecast!$V$8/$F$2) -> 75.9475979 | AB86: =F86*(Forecast!$W$8/$F$2) -> 76.41349381 | AC86: =F86*(Forecast!$X$8/$F$2) -> 76.87938972 | AD86: =F86*(Forecast!$Y$8/$F$2) -> 77.43846482 | AE86: =F86*(Forecast!$Z$8/$F$2) -> 77.90436073 | AF86: =F86*(Forecast!$AA$8/$F$2) -> 78.37025664 | AG86: =F86*(Forecast!$AB$8/$F$2) -> 78.83615255
A87: 2017-01-04T11:00:00 | B87: 29.26884651 | C87: 16.37334061 | D87: 16.32461548 | E87: 0.0018940398 | F87: 61.96869664 | H87: =F87*(Forecast!$C$8/$F$2) -> 66.60187196 | I87: =F87*(Forecast!$D$8/$F$2) -> 67.26665272 | J87: =F87*(Forecast!$E$8/$F$2) -> 67.45067508 | K87: =F87*(Forecast!$F$8/$F$2) -> 67.72670861 | L87: =F87*(Forecast!$G$8/$F$2) -> 67.91073096 | M87: =F87*(Forecast!$H$8/$F$2) -> 68.1867645 | N87: =F87*(Forecast!$I$8/$F$2) -> 68.73883156 | O87: =F87*(Forecast!$J$8/$F$2) -> 69.19888745 | P87: =F87*(Forecast!$K$8/$F$2) -> 69.65894334 | Q87: =F87*(Forecast!$L$8/$F$2) -> 70.11899923 | R87: =F87*(Forecast!$M$8/$F$2) -> 70.57905512 | S87: =F87*(Forecast!$N$8/$F$2) -> 71.13112218 | T87: =F87*(Forecast!$O$8/$F$2) -> 71.59117807 | U87: =F87*(Forecast!$P$8/$F$2) -> 72.05123396 | V87: =F87*(Forecast!$Q$8/$F$2) -> 72.51128985 | W87: =F87*(Forecast!$R$8/$F$2) -> 73.06335691 | X87: =F87*(Forecast!$S$8/$F$2) -> 73.5234128 | Y87: =F87*(Forecast!$T$8/$F$2) -> 73.98346869 | Z87: =F87*(Forecast!$U$8/$F$2) -> 74.44352458 | AA87: =F87*(Forecast!$V$8/$F$2) -> 74.99559164 | AB87: =F87*(Forecast!$W$8/$F$2) -> 75.45564753 | AC87: =F87*(Forecast!$X$8/$F$2) -> 75.91570342 | AD87: =F87*(Forecast!$Y$8/$F$2) -> 76.46777049 | AE87: =F87*(Forecast!$Z$8/$F$2) -> 76.92782637 | AF87: =F87*(Forecast!$AA$8/$F$2) -> 77.38788226 | AG87: =F87*(Forecast!$AB$8/$F$2) -> 77.84793815
A88: 2017-01-04T12:00:00 | B88: 28.96483231 | C88: 16.14237785 | D88: 16.04658127 | E88: 0.001597165596 | F88: 61.15538859 | H88: =F88*(Forecast!$C$8/$F$2) -> 65.72775582 | I88: =F88*(Forecast!$D$8/$F$2) -> 66.38381166 | J88: =F88*(Forecast!$E$8/$F$2) -> 66.56541882 | K88: =F88*(Forecast!$F$8/$F$2) -> 66.83782955 | L88: =F88*(Forecast!$G$8/$F$2) -> 67.0194367 | M88: =F88*(Forecast!$H$8/$F$2) -> 67.29184743 | N88: =F88*(Forecast!$I$8/$F$2) -> 67.8366689 | O88: =F88*(Forecast!$J$8/$F$2) -> 68.29068678 | P88: =F88*(Forecast!$K$8/$F$2) -> 68.74470467 | Q88: =F88*(Forecast!$L$8/$F$2) -> 69.19872255 | R88: =F88*(Forecast!$M$8/$F$2) -> 69.65274044 | S88: =F88*(Forecast!$N$8/$F$2) -> 70.1975619 | T88: =F88*(Forecast!$O$8/$F$2) -> 70.65157979 | U88: =F88*(Forecast!$P$8/$F$2) -> 71.10559767 | V88: =F88*(Forecast!$Q$8/$F$2) -> 71.55961556 | W88: =F88*(Forecast!$R$8/$F$2) -> 72.10443702 | X88: =F88*(Forecast!$S$8/$F$2) -> 72.55845491 | Y88: =F88*(Forecast!$T$8/$F$2) -> 73.01247279 | Z88: =F88*(Forecast!$U$8/$F$2) -> 73.46649068 | AA88: =F88*(Forecast!$V$8/$F$2) -> 74.01131214 | AB88: =F88*(Forecast!$W$8/$F$2) -> 74.46533003 | AC88: =F88*(Forecast!$X$8/$F$2) -> 74.91934791 | AD88: =F88*(Forecast!$Y$8/$F$2) -> 75.46416937 | AE88: =F88*(Forecast!$Z$8/$F$2) -> 75.91818726 | AF88: =F88*(Forecast!$AA$8/$F$2) -> 76.37220515 | AG88: =F88*(Forecast!$AB$8/$F$2) -> 76.82622303
A89: 2017-01-04T13:00:00 | B89: 28.85440254 | C89: 16.06095123 | D89: 15.90430832 | E89: 0.001156500657 | F89: 60.82081859 | H89: =F89*(Forecast!$C$8/$F$2) -> 65.36817123 | I89: =F89*(Forecast!$D$8/$F$2) -> 66.02063791 | J89: =F89*(Forecast!$E$8/$F$2) -> 66.20125153 | K89: =F89*(Forecast!$F$8/$F$2) -> 66.47217195 | L89: =F89*(Forecast!$G$8/$F$2) -> 66.65278556 | M89: =F89*(Forecast!$H$8/$F$2) -> 66.92370599 | N89: =F89*(Forecast!$I$8/$F$2) -> 67.46554683 | O89: =F89*(Forecast!$J$8/$F$2) -> 67.91708087 | P89: =F89*(Forecast!$K$8/$F$2) -> 68.3686149 | Q89: =F89*(Forecast!$L$8/$F$2) -> 68.82014894 | R89: =F89*(Forecast!$M$8/$F$2) -> 69.27168298 | S89: =F89*(Forecast!$N$8/$F$2) -> 69.81352382 | T89: =F89*(Forecast!$O$8/$F$2) -> 70.26505786 | U89: =F89*(Forecast!$P$8/$F$2) -> 70.71659189 | V89: =F89*(Forecast!$Q$8/$F$2) -> 71.16812593 | W89: =F89*(Forecast!$R$8/$F$2) -> 71.70996677 | X89: =F89*(Forecast!$S$8/$F$2) -> 72.16150081 | Y89: =F89*(Forecast!$T$8/$F$2) -> 72.61303484 | Z89: =F89*(Forecast!$U$8/$F$2) -> 73.06456888 | AA89: =F89*(Forecast!$V$8/$F$2) -> 73.60640972 | AB89: =F89*(Forecast!$W$8/$F$2) -> 74.05794376 | AC89: =F89*(Forecast!$X$8/$F$2) -> 74.5094778 | AD89: =F89*(Forecast!$Y$8/$F$2) -> 75.05131864 | AE89: =F89*(Forecast!$Z$8/$F$2) -> 75.50285268 | AF89: =F89*(Forecast!$AA$8/$F$2) -> 75.95438671 | AG89: =F89*(Forecast!$AB$8/$F$2) -> 76.40592075
A90: 2017-01-04T14:00:00 | B90: 28.56192017 | C90: 16.0142746 | D90: 15.77655792 | E90: 0.0007158357184 | F90: 60.35346852 | H90: =F90*(Forecast!$C$8/$F$2) -> 64.86587908 | I90: =F90*(Forecast!$D$8/$F$2) -> 65.51333218 | J90: =F90*(Forecast!$E$8/$F$2) -> 65.69255795 | K90: =F90*(Forecast!$F$8/$F$2) -> 65.96139661 | L90: =F90*(Forecast!$G$8/$F$2) -> 66.14062238 | M90: =F90*(Forecast!$H$8/$F$2) -> 66.40946103 | N90: =F90*(Forecast!$I$8/$F$2) -> 66.94713835 | O90: =F90*(Forecast!$J$8/$F$2) -> 67.39520277 | P90: =F90*(Forecast!$K$8/$F$2) -> 67.8432672 | Q90: =F90*(Forecast!$L$8/$F$2) -> 68.29133163 | R90: =F90*(Forecast!$M$8/$F$2) -> 68.73939606 | S90: =F90*(Forecast!$N$8/$F$2) -> 69.27707337 | T90: =F90*(Forecast!$O$8/$F$2) -> 69.7251378 | U90: =F90*(Forecast!$P$8/$F$2) -> 70.17320222 | V90: =F90*(Forecast!$Q$8/$F$2) -> 70.62126665 | W90: =F90*(Forecast!$R$8/$F$2) -> 71.15894396 | X90: =F90*(Forecast!$S$8/$F$2) -> 71.60700839 | Y90: =F90*(Forecast!$T$8/$F$2) -> 72.05507282 | Z90: =F90*(Forecast!$U$8/$F$2) -> 72.50313725 | AA90: =F90*(Forecast!$V$8/$F$2) -> 73.04081456 | AB90: =F90*(Forecast!$W$8/$F$2) -> 73.48887899 | AC90: =F90*(Forecast!$X$8/$F$2) -> 73.93694341 | AD90: =F90*(Forecast!$Y$8/$F$2) -> 74.47462073 | AE90: =F90*(Forecast!$Z$8/$F$2) -> 74.92268515 | AF90: =F90*(Forecast!$AA$8/$F$2) -> 75.37074958 | AG90: =F90*(Forecast!$AB$8/$F$2) -> 75.81881401
A91: 2017-01-04T15:00:00 | B91: 28.55669594 | C91: 16.02021408 | D91: 15.62342644 | E91: 0.0002751707798 | F91: 60.20061163 | H91: =F91*(Forecast!$C$8/$F$2) -> 64.70159363 | I91: =F91*(Forecast!$D$8/$F$2) -> 65.34740693 | J91: =F91*(Forecast!$E$8/$F$2) -> 65.52617877 | K91: =F91*(Forecast!$F$8/$F$2) -> 65.79433654 | L91: =F91*(Forecast!$G$8/$F$2) -> 65.97310839 | M91: =F91*(Forecast!$H$8/$F$2) -> 66.24126616 | N91: =F91*(Forecast!$I$8/$F$2) -> 66.7775817 | O91: =F91*(Forecast!$J$8/$F$2) -> 67.22451132 | P91: =F91*(Forecast!$K$8/$F$2) -> 67.67144094 | Q91: =F91*(Forecast!$L$8/$F$2) -> 68.11837055 | R91: =F91*(Forecast!$M$8/$F$2) -> 68.56530017 | S91: =F91*(Forecast!$N$8/$F$2) -> 69.10161571 | T91: =F91*(Forecast!$O$8/$F$2) -> 69.54854533 | U91: =F91*(Forecast!$P$8/$F$2) -> 69.99547494 | V91: =F91*(Forecast!$Q$8/$F$2) -> 70.44240456 | W91: =F91*(Forecast!$R$8/$F$2) -> 70.9787201 | X91: =F91*(Forecast!$S$8/$F$2) -> 71.42564972 | Y91: =F91*(Forecast!$T$8/$F$2) -> 71.87257934 | Z91: =F91*(Forecast!$U$8/$F$2) -> 72.31950895 | AA91: =F91*(Forecast!$V$8/$F$2) -> 72.85582449 | AB91: =F91*(Forecast!$W$8/$F$2) -> 73.30275411 | AC91: =F91*(Forecast!$X$8/$F$2) -> 73.74968373 | AD91: =F91*(Forecast!$Y$8/$F$2) -> 74.28599927 | AE91: =F91*(Forecast!$Z$8/$F$2) -> 74.73292888 | AF91: =F91*(Forecast!$AA$8/$F$2) -> 75.1798585 | AG91: =F91*(Forecast!$AB$8/$F$2) -> 75.62678812
A92: 2017-01-04T16:00:00 | B92: 28.35785294 | C92: 15.98641109 | D92: 15.91540909 | E92: 0.001953125 | F92: 60.26162624 | H92: =F92*(Forecast!$C$8/$F$2) -> 64.76717009 | I92: =F92*(Forecast!$D$8/$F$2) -> 65.41363793 | J92: =F92*(Forecast!$E$8/$F$2) -> 65.59259097 | K92: =F92*(Forecast!$F$8/$F$2) -> 65.86102052 | L92: =F92*(Forecast!$G$8/$F$2) -> 66.03997356 | M92: =F92*(Forecast!$H$8/$F$2) -> 66.30840311 | N92: =F92*(Forecast!$I$8/$F$2) -> 66.84526222 | O92: =F92*(Forecast!$J$8/$F$2) -> 67.29264481 | P92: =F92*(Forecast!$K$8/$F$2) -> 67.7400274 | Q92: =F92*(Forecast!$L$8/$F$2) -> 68.18740999 | R92: =F92*(Forecast!$M$8/$F$2) -> 68.63479258 | S92: =F92*(Forecast!$N$8/$F$2) -> 69.17165169 | T92: =F92*(Forecast!$O$8/$F$2) -> 69.61903428 | U92: =F92*(Forecast!$P$8/$F$2) -> 70.06641687 | V92: =F92*(Forecast!$Q$8/$F$2) -> 70.51379946 | W92: =F92*(Forecast!$R$8/$F$2) -> 71.05065856 | X92: =F92*(Forecast!$S$8/$F$2) -> 71.49804115 | Y92: =F92*(Forecast!$T$8/$F$2) -> 71.94542374 | Z92: =F92*(Forecast!$U$8/$F$2) -> 72.39280633 | AA92: =F92*(Forecast!$V$8/$F$2) -> 72.92966544 | AB92: =F92*(Forecast!$W$8/$F$2) -> 73.37704803 | AC92: =F92*(Forecast!$X$8/$F$2) -> 73.82443062 | AD92: =F92*(Forecast!$Y$8/$F$2) -> 74.36128973 | AE92: =F92*(Forecast!$Z$8/$F$2) -> 74.80867232 | AF92: =F92*(Forecast!$AA$8/$F$2) -> 75.25605491 | AG92: =F92*(Forecast!$AB$8/$F$2) -> 75.7034375
A93: 2017-01-04T17:00:00 | B93: 29.16563034 | C93: 16.23090553 | D93: 16.08617592 | E93: 0.001953125 | F93: 61.48466492 | H93: =F93*(Forecast!$C$8/$F$2) -> 66.08165094 | I93: =F93*(Forecast!$D$8/$F$2) -> 66.74123916 | J93: =F93*(Forecast!$E$8/$F$2) -> 66.92382413 | K93: =F93*(Forecast!$F$8/$F$2) -> 67.19770159 | L93: =F93*(Forecast!$G$8/$F$2) -> 67.38028657 | M93: =F93*(Forecast!$H$8/$F$2) -> 67.65416403 | N93: =F93*(Forecast!$I$8/$F$2) -> 68.20191895 | O93: =F93*(Forecast!$J$8/$F$2) -> 68.65838138 | P93: =F93*(Forecast!$K$8/$F$2) -> 69.11484382 | Q93: =F93*(Forecast!$L$8/$F$2) -> 69.57130625 | R93: =F93*(Forecast!$M$8/$F$2) -> 70.02776869 | S93: =F93*(Forecast!$N$8/$F$2) -> 70.57552361 | T93: =F93*(Forecast!$O$8/$F$2) -> 71.03198604 | U93: =F93*(Forecast!$P$8/$F$2) -> 71.48844848 | V93: =F93*(Forecast!$Q$8/$F$2) -> 71.94491091 | W93: =F93*(Forecast!$R$8/$F$2) -> 72.49266583 | X93: =F93*(Forecast!$S$8/$F$2) -> 72.94912827 | Y93: =F93*(Forecast!$T$8/$F$2) -> 73.4055907 | Z93: =F93*(Forecast!$U$8/$F$2) -> 73.86205314 | AA93: =F93*(Forecast!$V$8/$F$2) -> 74.40980806 | AB93: =F93*(Forecast!$W$8/$F$2) -> 74.86627049 | AC93: =F93*(Forecast!$X$8/$F$2) -> 75.32273293 | AD93: =F93*(Forecast!$Y$8/$F$2) -> 75.87048785 | AE93: =F93*(Forecast!$Z$8/$F$2) -> 76.32695028 | AF93: =F93*(Forecast!$AA$8/$F$2) -> 76.78341272 | AG93: =F93*(Forecast!$AB$8/$F$2) -> 77.23987515
A94: 2017-01-04T18:00:00 | B94: 28.81616783 | C94: 16.0915451 | D94: 15.95945168 | E94: 0.001953125 | F94: 60.86911774 | H94: =F94*(Forecast!$C$8/$F$2) -> 65.42008153 | I94: =F94*(Forecast!$D$8/$F$2) -> 66.07306635 | J94: =F94*(Forecast!$E$8/$F$2) -> 66.25382339 | K94: =F94*(Forecast!$F$8/$F$2) -> 66.52495896 | L94: =F94*(Forecast!$G$8/$F$2) -> 66.705716 | M94: =F94*(Forecast!$H$8/$F$2) -> 66.97685156 | N94: =F94*(Forecast!$I$8/$F$2) -> 67.5191227 | O94: =F94*(Forecast!$J$8/$F$2) -> 67.97101531 | P94: =F94*(Forecast!$K$8/$F$2) -> 68.42290791 | Q94: =F94*(Forecast!$L$8/$F$2) -> 68.87480052 | R94: =F94*(Forecast!$M$8/$F$2) -> 69.32669313 | S94: =F94*(Forecast!$N$8/$F$2) -> 69.86896426 | T94: =F94*(Forecast!$O$8/$F$2) -> 70.32085687 | U94: =F94*(Forecast!$P$8/$F$2) -> 70.77274948 | V94: =F94*(Forecast!$Q$8/$F$2) -> 71.22464209 | W94: =F94*(Forecast!$R$8/$F$2) -> 71.76691322 | X94: =F94*(Forecast!$S$8/$F$2) -> 72.21880583 | Y94: =F94*(Forecast!$T$8/$F$2) -> 72.67069844 | Z94: =F94*(Forecast!$U$8/$F$2) -> 73.12259105 | AA94: =F94*(Forecast!$V$8/$F$2) -> 73.66486218 | AB94: =F94*(Forecast!$W$8/$F$2) -> 74.11675479 | AC94: =F94*(Forecast!$X$8/$F$2) -> 74.5686474 | AD94: =F94*(Forecast!$Y$8/$F$2) -> 75.11091853 | AE94: =F94*(Forecast!$Z$8/$F$2) -> 75.56281114 | AF94: =F94*(Forecast!$AA$8/$F$2) -> 76.01470375 | AG94: =F94*(Forecast!$AB$8/$F$2) -> 76.46659636
A95: 2017-01-04T19:00:00 | B95: 28.62563133 | C95: 15.80042648 | D95: 15.72605801 | E95: 0.001953125 | F95: 60.15406895 | H95: =F95*(Forecast!$C$8/$F$2) -> 64.65157112 | I95: =F95*(Forecast!$D$8/$F$2) -> 65.29688512 | J95: =F95*(Forecast!$E$8/$F$2) -> 65.47551876 | K95: =F95*(Forecast!$F$8/$F$2) -> 65.74346921 | L95: =F95*(Forecast!$G$8/$F$2) -> 65.92210284 | M95: =F95*(Forecast!$H$8/$F$2) -> 66.19005329 | N95: =F95*(Forecast!$I$8/$F$2) -> 66.72595419 | O95: =F95*(Forecast!$J$8/$F$2) -> 67.17253828 | P95: =F95*(Forecast!$K$8/$F$2) -> 67.61912236 | Q95: =F95*(Forecast!$L$8/$F$2) -> 68.06570644 | R95: =F95*(Forecast!$M$8/$F$2) -> 68.51229053 | S95: =F95*(Forecast!$N$8/$F$2) -> 69.04819143 | T95: =F95*(Forecast!$O$8/$F$2) -> 69.49477551 | U95: =F95*(Forecast!$P$8/$F$2) -> 69.9413596 | V95: =F95*(Forecast!$Q$8/$F$2) -> 70.38794368 | W95: =F95*(Forecast!$R$8/$F$2) -> 70.92384458 | X95: =F95*(Forecast!$S$8/$F$2) -> 71.37042867 | Y95: =F95*(Forecast!$T$8/$F$2) -> 71.81701275 | Z95: =F95*(Forecast!$U$8/$F$2) -> 72.26359683 | AA95: =F95*(Forecast!$V$8/$F$2) -> 72.79949773 | AB95: =F95*(Forecast!$W$8/$F$2) -> 73.24608182 | AC95: =F95*(Forecast!$X$8/$F$2) -> 73.6926659 | AD95: =F95*(Forecast!$Y$8/$F$2) -> 74.2285668 | AE95: =F95*(Forecast!$Z$8/$F$2) -> 74.67515089 | AF95: =F95*(Forecast!$AA$8/$F$2) -> 75.12173497 | AG95: =F95*(Forecast!$AB$8/$F$2) -> 75.56831905
A96: 2017-01-04T20:00:00 | B96: 27.80686569 | C96: 15.57281494 | D96: 15.39957809 | E96: 0.001953125 | F96: 58.78121185 | H96: =F96*(Forecast!$C$8/$F$2) -> 63.17607047 | I96: =F96*(Forecast!$D$8/$F$2) -> 63.80665689 | J96: =F96*(Forecast!$E$8/$F$2) -> 63.98121368 | K96: =F96*(Forecast!$F$8/$F$2) -> 64.24304888 | L96: =F96*(Forecast!$G$8/$F$2) -> 64.41760567 | M96: =F96*(Forecast!$H$8/$F$2) -> 64.67944086 | N96: =F96*(Forecast!$I$8/$F$2) -> 65.20311125 | O96: =F96*(Forecast!$J$8/$F$2) -> 65.63950323 | P96: =F96*(Forecast!$K$8/$F$2) -> 66.07589522 | Q96: =F96*(Forecast!$L$8/$F$2) -> 66.51228721 | R96: =F96*(Forecast!$M$8/$F$2) -> 66.94867919 | S96: =F96*(Forecast!$N$8/$F$2) -> 67.47234958 | T96: =F96*(Forecast!$O$8/$F$2) -> 67.90874156 | U96: =F96*(Forecast!$P$8/$F$2) -> 68.34513355 | V96: =F96*(Forecast!$Q$8/$F$2) -> 68.78152554 | W96: =F96*(Forecast!$R$8/$F$2) -> 69.30519592 | X96: =F96*(Forecast!$S$8/$F$2) -> 69.74158791 | Y96: =F96*(Forecast!$T$8/$F$2) -> 70.17797989 | Z96: =F96*(Forecast!$U$8/$F$2) -> 70.61437188 | AA96: =F96*(Forecast!$V$8/$F$2) -> 71.13804226 | AB96: =F96*(Forecast!$W$8/$F$2) -> 71.57443425 | AC96: =F96*(Forecast!$X$8/$F$2) -> 72.01082624 | AD96: =F96*(Forecast!$Y$8/$F$2) -> 72.53449662 | AE96: =F96*(Forecast!$Z$8/$F$2) -> 72.97088861 | AF96: =F96*(Forecast!$AA$8/$F$2) -> 73.40728059 | AG96: =F96*(Forecast!$AB$8/$F$2) -> 73.84367258
A97: 2017-01-04T21:00:00 | B97: 27.35422134 | C97: 15.30281544 | D97: 14.91831303 | E97: 0.001953125 | F97: 57.57730293 | H97: =F97*(Forecast!$C$8/$F$2) -> 61.88214963 | I97: =F97*(Forecast!$D$8/$F$2) -> 62.4998209 | J97: =F97*(Forecast!$E$8/$F$2) -> 62.67080256 | K97: =F97*(Forecast!$F$8/$F$2) -> 62.92727506 | L97: =F97*(Forecast!$G$8/$F$2) -> 63.09825672 | M97: =F97*(Forecast!$H$8/$F$2) -> 63.35472922 | N97: =F97*(Forecast!$I$8/$F$2) -> 63.86767421 | O97: =F97*(Forecast!$J$8/$F$2) -> 64.29512837 | P97: =F97*(Forecast!$K$8/$F$2) -> 64.72258253 | Q97: =F97*(Forecast!$L$8/$F$2) -> 65.1500367 | R97: =F97*(Forecast!$M$8/$F$2) -> 65.57749086 | S97: =F97*(Forecast!$N$8/$F$2) -> 66.09043585 | T97: =F97*(Forecast!$O$8/$F$2) -> 66.51789001 | U97: =F97*(Forecast!$P$8/$F$2) -> 66.94534417 | V97: =F97*(Forecast!$Q$8/$F$2) -> 67.37279833 | W97: =F97*(Forecast!$R$8/$F$2) -> 67.88574333 | X97: =F97*(Forecast!$S$8/$F$2) -> 68.31319749 | Y97: =F97*(Forecast!$T$8/$F$2) -> 68.74065165 | Z97: =F97*(Forecast!$U$8/$F$2) -> 69.16810581 | AA97: =F97*(Forecast!$V$8/$F$2) -> 69.6810508 | AB97: =F97*(Forecast!$W$8/$F$2) -> 70.10850497 | AC97: =F97*(Forecast!$X$8/$F$2) -> 70.53595913 | AD97: =F97*(Forecast!$Y$8/$F$2) -> 71.04890412 | AE97: =F97*(Forecast!$Z$8/$F$2) -> 71.47635828 | AF97: =F97*(Forecast!$AA$8/$F$2) -> 71.90381244 | AG97: =F97*(Forecast!$AB$8/$F$2) -> 72.3312666
A98: 2017-01-04T22:00:00 | B98: 26.47492218 | C98: 14.79080963 | D98: 14.67324448 | E98: 0.001953125 | F98: 55.94092941 | H98: =F98*(Forecast!$C$8/$F$2) -> 60.12343038 | I98: =F98*(Forecast!$D$8/$F$2) -> 60.72354714 | J98: =F98*(Forecast!$E$8/$F$2) -> 60.88966943 | K98: =F98*(Forecast!$F$8/$F$2) -> 61.13885286 | L98: =F98*(Forecast!$G$8/$F$2) -> 61.30497515 | M98: =F98*(Forecast!$H$8/$F$2) -> 61.55415858 | N98: =F98*(Forecast!$I$8/$F$2) -> 62.05252544 | O98: =F98*(Forecast!$J$8/$F$2) -> 62.46783115 | P98: =F98*(Forecast!$K$8/$F$2) -> 62.88313687 | Q98: =F98*(Forecast!$L$8/$F$2) -> 63.29844259 | R98: =F98*(Forecast!$M$8/$F$2) -> 63.7137483 | S98: =F98*(Forecast!$N$8/$F$2) -> 64.21211516 | T98: =F98*(Forecast!$O$8/$F$2) -> 64.62742088 | U98: =F98*(Forecast!$P$8/$F$2) -> 65.0427266 | V98: =F98*(Forecast!$Q$8/$F$2) -> 65.45803231 | W98: =F98*(Forecast!$R$8/$F$2) -> 65.95639917 | X98: =F98*(Forecast!$S$8/$F$2) -> 66.37170489 | Y98: =F98*(Forecast!$T$8/$F$2) -> 66.78701061 | Z98: =F98*(Forecast!$U$8/$F$2) -> 67.20231632 | AA98: =F98*(Forecast!$V$8/$F$2) -> 67.70068318 | AB98: =F98*(Forecast!$W$8/$F$2) -> 68.1159889 | AC98: =F98*(Forecast!$X$8/$F$2) -> 68.53129462 | AD98: =F98*(Forecast!$Y$8/$F$2) -> 69.02966148 | AE98: =F98*(Forecast!$Z$8/$F$2) -> 69.44496719 | AF98: =F98*(Forecast!$AA$8/$F$2) -> 69.86027291 | AG98: =F98*(Forecast!$AB$8/$F$2) -> 70.27557863
A99: 2017-01-04T23:00:00 | B99: 24.88360023 | C99: 13.95767975 | D99: 13.56471252 | E99: 0.001953125 | F99: 52.40794563 | H99: =F99*(Forecast!$C$8/$F$2) -> 56.32629818 | I99: =F99*(Forecast!$D$8/$F$2) -> 56.8885142 | J99: =F99*(Forecast!$E$8/$F$2) -> 57.04414493 | K99: =F99*(Forecast!$F$8/$F$2) -> 57.27759103 | L99: =F99*(Forecast!$G$8/$F$2) -> 57.43322176 | M99: =F99*(Forecast!$H$8/$F$2) -> 57.66666786 | N99: =F99*(Forecast!$I$8/$F$2) -> 58.13356005 | O99: =F99*(Forecast!$J$8/$F$2) -> 58.52263688 | P99: =F99*(Forecast!$K$8/$F$2) -> 58.91171371 | Q99: =F99*(Forecast!$L$8/$F$2) -> 59.30079054 | R99: =F99*(Forecast!$M$8/$F$2) -> 59.68986737 | S99: =F99*(Forecast!$N$8/$F$2) -> 60.15675956 | T99: =F99*(Forecast!$O$8/$F$2) -> 60.54583639 | U99: =F99*(Forecast!$P$8/$F$2) -> 60.93491322 | V99: =F99*(Forecast!$Q$8/$F$2) -> 61.32399005 | W99: =F99*(Forecast!$R$8/$F$2) -> 61.79088225 | X99: =F99*(Forecast!$S$8/$F$2) -> 62.17995908 | Y99: =F99*(Forecast!$T$8/$F$2) -> 62.5690359 | Z99: =F99*(Forecast!$U$8/$F$2) -> 62.95811273 | AA99: =F99*(Forecast!$V$8/$F$2) -> 63.42500493 | AB99: =F99*(Forecast!$W$8/$F$2) -> 63.81408176 | AC99: =F99*(Forecast!$X$8/$F$2) -> 64.20315859 | AD99: =F99*(Forecast!$Y$8/$F$2) -> 64.67005078 | AE99: =F99*(Forecast!$Z$8/$F$2) -> 65.05912761 | AF99: =F99*(Forecast!$AA$8/$F$2) -> 65.44820444 | AG99: =F99*(Forecast!$AB$8/$F$2) -> 65.83728127
A100: 2017-01-05 | B100: 23.56689644 | C100: 13.19293118 | D100: 12.90306091 | E100: 0.001953125 | F100: 49.66484165 | H100: =F100*(Forecast!$C$8/$F$2) -> 53.37810224 | I100: =F100*(Forecast!$D$8/$F$2) -> 53.9108911 | J100: =F100*(Forecast!$E$8/$F$2) -> 54.0583759 | K100: =F100*(Forecast!$F$8/$F$2) -> 54.27960311 | L100: =F100*(Forecast!$G$8/$F$2) -> 54.42708791 | M100: =F100*(Forecast!$H$8/$F$2) -> 54.64831512 | N100: =F100*(Forecast!$I$8/$F$2) -> 55.09076954 | O100: =F100*(Forecast!$J$8/$F$2) -> 55.45948155 | P100: =F100*(Forecast!$K$8/$F$2) -> 55.82819356 | Q100: =F100*(Forecast!$L$8/$F$2) -> 56.19690557 | R100: =F100*(Forecast!$M$8/$F$2) -> 56.56561759 | S100: =F100*(Forecast!$N$8/$F$2) -> 57.008072 | T100: =F100*(Forecast!$O$8/$F$2) -> 57.37678401 | U100: =F100*(Forecast!$P$8/$F$2) -> 57.74549603 | V100: =F100*(Forecast!$Q$8/$F$2) -> 58.11420804 | W100: =F100*(Forecast!$R$8/$F$2) -> 58.55666245 | X100: =F100*(Forecast!$S$8/$F$2) -> 58.92537447 | Y100: =F100*(Forecast!$T$8/$F$2) -> 59.29408648 | Z100: =F100*(Forecast!$U$8/$F$2) -> 59.66279849 | AA100: =F100*(Forecast!$V$8/$F$2) -> 60.10525291 | AB100: =F100*(Forecast!$W$8/$F$2) -> 60.47396492 | AC100: =F100*(Forecast!$X$8/$F$2) -> 60.84267693 | AD100: =F100*(Forecast!$Y$8/$F$2) -> 61.28513134 | AE100: =F100*(Forecast!$Z$8/$F$2) -> 61.65384336 | AF100: =F100*(Forecast!$AA$8/$F$2) -> 62.02255537 | AG100: =F100*(Forecast!$AB$8/$F$2) -> 62.39126738
A101: 2017-01-05T01:00:00 | B101: 22.58086777 | C101: 12.56159687 | D101: 12.39305115 | E101: 0.001953125 | F101: 47.53746891 | H101: =F101*(Forecast!$C$8/$F$2) -> 51.09167353 | I101: =F101*(Forecast!$D$8/$F$2) -> 51.6016406 | J101: =F101*(Forecast!$E$8/$F$2) -> 51.74280796 | K101: =F101*(Forecast!$F$8/$F$2) -> 51.95455899 | L101: =F101*(Forecast!$G$8/$F$2) -> 52.09572634 | M101: =F101*(Forecast!$H$8/$F$2) -> 52.30747738 | N101: =F101*(Forecast!$I$8/$F$2) -> 52.73097944 | O101: =F101*(Forecast!$J$8/$F$2) -> 53.08389783 | P101: =F101*(Forecast!$K$8/$F$2) -> 53.43681622 | Q101: =F101*(Forecast!$L$8/$F$2) -> 53.7897346 | R101: =F101*(Forecast!$M$8/$F$2) -> 54.14265299 | S101: =F101*(Forecast!$N$8/$F$2) -> 54.56615506 | T101: =F101*(Forecast!$O$8/$F$2) -> 54.91907344 | U101: =F101*(Forecast!$P$8/$F$2) -> 55.27199183 | V101: =F101*(Forecast!$Q$8/$F$2) -> 55.62491022 | W101: =F101*(Forecast!$R$8/$F$2) -> 56.04841228 | X101: =F101*(Forecast!$S$8/$F$2) -> 56.40133067 | Y101: =F101*(Forecast!$T$8/$F$2) -> 56.75424906 | Z101: =F101*(Forecast!$U$8/$F$2) -> 57.10716744 | AA101: =F101*(Forecast!$V$8/$F$2) -> 57.53066951 | AB101: =F101*(Forecast!$W$8/$F$2) -> 57.8835879 | AC101: =F101*(Forecast!$X$8/$F$2) -> 58.23650628 | AD101: =F101*(Forecast!$Y$8/$F$2) -> 58.66000835 | AE101: =F101*(Forecast!$Z$8/$F$2) -> 59.01292674 | AF101: =F101*(Forecast!$AA$8/$F$2) -> 59.36584512 | AG101: =F101*(Forecast!$AB$8/$F$2) -> 59.71876351
A102: 2017-01-05T02:00:00 | B102: 21.9043026 | C102: 12.1856432 | D102: 12.01984215 | E102: 0.001953125 | F102: 46.11174107 | H102: =F102*(Forecast!$C$8/$F$2) -> 49.55934917 | I102: =F102*(Forecast!$D$8/$F$2) -> 50.05402148 | J102: =F102*(Forecast!$E$8/$F$2) -> 50.19095499 | K102: =F102*(Forecast!$F$8/$F$2) -> 50.39635526 | L102: =F102*(Forecast!$G$8/$F$2) -> 50.53328877 | M102: =F102*(Forecast!$H$8/$F$2) -> 50.73868904 | N102: =F102*(Forecast!$I$8/$F$2) -> 51.14948957 | O102: =F102*(Forecast!$J$8/$F$2) -> 51.49182335 | P102: =F102*(Forecast!$K$8/$F$2) -> 51.83415712 | Q102: =F102*(Forecast!$L$8/$F$2) -> 52.1764909 | R102: =F102*(Forecast!$M$8/$F$2) -> 52.51882468 | S102: =F102*(Forecast!$N$8/$F$2) -> 52.92962521 | T102: =F102*(Forecast!$O$8/$F$2) -> 53.27195899 | U102: =F102*(Forecast!$P$8/$F$2) -> 53.61429277 | V102: =F102*(Forecast!$Q$8/$F$2) -> 53.95662654 | W102: =F102*(Forecast!$R$8/$F$2) -> 54.36742708 | X102: =F102*(Forecast!$S$8/$F$2) -> 54.70976085 | Y102: =F102*(Forecast!$T$8/$F$2) -> 55.05209463 | Z102: =F102*(Forecast!$U$8/$F$2) -> 55.39442841 | AA102: =F102*(Forecast!$V$8/$F$2) -> 55.80522894 | AB102: =F102*(Forecast!$W$8/$F$2) -> 56.14756272 | AC102: =F102*(Forecast!$X$8/$F$2) -> 56.48989649 | AD102: =F102*(Forecast!$Y$8/$F$2) -> 56.90069703 | AE102: =F102*(Forecast!$Z$8/$F$2) -> 57.2430308 | AF102: =F102*(Forecast!$AA$8/$F$2) -> 57.58536458 | AG102: =F102*(Forecast!$AB$8/$F$2) -> 57.92769836
A103: 2017-01-05T03:00:00 | B103: 21.14371872 | C103: 11.82363224 | D103: 11.70105267 | E103: 0.001953125 | F103: 44.67035675 | H103: =F103*(Forecast!$C$8/$F$2) -> 48.01019777 | I103: =F103*(Forecast!$D$8/$F$2) -> 48.48940735 | J103: =F103*(Forecast!$E$8/$F$2) -> 48.62206053 | K103: =F103*(Forecast!$F$8/$F$2) -> 48.82104029 | L103: =F103*(Forecast!$G$8/$F$2) -> 48.95369346 | M103: =F103*(Forecast!$H$8/$F$2) -> 49.15267322 | N103: =F103*(Forecast!$I$8/$F$2) -> 49.55063274 | O103: =F103*(Forecast!$J$8/$F$2) -> 49.88226568 | P103: =F103*(Forecast!$K$8/$F$2) -> 50.21389861 | Q103: =F103*(Forecast!$L$8/$F$2) -> 50.54553154 | R103: =F103*(Forecast!$M$8/$F$2) -> 50.87716448 | S103: =F103*(Forecast!$N$8/$F$2) -> 51.275124 | T103: =F103*(Forecast!$O$8/$F$2) -> 51.60675693 | U103: =F103*(Forecast!$P$8/$F$2) -> 51.93838986 | V103: =F103*(Forecast!$Q$8/$F$2) -> 52.2700228 | W103: =F103*(Forecast!$R$8/$F$2) -> 52.66798232 | X103: =F103*(Forecast!$S$8/$F$2) -> 52.99961525 | Y103: =F103*(Forecast!$T$8/$F$2) -> 53.33124818 | Z103: =F103*(Forecast!$U$8/$F$2) -> 53.66288112 | AA103: =F103*(Forecast!$V$8/$F$2) -> 54.06084064 | AB103: =F103*(Forecast!$W$8/$F$2) -> 54.39247357 | AC103: =F103*(Forecast!$X$8/$F$2) -> 54.7241065 | AD103: =F103*(Forecast!$Y$8/$F$2) -> 55.12206603 | AE103: =F103*(Forecast!$Z$8/$F$2) -> 55.45369896 | AF103: =F103*(Forecast!$AA$8/$F$2) -> 55.78533189 | AG103: =F103*(Forecast!$AB$8/$F$2) -> 56.11696483
A104: 2017-01-05T04:00:00 | B104: 21.06156731 | C104: 11.74617481 | D104: 11.67917538 | E104: 0.001953125 | F104: 44.48887062 | H104: =F104*(Forecast!$C$8/$F$2) -> 47.81514257 | I104: =F104*(Forecast!$D$8/$F$2) -> 48.29240524 | J104: =F104*(Forecast!$E$8/$F$2) -> 48.42451947 | K104: =F104*(Forecast!$F$8/$F$2) -> 48.62269082 | L104: =F104*(Forecast!$G$8/$F$2) -> 48.75480505 | M104: =F104*(Forecast!$H$8/$F$2) -> 48.9529764 | N104: =F104*(Forecast!$I$8/$F$2) -> 49.34931909 | O104: =F104*(Forecast!$J$8/$F$2) -> 49.67960467 | P104: =F104*(Forecast!$K$8/$F$2) -> 50.00989025 | Q104: =F104*(Forecast!$L$8/$F$2) -> 50.34017583 | R104: =F104*(Forecast!$M$8/$F$2) -> 50.67046141 | S104: =F104*(Forecast!$N$8/$F$2) -> 51.06680411 | T104: =F104*(Forecast!$O$8/$F$2) -> 51.39708969 | U104: =F104*(Forecast!$P$8/$F$2) -> 51.72737527 | V104: =F104*(Forecast!$Q$8/$F$2) -> 52.05766085 | W104: =F104*(Forecast!$R$8/$F$2) -> 52.45400354 | X104: =F104*(Forecast!$S$8/$F$2) -> 52.78428912 | Y104: =F104*(Forecast!$T$8/$F$2) -> 53.1145747 | Z104: =F104*(Forecast!$U$8/$F$2) -> 53.44486028 | AA104: =F104*(Forecast!$V$8/$F$2) -> 53.84120298 | AB104: =F104*(Forecast!$W$8/$F$2) -> 54.17148855 | AC104: =F104*(Forecast!$X$8/$F$2) -> 54.50177413 | AD104: =F104*(Forecast!$Y$8/$F$2) -> 54.89811683 | AE104: =F104*(Forecast!$Z$8/$F$2) -> 55.22840241 | AF104: =F104*(Forecast!$AA$8/$F$2) -> 55.55868799 | AG104: =F104*(Forecast!$AB$8/$F$2) -> 55.88897357
A105: 2017-01-05T05:00:00 | B105: 20.70562935 | C105: 11.53822899 | D105: 11.65729809 | E105: 0.001953125 | F105: 43.90310955 | H105: =F105*(Forecast!$C$8/$F$2) -> 47.18558627 | I105: =F105*(Forecast!$D$8/$F$2) -> 47.65656507 | J105: =F105*(Forecast!$E$8/$F$2) -> 47.78693982 | K105: =F105*(Forecast!$F$8/$F$2) -> 47.98250196 | L105: =F105*(Forecast!$G$8/$F$2) -> 48.11287671 | M105: =F105*(Forecast!$H$8/$F$2) -> 48.30843884 | N105: =F105*(Forecast!$I$8/$F$2) -> 48.69956311 | O105: =F105*(Forecast!$J$8/$F$2) -> 49.02549999 | P105: =F105*(Forecast!$K$8/$F$2) -> 49.35143688 | Q105: =F105*(Forecast!$L$8/$F$2) -> 49.67737377 | R105: =F105*(Forecast!$M$8/$F$2) -> 50.00331065 | S105: =F105*(Forecast!$N$8/$F$2) -> 50.39443492 | T105: =F105*(Forecast!$O$8/$F$2) -> 50.7203718 | U105: =F105*(Forecast!$P$8/$F$2) -> 51.04630869 | V105: =F105*(Forecast!$Q$8/$F$2) -> 51.37224558 | W105: =F105*(Forecast!$R$8/$F$2) -> 51.76336984 | X105: =F105*(Forecast!$S$8/$F$2) -> 52.08930673 | Y105: =F105*(Forecast!$T$8/$F$2) -> 52.41524362 | Z105: =F105*(Forecast!$U$8/$F$2) -> 52.7411805 | AA105: =F105*(Forecast!$V$8/$F$2) -> 53.13230477 | AB105: =F105*(Forecast!$W$8/$F$2) -> 53.45824165 | AC105: =F105*(Forecast!$X$8/$F$2) -> 53.78417854 | AD105: =F105*(Forecast!$Y$8/$F$2) -> 54.1753028 | AE105: =F105*(Forecast!$Z$8/$F$2) -> 54.50123969 | AF105: =F105*(Forecast!$AA$8/$F$2) -> 54.82717658 | AG105: =F105*(Forecast!$AB$8/$F$2) -> 55.15311346
A106: 2017-01-05T06:00:00 | B106: 20.70562935 | C106: 11.705369 | D106: 11.63542175 | E106: 0.001953125 | F106: 44.04837322 | H106: =F106*(Forecast!$C$8/$F$2) -> 47.34171078 | I106: =F106*(Forecast!$D$8/$F$2) -> 47.81424792 | J106: =F106*(Forecast!$E$8/$F$2) -> 47.94505405 | K106: =F106*(Forecast!$F$8/$F$2) -> 48.14126325 | L106: =F106*(Forecast!$G$8/$F$2) -> 48.27206938 | M106: =F106*(Forecast!$H$8/$F$2) -> 48.46827857 | N106: =F106*(Forecast!$I$8/$F$2) -> 48.86069696 | O106: =F106*(Forecast!$J$8/$F$2) -> 49.18771229 | P106: =F106*(Forecast!$K$8/$F$2) -> 49.51472761 | Q106: =F106*(Forecast!$L$8/$F$2) -> 49.84174294 | R106: =F106*(Forecast!$M$8/$F$2) -> 50.16875826 | S106: =F106*(Forecast!$N$8/$F$2) -> 50.56117665 | T106: =F106*(Forecast!$O$8/$F$2) -> 50.88819198 | U106: =F106*(Forecast!$P$8/$F$2) -> 51.2152073 | V106: =F106*(Forecast!$Q$8/$F$2) -> 51.54222263 | W106: =F106*(Forecast!$R$8/$F$2) -> 51.93464102 | X106: =F106*(Forecast!$S$8/$F$2) -> 52.26165634 | Y106: =F106*(Forecast!$T$8/$F$2) -> 52.58867167 | Z106: =F106*(Forecast!$U$8/$F$2) -> 52.91568699 | AA106: =F106*(Forecast!$V$8/$F$2) -> 53.30810538 | AB106: =F106*(Forecast!$W$8/$F$2) -> 53.63512071 | AC106: =F106*(Forecast!$X$8/$F$2) -> 53.96213603 | AD106: =F106*(Forecast!$Y$8/$F$2) -> 54.35455442 | AE106: =F106*(Forecast!$Z$8/$F$2) -> 54.68156975 | AF106: =F106*(Forecast!$AA$8/$F$2) -> 55.00858507 | AG106: =F106*(Forecast!$AB$8/$F$2) -> 55.3356004
A107: 2017-01-05T07:00:00 | B107: 21.17535591 | C107: 11.87250805 | D107: 11.61354446 | E107: 0.001953125 | F107: 44.66336155 | H107: =F107*(Forecast!$C$8/$F$2) -> 48.00267956 | I107: =F107*(Forecast!$D$8/$F$2) -> 48.48181411 | J107: =F107*(Forecast!$E$8/$F$2) -> 48.61444651 | K107: =F107*(Forecast!$F$8/$F$2) -> 48.81339511 | L107: =F107*(Forecast!$G$8/$F$2) -> 48.94602751 | M107: =F107*(Forecast!$H$8/$F$2) -> 49.14497611 | N107: =F107*(Forecast!$I$8/$F$2) -> 49.54287331 | O107: =F107*(Forecast!$J$8/$F$2) -> 49.87445431 | P107: =F107*(Forecast!$K$8/$F$2) -> 50.20603531 | Q107: =F107*(Forecast!$L$8/$F$2) -> 50.53761631 | R107: =F107*(Forecast!$M$8/$F$2) -> 50.86919731 | S107: =F107*(Forecast!$N$8/$F$2) -> 51.26709451 | T107: =F107*(Forecast!$O$8/$F$2) -> 51.59867552 | U107: =F107*(Forecast!$P$8/$F$2) -> 51.93025652 | V107: =F107*(Forecast!$Q$8/$F$2) -> 52.26183752 | W107: =F107*(Forecast!$R$8/$F$2) -> 52.65973472 | X107: =F107*(Forecast!$S$8/$F$2) -> 52.99131572 | Y107: =F107*(Forecast!$T$8/$F$2) -> 53.32289672 | Z107: =F107*(Forecast!$U$8/$F$2) -> 53.65447772 | AA107: =F107*(Forecast!$V$8/$F$2) -> 54.05237492 | AB107: =F107*(Forecast!$W$8/$F$2) -> 54.38395593 | AC107: =F107*(Forecast!$X$8/$F$2) -> 54.71553693 | AD107: =F107*(Forecast!$Y$8/$F$2) -> 55.11343413 | AE107: =F107*(Forecast!$Z$8/$F$2) -> 55.44501513 | AF107: =F107*(Forecast!$AA$8/$F$2) -> 55.77659613 | AG107: =F107*(Forecast!$AB$8/$F$2) -> 56.10817713
A108: 2017-01-05T08:00:00 | B108: 21.90478325 | C108: 12.14037228 | D108: 12.00581455 | E108: 0.001712483121 | F108: 46.05268256 | H108: =F108*(Forecast!$C$8/$F$2) -> 49.49587508 | I108: =F108*(Forecast!$D$8/$F$2) -> 49.98991382 | J108: =F108*(Forecast!$E$8/$F$2) -> 50.12667195 | K108: =F108*(Forecast!$F$8/$F$2) -> 50.33180915 | L108: =F108*(Forecast!$G$8/$F$2) -> 50.46856728 | M108: =F108*(Forecast!$H$8/$F$2) -> 50.67370448 | N108: =F108*(Forecast!$I$8/$F$2) -> 51.08397887 | O108: =F108*(Forecast!$J$8/$F$2) -> 51.4258742 | P108: =F108*(Forecast!$K$8/$F$2) -> 51.76776952 | Q108: =F108*(Forecast!$L$8/$F$2) -> 52.10966485 | R108: =F108*(Forecast!$M$8/$F$2) -> 52.45156018 | S108: =F108*(Forecast!$N$8/$F$2) -> 52.86183457 | T108: =F108*(Forecast!$O$8/$F$2) -> 53.2037299 | U108: =F108*(Forecast!$P$8/$F$2) -> 53.54562522 | V108: =F108*(Forecast!$Q$8/$F$2) -> 53.88752055 | W108: =F108*(Forecast!$R$8/$F$2) -> 54.29779494 | X108: =F108*(Forecast!$S$8/$F$2) -> 54.63969027 | Y108: =F108*(Forecast!$T$8/$F$2) -> 54.98158559 | Z108: =F108*(Forecast!$U$8/$F$2) -> 55.32348092 | AA108: =F108*(Forecast!$V$8/$F$2) -> 55.73375531 | AB108: =F108*(Forecast!$W$8/$F$2) -> 56.07565064 | AC108: =F108*(Forecast!$X$8/$F$2) -> 56.41754597 | AD108: =F108*(Forecast!$Y$8/$F$2) -> 56.82782036 | AE108: =F108*(Forecast!$Z$8/$F$2) -> 57.16971568 | AF108: =F108*(Forecast!$AA$8/$F$2) -> 57.51161101 | AG108: =F108*(Forecast!$AB$8/$F$2) -> 57.85350634
A109: 2017-01-05T09:00:00 | B109: 21.64746475 | C109: 12.17195129 | D109: 11.88308811 | E109: 0.001058169873 | F109: 45.70356233 | H109: =F109*(Forecast!$C$8/$F$2) -> 49.12065239 | I109: =F109*(Forecast!$D$8/$F$2) -> 49.61094588 | J109: =F109*(Forecast!$E$8/$F$2) -> 49.74666726 | K109: =F109*(Forecast!$F$8/$F$2) -> 49.95024934 | L109: =F109*(Forecast!$G$8/$F$2) -> 50.08597072 | M109: =F109*(Forecast!$H$8/$F$2) -> 50.28955279 | N109: =F109*(Forecast!$I$8/$F$2) -> 50.69671694 | O109: =F109*(Forecast!$J$8/$F$2) -> 51.0360204 | P109: =F109*(Forecast!$K$8/$F$2) -> 51.37532386 | Q109: =F109*(Forecast!$L$8/$F$2) -> 51.71462731 | R109: =F109*(Forecast!$M$8/$F$2) -> 52.05393077 | S109: =F109*(Forecast!$N$8/$F$2) -> 52.46109492 | T109: =F109*(Forecast!$O$8/$F$2) -> 52.80039837 | U109: =F109*(Forecast!$P$8/$F$2) -> 53.13970183 | V109: =F109*(Forecast!$Q$8/$F$2) -> 53.47900529 | W109: =F109*(Forecast!$R$8/$F$2) -> 53.88616943 | X109: =F109*(Forecast!$S$8/$F$2) -> 54.22547289 | Y109: =F109*(Forecast!$T$8/$F$2) -> 54.56477635 | Z109: =F109*(Forecast!$U$8/$F$2) -> 54.9040798 | AA109: =F109*(Forecast!$V$8/$F$2) -> 55.31124395 | AB109: =F109*(Forecast!$W$8/$F$2) -> 55.65054741 | AC109: =F109*(Forecast!$X$8/$F$2) -> 55.98985086 | AD109: =F109*(Forecast!$Y$8/$F$2) -> 56.39701501 | AE109: =F109*(Forecast!$Z$8/$F$2) -> 56.73631847 | AF109: =F109*(Forecast!$AA$8/$F$2) -> 57.07562192 | AG109: =F109*(Forecast!$AB$8/$F$2) -> 57.41492538
A110: 2017-01-05T10:00:00 | B110: 20.9218235 | C110: 11.53944111 | D110: 11.33076572 | E110: 0.0004038566549 | F110: 43.79243419 | H110: =F110*(Forecast!$C$8/$F$2) -> 47.06663611 | I110: =F110*(Forecast!$D$8/$F$2) -> 47.53642762 | J110: =F110*(Forecast!$E$8/$F$2) -> 47.66647372 | K110: =F110*(Forecast!$F$8/$F$2) -> 47.86154286 | L110: =F110*(Forecast!$G$8/$F$2) -> 47.99158895 | M110: =F110*(Forecast!$H$8/$F$2) -> 48.18665809 | N110: =F110*(Forecast!$I$8/$F$2) -> 48.57679637 | O110: =F110*(Forecast!$J$8/$F$2) -> 48.9019116 | P110: =F110*(Forecast!$K$8/$F$2) -> 49.22702683 | Q110: =F110*(Forecast!$L$8/$F$2) -> 49.55214206 | R110: =F110*(Forecast!$M$8/$F$2) -> 49.8772573 | S110: =F110*(Forecast!$N$8/$F$2) -> 50.26739557 | T110: =F110*(Forecast!$O$8/$F$2) -> 50.59251081 | U110: =F110*(Forecast!$P$8/$F$2) -> 50.91762604 | V110: =F110*(Forecast!$Q$8/$F$2) -> 51.24274127 | W110: =F110*(Forecast!$R$8/$F$2) -> 51.63287955 | X110: =F110*(Forecast!$S$8/$F$2) -> 51.95799478 | Y110: =F110*(Forecast!$T$8/$F$2) -> 52.28311002 | Z110: =F110*(Forecast!$U$8/$F$2) -> 52.60822525 | AA110: =F110*(Forecast!$V$8/$F$2) -> 52.99836353 | AB110: =F110*(Forecast!$W$8/$F$2) -> 53.32347876 | AC110: =F110*(Forecast!$X$8/$F$2) -> 53.64859399 | AD110: =F110*(Forecast!$Y$8/$F$2) -> 54.03873227 | AE110: =F110*(Forecast!$Z$8/$F$2) -> 54.3638475 | AF110: =F110*(Forecast!$AA$8/$F$2) -> 54.68896274 | AG110: =F110*(Forecast!$AB$8/$F$2) -> 55.01407797
A111: 2017-01-05T11:00:00 | B111: 20.21434784 | C111: 11.45455265 | D111: 11.02653599 | E111: 0.001704020309 | F111: 42.6971405 | H111: =F111*(Forecast!$C$8/$F$2) -> 45.88945127 | I111: =F111*(Forecast!$D$8/$F$2) -> 46.34749281 | J111: =F111*(Forecast!$E$8/$F$2) -> 46.47428632 | K111: =F111*(Forecast!$F$8/$F$2) -> 46.66447658 | L111: =F111*(Forecast!$G$8/$F$2) -> 46.79127009 | M111: =F111*(Forecast!$H$8/$F$2) -> 46.98146035 | N111: =F111*(Forecast!$I$8/$F$2) -> 47.36184087 | O111: =F111*(Forecast!$J$8/$F$2) -> 47.67882464 | P111: =F111*(Forecast!$K$8/$F$2) -> 47.9958084 | Q111: =F111*(Forecast!$L$8/$F$2) -> 48.31279217 | R111: =F111*(Forecast!$M$8/$F$2) -> 48.62977594 | S111: =F111*(Forecast!$N$8/$F$2) -> 49.01015646 | T111: =F111*(Forecast!$O$8/$F$2) -> 49.32714022 | U111: =F111*(Forecast!$P$8/$F$2) -> 49.64412399 | V111: =F111*(Forecast!$Q$8/$F$2) -> 49.96110776 | W111: =F111*(Forecast!$R$8/$F$2) -> 50.34148828 | X111: =F111*(Forecast!$S$8/$F$2) -> 50.65847205 | Y111: =F111*(Forecast!$T$8/$F$2) -> 50.97545581 | Z111: =F111*(Forecast!$U$8/$F$2) -> 51.29243958 | AA111: =F111*(Forecast!$V$8/$F$2) -> 51.6728201 | AB111: =F111*(Forecast!$W$8/$F$2) -> 51.98980387 | AC111: =F111*(Forecast!$X$8/$F$2) -> 52.30678763 | AD111: =F111*(Forecast!$Y$8/$F$2) -> 52.68716815 | AE111: =F111*(Forecast!$Z$8/$F$2) -> 53.00415192 | AF111: =F111*(Forecast!$AA$8/$F$2) -> 53.32113569 | AG111: =F111*(Forecast!$AB$8/$F$2) -> 53.63811945
A112: 2017-01-05T12:00:00 | B112: 19.88504219 | C112: 11.08235359 | D112: 11.11698818 | E112: 0.0009819777915 | F112: 42.08536594 | H112: =F112*(Forecast!$C$8/$F$2) -> 45.23193654 | I112: =F112*(Forecast!$D$8/$F$2) -> 45.68341516 | J112: =F112*(Forecast!$E$8/$F$2) -> 45.80839194 | K112: =F112*(Forecast!$F$8/$F$2) -> 45.99585711 | L112: =F112*(Forecast!$G$8/$F$2) -> 46.12083389 | M112: =F112*(Forecast!$H$8/$F$2) -> 46.30829906 | N112: =F112*(Forecast!$I$8/$F$2) -> 46.6832294 | O112: =F112*(Forecast!$J$8/$F$2) -> 46.99567135 | P112: =F112*(Forecast!$K$8/$F$2) -> 47.3081133 | Q112: =F112*(Forecast!$L$8/$F$2) -> 47.62055525 | R112: =F112*(Forecast!$M$8/$F$2) -> 47.9329972 | S112: =F112*(Forecast!$N$8/$F$2) -> 48.30792754 | T112: =F112*(Forecast!$O$8/$F$2) -> 48.62036949 | U112: =F112*(Forecast!$P$8/$F$2) -> 48.93281144 | V112: =F112*(Forecast!$Q$8/$F$2) -> 49.24525339 | W112: =F112*(Forecast!$R$8/$F$2) -> 49.62018373 | X112: =F112*(Forecast!$S$8/$F$2) -> 49.93262568 | Y112: =F112*(Forecast!$T$8/$F$2) -> 50.24506763 | Z112: =F112*(Forecast!$U$8/$F$2) -> 50.55750958 | AA112: =F112*(Forecast!$V$8/$F$2) -> 50.93243992 | AB112: =F112*(Forecast!$W$8/$F$2) -> 51.24488187 | AC112: =F112*(Forecast!$X$8/$F$2) -> 51.55732382 | AD112: =F112*(Forecast!$Y$8/$F$2) -> 51.93225416 | AE112: =F112*(Forecast!$Z$8/$F$2) -> 52.24469611 | AF112: =F112*(Forecast!$AA$8/$F$2) -> 52.55713806 | AG112: =F112*(Forecast!$AB$8/$F$2) -> 52.86958001
A113: 2017-01-05T13:00:00 | B113: 19.45188522 | C113: 10.61515808 | D113: 10.81327629 | E113: 0.0002599353029 | F113: 40.88057953 | H113: =F113*(Forecast!$C$8/$F$2) -> 43.93707261 | I113: =F113*(Forecast!$D$8/$F$2) -> 44.37562666 | J113: =F113*(Forecast!$E$8/$F$2) -> 44.4970257 | K113: =F113*(Forecast!$F$8/$F$2) -> 44.67912427 | L113: =F113*(Forecast!$G$8/$F$2) -> 44.80052331 | M113: =F113*(Forecast!$H$8/$F$2) -> 44.98262188 | N113: =F113*(Forecast!$I$8/$F$2) -> 45.34681901 | O113: =F113*(Forecast!$J$8/$F$2) -> 45.65031662 | P113: =F113*(Forecast!$K$8/$F$2) -> 45.95381423 | Q113: =F113*(Forecast!$L$8/$F$2) -> 46.25731184 | R113: =F113*(Forecast!$M$8/$F$2) -> 46.56080945 | S113: =F113*(Forecast!$N$8/$F$2) -> 46.92500658 | T113: =F113*(Forecast!$O$8/$F$2) -> 47.22850419 | U113: =F113*(Forecast!$P$8/$F$2) -> 47.5320018 | V113: =F113*(Forecast!$Q$8/$F$2) -> 47.83549941 | W113: =F113*(Forecast!$R$8/$F$2) -> 48.19969654 | X113: =F113*(Forecast!$S$8/$F$2) -> 48.50319415 | Y113: =F113*(Forecast!$T$8/$F$2) -> 48.80669176 | Z113: =F113*(Forecast!$U$8/$F$2) -> 49.11018937 | AA113: =F113*(Forecast!$V$8/$F$2) -> 49.4743865 | AB113: =F113*(Forecast!$W$8/$F$2) -> 49.77788411 | AC113: =F113*(Forecast!$X$8/$F$2) -> 50.08138173 | AD113: =F113*(Forecast!$Y$8/$F$2) -> 50.44557886 | AE113: =F113*(Forecast!$Z$8/$F$2) -> 50.74907647 | AF113: =F113*(Forecast!$AA$8/$F$2) -> 51.05257408 | AG113: =F113*(Forecast!$AB$8/$F$2) -> 51.35607169
A114: 2017-01-05T14:00:00 | B114: 19.51973343 | C114: 10.74366474 | D114: 10.59810829 | E114: 0.001076557324 | F114: 40.86258302 | H114: =F114*(Forecast!$C$8/$F$2) -> 43.91773056 | I114: =F114*(Forecast!$D$8/$F$2) -> 44.35609155 | J114: =F114*(Forecast!$E$8/$F$2) -> 44.47743715 | K114: =F114*(Forecast!$F$8/$F$2) -> 44.65945555 | L114: =F114*(Forecast!$G$8/$F$2) -> 44.78080116 | M114: =F114*(Forecast!$H$8/$F$2) -> 44.96281956 | N114: =F114*(Forecast!$I$8/$F$2) -> 45.32685636 | O114: =F114*(Forecast!$J$8/$F$2) -> 45.63022037 | P114: =F114*(Forecast!$K$8/$F$2) -> 45.93358437 | Q114: =F114*(Forecast!$L$8/$F$2) -> 46.23694837 | R114: =F114*(Forecast!$M$8/$F$2) -> 46.54031238 | S114: =F114*(Forecast!$N$8/$F$2) -> 46.90434918 | T114: =F114*(Forecast!$O$8/$F$2) -> 47.20771319 | U114: =F114*(Forecast!$P$8/$F$2) -> 47.51107719 | V114: =F114*(Forecast!$Q$8/$F$2) -> 47.81444119 | W114: =F114*(Forecast!$R$8/$F$2) -> 48.178478 | X114: =F114*(Forecast!$S$8/$F$2) -> 48.481842 | Y114: =F114*(Forecast!$T$8/$F$2) -> 48.78520601 | Z114: =F114*(Forecast!$U$8/$F$2) -> 49.08857001 | AA114: =F114*(Forecast!$V$8/$F$2) -> 49.45260681 | AB114: =F114*(Forecast!$W$8/$F$2) -> 49.75597082 | AC114: =F114*(Forecast!$X$8/$F$2) -> 50.05933482 | AD114: =F114*(Forecast!$Y$8/$F$2) -> 50.42337163 | AE114: =F114*(Forecast!$Z$8/$F$2) -> 50.72673563 | AF114: =F114*(Forecast!$AA$8/$F$2) -> 51.03009963 | AG114: =F114*(Forecast!$AB$8/$F$2) -> 51.33346364
A115: 2017-01-05T15:00:00 | B115: 19.37002945 | C115: 10.99981022 | D115: 10.7927494 | E115: 0.001953125 | F115: 41.1645422 | H115: =F115*(Forecast!$C$8/$F$2) -> 44.24226614 | I115: =F115*(Forecast!$D$8/$F$2) -> 44.68386645 | J115: =F115*(Forecast!$E$8/$F$2) -> 44.80610875 | K115: =F115*(Forecast!$F$8/$F$2) -> 44.9894722 | L115: =F115*(Forecast!$G$8/$F$2) -> 45.1117145 | M115: =F115*(Forecast!$H$8/$F$2) -> 45.29507795 | N115: =F115*(Forecast!$I$8/$F$2) -> 45.66180485 | O115: =F115*(Forecast!$J$8/$F$2) -> 45.9674106 | P115: =F115*(Forecast!$K$8/$F$2) -> 46.27301635 | Q115: =F115*(Forecast!$L$8/$F$2) -> 46.5786221 | R115: =F115*(Forecast!$M$8/$F$2) -> 46.88422785 | S115: =F115*(Forecast!$N$8/$F$2) -> 47.25095475 | T115: =F115*(Forecast!$O$8/$F$2) -> 47.5565605 | U115: =F115*(Forecast!$P$8/$F$2) -> 47.86216625 | V115: =F115*(Forecast!$Q$8/$F$2) -> 48.167772 | W115: =F115*(Forecast!$R$8/$F$2) -> 48.5344989 | X115: =F115*(Forecast!$S$8/$F$2) -> 48.84010465 | Y115: =F115*(Forecast!$T$8/$F$2) -> 49.1457104 | Z115: =F115*(Forecast!$U$8/$F$2) -> 49.45131615 | AA115: =F115*(Forecast!$V$8/$F$2) -> 49.81804305 | AB115: =F115*(Forecast!$W$8/$F$2) -> 50.1236488 | AC115: =F115*(Forecast!$X$8/$F$2) -> 50.42925455 | AD115: =F115*(Forecast!$Y$8/$F$2) -> 50.79598145 | AE115: =F115*(Forecast!$Z$8/$F$2) -> 51.1015872 | AF115: =F115*(Forecast!$AA$8/$F$2) -> 51.40719295 | AG115: =F115*(Forecast!$AB$8/$F$2) -> 51.7127987
A116: 2017-01-05T16:00:00 | B116: 19.6363945 | C116: 11.30295944 | D116: 11.06987286 | E116: 0.001953125 | F116: 42.01117992 | H116: =F116*(Forecast!$C$8/$F$2) -> 45.15220391 | I116: =F116*(Forecast!$D$8/$F$2) -> 45.60288668 | J116: =F116*(Forecast!$E$8/$F$2) -> 45.72764316 | K116: =F116*(Forecast!$F$8/$F$2) -> 45.91477787 | L116: =F116*(Forecast!$G$8/$F$2) -> 46.03953435 | M116: =F116*(Forecast!$H$8/$F$2) -> 46.22666906 | N116: =F116*(Forecast!$I$8/$F$2) -> 46.60093849 | O116: =F116*(Forecast!$J$8/$F$2) -> 46.91282969 | P116: =F116*(Forecast!$K$8/$F$2) -> 47.22472088 | Q116: =F116*(Forecast!$L$8/$F$2) -> 47.53661207 | R116: =F116*(Forecast!$M$8/$F$2) -> 47.84850327 | S116: =F116*(Forecast!$N$8/$F$2) -> 48.2227727 | T116: =F116*(Forecast!$O$8/$F$2) -> 48.53466389 | U116: =F116*(Forecast!$P$8/$F$2) -> 48.84655508 | V116: =F116*(Forecast!$Q$8/$F$2) -> 49.15844627 | W116: =F116*(Forecast!$R$8/$F$2) -> 49.5327157 | X116: =F116*(Forecast!$S$8/$F$2) -> 49.8446069 | Y116: =F116*(Forecast!$T$8/$F$2) -> 50.15649809 | Z116: =F116*(Forecast!$U$8/$F$2) -> 50.46838928 | AA116: =F116*(Forecast!$V$8/$F$2) -> 50.84265871 | AB116: =F116*(Forecast!$W$8/$F$2) -> 51.15454991 | AC116: =F116*(Forecast!$X$8/$F$2) -> 51.4664411 | AD116: =F116*(Forecast!$Y$8/$F$2) -> 51.84071053 | AE116: =F116*(Forecast!$Z$8/$F$2) -> 52.15260172 | AF116: =F116*(Forecast!$AA$8/$F$2) -> 52.46449291 | AG116: =F116*(Forecast!$AB$8/$F$2) -> 52.77638411
A117: 2017-01-05T17:00:00 | B117: 21.10999298 | C117: 11.70063782 | D117: 11.44315147 | E117: 0.001953125 | F117: 44.2557354 | H117: =F117*(Forecast!$C$8/$F$2) -> 47.56457667 | I117: =F117*(Forecast!$D$8/$F$2) -> 48.03933833 | J117: =F117*(Forecast!$E$8/$F$2) -> 48.17076025 | K117: =F117*(Forecast!$F$8/$F$2) -> 48.36789312 | L117: =F117*(Forecast!$G$8/$F$2) -> 48.49931503 | M117: =F117*(Forecast!$H$8/$F$2) -> 48.6964479 | N117: =F117*(Forecast!$I$8/$F$2) -> 49.09071364 | O117: =F117*(Forecast!$J$8/$F$2) -> 49.41926842 | P117: =F117*(Forecast!$K$8/$F$2) -> 49.7478232 | Q117: =F117*(Forecast!$L$8/$F$2) -> 50.07637799 | R117: =F117*(Forecast!$M$8/$F$2) -> 50.40493277 | S117: =F117*(Forecast!$N$8/$F$2) -> 50.79919851 | T117: =F117*(Forecast!$O$8/$F$2) -> 51.12775329 | U117: =F117*(Forecast!$P$8/$F$2) -> 51.45630807 | V117: =F117*(Forecast!$Q$8/$F$2) -> 51.78486286 | W117: =F117*(Forecast!$R$8/$F$2) -> 52.1791286 | X117: =F117*(Forecast!$S$8/$F$2) -> 52.50768338 | Y117: =F117*(Forecast!$T$8/$F$2) -> 52.83623816 | Z117: =F117*(Forecast!$U$8/$F$2) -> 53.16479294 | AA117: =F117*(Forecast!$V$8/$F$2) -> 53.55905868 | AB117: =F117*(Forecast!$W$8/$F$2) -> 53.88761347 | AC117: =F117*(Forecast!$X$8/$F$2) -> 54.21616825 | AD117: =F117*(Forecast!$Y$8/$F$2) -> 54.61043399 | AE117: =F117*(Forecast!$Z$8/$F$2) -> 54.93898877 | AF117: =F117*(Forecast!$AA$8/$F$2) -> 55.26754355 | AG117: =F117*(Forecast!$AB$8/$F$2) -> 55.59609834
A118: 2017-01-05T18:00:00 | B118: 21.07365608 | C118: 11.69883728 | D118: 11.89328289 | E118: 0.001953125 | F118: 44.66772938 | H118: =F118*(Forecast!$C$8/$F$2) -> 48.00737395 | I118: =F118*(Forecast!$D$8/$F$2) -> 48.48655536 | J118: =F118*(Forecast!$E$8/$F$2) -> 48.61920073 | K118: =F118*(Forecast!$F$8/$F$2) -> 48.81816879 | L118: =F118*(Forecast!$G$8/$F$2) -> 48.95081416 | M118: =F118*(Forecast!$H$8/$F$2) -> 49.14978221 | N118: =F118*(Forecast!$I$8/$F$2) -> 49.54771833 | O118: =F118*(Forecast!$J$8/$F$2) -> 49.87933175 | P118: =F118*(Forecast!$K$8/$F$2) -> 50.21094518 | Q118: =F118*(Forecast!$L$8/$F$2) -> 50.54255861 | R118: =F118*(Forecast!$M$8/$F$2) -> 50.87417204 | S118: =F118*(Forecast!$N$8/$F$2) -> 51.27210815 | T118: =F118*(Forecast!$O$8/$F$2) -> 51.60372158 | U118: =F118*(Forecast!$P$8/$F$2) -> 51.93533501 | V118: =F118*(Forecast!$Q$8/$F$2) -> 52.26694844 | W118: =F118*(Forecast!$R$8/$F$2) -> 52.66488455 | X118: =F118*(Forecast!$S$8/$F$2) -> 52.99649798 | Y118: =F118*(Forecast!$T$8/$F$2) -> 53.3281114 | Z118: =F118*(Forecast!$U$8/$F$2) -> 53.65972483 | AA118: =F118*(Forecast!$V$8/$F$2) -> 54.05766095 | AB118: =F118*(Forecast!$W$8/$F$2) -> 54.38927437 | AC118: =F118*(Forecast!$X$8/$F$2) -> 54.7208878 | AD118: =F118*(Forecast!$Y$8/$F$2) -> 55.11882391 | AE118: =F118*(Forecast!$Z$8/$F$2) -> 55.45043734 | AF118: =F118*(Forecast!$AA$8/$F$2) -> 55.78205077 | AG118: =F118*(Forecast!$AB$8/$F$2) -> 56.1136642
A119: 2017-01-05T19:00:00 | B119: 21.17683983 | C119: 11.77492142 | D119: 11.91941643 | E119: 0.001953125 | F119: 44.8731308 | H119: =F119*(Forecast!$C$8/$F$2) -> 48.2281325 | I119: =F119*(Forecast!$D$8/$F$2) -> 48.70951738 | J119: =F119*(Forecast!$E$8/$F$2) -> 48.84277271 | K119: =F119*(Forecast!$F$8/$F$2) -> 49.04265571 | L119: =F119*(Forecast!$G$8/$F$2) -> 49.17591104 | M119: =F119*(Forecast!$H$8/$F$2) -> 49.37579404 | N119: =F119*(Forecast!$I$8/$F$2) -> 49.77556003 | O119: =F119*(Forecast!$J$8/$F$2) -> 50.10869836 | P119: =F119*(Forecast!$K$8/$F$2) -> 50.44183669 | Q119: =F119*(Forecast!$L$8/$F$2) -> 50.77497502 | R119: =F119*(Forecast!$M$8/$F$2) -> 51.10811335 | S119: =F119*(Forecast!$N$8/$F$2) -> 51.50787934 | T119: =F119*(Forecast!$O$8/$F$2) -> 51.84101767 | U119: =F119*(Forecast!$P$8/$F$2) -> 52.174156 | V119: =F119*(Forecast!$Q$8/$F$2) -> 52.50729433 | W119: =F119*(Forecast!$R$8/$F$2) -> 52.90706033 | X119: =F119*(Forecast!$S$8/$F$2) -> 53.24019866 | Y119: =F119*(Forecast!$T$8/$F$2) -> 53.57333698 | Z119: =F119*(Forecast!$U$8/$F$2) -> 53.90647531 | AA119: =F119*(Forecast!$V$8/$F$2) -> 54.30624131 | AB119: =F119*(Forecast!$W$8/$F$2) -> 54.63937964 | AC119: =F119*(Forecast!$X$8/$F$2) -> 54.97251797 | AD119: =F119*(Forecast!$Y$8/$F$2) -> 55.37228396 | AE119: =F119*(Forecast!$Z$8/$F$2) -> 55.70542229 | AF119: =F119*(Forecast!$AA$8/$F$2) -> 56.03856062 | AG119: =F119*(Forecast!$AB$8/$F$2) -> 56.37169895
A120: 2017-01-05T20:00:00 | B120: 21.36138535 | C120: 11.97520065 | D120: 11.94554996 | E120: 0.001953125 | F120: 45.28408909 | H120: =F120*(Forecast!$C$8/$F$2) -> 48.66981665 | I120: =F120*(Forecast!$D$8/$F$2) -> 49.15561017 | J120: =F120*(Forecast!$E$8/$F$2) -> 49.29008588 | K120: =F120*(Forecast!$F$8/$F$2) -> 49.49179945 | L120: =F120*(Forecast!$G$8/$F$2) -> 49.62627517 | M120: =F120*(Forecast!$H$8/$F$2) -> 49.82798874 | N120: =F120*(Forecast!$I$8/$F$2) -> 50.23141588 | O120: =F120*(Forecast!$J$8/$F$2) -> 50.56760517 | P120: =F120*(Forecast!$K$8/$F$2) -> 50.90379445 | Q120: =F120*(Forecast!$L$8/$F$2) -> 51.23998374 | R120: =F120*(Forecast!$M$8/$F$2) -> 51.57617302 | S120: =F120*(Forecast!$N$8/$F$2) -> 51.97960016 | T120: =F120*(Forecast!$O$8/$F$2) -> 52.31578945 | U120: =F120*(Forecast!$P$8/$F$2) -> 52.65197873 | V120: =F120*(Forecast!$Q$8/$F$2) -> 52.98816802 | W120: =F120*(Forecast!$R$8/$F$2) -> 53.39159516 | X120: =F120*(Forecast!$S$8/$F$2) -> 53.72778445 | Y120: =F120*(Forecast!$T$8/$F$2) -> 54.06397373 | Z120: =F120*(Forecast!$U$8/$F$2) -> 54.40016302 | AA120: =F120*(Forecast!$V$8/$F$2) -> 54.80359016 | AB120: =F120*(Forecast!$W$8/$F$2) -> 55.13977944 | AC120: =F120*(Forecast!$X$8/$F$2) -> 55.47596873 | AD120: =F120*(Forecast!$Y$8/$F$2) -> 55.87939587 | AE120: =F120*(Forecast!$Z$8/$F$2) -> 56.21558516 | AF120: =F120*(Forecast!$AA$8/$F$2) -> 56.55177444 | AG120: =F120*(Forecast!$AB$8/$F$2) -> 56.88796373
A121: 2017-01-05T21:00:00 | B121: 21.60563087 | C121: 12.14690113 | D121: 11.9716835 | E121: 0.001953125 | F121: 45.72616863 | H121: =F121*(Forecast!$C$8/$F$2) -> 49.14494888 | I121: =F121*(Forecast!$D$8/$F$2) -> 49.63548489 | J121: =F121*(Forecast!$E$8/$F$2) -> 49.77127341 | K121: =F121*(Forecast!$F$8/$F$2) -> 49.97495618 | L121: =F121*(Forecast!$G$8/$F$2) -> 50.11074469 | M121: =F121*(Forecast!$H$8/$F$2) -> 50.31442746 | N121: =F121*(Forecast!$I$8/$F$2) -> 50.72179301 | O121: =F121*(Forecast!$J$8/$F$2) -> 51.06126429 | P121: =F121*(Forecast!$K$8/$F$2) -> 51.40073558 | Q121: =F121*(Forecast!$L$8/$F$2) -> 51.74020686 | R121: =F121*(Forecast!$M$8/$F$2) -> 52.07967815 | S121: =F121*(Forecast!$N$8/$F$2) -> 52.48704369 | T121: =F121*(Forecast!$O$8/$F$2) -> 52.82651498 | U121: =F121*(Forecast!$P$8/$F$2) -> 53.16598626 | V121: =F121*(Forecast!$Q$8/$F$2) -> 53.50545755 | W121: =F121*(Forecast!$R$8/$F$2) -> 53.91282309 | X121: =F121*(Forecast!$S$8/$F$2) -> 54.25229438 | Y121: =F121*(Forecast!$T$8/$F$2) -> 54.59176566 | Z121: =F121*(Forecast!$U$8/$F$2) -> 54.93123695 | AA121: =F121*(Forecast!$V$8/$F$2) -> 55.33860249 | AB121: =F121*(Forecast!$W$8/$F$2) -> 55.67807378 | AC121: =F121*(Forecast!$X$8/$F$2) -> 56.01754506 | AD121: =F121*(Forecast!$Y$8/$F$2) -> 56.42491061 | AE121: =F121*(Forecast!$Z$8/$F$2) -> 56.76438189 | AF121: =F121*(Forecast!$AA$8/$F$2) -> 57.10385318 | AG121: =F121*(Forecast!$AB$8/$F$2) -> 57.44332446
A122: 2017-01-05T22:00:00 | B122: 21.39341927 | C122: 11.97397041 | D122: 11.78393841 | E122: 0.001953125 | F122: 45.15328121 | H122: =F122*(Forecast!$C$8/$F$2) -> 48.52922874 | I122: =F122*(Forecast!$D$8/$F$2) -> 49.01361899 | J122: =F122*(Forecast!$E$8/$F$2) -> 49.14770626 | K122: =F122*(Forecast!$F$8/$F$2) -> 49.34883716 | L122: =F122*(Forecast!$G$8/$F$2) -> 49.48292443 | M122: =F122*(Forecast!$H$8/$F$2) -> 49.68405533 | N122: =F122*(Forecast!$I$8/$F$2) -> 50.08631713 | O122: =F122*(Forecast!$J$8/$F$2) -> 50.42153529 | P122: =F122*(Forecast!$K$8/$F$2) -> 50.75675346 | Q122: =F122*(Forecast!$L$8/$F$2) -> 51.09197163 | R122: =F122*(Forecast!$M$8/$F$2) -> 51.4271898 | S122: =F122*(Forecast!$N$8/$F$2) -> 51.8294516 | T122: =F122*(Forecast!$O$8/$F$2) -> 52.16466976 | U122: =F122*(Forecast!$P$8/$F$2) -> 52.49988793 | V122: =F122*(Forecast!$Q$8/$F$2) -> 52.8351061 | W122: =F122*(Forecast!$R$8/$F$2) -> 53.2373679 | X122: =F122*(Forecast!$S$8/$F$2) -> 53.57258606 | Y122: =F122*(Forecast!$T$8/$F$2) -> 53.90780423 | Z122: =F122*(Forecast!$U$8/$F$2) -> 54.2430224 | AA122: =F122*(Forecast!$V$8/$F$2) -> 54.6452842 | AB122: =F122*(Forecast!$W$8/$F$2) -> 54.98050237 | AC122: =F122*(Forecast!$X$8/$F$2) -> 55.31572053 | AD122: =F122*(Forecast!$Y$8/$F$2) -> 55.71798233 | AE122: =F122*(Forecast!$Z$8/$F$2) -> 56.0532005 | AF122: =F122*(Forecast!$AA$8/$F$2) -> 56.38841867 | AG122: =F122*(Forecast!$AB$8/$F$2) -> 56.72363683
A123: 2017-01-05T23:00:00 | B123: 20.89365578 | C123: 11.51996899 | D123: 11.56202126 | E123: 0.001953125 | F123: 43.97759914 | H123: =F123*(Forecast!$C$8/$F$2) -> 47.26564518 | I123: =F123*(Forecast!$D$8/$F$2) -> 47.73742308 | J123: =F123*(Forecast!$E$8/$F$2) -> 47.86801904 | K123: =F123*(Forecast!$F$8/$F$2) -> 48.06391298 | L123: =F123*(Forecast!$G$8/$F$2) -> 48.19450894 | M123: =F123*(Forecast!$H$8/$F$2) -> 48.39040288 | N123: =F123*(Forecast!$I$8/$F$2) -> 48.78219075 | O123: =F123*(Forecast!$J$8/$F$2) -> 49.10868065 | P123: =F123*(Forecast!$K$8/$F$2) -> 49.43517055 | Q123: =F123*(Forecast!$L$8/$F$2) -> 49.76166045 | R123: =F123*(Forecast!$M$8/$F$2) -> 50.08815035 | S123: =F123*(Forecast!$N$8/$F$2) -> 50.47993822 | T123: =F123*(Forecast!$O$8/$F$2) -> 50.80642812 | U123: =F123*(Forecast!$P$8/$F$2) -> 51.13291802 | V123: =F123*(Forecast!$Q$8/$F$2) -> 51.45940792 | W123: =F123*(Forecast!$R$8/$F$2) -> 51.85119579 | X123: =F123*(Forecast!$S$8/$F$2) -> 52.17768569 | Y123: =F123*(Forecast!$T$8/$F$2) -> 52.50417559 | Z123: =F123*(Forecast!$U$8/$F$2) -> 52.83066549 | AA123: =F123*(Forecast!$V$8/$F$2) -> 53.22245337 | AB123: =F123*(Forecast!$W$8/$F$2) -> 53.54894326 | AC123: =F123*(Forecast!$X$8/$F$2) -> 53.87543316 | AD123: =F123*(Forecast!$Y$8/$F$2) -> 54.26722104 | AE123: =F123*(Forecast!$Z$8/$F$2) -> 54.59371094 | AF123: =F123*(Forecast!$AA$8/$F$2) -> 54.92020083 | AG123: =F123*(Forecast!$AB$8/$F$2) -> 55.24669073
A124: 2017-01-06 | B124: 20.52563095 | C124: 11.35903549 | D124: 11.34010315 | E124: 0.001953125 | F124: 43.22672272 | H124: =F124*(Forecast!$C$8/$F$2) -> 46.45862844 | I124: =F124*(Forecast!$D$8/$F$2) -> 46.92235117 | J124: =F124*(Forecast!$E$8/$F$2) -> 47.05071733 | K124: =F124*(Forecast!$F$8/$F$2) -> 47.24326656 | L124: =F124*(Forecast!$G$8/$F$2) -> 47.37163272 | M124: =F124*(Forecast!$H$8/$F$2) -> 47.56418195 | N124: =F124*(Forecast!$I$8/$F$2) -> 47.94928041 | O124: =F124*(Forecast!$J$8/$F$2) -> 48.2701958 | P124: =F124*(Forecast!$K$8/$F$2) -> 48.59111119 | Q124: =F124*(Forecast!$L$8/$F$2) -> 48.91202658 | R124: =F124*(Forecast!$M$8/$F$2) -> 49.23294196 | S124: =F124*(Forecast!$N$8/$F$2) -> 49.61804043 | T124: =F124*(Forecast!$O$8/$F$2) -> 49.93895582 | U124: =F124*(Forecast!$P$8/$F$2) -> 50.25987121 | V124: =F124*(Forecast!$Q$8/$F$2) -> 50.58078659 | W124: =F124*(Forecast!$R$8/$F$2) -> 50.96588506 | X124: =F124*(Forecast!$S$8/$F$2) -> 51.28680045 | Y124: =F124*(Forecast!$T$8/$F$2) -> 51.60771583 | Z124: =F124*(Forecast!$U$8/$F$2) -> 51.92863122 | AA124: =F124*(Forecast!$V$8/$F$2) -> 52.31372969 | AB124: =F124*(Forecast!$W$8/$F$2) -> 52.63464508 | AC124: =F124*(Forecast!$X$8/$F$2) -> 52.95556046 | AD124: =F124*(Forecast!$Y$8/$F$2) -> 53.34065893 | AE124: =F124*(Forecast!$Z$8/$F$2) -> 53.66157432 | AF124: =F124*(Forecast!$AA$8/$F$2) -> 53.9824897 | AG124: =F124*(Forecast!$AB$8/$F$2) -> 54.30340509
A125: 2017-01-06T01:00:00 | B125: 20.56171608 | C125: 11.42203045 | D125: 11.43930435 | E125: 0.001953125 | F125: 43.42500401 | H125: =F125*(Forecast!$C$8/$F$2) -> 46.6717345 | I125: =F125*(Forecast!$D$8/$F$2) -> 47.13758433 | J125: =F125*(Forecast!$E$8/$F$2) -> 47.26653931 | K125: =F125*(Forecast!$F$8/$F$2) -> 47.45997176 | L125: =F125*(Forecast!$G$8/$F$2) -> 47.58892674 | M125: =F125*(Forecast!$H$8/$F$2) -> 47.78235919 | N125: =F125*(Forecast!$I$8/$F$2) -> 48.16922411 | O125: =F125*(Forecast!$J$8/$F$2) -> 48.49161154 | P125: =F125*(Forecast!$K$8/$F$2) -> 48.81399897 | Q125: =F125*(Forecast!$L$8/$F$2) -> 49.13638639 | R125: =F125*(Forecast!$M$8/$F$2) -> 49.45877382 | S125: =F125*(Forecast!$N$8/$F$2) -> 49.84563874 | T125: =F125*(Forecast!$O$8/$F$2) -> 50.16802617 | U125: =F125*(Forecast!$P$8/$F$2) -> 50.4904136 | V125: =F125*(Forecast!$Q$8/$F$2) -> 50.81280103 | W125: =F125*(Forecast!$R$8/$F$2) -> 51.19966594 | X125: =F125*(Forecast!$S$8/$F$2) -> 51.52205337 | Y125: =F125*(Forecast!$T$8/$F$2) -> 51.8444408 | Z125: =F125*(Forecast!$U$8/$F$2) -> 52.16682823 | AA125: =F125*(Forecast!$V$8/$F$2) -> 52.55369314 | AB125: =F125*(Forecast!$W$8/$F$2) -> 52.87608057 | AC125: =F125*(Forecast!$X$8/$F$2) -> 53.198468 | AD125: =F125*(Forecast!$Y$8/$F$2) -> 53.58533292 | AE125: =F125*(Forecast!$Z$8/$F$2) -> 53.90772034 | AF125: =F125*(Forecast!$AA$8/$F$2) -> 54.23010777 | AG125: =F125*(Forecast!$AB$8/$F$2) -> 54.5524952
A126: 2017-01-06T02:00:00 | B126: 21.22678566 | C126: 11.70937824 | D126: 11.74670506 | E126: 0.001953125 | F126: 44.68482208 | H126: =F126*(Forecast!$C$8/$F$2) -> 48.02574462 | I126: =F126*(Forecast!$D$8/$F$2) -> 48.50510939 | J126: =F126*(Forecast!$E$8/$F$2) -> 48.63780552 | K126: =F126*(Forecast!$F$8/$F$2) -> 48.83684971 | L126: =F126*(Forecast!$G$8/$F$2) -> 48.96954584 | M126: =F126*(Forecast!$H$8/$F$2) -> 49.16859004 | N126: =F126*(Forecast!$I$8/$F$2) -> 49.56667842 | O126: =F126*(Forecast!$J$8/$F$2) -> 49.89841875 | P126: =F126*(Forecast!$K$8/$F$2) -> 50.23015907 | Q126: =F126*(Forecast!$L$8/$F$2) -> 50.5618994 | R126: =F126*(Forecast!$M$8/$F$2) -> 50.89363972 | S126: =F126*(Forecast!$N$8/$F$2) -> 51.29172811 | T126: =F126*(Forecast!$O$8/$F$2) -> 51.62346843 | U126: =F126*(Forecast!$P$8/$F$2) -> 51.95520876 | V126: =F126*(Forecast!$Q$8/$F$2) -> 52.28694908 | W126: =F126*(Forecast!$R$8/$F$2) -> 52.68503747 | X126: =F126*(Forecast!$S$8/$F$2) -> 53.0167778 | Y126: =F126*(Forecast!$T$8/$F$2) -> 53.34851812 | Z126: =F126*(Forecast!$U$8/$F$2) -> 53.68025844 | AA126: =F126*(Forecast!$V$8/$F$2) -> 54.07834683 | AB126: =F126*(Forecast!$W$8/$F$2) -> 54.41008716 | AC126: =F126*(Forecast!$X$8/$F$2) -> 54.74182748 | AD126: =F126*(Forecast!$Y$8/$F$2) -> 55.13991587 | AE126: =F126*(Forecast!$Z$8/$F$2) -> 55.4716562 | AF126: =F126*(Forecast!$AA$8/$F$2) -> 55.80339652 | AG126: =F126*(Forecast!$AB$8/$F$2) -> 56.13513684
A127: 2017-01-06T03:00:00 | B127: 21.53467178 | C127: 11.99672508 | D127: 11.94186497 | E127: 0.001953125 | F127: 45.47521496 | H127: =F127*(Forecast!$C$8/$F$2) -> 48.87523231 | I127: =F127*(Forecast!$D$8/$F$2) -> 49.36307617 | J127: =F127*(Forecast!$E$8/$F$2) -> 49.49811945 | K127: =F127*(Forecast!$F$8/$F$2) -> 49.70068437 | L127: =F127*(Forecast!$G$8/$F$2) -> 49.83572765 | M127: =F127*(Forecast!$H$8/$F$2) -> 50.03829258 | N127: =F127*(Forecast!$I$8/$F$2) -> 50.44342242 | O127: =F127*(Forecast!$J$8/$F$2) -> 50.78103063 | P127: =F127*(Forecast!$K$8/$F$2) -> 51.11863883 | Q127: =F127*(Forecast!$L$8/$F$2) -> 51.45624703 | R127: =F127*(Forecast!$M$8/$F$2) -> 51.79385524 | S127: =F127*(Forecast!$N$8/$F$2) -> 52.19898508 | T127: =F127*(Forecast!$O$8/$F$2) -> 52.53659329 | U127: =F127*(Forecast!$P$8/$F$2) -> 52.87420149 | V127: =F127*(Forecast!$Q$8/$F$2) -> 53.2118097 | W127: =F127*(Forecast!$R$8/$F$2) -> 53.61693954 | X127: =F127*(Forecast!$S$8/$F$2) -> 53.95454775 | Y127: =F127*(Forecast!$T$8/$F$2) -> 54.29215595 | Z127: =F127*(Forecast!$U$8/$F$2) -> 54.62976416 | AA127: =F127*(Forecast!$V$8/$F$2) -> 55.034894 | AB127: =F127*(Forecast!$W$8/$F$2) -> 55.37250221 | AC127: =F127*(Forecast!$X$8/$F$2) -> 55.71011041 | AD127: =F127*(Forecast!$Y$8/$F$2) -> 56.11524026 | AE127: =F127*(Forecast!$Z$8/$F$2) -> 56.45284846 | AF127: =F127*(Forecast!$AA$8/$F$2) -> 56.79045667 | AG127: =F127*(Forecast!$AB$8/$F$2) -> 57.12806487
A128: 2017-01-06T04:00:00 | B128: 21.81685448 | C128: 12.34119034 | D128: 12.13269711 | E128: 0.001953125 | F128: 46.29269505 | H128: =F128*(Forecast!$C$8/$F$2) -> 49.75383243 | I128: =F128*(Forecast!$D$8/$F$2) -> 50.25044595 | J128: =F128*(Forecast!$E$8/$F$2) -> 50.38791683 | K128: =F128*(Forecast!$F$8/$F$2) -> 50.59412313 | L128: =F128*(Forecast!$G$8/$F$2) -> 50.73159401 | M128: =F128*(Forecast!$H$8/$F$2) -> 50.93780031 | N128: =F128*(Forecast!$I$8/$F$2) -> 51.35021293 | O128: =F128*(Forecast!$J$8/$F$2) -> 51.69389011 | P128: =F128*(Forecast!$K$8/$F$2) -> 52.03756729 | Q128: =F128*(Forecast!$L$8/$F$2) -> 52.38124447 | R128: =F128*(Forecast!$M$8/$F$2) -> 52.72492165 | S128: =F128*(Forecast!$N$8/$F$2) -> 53.13733427 | T128: =F128*(Forecast!$O$8/$F$2) -> 53.48101145 | U128: =F128*(Forecast!$P$8/$F$2) -> 53.82468863 | V128: =F128*(Forecast!$Q$8/$F$2) -> 54.16836581 | W128: =F128*(Forecast!$R$8/$F$2) -> 54.58077843 | X128: =F128*(Forecast!$S$8/$F$2) -> 54.92445561 | Y128: =F128*(Forecast!$T$8/$F$2) -> 55.26813279 | Z128: =F128*(Forecast!$U$8/$F$2) -> 55.61180997 | AA128: =F128*(Forecast!$V$8/$F$2) -> 56.02422259 | AB128: =F128*(Forecast!$W$8/$F$2) -> 56.36789977 | AC128: =F128*(Forecast!$X$8/$F$2) -> 56.71157695 | AD128: =F128*(Forecast!$Y$8/$F$2) -> 57.12398956 | AE128: =F128*(Forecast!$Z$8/$F$2) -> 57.46766674 | AF128: =F128*(Forecast!$AA$8/$F$2) -> 57.81134392 | AG128: =F128*(Forecast!$AB$8/$F$2) -> 58.1550211
A129: 2017-01-06T05:00:00 | B129: 22.28915787 | C129: 12.70271683 | D129: 12.3537674 | E129: 0.001953125 | F129: 47.34759521 | H129: =F129*(Forecast!$C$8/$F$2) -> 50.88760367 | I129: =F129*(Forecast!$D$8/$F$2) -> 51.39553383 | J129: =F129*(Forecast!$E$8/$F$2) -> 51.53613734 | K129: =F129*(Forecast!$F$8/$F$2) -> 51.7470426 | L129: =F129*(Forecast!$G$8/$F$2) -> 51.8876461 | M129: =F129*(Forecast!$H$8/$F$2) -> 52.09855136 | N129: =F129*(Forecast!$I$8/$F$2) -> 52.52036188 | O129: =F129*(Forecast!$J$8/$F$2) -> 52.87187064 | P129: =F129*(Forecast!$K$8/$F$2) -> 53.22337941 | Q129: =F129*(Forecast!$L$8/$F$2) -> 53.57488817 | R129: =F129*(Forecast!$M$8/$F$2) -> 53.92639693 | S129: =F129*(Forecast!$N$8/$F$2) -> 54.34820745 | T129: =F129*(Forecast!$O$8/$F$2) -> 54.69971621 | U129: =F129*(Forecast!$P$8/$F$2) -> 55.05122498 | V129: =F129*(Forecast!$Q$8/$F$2) -> 55.40273374 | W129: =F129*(Forecast!$R$8/$F$2) -> 55.82454426 | X129: =F129*(Forecast!$S$8/$F$2) -> 56.17605302 | Y129: =F129*(Forecast!$T$8/$F$2) -> 56.52756179 | Z129: =F129*(Forecast!$U$8/$F$2) -> 56.87907055 | AA129: =F129*(Forecast!$V$8/$F$2) -> 57.30088107 | AB129: =F129*(Forecast!$W$8/$F$2) -> 57.65238983 | AC129: =F129*(Forecast!$X$8/$F$2) -> 58.0038986 | AD129: =F129*(Forecast!$Y$8/$F$2) -> 58.42570911 | AE129: =F129*(Forecast!$Z$8/$F$2) -> 58.77721788 | AF129: =F129*(Forecast!$AA$8/$F$2) -> 59.12872664 | AG129: =F129*(Forecast!$AB$8/$F$2) -> 59.48023541
A130: 2017-01-06T06:00:00 | B130: 23.32355881 | C130: 13.50129223 | D130: 12.75933933 | E130: 0.001953125 | F130: 49.58614349 | H130: =F130*(Forecast!$C$8/$F$2) -> 53.2935201 | I130: =F130*(Forecast!$D$8/$F$2) -> 53.82546471 | J130: =F130*(Forecast!$E$8/$F$2) -> 53.97271582 | K130: =F130*(Forecast!$F$8/$F$2) -> 54.19359247 | L130: =F130*(Forecast!$G$8/$F$2) -> 54.34084357 | M130: =F130*(Forecast!$H$8/$F$2) -> 54.56172023 | N130: =F130*(Forecast!$I$8/$F$2) -> 55.00347354 | O130: =F130*(Forecast!$J$8/$F$2) -> 55.37160129 | P130: =F130*(Forecast!$K$8/$F$2) -> 55.73972905 | Q130: =F130*(Forecast!$L$8/$F$2) -> 56.10785681 | R130: =F130*(Forecast!$M$8/$F$2) -> 56.47598456 | S130: =F130*(Forecast!$N$8/$F$2) -> 56.91773787 | T130: =F130*(Forecast!$O$8/$F$2) -> 57.28586563 | U130: =F130*(Forecast!$P$8/$F$2) -> 57.65399338 | V130: =F130*(Forecast!$Q$8/$F$2) -> 58.02212114 | W130: =F130*(Forecast!$R$8/$F$2) -> 58.46387445 | X130: =F130*(Forecast!$S$8/$F$2) -> 58.83200221 | Y130: =F130*(Forecast!$T$8/$F$2) -> 59.20012996 | Z130: =F130*(Forecast!$U$8/$F$2) -> 59.56825772 | AA130: =F130*(Forecast!$V$8/$F$2) -> 60.01001103 | AB130: =F130*(Forecast!$W$8/$F$2) -> 60.37813879 | AC130: =F130*(Forecast!$X$8/$F$2) -> 60.74626654 | AD130: =F130*(Forecast!$Y$8/$F$2) -> 61.18801985 | AE130: =F130*(Forecast!$Z$8/$F$2) -> 61.55614761 | AF130: =F130*(Forecast!$AA$8/$F$2) -> 61.92427536 | AG130: =F130*(Forecast!$AB$8/$F$2) -> 62.29240312
A131: 2017-01-06T07:00:00 | B131: 24.65325928 | C131: 13.95762253 | D131: 13.73153019 | E131: 0.001953125 | F131: 52.34436512 | H131: =F131*(Forecast!$C$8/$F$2) -> 56.25796399 | I131: =F131*(Forecast!$D$8/$F$2) -> 56.81949793 | J131: =F131*(Forecast!$E$8/$F$2) -> 56.97493986 | K131: =F131*(Forecast!$F$8/$F$2) -> 57.20810274 | L131: =F131*(Forecast!$G$8/$F$2) -> 57.36354466 | M131: =F131*(Forecast!$H$8/$F$2) -> 57.59670755 | N131: =F131*(Forecast!$I$8/$F$2) -> 58.06303331 | O131: =F131*(Forecast!$J$8/$F$2) -> 58.45163812 | P131: =F131*(Forecast!$K$8/$F$2) -> 58.84024293 | Q131: =F131*(Forecast!$L$8/$F$2) -> 59.22884773 | R131: =F131*(Forecast!$M$8/$F$2) -> 59.61745254 | S131: =F131*(Forecast!$N$8/$F$2) -> 60.08377831 | T131: =F131*(Forecast!$O$8/$F$2) -> 60.47238312 | U131: =F131*(Forecast!$P$8/$F$2) -> 60.86098792 | V131: =F131*(Forecast!$Q$8/$F$2) -> 61.24959273 | W131: =F131*(Forecast!$R$8/$F$2) -> 61.7159185 | X131: =F131*(Forecast!$S$8/$F$2) -> 62.10452331 | Y131: =F131*(Forecast!$T$8/$F$2) -> 62.49312811 | Z131: =F131*(Forecast!$U$8/$F$2) -> 62.88173292 | AA131: =F131*(Forecast!$V$8/$F$2) -> 63.34805869 | AB131: =F131*(Forecast!$W$8/$F$2) -> 63.73666349 | AC131: =F131*(Forecast!$X$8/$F$2) -> 64.1252683 | AD131: =F131*(Forecast!$Y$8/$F$2) -> 64.59159407 | AE131: =F131*(Forecast!$Z$8/$F$2) -> 64.98019888 | AF131: =F131*(Forecast!$AA$8/$F$2) -> 65.36880368 | AG131: =F131*(Forecast!$AB$8/$F$2) -> 65.75740849
A132: 2017-01-06T08:00:00 | B132: 26.44435692 | C132: 14.77540779 | D132: 14.72209167 | E132: 0.001953125 | F132: 55.94380951 | H132: =F132*(Forecast!$C$8/$F$2) -> 60.12652581 | I132: =F132*(Forecast!$D$8/$F$2) -> 60.72667347 | J132: =F132*(Forecast!$E$8/$F$2) -> 60.89280431 | K132: =F132*(Forecast!$F$8/$F$2) -> 61.14200057 | L132: =F132*(Forecast!$G$8/$F$2) -> 61.30813141 | M132: =F132*(Forecast!$H$8/$F$2) -> 61.55732767 | N132: =F132*(Forecast!$I$8/$F$2) -> 62.05572019 | O132: =F132*(Forecast!$J$8/$F$2) -> 62.47104729 | P132: =F132*(Forecast!$K$8/$F$2) -> 62.88637438 | Q132: =F132*(Forecast!$L$8/$F$2) -> 63.30170148 | R132: =F132*(Forecast!$M$8/$F$2) -> 63.71702858 | S132: =F132*(Forecast!$N$8/$F$2) -> 64.2154211 | T132: =F132*(Forecast!$O$8/$F$2) -> 64.6307482 | U132: =F132*(Forecast!$P$8/$F$2) -> 65.0460753 | V132: =F132*(Forecast!$Q$8/$F$2) -> 65.4614024 | W132: =F132*(Forecast!$R$8/$F$2) -> 65.95979491 | X132: =F132*(Forecast!$S$8/$F$2) -> 66.37512201 | Y132: =F132*(Forecast!$T$8/$F$2) -> 66.79044911 | Z132: =F132*(Forecast!$U$8/$F$2) -> 67.20577621 | AA132: =F132*(Forecast!$V$8/$F$2) -> 67.70416873 | AB132: =F132*(Forecast!$W$8/$F$2) -> 68.11949583 | AC132: =F132*(Forecast!$X$8/$F$2) -> 68.53482292 | AD132: =F132*(Forecast!$Y$8/$F$2) -> 69.03321544 | AE132: =F132*(Forecast!$Z$8/$F$2) -> 69.44854254 | AF132: =F132*(Forecast!$AA$8/$F$2) -> 69.86386964 | AG132: =F132*(Forecast!$AB$8/$F$2) -> 70.27919674
A133: 2017-01-06T09:00:00 | B133: 26.82563019 | C133: 14.69885635 | D133: 14.85281563 | E133: 0.001953125 | F133: 56.37925529 | H133: =F133*(Forecast!$C$8/$F$2) -> 60.59452831 | I133: =F133*(Forecast!$D$8/$F$2) -> 61.19934729 | J133: =F133*(Forecast!$E$8/$F$2) -> 61.36677123 | K133: =F133*(Forecast!$F$8/$F$2) -> 61.61790714 | L133: =F133*(Forecast!$G$8/$F$2) -> 61.78533108 | M133: =F133*(Forecast!$H$8/$F$2) -> 62.03646699 | N133: =F133*(Forecast!$I$8/$F$2) -> 62.53873881 | O133: =F133*(Forecast!$J$8/$F$2) -> 62.95729866 | P133: =F133*(Forecast!$K$8/$F$2) -> 63.37585851 | Q133: =F133*(Forecast!$L$8/$F$2) -> 63.79441836 | R133: =F133*(Forecast!$M$8/$F$2) -> 64.21297821 | S133: =F133*(Forecast!$N$8/$F$2) -> 64.71525003 | T133: =F133*(Forecast!$O$8/$F$2) -> 65.13380988 | U133: =F133*(Forecast!$P$8/$F$2) -> 65.55236973 | V133: =F133*(Forecast!$Q$8/$F$2) -> 65.97092958 | W133: =F133*(Forecast!$R$8/$F$2) -> 66.4732014 | X133: =F133*(Forecast!$S$8/$F$2) -> 66.89176125 | Y133: =F133*(Forecast!$T$8/$F$2) -> 67.3103211 | Z133: =F133*(Forecast!$U$8/$F$2) -> 67.72888095 | AA133: =F133*(Forecast!$V$8/$F$2) -> 68.23115277 | AB133: =F133*(Forecast!$W$8/$F$2) -> 68.64971262 | AC133: =F133*(Forecast!$X$8/$F$2) -> 69.06827247 | AD133: =F133*(Forecast!$Y$8/$F$2) -> 69.57054429 | AE133: =F133*(Forecast!$Z$8/$F$2) -> 69.98910414 | AF133: =F133*(Forecast!$AA$8/$F$2) -> 70.40766399 | AG133: =F133*(Forecast!$AB$8/$F$2) -> 70.82622384
A134: 2017-01-06T10:00:00 | B134: 26.46186447 | C134: 14.7020874 | D134: 14.6700058 | E134: 0.001953125 | F134: =SUM(B134:E134) -> 55.8359108 | H134: =F134*(Forecast!$C$8/$F$2) -> 60.01055991 | I134: =F134*(Forecast!$D$8/$F$2) -> 60.60955006 | J134: =F134*(Forecast!$E$8/$F$2) -> 60.77536048 | K134: =F134*(Forecast!$F$8/$F$2) -> 61.02407612 | L134: =F134*(Forecast!$G$8/$F$2) -> 61.18988654 | M134: =F134*(Forecast!$H$8/$F$2) -> 61.43860218 | N134: =F134*(Forecast!$I$8/$F$2) -> 61.93603345 | O134: =F134*(Forecast!$J$8/$F$2) -> 62.3505595 | P134: =F134*(Forecast!$K$8/$F$2) -> 62.76508556 | Q134: =F134*(Forecast!$L$8/$F$2) -> 63.17961162 | R134: =F134*(Forecast!$M$8/$F$2) -> 63.59413768 | S134: =F134*(Forecast!$N$8/$F$2) -> 64.09156895 | T134: =F134*(Forecast!$O$8/$F$2) -> 64.50609501 | U134: =F134*(Forecast!$P$8/$F$2) -> 64.92062106 | V134: =F134*(Forecast!$Q$8/$F$2) -> 65.33514712 | W134: =F134*(Forecast!$R$8/$F$2) -> 65.83257839 | X134: =F134*(Forecast!$S$8/$F$2) -> 66.24710445 | Y134: =F134*(Forecast!$T$8/$F$2) -> 66.66163051 | Z134: =F134*(Forecast!$U$8/$F$2) -> 67.07615656 | AA134: =F134*(Forecast!$V$8/$F$2) -> 67.57358783 | AB134: =F134*(Forecast!$W$8/$F$2) -> 67.98811389 | AC134: =F134*(Forecast!$X$8/$F$2) -> 68.40263995 | AD134: =F134*(Forecast!$Y$8/$F$2) -> 68.90007122 | AE134: =F134*(Forecast!$Z$8/$F$2) -> 69.31459728 | AF134: =F134*(Forecast!$AA$8/$F$2) -> 69.72912334 | AG134: =F134*(Forecast!$AB$8/$F$2) -> 70.14364939
A135: 2017-01-06T11:00:00 | B135: 26.12295341 | C135: 14.58482265 | D135: 14.50143147 | E135: 0.001953125 | F135: 55.21116066 | H135: =F135*(Forecast!$C$8/$F$2) -> 59.33909946 | I135: =F135*(Forecast!$D$8/$F$2) -> 59.93138749 | J135: =F135*(Forecast!$E$8/$F$2) -> 60.09534265 | K135: =F135*(Forecast!$F$8/$F$2) -> 60.3412754 | L135: =F135*(Forecast!$G$8/$F$2) -> 60.50523056 | M135: =F135*(Forecast!$H$8/$F$2) -> 60.75116331 | N135: =F135*(Forecast!$I$8/$F$2) -> 61.2430288 | O135: =F135*(Forecast!$J$8/$F$2) -> 61.65291671 | P135: =F135*(Forecast!$K$8/$F$2) -> 62.06280462 | Q135: =F135*(Forecast!$L$8/$F$2) -> 62.47269253 | R135: =F135*(Forecast!$M$8/$F$2) -> 62.88258044 | S135: =F135*(Forecast!$N$8/$F$2) -> 63.37444594 | T135: =F135*(Forecast!$O$8/$F$2) -> 63.78433385 | U135: =F135*(Forecast!$P$8/$F$2) -> 64.19422176 | V135: =F135*(Forecast!$Q$8/$F$2) -> 64.60410967 | W135: =F135*(Forecast!$R$8/$F$2) -> 65.09597516 | X135: =F135*(Forecast!$S$8/$F$2) -> 65.50586307 | Y135: =F135*(Forecast!$T$8/$F$2) -> 65.91575098 | Z135: =F135*(Forecast!$U$8/$F$2) -> 66.32563889 | AA135: =F135*(Forecast!$V$8/$F$2) -> 66.81750438 | AB135: =F135*(Forecast!$W$8/$F$2) -> 67.22739229 | AC135: =F135*(Forecast!$X$8/$F$2) -> 67.6372802 | AD135: =F135*(Forecast!$Y$8/$F$2) -> 68.12914569 | AE135: =F135*(Forecast!$Z$8/$F$2) -> 68.5390336 | AF135: =F135*(Forecast!$AA$8/$F$2) -> 68.94892151 | AG135: =F135*(Forecast!$AB$8/$F$2) -> 69.35880942
A136: 2017-01-06T12:00:00 | B136: 25.60406685 | C136: 14.28158283 | D136: 14.33118248 | E136: 0.001953125 | F136: 54.21878529 | H136: =F136*(Forecast!$C$8/$F$2) -> 58.27252777 | I136: =F136*(Forecast!$D$8/$F$2) -> 58.85416991 | J136: =F136*(Forecast!$E$8/$F$2) -> 59.01517811 | K136: =F136*(Forecast!$F$8/$F$2) -> 59.25669042 | L136: =F136*(Forecast!$G$8/$F$2) -> 59.41769862 | M136: =F136*(Forecast!$H$8/$F$2) -> 59.65921093 | N136: =F136*(Forecast!$I$8/$F$2) -> 60.14223554 | O136: =F136*(Forecast!$J$8/$F$2) -> 60.54475605 | P136: =F136*(Forecast!$K$8/$F$2) -> 60.94727656 | Q136: =F136*(Forecast!$L$8/$F$2) -> 61.34979707 | R136: =F136*(Forecast!$M$8/$F$2) -> 61.75231758 | S136: =F136*(Forecast!$N$8/$F$2) -> 62.2353422 | T136: =F136*(Forecast!$O$8/$F$2) -> 62.63786271 | U136: =F136*(Forecast!$P$8/$F$2) -> 63.04038322 | V136: =F136*(Forecast!$Q$8/$F$2) -> 63.44290373 | W136: =F136*(Forecast!$R$8/$F$2) -> 63.92592834 | X136: =F136*(Forecast!$S$8/$F$2) -> 64.32844885 | Y136: =F136*(Forecast!$T$8/$F$2) -> 64.73096936 | Z136: =F136*(Forecast!$U$8/$F$2) -> 65.13348988 | AA136: =F136*(Forecast!$V$8/$F$2) -> 65.61651449 | AB136: =F136*(Forecast!$W$8/$F$2) -> 66.019035 | AC136: =F136*(Forecast!$X$8/$F$2) -> 66.42155551 | AD136: =F136*(Forecast!$Y$8/$F$2) -> 66.90458012 | AE136: =F136*(Forecast!$Z$8/$F$2) -> 67.30710063 | AF136: =F136*(Forecast!$AA$8/$F$2) -> 67.70962114 | AG136: =F136*(Forecast!$AB$8/$F$2) -> 68.11214166
A137: 2017-01-06T13:00:00 | B137: 25.39312935 | C137: 14.13997459 | D137: 14.24493599 | E137: 0.001953125 | F137: 53.77999306 | H137: =F137*(Forecast!$C$8/$F$2) -> 57.80092863 | I137: =F137*(Forecast!$D$8/$F$2) -> 58.37786354 | J137: =F137*(Forecast!$E$8/$F$2) -> 58.53756871 | K137: =F137*(Forecast!$F$8/$F$2) -> 58.77712646 | L137: =F137*(Forecast!$G$8/$F$2) -> 58.93683163 | M137: =F137*(Forecast!$H$8/$F$2) -> 59.17638938 | N137: =F137*(Forecast!$I$8/$F$2) -> 59.65550487 | O137: =F137*(Forecast!$J$8/$F$2) -> 60.05476779 | P137: =F137*(Forecast!$K$8/$F$2) -> 60.4540307 | Q137: =F137*(Forecast!$L$8/$F$2) -> 60.85329362 | R137: =F137*(Forecast!$M$8/$F$2) -> 61.25255653 | S137: =F137*(Forecast!$N$8/$F$2) -> 61.73167203 | T137: =F137*(Forecast!$O$8/$F$2) -> 62.13093495 | U137: =F137*(Forecast!$P$8/$F$2) -> 62.53019786 | V137: =F137*(Forecast!$Q$8/$F$2) -> 62.92946078 | W137: =F137*(Forecast!$R$8/$F$2) -> 63.40857628 | X137: =F137*(Forecast!$S$8/$F$2) -> 63.80783919 | Y137: =F137*(Forecast!$T$8/$F$2) -> 64.20710211 | Z137: =F137*(Forecast!$U$8/$F$2) -> 64.60636502 | AA137: =F137*(Forecast!$V$8/$F$2) -> 65.08548052 | AB137: =F137*(Forecast!$W$8/$F$2) -> 65.48474344 | AC137: =F137*(Forecast!$X$8/$F$2) -> 65.88400635 | AD137: =F137*(Forecast!$Y$8/$F$2) -> 66.36312185 | AE137: =F137*(Forecast!$Z$8/$F$2) -> 66.76238477 | AF137: =F137*(Forecast!$AA$8/$F$2) -> 67.16164768 | AG137: =F137*(Forecast!$AB$8/$F$2) -> 67.5609106
A138: 2017-01-06T14:00:00 | B138: 25.2251358 | C138: 14.20343494 | D138: 14.1586895 | E138: 0.001953125 | F138: 53.58921337 | H138: =F138*(Forecast!$C$8/$F$2) -> 57.59588504 | I138: =F138*(Forecast!$D$8/$F$2) -> 58.17077333 | J138: =F138*(Forecast!$E$8/$F$2) -> 58.32991195 | K138: =F138*(Forecast!$F$8/$F$2) -> 58.56861989 | L138: =F138*(Forecast!$G$8/$F$2) -> 58.72775852 | M138: =F138*(Forecast!$H$8/$F$2) -> 58.96646646 | N138: =F138*(Forecast!$I$8/$F$2) -> 59.44388234 | O138: =F138*(Forecast!$J$8/$F$2) -> 59.8417289 | P138: =F138*(Forecast!$K$8/$F$2) -> 60.23957547 | Q138: =F138*(Forecast!$L$8/$F$2) -> 60.63742204 | R138: =F138*(Forecast!$M$8/$F$2) -> 61.0352686 | S138: =F138*(Forecast!$N$8/$F$2) -> 61.51268448 | T138: =F138*(Forecast!$O$8/$F$2) -> 61.91053105 | U138: =F138*(Forecast!$P$8/$F$2) -> 62.30837761 | V138: =F138*(Forecast!$Q$8/$F$2) -> 62.70622418 | W138: =F138*(Forecast!$R$8/$F$2) -> 63.18364006 | X138: =F138*(Forecast!$S$8/$F$2) -> 63.58148662 | Y138: =F138*(Forecast!$T$8/$F$2) -> 63.97933319 | Z138: =F138*(Forecast!$U$8/$F$2) -> 64.37717976 | AA138: =F138*(Forecast!$V$8/$F$2) -> 64.85459564 | AB138: =F138*(Forecast!$W$8/$F$2) -> 65.2524422 | AC138: =F138*(Forecast!$X$8/$F$2) -> 65.65028877 | AD138: =F138*(Forecast!$Y$8/$F$2) -> 66.12770465 | AE138: =F138*(Forecast!$Z$8/$F$2) -> 66.52555121 | AF138: =F138*(Forecast!$AA$8/$F$2) -> 66.92339778 | AG138: =F138*(Forecast!$AB$8/$F$2) -> 67.32124435
A139: 2017-01-06T15:00:00 | B139: 25.47336578 | C139: 14.23269844 | D139: 14.31281567 | E139: 0.001953125 | F139: 54.02083302 | H139: =F139*(Forecast!$C$8/$F$2) -> 58.05977532 | I139: =F139*(Forecast!$D$8/$F$2) -> 58.63929389 | J139: =F139*(Forecast!$E$8/$F$2) -> 58.79971426 | K139: =F139*(Forecast!$F$8/$F$2) -> 59.0403448 | L139: =F139*(Forecast!$G$8/$F$2) -> 59.20076517 | M139: =F139*(Forecast!$H$8/$F$2) -> 59.44139572 | N139: =F139*(Forecast!$I$8/$F$2) -> 59.92265681 | O139: =F139*(Forecast!$J$8/$F$2) -> 60.32370772 | P139: =F139*(Forecast!$K$8/$F$2) -> 60.72475863 | Q139: =F139*(Forecast!$L$8/$F$2) -> 61.12580955 | R139: =F139*(Forecast!$M$8/$F$2) -> 61.52686046 | S139: =F139*(Forecast!$N$8/$F$2) -> 62.00812155 | T139: =F139*(Forecast!$O$8/$F$2) -> 62.40917247 | U139: =F139*(Forecast!$P$8/$F$2) -> 62.81022338 | V139: =F139*(Forecast!$Q$8/$F$2) -> 63.21127429 | W139: =F139*(Forecast!$R$8/$F$2) -> 63.69253539 | X139: =F139*(Forecast!$S$8/$F$2) -> 64.0935863 | Y139: =F139*(Forecast!$T$8/$F$2) -> 64.49463721 | Z139: =F139*(Forecast!$U$8/$F$2) -> 64.89568812 | AA139: =F139*(Forecast!$V$8/$F$2) -> 65.37694922 | AB139: =F139*(Forecast!$W$8/$F$2) -> 65.77800013 | AC139: =F139*(Forecast!$X$8/$F$2) -> 66.17905104 | AD139: =F139*(Forecast!$Y$8/$F$2) -> 66.66031214 | AE139: =F139*(Forecast!$Z$8/$F$2) -> 67.06136305 | AF139: =F139*(Forecast!$AA$8/$F$2) -> 67.46241396 | AG139: =F139*(Forecast!$AB$8/$F$2) -> 67.86346487
A140: 2017-01-06T16:00:00 | B140: 25.65945435 | C140: 14.42045498 | D140: 14.31281567 | E140: 0.001953125 | F140: 54.39467812 | H140: =F140*(Forecast!$C$8/$F$2) -> 58.46157147 | I140: =F140*(Forecast!$D$8/$F$2) -> 59.04510053 | J140: =F140*(Forecast!$E$8/$F$2) -> 59.20663107 | K140: =F140*(Forecast!$F$8/$F$2) -> 59.44892687 | L140: =F140*(Forecast!$G$8/$F$2) -> 59.61045741 | M140: =F140*(Forecast!$H$8/$F$2) -> 59.85275321 | N140: =F140*(Forecast!$I$8/$F$2) -> 60.33734482 | O140: =F140*(Forecast!$J$8/$F$2) -> 60.74117116 | P140: =F140*(Forecast!$K$8/$F$2) -> 61.1449975 | Q140: =F140*(Forecast!$L$8/$F$2) -> 61.54882384 | R140: =F140*(Forecast!$M$8/$F$2) -> 61.95265018 | S140: =F140*(Forecast!$N$8/$F$2) -> 62.43724179 | T140: =F140*(Forecast!$O$8/$F$2) -> 62.84106813 | U140: =F140*(Forecast!$P$8/$F$2) -> 63.24489447 | V140: =F140*(Forecast!$Q$8/$F$2) -> 63.64872081 | W140: =F140*(Forecast!$R$8/$F$2) -> 64.13331241 | X140: =F140*(Forecast!$S$8/$F$2) -> 64.53713875 | Y140: =F140*(Forecast!$T$8/$F$2) -> 64.94096509 | Z140: =F140*(Forecast!$U$8/$F$2) -> 65.34479143 | AA140: =F140*(Forecast!$V$8/$F$2) -> 65.82938304 | AB140: =F140*(Forecast!$W$8/$F$2) -> 66.23320938 | AC140: =F140*(Forecast!$X$8/$F$2) -> 66.63703572 | AD140: =F140*(Forecast!$Y$8/$F$2) -> 67.12162733 | AE140: =F140*(Forecast!$Z$8/$F$2) -> 67.52545367 | AF140: =F140*(Forecast!$AA$8/$F$2) -> 67.92928001 | AG140: =F140*(Forecast!$AB$8/$F$2) -> 68.33310635
A141: 2017-01-06T17:00:00 | B141: 26.97822571 | C141: 15.0693264 | D141: 15.0142498 | E141: 0.001953125 | F141: 57.06375504 | H141: =F141*(Forecast!$C$8/$F$2) -> 61.33020562 | I141: =F141*(Forecast!$D$8/$F$2) -> 61.9423677 | J141: =F141*(Forecast!$E$8/$F$2) -> 62.11182433 | K141: =F141*(Forecast!$F$8/$F$2) -> 62.36600928 | L141: =F141*(Forecast!$G$8/$F$2) -> 62.53546591 | M141: =F141*(Forecast!$H$8/$F$2) -> 62.78965086 | N141: =F141*(Forecast!$I$8/$F$2) -> 63.29802075 | O141: =F141*(Forecast!$J$8/$F$2) -> 63.72166233 | P141: =F141*(Forecast!$K$8/$F$2) -> 64.14530391 | Q141: =F141*(Forecast!$L$8/$F$2) -> 64.56894549 | R141: =F141*(Forecast!$M$8/$F$2) -> 64.99258707 | S141: =F141*(Forecast!$N$8/$F$2) -> 65.50095697 | T141: =F141*(Forecast!$O$8/$F$2) -> 65.92459854 | U141: =F141*(Forecast!$P$8/$F$2) -> 66.34824012 | V141: =F141*(Forecast!$Q$8/$F$2) -> 66.7718817 | W141: =F141*(Forecast!$R$8/$F$2) -> 67.2802516 | X141: =F141*(Forecast!$S$8/$F$2) -> 67.70389318 | Y141: =F141*(Forecast!$T$8/$F$2) -> 68.12753476 | Z141: =F141*(Forecast!$U$8/$F$2) -> 68.55117634 | AA141: =F141*(Forecast!$V$8/$F$2) -> 69.05954623 | AB141: =F141*(Forecast!$W$8/$F$2) -> 69.48318781 | AC141: =F141*(Forecast!$X$8/$F$2) -> 69.90682939 | AD141: =F141*(Forecast!$Y$8/$F$2) -> 70.41519928 | AE141: =F141*(Forecast!$Z$8/$F$2) -> 70.83884086 | AF141: =F141*(Forecast!$AA$8/$F$2) -> 71.26248244 | AG141: =F141*(Forecast!$AB$8/$F$2) -> 71.68612402
A142: 2017-01-06T18:00:00 | B142: 27.33787918 | C142: 15.37893963 | D142: 15.15496063 | E142: 0.001953125 | F142: 57.87373257 | H142: =F142*(Forecast!$C$8/$F$2) -> 62.20074224 | I142: =F142*(Forecast!$D$8/$F$2) -> 62.82159351 | J142: =F142*(Forecast!$E$8/$F$2) -> 62.99345545 | K142: =F142*(Forecast!$F$8/$F$2) -> 63.25124836 | L142: =F142*(Forecast!$G$8/$F$2) -> 63.42311031 | M142: =F142*(Forecast!$H$8/$F$2) -> 63.68090322 | N142: =F142*(Forecast!$I$8/$F$2) -> 64.19648905 | O142: =F142*(Forecast!$J$8/$F$2) -> 64.6261439 | P142: =F142*(Forecast!$K$8/$F$2) -> 65.05579876 | Q142: =F142*(Forecast!$L$8/$F$2) -> 65.48545361 | R142: =F142*(Forecast!$M$8/$F$2) -> 65.91510847 | S142: =F142*(Forecast!$N$8/$F$2) -> 66.4306943 | T142: =F142*(Forecast!$O$8/$F$2) -> 66.86034915 | U142: =F142*(Forecast!$P$8/$F$2) -> 67.29000401 | V142: =F142*(Forecast!$Q$8/$F$2) -> 67.71965887 | W142: =F142*(Forecast!$R$8/$F$2) -> 68.23524469 | X142: =F142*(Forecast!$S$8/$F$2) -> 68.66489955 | Y142: =F142*(Forecast!$T$8/$F$2) -> 69.09455441 | Z142: =F142*(Forecast!$U$8/$F$2) -> 69.52420926 | AA142: =F142*(Forecast!$V$8/$F$2) -> 70.03979509 | AB142: =F142*(Forecast!$W$8/$F$2) -> 70.46944995 | AC142: =F142*(Forecast!$X$8/$F$2) -> 70.8991048 | AD142: =F142*(Forecast!$Y$8/$F$2) -> 71.41469063 | AE142: =F142*(Forecast!$Z$8/$F$2) -> 71.84434549 | AF142: =F142*(Forecast!$AA$8/$F$2) -> 72.27400034 | AG142: =F142*(Forecast!$AB$8/$F$2) -> 72.7036552
A143: 2017-01-06T19:00:00 | B143: 27.47636032 | C143: 15.44331837 | D143: 15.2681303 | E143: 0.001953125 | F143: 58.18976212 | H143: =F143*(Forecast!$C$8/$F$2) -> 62.54040017 | I143: =F143*(Forecast!$D$8/$F$2) -> 63.16464171 | J143: =F143*(Forecast!$E$8/$F$2) -> 63.33744213 | K143: =F143*(Forecast!$F$8/$F$2) -> 63.59664277 | L143: =F143*(Forecast!$G$8/$F$2) -> 63.76944319 | M143: =F143*(Forecast!$H$8/$F$2) -> 64.02864383 | N143: =F143*(Forecast!$I$8/$F$2) -> 64.5470451 | O143: =F143*(Forecast!$J$8/$F$2) -> 64.97904616 | P143: =F143*(Forecast!$K$8/$F$2) -> 65.41104722 | Q143: =F143*(Forecast!$L$8/$F$2) -> 65.84304829 | R143: =F143*(Forecast!$M$8/$F$2) -> 66.27504935 | S143: =F143*(Forecast!$N$8/$F$2) -> 66.79345062 | T143: =F143*(Forecast!$O$8/$F$2) -> 67.22545168 | U143: =F143*(Forecast!$P$8/$F$2) -> 67.65745274 | V143: =F143*(Forecast!$Q$8/$F$2) -> 68.0894538 | W143: =F143*(Forecast!$R$8/$F$2) -> 68.60785508 | X143: =F143*(Forecast!$S$8/$F$2) -> 69.03985614 | Y143: =F143*(Forecast!$T$8/$F$2) -> 69.4718572 | Z143: =F143*(Forecast!$U$8/$F$2) -> 69.90385826 | AA143: =F143*(Forecast!$V$8/$F$2) -> 70.42225953 | AB143: =F143*(Forecast!$W$8/$F$2) -> 70.85426059 | AC143: =F143*(Forecast!$X$8/$F$2) -> 71.28626165 | AD143: =F143*(Forecast!$Y$8/$F$2) -> 71.80466293 | AE143: =F143*(Forecast!$Z$8/$F$2) -> 72.23666399 | AF143: =F143*(Forecast!$AA$8/$F$2) -> 72.66866505 | AG143: =F143*(Forecast!$AB$8/$F$2) -> 73.10066611
A144: 2017-01-06T20:00:00 | B144: 27.3656311 | C144: 15.35606575 | D144: 15.10744858 | E144: 0.001953125 | F144: 57.83109856 | H144: =F144*(Forecast!$C$8/$F$2) -> 62.15492064 | I144: =F144*(Forecast!$D$8/$F$2) -> 62.77531454 | J144: =F144*(Forecast!$E$8/$F$2) -> 62.94704988 | K144: =F144*(Forecast!$F$8/$F$2) -> 63.20465288 | L144: =F144*(Forecast!$G$8/$F$2) -> 63.37638822 | M144: =F144*(Forecast!$H$8/$F$2) -> 63.63399122 | N144: =F144*(Forecast!$I$8/$F$2) -> 64.14919723 | O144: =F144*(Forecast!$J$8/$F$2) -> 64.57853557 | P144: =F144*(Forecast!$K$8/$F$2) -> 65.00787391 | Q144: =F144*(Forecast!$L$8/$F$2) -> 65.43721226 | R144: =F144*(Forecast!$M$8/$F$2) -> 65.8665506 | S144: =F144*(Forecast!$N$8/$F$2) -> 66.38175661 | T144: =F144*(Forecast!$O$8/$F$2) -> 66.81109495 | U144: =F144*(Forecast!$P$8/$F$2) -> 67.24043329 | V144: =F144*(Forecast!$Q$8/$F$2) -> 67.66977163 | W144: =F144*(Forecast!$R$8/$F$2) -> 68.18497764 | X144: =F144*(Forecast!$S$8/$F$2) -> 68.61431598 | Y144: =F144*(Forecast!$T$8/$F$2) -> 69.04365432 | Z144: =F144*(Forecast!$U$8/$F$2) -> 69.47299266 | AA144: =F144*(Forecast!$V$8/$F$2) -> 69.98819867 | AB144: =F144*(Forecast!$W$8/$F$2) -> 70.41753701 | AC144: =F144*(Forecast!$X$8/$F$2) -> 70.84687535 | AD144: =F144*(Forecast!$Y$8/$F$2) -> 71.36208136 | AE144: =F144*(Forecast!$Z$8/$F$2) -> 71.7914197 | AF144: =F144*(Forecast!$AA$8/$F$2) -> 72.22075804 | AG144: =F144*(Forecast!$AB$8/$F$2) -> 72.65009639
A145: 2017-01-06T21:00:00 | B145: 27.3150444 | C145: 15.22477341 | D145: 15.05983162 | E145: 0.001953125 | F145: 57.60160255 | H145: =F145*(Forecast!$C$8/$F$2) -> 61.90826605 | I145: =F145*(Forecast!$D$8/$F$2) -> 62.52619799 | J145: =F145*(Forecast!$E$8/$F$2) -> 62.69725182 | K145: =F145*(Forecast!$F$8/$F$2) -> 62.95383255 | L145: =F145*(Forecast!$G$8/$F$2) -> 63.12488638 | M145: =F145*(Forecast!$H$8/$F$2) -> 63.38146712 | N145: =F145*(Forecast!$I$8/$F$2) -> 63.89462859 | O145: =F145*(Forecast!$J$8/$F$2) -> 64.32226315 | P145: =F145*(Forecast!$K$8/$F$2) -> 64.74989771 | Q145: =F145*(Forecast!$L$8/$F$2) -> 65.17753227 | R145: =F145*(Forecast!$M$8/$F$2) -> 65.60516684 | S145: =F145*(Forecast!$N$8/$F$2) -> 66.11832831 | T145: =F145*(Forecast!$O$8/$F$2) -> 66.54596287 | U145: =F145*(Forecast!$P$8/$F$2) -> 66.97359743 | V145: =F145*(Forecast!$Q$8/$F$2) -> 67.401232 | W145: =F145*(Forecast!$R$8/$F$2) -> 67.91439347 | X145: =F145*(Forecast!$S$8/$F$2) -> 68.34202803 | Y145: =F145*(Forecast!$T$8/$F$2) -> 68.76966259 | Z145: =F145*(Forecast!$U$8/$F$2) -> 69.19729715 | AA145: =F145*(Forecast!$V$8/$F$2) -> 69.71045863 | AB145: =F145*(Forecast!$W$8/$F$2) -> 70.13809319 | AC145: =F145*(Forecast!$X$8/$F$2) -> 70.56572775 | AD145: =F145*(Forecast!$Y$8/$F$2) -> 71.07888923 | AE145: =F145*(Forecast!$Z$8/$F$2) -> 71.50652379 | AF145: =F145*(Forecast!$AA$8/$F$2) -> 71.93415835 | AG145: =F145*(Forecast!$AB$8/$F$2) -> 72.36179291
A146: 2017-01-06T22:00:00 | B146: 26.44477844 | C146: 14.74272919 | D146: 14.57365227 | E146: 0.001953125 | F146: 55.76311302 | H146: =F146*(Forecast!$C$8/$F$2) -> 59.9323193 | I146: =F146*(Forecast!$D$8/$F$2) -> 60.53052851 | J146: =F146*(Forecast!$E$8/$F$2) -> 60.69612275 | K146: =F146*(Forecast!$F$8/$F$2) -> 60.94451411 | L146: =F146*(Forecast!$G$8/$F$2) -> 61.11010836 | M146: =F146*(Forecast!$H$8/$F$2) -> 61.35849972 | N146: =F146*(Forecast!$I$8/$F$2) -> 61.85528245 | O146: =F146*(Forecast!$J$8/$F$2) -> 62.26926806 | P146: =F146*(Forecast!$K$8/$F$2) -> 62.68325366 | Q146: =F146*(Forecast!$L$8/$F$2) -> 63.09723927 | R146: =F146*(Forecast!$M$8/$F$2) -> 63.51122488 | S146: =F146*(Forecast!$N$8/$F$2) -> 64.00800761 | T146: =F146*(Forecast!$O$8/$F$2) -> 64.42199321 | U146: =F146*(Forecast!$P$8/$F$2) -> 64.83597882 | V146: =F146*(Forecast!$Q$8/$F$2) -> 65.24996443 | W146: =F146*(Forecast!$R$8/$F$2) -> 65.74674715 | X146: =F146*(Forecast!$S$8/$F$2) -> 66.16073276 | Y146: =F146*(Forecast!$T$8/$F$2) -> 66.57471837 | Z146: =F146*(Forecast!$U$8/$F$2) -> 66.98870398 | AA146: =F146*(Forecast!$V$8/$F$2) -> 67.4854867 | AB146: =F146*(Forecast!$W$8/$F$2) -> 67.89947231 | AC146: =F146*(Forecast!$X$8/$F$2) -> 68.31345792 | AD146: =F146*(Forecast!$Y$8/$F$2) -> 68.81024065 | AE146: =F146*(Forecast!$Z$8/$F$2) -> 69.22422625 | AF146: =F146*(Forecast!$AA$8/$F$2) -> 69.63821186 | AG146: =F146*(Forecast!$AB$8/$F$2) -> 70.05219747
A147: 2017-01-06T23:00:00 | B147: 25.74563026 | C147: 14.27921009 | D147: 14.20961857 | E147: 0.001953125 | F147: 54.23641205 | H147: =F147*(Forecast!$C$8/$F$2) -> 58.29147242 | I147: =F147*(Forecast!$D$8/$F$2) -> 58.87330365 | J147: =F147*(Forecast!$E$8/$F$2) -> 59.0343642 | K147: =F147*(Forecast!$F$8/$F$2) -> 59.27595503 | L147: =F147*(Forecast!$G$8/$F$2) -> 59.43701557 | M147: =F147*(Forecast!$H$8/$F$2) -> 59.6786064 | N147: =F147*(Forecast!$I$8/$F$2) -> 60.16178804 | O147: =F147*(Forecast!$J$8/$F$2) -> 60.56443942 | P147: =F147*(Forecast!$K$8/$F$2) -> 60.96709079 | Q147: =F147*(Forecast!$L$8/$F$2) -> 61.36974216 | R147: =F147*(Forecast!$M$8/$F$2) -> 61.77239353 | S147: =F147*(Forecast!$N$8/$F$2) -> 62.25557518 | T147: =F147*(Forecast!$O$8/$F$2) -> 62.65822655 | U147: =F147*(Forecast!$P$8/$F$2) -> 63.06087792 | V147: =F147*(Forecast!$Q$8/$F$2) -> 63.46352929 | W147: =F147*(Forecast!$R$8/$F$2) -> 63.94671094 | X147: =F147*(Forecast!$S$8/$F$2) -> 64.34936231 | Y147: =F147*(Forecast!$T$8/$F$2) -> 64.75201368 | Z147: =F147*(Forecast!$U$8/$F$2) -> 65.15466506 | AA147: =F147*(Forecast!$V$8/$F$2) -> 65.6378467 | AB147: =F147*(Forecast!$W$8/$F$2) -> 66.04049807 | AC147: =F147*(Forecast!$X$8/$F$2) -> 66.44314945 | AD147: =F147*(Forecast!$Y$8/$F$2) -> 66.92633109 | AE147: =F147*(Forecast!$Z$8/$F$2) -> 67.32898246 | AF147: =F147*(Forecast!$AA$8/$F$2) -> 67.73163384 | AG147: =F147*(Forecast!$AB$8/$F$2) -> 68.13428521
A148: 2017-01-07 | B148: 25.05375099 | C148: 14.01879692 | D148: 13.96690464 | E148: 0.001953125 | F148: 53.04140568 | H148: =F148*(Forecast!$C$8/$F$2) -> 57.00711975 | I148: =F148*(Forecast!$D$8/$F$2) -> 57.57613132 | J148: =F148*(Forecast!$E$8/$F$2) -> 57.73364318 | K148: =F148*(Forecast!$F$8/$F$2) -> 57.96991096 | L148: =F148*(Forecast!$G$8/$F$2) -> 58.12742282 | M148: =F148*(Forecast!$H$8/$F$2) -> 58.3636906 | N148: =F148*(Forecast!$I$8/$F$2) -> 58.83622617 | O148: =F148*(Forecast!$J$8/$F$2) -> 59.23000581 | P148: =F148*(Forecast!$K$8/$F$2) -> 59.62378545 | Q148: =F148*(Forecast!$L$8/$F$2) -> 60.01756509 | R148: =F148*(Forecast!$M$8/$F$2) -> 60.41134473 | S148: =F148*(Forecast!$N$8/$F$2) -> 60.88388029 | T148: =F148*(Forecast!$O$8/$F$2) -> 61.27765993 | U148: =F148*(Forecast!$P$8/$F$2) -> 61.67143957 | V148: =F148*(Forecast!$Q$8/$F$2) -> 62.06521921 | W148: =F148*(Forecast!$R$8/$F$2) -> 62.53775478 | X148: =F148*(Forecast!$S$8/$F$2) -> 62.93153442 | Y148: =F148*(Forecast!$T$8/$F$2) -> 63.32531406 | Z148: =F148*(Forecast!$U$8/$F$2) -> 63.7190937 | AA148: =F148*(Forecast!$V$8/$F$2) -> 64.19162926 | AB148: =F148*(Forecast!$W$8/$F$2) -> 64.5854089 | AC148: =F148*(Forecast!$X$8/$F$2) -> 64.97918854 | AD148: =F148*(Forecast!$Y$8/$F$2) -> 65.45172411 | AE148: =F148*(Forecast!$Z$8/$F$2) -> 65.84550375 | AF148: =F148*(Forecast!$AA$8/$F$2) -> 66.23928339 | AG148: =F148*(Forecast!$AB$8/$F$2) -> 66.63306303
A149: 2017-01-07T01:00:00 | B149: 24.30659485 | C149: 13.8628149 | D149: 13.25295639 | E149: 0.001953125 | F149: 51.42431927 | H149: =F149*(Forecast!$C$8/$F$2) -> 55.26912963 | I149: =F149*(Forecast!$D$8/$F$2) -> 55.82079362 | J149: =F149*(Forecast!$E$8/$F$2) -> 55.97350337 | K149: =F149*(Forecast!$F$8/$F$2) -> 56.202568 | L149: =F149*(Forecast!$G$8/$F$2) -> 56.35527775 | M149: =F149*(Forecast!$H$8/$F$2) -> 56.58434238 | N149: =F149*(Forecast!$I$8/$F$2) -> 57.04247164 | O149: =F149*(Forecast!$J$8/$F$2) -> 57.42424602 | P149: =F149*(Forecast!$K$8/$F$2) -> 57.8060204 | Q149: =F149*(Forecast!$L$8/$F$2) -> 58.18779479 | R149: =F149*(Forecast!$M$8/$F$2) -> 58.56956917 | S149: =F149*(Forecast!$N$8/$F$2) -> 59.02769843 | T149: =F149*(Forecast!$O$8/$F$2) -> 59.40947281 | U149: =F149*(Forecast!$P$8/$F$2) -> 59.79124719 | V149: =F149*(Forecast!$Q$8/$F$2) -> 60.17302157 | W149: =F149*(Forecast!$R$8/$F$2) -> 60.63115083 | X149: =F149*(Forecast!$S$8/$F$2) -> 61.01292521 | Y149: =F149*(Forecast!$T$8/$F$2) -> 61.3946996 | Z149: =F149*(Forecast!$U$8/$F$2) -> 61.77647398 | AA149: =F149*(Forecast!$V$8/$F$2) -> 62.23460324 | AB149: =F149*(Forecast!$W$8/$F$2) -> 62.61637762 | AC149: =F149*(Forecast!$X$8/$F$2) -> 62.998152 | AD149: =F149*(Forecast!$Y$8/$F$2) -> 63.45628126 | AE149: =F149*(Forecast!$Z$8/$F$2) -> 63.83805564 | AF149: =F149*(Forecast!$AA$8/$F$2) -> 64.21983002 | AG149: =F149*(Forecast!$AB$8/$F$2) -> 64.60160441
A150: 2017-01-07T02:00:00 | B150: 24.41513824 | C150: 13.8628149 | D150: 13.372612 | E150: 0.001953125 | F150: 51.65251827 | H150: =F150*(Forecast!$C$8/$F$2) -> 55.51439025 | I150: =F150*(Forecast!$D$8/$F$2) -> 56.06850228 | J150: =F150*(Forecast!$E$8/$F$2) -> 56.2218897 | K150: =F150*(Forecast!$F$8/$F$2) -> 56.45197081 | L150: =F150*(Forecast!$G$8/$F$2) -> 56.60535823 | M150: =F150*(Forecast!$H$8/$F$2) -> 56.83543935 | N150: =F150*(Forecast!$I$8/$F$2) -> 57.29560159 | O150: =F150*(Forecast!$J$8/$F$2) -> 57.67907012 | P150: =F150*(Forecast!$K$8/$F$2) -> 58.06253865 | Q150: =F150*(Forecast!$L$8/$F$2) -> 58.44600718 | R150: =F150*(Forecast!$M$8/$F$2) -> 58.82947572 | S150: =F150*(Forecast!$N$8/$F$2) -> 59.28963796 | T150: =F150*(Forecast!$O$8/$F$2) -> 59.67310649 | U150: =F150*(Forecast!$P$8/$F$2) -> 60.05657502 | V150: =F150*(Forecast!$Q$8/$F$2) -> 60.44004355 | W150: =F150*(Forecast!$R$8/$F$2) -> 60.90020579 | X150: =F150*(Forecast!$S$8/$F$2) -> 61.28367433 | Y150: =F150*(Forecast!$T$8/$F$2) -> 61.66714286 | Z150: =F150*(Forecast!$U$8/$F$2) -> 62.05061139 | AA150: =F150*(Forecast!$V$8/$F$2) -> 62.51077363 | AB150: =F150*(Forecast!$W$8/$F$2) -> 62.89424216 | AC150: =F150*(Forecast!$X$8/$F$2) -> 63.2777107 | AD150: =F150*(Forecast!$Y$8/$F$2) -> 63.73787294 | AE150: =F150*(Forecast!$Z$8/$F$2) -> 64.12134147 | AF150: =F150*(Forecast!$AA$8/$F$2) -> 64.50481 | AG150: =F150*(Forecast!$AB$8/$F$2) -> 64.88827853
A151: 2017-01-07T03:00:00 | B151: 24.41206741 | C151: 13.8628149 | D151: 13.49226761 | E151: 0.001953125 | F151: 51.76910305 | H151: =F151*(Forecast!$C$8/$F$2) -> 55.63969165 | I151: =F151*(Forecast!$D$8/$F$2) -> 56.19505437 | J151: =F151*(Forecast!$E$8/$F$2) -> 56.34878799 | K151: =F151*(Forecast!$F$8/$F$2) -> 56.57938843 | L151: =F151*(Forecast!$G$8/$F$2) -> 56.73312205 | M151: =F151*(Forecast!$H$8/$F$2) -> 56.96372248 | N151: =F151*(Forecast!$I$8/$F$2) -> 57.42492335 | O151: =F151*(Forecast!$J$8/$F$2) -> 57.80925741 | P151: =F151*(Forecast!$K$8/$F$2) -> 58.19359147 | Q151: =F151*(Forecast!$L$8/$F$2) -> 58.57792553 | R151: =F151*(Forecast!$M$8/$F$2) -> 58.96225959 | S151: =F151*(Forecast!$N$8/$F$2) -> 59.42346046 | T151: =F151*(Forecast!$O$8/$F$2) -> 59.80779452 | U151: =F151*(Forecast!$P$8/$F$2) -> 60.19212858 | V151: =F151*(Forecast!$Q$8/$F$2) -> 60.57646264 | W151: =F151*(Forecast!$R$8/$F$2) -> 61.03766351 | X151: =F151*(Forecast!$S$8/$F$2) -> 61.42199756 | Y151: =F151*(Forecast!$T$8/$F$2) -> 61.80633162 | Z151: =F151*(Forecast!$U$8/$F$2) -> 62.19066568 | AA151: =F151*(Forecast!$V$8/$F$2) -> 62.65186655 | AB151: =F151*(Forecast!$W$8/$F$2) -> 63.03620061 | AC151: =F151*(Forecast!$X$8/$F$2) -> 63.42053467 | AD151: =F151*(Forecast!$Y$8/$F$2) -> 63.88173554 | AE151: =F151*(Forecast!$Z$8/$F$2) -> 64.2660696 | AF151: =F151*(Forecast!$AA$8/$F$2) -> 64.65040366 | AG151: =F151*(Forecast!$AB$8/$F$2) -> 65.03473772
A152: 2017-01-07T04:00:00 | B152: 24.20222282 | C152: 13.8628149 | D152: 13.61192322 | E152: 0.001953125 | F152: 51.67891407 | H152: =F152*(Forecast!$C$8/$F$2) -> 55.54275957 | I152: =F152*(Forecast!$D$8/$F$2) -> 56.09715476 | J152: =F152*(Forecast!$E$8/$F$2) -> 56.25062056 | K152: =F152*(Forecast!$F$8/$F$2) -> 56.48081926 | L152: =F152*(Forecast!$G$8/$F$2) -> 56.63428506 | M152: =F152*(Forecast!$H$8/$F$2) -> 56.86448375 | N152: =F152*(Forecast!$I$8/$F$2) -> 57.32488115 | O152: =F152*(Forecast!$J$8/$F$2) -> 57.70854564 | P152: =F152*(Forecast!$K$8/$F$2) -> 58.09221014 | Q152: =F152*(Forecast!$L$8/$F$2) -> 58.47587463 | R152: =F152*(Forecast!$M$8/$F$2) -> 58.85953913 | S152: =F152*(Forecast!$N$8/$F$2) -> 59.31993652 | T152: =F152*(Forecast!$O$8/$F$2) -> 59.70360102 | U152: =F152*(Forecast!$P$8/$F$2) -> 60.08726551 | V152: =F152*(Forecast!$Q$8/$F$2) -> 60.47093001 | W152: =F152*(Forecast!$R$8/$F$2) -> 60.9313274 | X152: =F152*(Forecast!$S$8/$F$2) -> 61.3149919 | Y152: =F152*(Forecast!$T$8/$F$2) -> 61.69865639 | Z152: =F152*(Forecast!$U$8/$F$2) -> 62.08232089 | AA152: =F152*(Forecast!$V$8/$F$2) -> 62.54271828 | AB152: =F152*(Forecast!$W$8/$F$2) -> 62.92638278 | AC152: =F152*(Forecast!$X$8/$F$2) -> 63.31004727 | AD152: =F152*(Forecast!$Y$8/$F$2) -> 63.77044467 | AE152: =F152*(Forecast!$Z$8/$F$2) -> 64.15410916 | AF152: =F152*(Forecast!$AA$8/$F$2) -> 64.53777366 | AG152: =F152*(Forecast!$AB$8/$F$2) -> 64.92143815
A153: 2017-01-07T05:00:00 | B153: 24.22304344 | C153: 13.8628149 | D153: 13.73157787 | E153: 0.001953125 | F153: 51.81938934 | H153: =F153*(Forecast!$C$8/$F$2) -> 55.69373767 | I153: =F153*(Forecast!$D$8/$F$2) -> 56.24963984 | J153: =F153*(Forecast!$E$8/$F$2) -> 56.40352279 | K153: =F153*(Forecast!$F$8/$F$2) -> 56.63434722 | L153: =F153*(Forecast!$G$8/$F$2) -> 56.78823018 | M153: =F153*(Forecast!$H$8/$F$2) -> 57.01905461 | N153: =F153*(Forecast!$I$8/$F$2) -> 57.48070347 | O153: =F153*(Forecast!$J$8/$F$2) -> 57.86541085 | P153: =F153*(Forecast!$K$8/$F$2) -> 58.25011824 | Q153: =F153*(Forecast!$L$8/$F$2) -> 58.63482562 | R153: =F153*(Forecast!$M$8/$F$2) -> 59.01953301 | S153: =F153*(Forecast!$N$8/$F$2) -> 59.48118187 | T153: =F153*(Forecast!$O$8/$F$2) -> 59.86588925 | U153: =F153*(Forecast!$P$8/$F$2) -> 60.25059664 | V153: =F153*(Forecast!$Q$8/$F$2) -> 60.63530402 | W153: =F153*(Forecast!$R$8/$F$2) -> 61.09695288 | X153: =F153*(Forecast!$S$8/$F$2) -> 61.48166027 | Y153: =F153*(Forecast!$T$8/$F$2) -> 61.86636765 | Z153: =F153*(Forecast!$U$8/$F$2) -> 62.25107503 | AA153: =F153*(Forecast!$V$8/$F$2) -> 62.7127239 | AB153: =F153*(Forecast!$W$8/$F$2) -> 63.09743128 | AC153: =F153*(Forecast!$X$8/$F$2) -> 63.48213866 | AD153: =F153*(Forecast!$Y$8/$F$2) -> 63.94378753 | AE153: =F153*(Forecast!$Z$8/$F$2) -> 64.32849491 | AF153: =F153*(Forecast!$AA$8/$F$2) -> 64.71320229 | AG153: =F153*(Forecast!$AB$8/$F$2) -> 65.09790968
A154: 2017-01-07T06:00:00 | B154: 24.48978424 | C154: 13.8628149 | D154: 13.85123348 | E154: 0.001953125 | F154: 52.20578575 | H154: =F154*(Forecast!$C$8/$F$2) -> 56.10902354 | I154: =F154*(Forecast!$D$8/$F$2) -> 56.66907085 | J154: =F154*(Forecast!$E$8/$F$2) -> 56.82410125 | K154: =F154*(Forecast!$F$8/$F$2) -> 57.05664684 | L154: =F154*(Forecast!$G$8/$F$2) -> 57.21167724 | M154: =F154*(Forecast!$H$8/$F$2) -> 57.44422284 | N154: =F154*(Forecast!$I$8/$F$2) -> 57.90931403 | O154: =F154*(Forecast!$J$8/$F$2) -> 58.29689002 | P154: =F154*(Forecast!$K$8/$F$2) -> 58.68446601 | Q154: =F154*(Forecast!$L$8/$F$2) -> 59.07204201 | R154: =F154*(Forecast!$M$8/$F$2) -> 59.459618 | S154: =F154*(Forecast!$N$8/$F$2) -> 59.92470919 | T154: =F154*(Forecast!$O$8/$F$2) -> 60.31228518 | U154: =F154*(Forecast!$P$8/$F$2) -> 60.69986118 | V154: =F154*(Forecast!$Q$8/$F$2) -> 61.08743717 | W154: =F154*(Forecast!$R$8/$F$2) -> 61.55252836 | X154: =F154*(Forecast!$S$8/$F$2) -> 61.94010435 | Y154: =F154*(Forecast!$T$8/$F$2) -> 62.32768035 | Z154: =F154*(Forecast!$U$8/$F$2) -> 62.71525634 | AA154: =F154*(Forecast!$V$8/$F$2) -> 63.18034753 | AB154: =F154*(Forecast!$W$8/$F$2) -> 63.56792352 | AC154: =F154*(Forecast!$X$8/$F$2) -> 63.95549952 | AD154: =F154*(Forecast!$Y$8/$F$2) -> 64.42059071 | AE154: =F154*(Forecast!$Z$8/$F$2) -> 64.8081667 | AF154: =F154*(Forecast!$AA$8/$F$2) -> 65.1957427 | AG154: =F154*(Forecast!$AB$8/$F$2) -> 65.58331869
A155: 2017-01-07T07:00:00 | B155: 24.8886776 | C155: 13.91439724 | D155: 13.97088909 | E155: 0.001953125 | F155: 52.77591705 | H155: =F155*(Forecast!$C$8/$F$2) -> 56.7217815 | I155: =F155*(Forecast!$D$8/$F$2) -> 57.287945 | J155: =F155*(Forecast!$E$8/$F$2) -> 57.44466846 | K155: =F155*(Forecast!$F$8/$F$2) -> 57.67975365 | L155: =F155*(Forecast!$G$8/$F$2) -> 57.83647711 | M155: =F155*(Forecast!$H$8/$F$2) -> 58.0715623 | N155: =F155*(Forecast!$I$8/$F$2) -> 58.54173268 | O155: =F155*(Forecast!$J$8/$F$2) -> 58.93354133 | P155: =F155*(Forecast!$K$8/$F$2) -> 59.32534998 | Q155: =F155*(Forecast!$L$8/$F$2) -> 59.71715863 | R155: =F155*(Forecast!$M$8/$F$2) -> 60.10896728 | S155: =F155*(Forecast!$N$8/$F$2) -> 60.57913766 | T155: =F155*(Forecast!$O$8/$F$2) -> 60.97094631 | U155: =F155*(Forecast!$P$8/$F$2) -> 61.36275496 | V155: =F155*(Forecast!$Q$8/$F$2) -> 61.75456361 | W155: =F155*(Forecast!$R$8/$F$2) -> 62.22473399 | X155: =F155*(Forecast!$S$8/$F$2) -> 62.61654264 | Y155: =F155*(Forecast!$T$8/$F$2) -> 63.00835129 | Z155: =F155*(Forecast!$U$8/$F$2) -> 63.40015994 | AA155: =F155*(Forecast!$V$8/$F$2) -> 63.87033032 | AB155: =F155*(Forecast!$W$8/$F$2) -> 64.26213897 | AC155: =F155*(Forecast!$X$8/$F$2) -> 64.65394762 | AD155: =F155*(Forecast!$Y$8/$F$2) -> 65.124118 | AE155: =F155*(Forecast!$Z$8/$F$2) -> 65.51592666 | AF155: =F155*(Forecast!$AA$8/$F$2) -> 65.90773531 | AG155: =F155*(Forecast!$AB$8/$F$2) -> 66.29954396
A156: 2017-01-07T08:00:00 | B156: 25.43140221 | C156: 14.03529263 | D156: 14.18908024 | E156: 0.001953125 | F156: 53.6577282 | H156: =F156*(Forecast!$C$8/$F$2) -> 57.66952247 | I156: =F156*(Forecast!$D$8/$F$2) -> 58.24514576 | J156: =F156*(Forecast!$E$8/$F$2) -> 58.40448785 | K156: =F156*(Forecast!$F$8/$F$2) -> 58.64350098 | L156: =F156*(Forecast!$G$8/$F$2) -> 58.80284307 | M156: =F156*(Forecast!$H$8/$F$2) -> 59.0418562 | N156: =F156*(Forecast!$I$8/$F$2) -> 59.51988247 | O156: =F156*(Forecast!$J$8/$F$2) -> 59.91823769 | P156: =F156*(Forecast!$K$8/$F$2) -> 60.31659291 | Q156: =F156*(Forecast!$L$8/$F$2) -> 60.71494813 | R156: =F156*(Forecast!$M$8/$F$2) -> 61.11330335 | S156: =F156*(Forecast!$N$8/$F$2) -> 61.59132961 | T156: =F156*(Forecast!$O$8/$F$2) -> 61.98968483 | U156: =F156*(Forecast!$P$8/$F$2) -> 62.38804005 | V156: =F156*(Forecast!$Q$8/$F$2) -> 62.78639527 | W156: =F156*(Forecast!$R$8/$F$2) -> 63.26442154 | X156: =F156*(Forecast!$S$8/$F$2) -> 63.66277676 | Y156: =F156*(Forecast!$T$8/$F$2) -> 64.06113198 | Z156: =F156*(Forecast!$U$8/$F$2) -> 64.4594872 | AA156: =F156*(Forecast!$V$8/$F$2) -> 64.93751346 | AB156: =F156*(Forecast!$W$8/$F$2) -> 65.33586868 | AC156: =F156*(Forecast!$X$8/$F$2) -> 65.73422391 | AD156: =F156*(Forecast!$Y$8/$F$2) -> 66.21225017 | AE156: =F156*(Forecast!$Z$8/$F$2) -> 66.61060539 | AF156: =F156*(Forecast!$AA$8/$F$2) -> 67.00896061 | AG156: =F156*(Forecast!$AB$8/$F$2) -> 67.40731583
A157: 2017-01-07T09:00:00 | B157: 26.5456295 | C157: 15.05004883 | D157: 15.00161266 | E157: 0.001953125 | F157: 56.59924412 | H157: =F157*(Forecast!$C$8/$F$2) -> 60.8309649 | I157: =F157*(Forecast!$D$8/$F$2) -> 61.43814385 | J157: =F157*(Forecast!$E$8/$F$2) -> 61.60622107 | K157: =F157*(Forecast!$F$8/$F$2) -> 61.8583369 | L157: =F157*(Forecast!$G$8/$F$2) -> 62.02641412 | M157: =F157*(Forecast!$H$8/$F$2) -> 62.27852995 | N157: =F157*(Forecast!$I$8/$F$2) -> 62.78276161 | O157: =F157*(Forecast!$J$8/$F$2) -> 63.20295465 | P157: =F157*(Forecast!$K$8/$F$2) -> 63.6231477 | Q157: =F157*(Forecast!$L$8/$F$2) -> 64.04334075 | R157: =F157*(Forecast!$M$8/$F$2) -> 64.4635338 | S157: =F157*(Forecast!$N$8/$F$2) -> 64.96776546 | T157: =F157*(Forecast!$O$8/$F$2) -> 65.3879585 | U157: =F157*(Forecast!$P$8/$F$2) -> 65.80815155 | V157: =F157*(Forecast!$Q$8/$F$2) -> 66.2283446 | W157: =F157*(Forecast!$R$8/$F$2) -> 66.73257626 | X157: =F157*(Forecast!$S$8/$F$2) -> 67.15276931 | Y157: =F157*(Forecast!$T$8/$F$2) -> 67.57296235 | Z157: =F157*(Forecast!$U$8/$F$2) -> 67.9931554 | AA157: =F157*(Forecast!$V$8/$F$2) -> 68.49738706 | AB157: =F157*(Forecast!$W$8/$F$2) -> 68.91758011 | AC157: =F157*(Forecast!$X$8/$F$2) -> 69.33777316 | AD157: =F157*(Forecast!$Y$8/$F$2) -> 69.84200481 | AE157: =F157*(Forecast!$Z$8/$F$2) -> 70.26219786 | AF157: =F157*(Forecast!$AA$8/$F$2) -> 70.68239091 | AG157: =F157*(Forecast!$AB$8/$F$2) -> 71.10258396
A158: 2017-01-07T10:00:00 | B158: 26.19721413 | C158: 14.44088745 | D158: 14.53955555 | E158: 0.001953125 | F158: 55.17961025 | H158: =F158*(Forecast!$C$8/$F$2) -> 59.30519014 | I158: =F158*(Forecast!$D$8/$F$2) -> 59.89713971 | J158: =F158*(Forecast!$E$8/$F$2) -> 60.06100118 | K158: =F158*(Forecast!$F$8/$F$2) -> 60.30679339 | L158: =F158*(Forecast!$G$8/$F$2) -> 60.47065486 | M158: =F158*(Forecast!$H$8/$F$2) -> 60.71644707 | N158: =F158*(Forecast!$I$8/$F$2) -> 61.20803149 | O158: =F158*(Forecast!$J$8/$F$2) -> 61.61768517 | P158: =F158*(Forecast!$K$8/$F$2) -> 62.02733885 | Q158: =F158*(Forecast!$L$8/$F$2) -> 62.43699252 | R158: =F158*(Forecast!$M$8/$F$2) -> 62.8466462 | S158: =F158*(Forecast!$N$8/$F$2) -> 63.33823062 | T158: =F158*(Forecast!$O$8/$F$2) -> 63.7478843 | U158: =F158*(Forecast!$P$8/$F$2) -> 64.15753798 | V158: =F158*(Forecast!$Q$8/$F$2) -> 64.56719166 | W158: =F158*(Forecast!$R$8/$F$2) -> 65.05877608 | X158: =F158*(Forecast!$S$8/$F$2) -> 65.46842975 | Y158: =F158*(Forecast!$T$8/$F$2) -> 65.87808343 | Z158: =F158*(Forecast!$U$8/$F$2) -> 66.28773711 | AA158: =F158*(Forecast!$V$8/$F$2) -> 66.77932153 | AB158: =F158*(Forecast!$W$8/$F$2) -> 67.18897521 | AC158: =F158*(Forecast!$X$8/$F$2) -> 67.59862889 | AD158: =F158*(Forecast!$Y$8/$F$2) -> 68.09021331 | AE158: =F158*(Forecast!$Z$8/$F$2) -> 68.49986699 | AF158: =F158*(Forecast!$AA$8/$F$2) -> 68.90952066 | AG158: =F158*(Forecast!$AB$8/$F$2) -> 69.31917434
A159: 2017-01-07T11:00:00 | B159: 25.82257652 | C159: 14.53774548 | D159: 14.28530216 | E159: 0.001953125 | F159: 54.64757729 | H159: =F159*(Forecast!$C$8/$F$2) -> 58.733379 | I159: =F159*(Forecast!$D$8/$F$2) -> 59.31962108 | J159: =F159*(Forecast!$E$8/$F$2) -> 59.48190263 | K159: =F159*(Forecast!$F$8/$F$2) -> 59.72532494 | L159: =F159*(Forecast!$G$8/$F$2) -> 59.88760649 | M159: =F159*(Forecast!$H$8/$F$2) -> 60.13102881 | N159: =F159*(Forecast!$I$8/$F$2) -> 60.61787345 | O159: =F159*(Forecast!$J$8/$F$2) -> 61.02357731 | P159: =F159*(Forecast!$K$8/$F$2) -> 61.42928118 | Q159: =F159*(Forecast!$L$8/$F$2) -> 61.83498504 | R159: =F159*(Forecast!$M$8/$F$2) -> 62.24068891 | S159: =F159*(Forecast!$N$8/$F$2) -> 62.72753354 | T159: =F159*(Forecast!$O$8/$F$2) -> 63.13323741 | U159: =F159*(Forecast!$P$8/$F$2) -> 63.53894127 | V159: =F159*(Forecast!$Q$8/$F$2) -> 63.94464514 | W159: =F159*(Forecast!$R$8/$F$2) -> 64.43148977 | X159: =F159*(Forecast!$S$8/$F$2) -> 64.83719364 | Y159: =F159*(Forecast!$T$8/$F$2) -> 65.2428975 | Z159: =F159*(Forecast!$U$8/$F$2) -> 65.64860137 | AA159: =F159*(Forecast!$V$8/$F$2) -> 66.135446 | AB159: =F159*(Forecast!$W$8/$F$2) -> 66.54114987 | AC159: =F159*(Forecast!$X$8/$F$2) -> 66.94685373 | AD159: =F159*(Forecast!$Y$8/$F$2) -> 67.43369837 | AE159: =F159*(Forecast!$Z$8/$F$2) -> 67.83940224 | AF159: =F159*(Forecast!$AA$8/$F$2) -> 68.2451061 | AG159: =F159*(Forecast!$AB$8/$F$2) -> 68.65080997
A160: 2017-01-07T12:00:00 | B160: 25.38562965 | C160: 13.91837597 | D160: 14.10305023 | E160: 0.001953125 | F160: 53.40900898 | H160: =F160*(Forecast!$C$8/$F$2) -> 57.40220742 | I160: =F160*(Forecast!$D$8/$F$2) -> 57.97516253 | J160: =F160*(Forecast!$E$8/$F$2) -> 58.13376602 | K160: =F160*(Forecast!$F$8/$F$2) -> 58.37167126 | L160: =F160*(Forecast!$G$8/$F$2) -> 58.53027475 | M160: =F160*(Forecast!$H$8/$F$2) -> 58.76817998 | N160: =F160*(Forecast!$I$8/$F$2) -> 59.24399046 | O160: =F160*(Forecast!$J$8/$F$2) -> 59.64049919 | P160: =F160*(Forecast!$K$8/$F$2) -> 60.03700791 | Q160: =F160*(Forecast!$L$8/$F$2) -> 60.43351664 | R160: =F160*(Forecast!$M$8/$F$2) -> 60.83002537 | S160: =F160*(Forecast!$N$8/$F$2) -> 61.30583584 | T160: =F160*(Forecast!$O$8/$F$2) -> 61.70234457 | U160: =F160*(Forecast!$P$8/$F$2) -> 62.0988533 | V160: =F160*(Forecast!$Q$8/$F$2) -> 62.49536203 | W160: =F160*(Forecast!$R$8/$F$2) -> 62.9711725 | X160: =F160*(Forecast!$S$8/$F$2) -> 63.36768123 | Y160: =F160*(Forecast!$T$8/$F$2) -> 63.76418995 | Z160: =F160*(Forecast!$U$8/$F$2) -> 64.16069868 | AA160: =F160*(Forecast!$V$8/$F$2) -> 64.63650916 | AB160: =F160*(Forecast!$W$8/$F$2) -> 65.03301788 | AC160: =F160*(Forecast!$X$8/$F$2) -> 65.42952661 | AD160: =F160*(Forecast!$Y$8/$F$2) -> 65.90533708 | AE160: =F160*(Forecast!$Z$8/$F$2) -> 66.30184581 | AF160: =F160*(Forecast!$AA$8/$F$2) -> 66.69835454 | AG160: =F160*(Forecast!$AB$8/$F$2) -> 67.09486327
A161: 2017-01-07T13:00:00 | B161: 24.99763298 | C161: 13.78949833 | D161: 13.89335251 | E161: 0.001953125 | F161: 52.68243694 | H161: =F161*(Forecast!$C$8/$F$2) -> 56.62131222 | I161: =F161*(Forecast!$D$8/$F$2) -> 57.18647289 | J161: =F161*(Forecast!$E$8/$F$2) -> 57.34291875 | K161: =F161*(Forecast!$F$8/$F$2) -> 57.57758755 | L161: =F161*(Forecast!$G$8/$F$2) -> 57.73403341 | M161: =F161*(Forecast!$H$8/$F$2) -> 57.9687022 | N161: =F161*(Forecast!$I$8/$F$2) -> 58.43803978 | O161: =F161*(Forecast!$J$8/$F$2) -> 58.82915444 | P161: =F161*(Forecast!$K$8/$F$2) -> 59.22026909 | Q161: =F161*(Forecast!$L$8/$F$2) -> 59.61138374 | R161: =F161*(Forecast!$M$8/$F$2) -> 60.0024984 | S161: =F161*(Forecast!$N$8/$F$2) -> 60.47183598 | T161: =F161*(Forecast!$O$8/$F$2) -> 60.86295064 | U161: =F161*(Forecast!$P$8/$F$2) -> 61.25406529 | V161: =F161*(Forecast!$Q$8/$F$2) -> 61.64517994 | W161: =F161*(Forecast!$R$8/$F$2) -> 62.11451753 | X161: =F161*(Forecast!$S$8/$F$2) -> 62.50563218 | Y161: =F161*(Forecast!$T$8/$F$2) -> 62.89674683 | Z161: =F161*(Forecast!$U$8/$F$2) -> 63.28786149 | AA161: =F161*(Forecast!$V$8/$F$2) -> 63.75719907 | AB161: =F161*(Forecast!$W$8/$F$2) -> 64.14831373 | AC161: =F161*(Forecast!$X$8/$F$2) -> 64.53942838 | AD161: =F161*(Forecast!$Y$8/$F$2) -> 65.00876596 | AE161: =F161*(Forecast!$Z$8/$F$2) -> 65.39988062 | AF161: =F161*(Forecast!$AA$8/$F$2) -> 65.79099527 | AG161: =F161*(Forecast!$AB$8/$F$2) -> 66.18210993
A162: 2017-01-07T14:00:00 | B162: 24.86333466 | C162: 13.90685749 | D162: 13.81699657 | E162: 0.001953125 | F162: 52.58914185 | H162: =F162*(Forecast!$C$8/$F$2) -> 56.52104178 | I162: =F162*(Forecast!$D$8/$F$2) -> 57.08520162 | J162: =F162*(Forecast!$E$8/$F$2) -> 57.24137043 | K162: =F162*(Forecast!$F$8/$F$2) -> 57.47562365 | L162: =F162*(Forecast!$G$8/$F$2) -> 57.63179246 | M162: =F162*(Forecast!$H$8/$F$2) -> 57.86604568 | N162: =F162*(Forecast!$I$8/$F$2) -> 58.33455211 | O162: =F162*(Forecast!$J$8/$F$2) -> 58.72497414 | P162: =F162*(Forecast!$K$8/$F$2) -> 59.11539617 | Q162: =F162*(Forecast!$L$8/$F$2) -> 59.50581821 | R162: =F162*(Forecast!$M$8/$F$2) -> 59.89624024 | S162: =F162*(Forecast!$N$8/$F$2) -> 60.36474667 | T162: =F162*(Forecast!$O$8/$F$2) -> 60.7551687 | U162: =F162*(Forecast!$P$8/$F$2) -> 61.14559073 | V162: =F162*(Forecast!$Q$8/$F$2) -> 61.53601276 | W162: =F162*(Forecast!$R$8/$F$2) -> 62.0045192 | X162: =F162*(Forecast!$S$8/$F$2) -> 62.39494123 | Y162: =F162*(Forecast!$T$8/$F$2) -> 62.78536326 | Z162: =F162*(Forecast!$U$8/$F$2) -> 63.17578529 | AA162: =F162*(Forecast!$V$8/$F$2) -> 63.64429173 | AB162: =F162*(Forecast!$W$8/$F$2) -> 64.03471376 | AC162: =F162*(Forecast!$X$8/$F$2) -> 64.42513579 | AD162: =F162*(Forecast!$Y$8/$F$2) -> 64.89364222 | AE162: =F162*(Forecast!$Z$8/$F$2) -> 65.28406426 | AF162: =F162*(Forecast!$AA$8/$F$2) -> 65.67448629 | AG162: =F162*(Forecast!$AB$8/$F$2) -> 66.06490832
A163: 2017-01-07T15:00:00 | B163: 25.09286499 | C163: 14.13756657 | D163: 14.10177994 | E163: 0.004422245082 | F163: 53.33663374 | H163: =F163*(Forecast!$C$8/$F$2) -> 57.32442094 | I163: =F163*(Forecast!$D$8/$F$2) -> 57.89659963 | J163: =F163*(Forecast!$E$8/$F$2) -> 58.0549882 | K163: =F163*(Forecast!$F$8/$F$2) -> 58.29257105 | L163: =F163*(Forecast!$G$8/$F$2) -> 58.45095961 | M163: =F163*(Forecast!$H$8/$F$2) -> 58.68854246 | N163: =F163*(Forecast!$I$8/$F$2) -> 59.16370816 | O163: =F163*(Forecast!$J$8/$F$2) -> 59.55967957 | P163: =F163*(Forecast!$K$8/$F$2) -> 59.95565099 | Q163: =F163*(Forecast!$L$8/$F$2) -> 60.3516224 | R163: =F163*(Forecast!$M$8/$F$2) -> 60.74759381 | S163: =F163*(Forecast!$N$8/$F$2) -> 61.22275951 | T163: =F163*(Forecast!$O$8/$F$2) -> 61.61873092 | U163: =F163*(Forecast!$P$8/$F$2) -> 62.01470234 | V163: =F163*(Forecast!$Q$8/$F$2) -> 62.41067375 | W163: =F163*(Forecast!$R$8/$F$2) -> 62.88583945 | X163: =F163*(Forecast!$S$8/$F$2) -> 63.28181086 | Y163: =F163*(Forecast!$T$8/$F$2) -> 63.67778227 | Z163: =F163*(Forecast!$U$8/$F$2) -> 64.07375369 | AA163: =F163*(Forecast!$V$8/$F$2) -> 64.54891938 | AB163: =F163*(Forecast!$W$8/$F$2) -> 64.9448908 | AC163: =F163*(Forecast!$X$8/$F$2) -> 65.34086221 | AD163: =F163*(Forecast!$Y$8/$F$2) -> 65.81602791 | AE163: =F163*(Forecast!$Z$8/$F$2) -> 66.21199932 | AF163: =F163*(Forecast!$AA$8/$F$2) -> 66.60797074 | AG163: =F163*(Forecast!$AB$8/$F$2) -> 67.00394215
A164: 2017-01-07T16:00:00 | B164: 25.39757919 | C164: 14.27670193 | D164: 14.34841728 | E164: 0.01590652391 | F164: 54.03860493 | H164: =F164*(Forecast!$C$8/$F$2) -> 58.07887598 | I164: =F164*(Forecast!$D$8/$F$2) -> 58.6585852 | J164: =F164*(Forecast!$E$8/$F$2) -> 58.81905834 | K164: =F164*(Forecast!$F$8/$F$2) -> 59.05976805 | L164: =F164*(Forecast!$G$8/$F$2) -> 59.22024119 | M164: =F164*(Forecast!$H$8/$F$2) -> 59.4609509 | N164: =F164*(Forecast!$I$8/$F$2) -> 59.94237032 | O164: =F164*(Forecast!$J$8/$F$2) -> 60.34355317 | P164: =F164*(Forecast!$K$8/$F$2) -> 60.74473602 | Q164: =F164*(Forecast!$L$8/$F$2) -> 61.14591887 | R164: =F164*(Forecast!$M$8/$F$2) -> 61.54710172 | S164: =F164*(Forecast!$N$8/$F$2) -> 62.02852114 | T164: =F164*(Forecast!$O$8/$F$2) -> 62.42970399 | U164: =F164*(Forecast!$P$8/$F$2) -> 62.83088685 | V164: =F164*(Forecast!$Q$8/$F$2) -> 63.2320697 | W164: =F164*(Forecast!$R$8/$F$2) -> 63.71348912 | X164: =F164*(Forecast!$S$8/$F$2) -> 64.11467197 | Y164: =F164*(Forecast!$T$8/$F$2) -> 64.51585482 | Z164: =F164*(Forecast!$U$8/$F$2) -> 64.91703767 | AA164: =F164*(Forecast!$V$8/$F$2) -> 65.39845709 | AB164: =F164*(Forecast!$W$8/$F$2) -> 65.79963994 | AC164: =F164*(Forecast!$X$8/$F$2) -> 66.20082279 | AD164: =F164*(Forecast!$Y$8/$F$2) -> 66.68224221 | AE164: =F164*(Forecast!$Z$8/$F$2) -> 67.08342507 | AF164: =F164*(Forecast!$AA$8/$F$2) -> 67.48460792 | AG164: =F164*(Forecast!$AB$8/$F$2) -> 67.88579077
A165: 2017-01-07T17:00:00 | B165: 26.60949135 | C165: 14.86991978 | D165: 14.86130619 | E165: 0.02739080414 | F165: 56.36810812 | H165: =F165*(Forecast!$C$8/$F$2) -> 60.5825477 | I165: =F165*(Forecast!$D$8/$F$2) -> 61.1872471 | J165: =F165*(Forecast!$E$8/$F$2) -> 61.35463794 | K165: =F165*(Forecast!$F$8/$F$2) -> 61.60572419 | L165: =F165*(Forecast!$G$8/$F$2) -> 61.77311503 | M165: =F165*(Forecast!$H$8/$F$2) -> 62.02420128 | N165: =F165*(Forecast!$I$8/$F$2) -> 62.5263738 | O165: =F165*(Forecast!$J$8/$F$2) -> 62.94485089 | P165: =F165*(Forecast!$K$8/$F$2) -> 63.36332798 | Q165: =F165*(Forecast!$L$8/$F$2) -> 63.78180508 | R165: =F165*(Forecast!$M$8/$F$2) -> 64.20028217 | S165: =F165*(Forecast!$N$8/$F$2) -> 64.70245468 | T165: =F165*(Forecast!$O$8/$F$2) -> 65.12093178 | U165: =F165*(Forecast!$P$8/$F$2) -> 65.53940887 | V165: =F165*(Forecast!$Q$8/$F$2) -> 65.95788596 | W165: =F165*(Forecast!$R$8/$F$2) -> 66.46005847 | X165: =F165*(Forecast!$S$8/$F$2) -> 66.87853557 | Y165: =F165*(Forecast!$T$8/$F$2) -> 67.29701266 | Z165: =F165*(Forecast!$U$8/$F$2) -> 67.71548975 | AA165: =F165*(Forecast!$V$8/$F$2) -> 68.21766227 | AB165: =F165*(Forecast!$W$8/$F$2) -> 68.63613936 | AC165: =F165*(Forecast!$X$8/$F$2) -> 69.05461645 | AD165: =F165*(Forecast!$Y$8/$F$2) -> 69.55678897 | AE165: =F165*(Forecast!$Z$8/$F$2) -> 69.97526606 | AF165: =F165*(Forecast!$AA$8/$F$2) -> 70.39374315 | AG165: =F165*(Forecast!$AB$8/$F$2) -> 70.81222025
A166: 2017-01-07T18:00:00 | B166: 26.78501701 | C166: 15.20427418 | D166: 15.00579643 | E166: 0.03887508437 | F166: 57.03396271 | H166: =F166*(Forecast!$C$8/$F$2) -> 61.29818583 | I166: =F166*(Forecast!$D$8/$F$2) -> 61.9100283 | J166: =F166*(Forecast!$E$8/$F$2) -> 62.07939646 | K166: =F166*(Forecast!$F$8/$F$2) -> 62.33344871 | L166: =F166*(Forecast!$G$8/$F$2) -> 62.50281687 | M166: =F166*(Forecast!$H$8/$F$2) -> 62.75686911 | N166: =F166*(Forecast!$I$8/$F$2) -> 63.26497359 | O166: =F166*(Forecast!$J$8/$F$2) -> 63.68839399 | P166: =F166*(Forecast!$K$8/$F$2) -> 64.11181439 | Q166: =F166*(Forecast!$L$8/$F$2) -> 64.53523479 | R166: =F166*(Forecast!$M$8/$F$2) -> 64.95865519 | S166: =F166*(Forecast!$N$8/$F$2) -> 65.46675967 | T166: =F166*(Forecast!$O$8/$F$2) -> 65.89018007 | U166: =F166*(Forecast!$P$8/$F$2) -> 66.31360047 | V166: =F166*(Forecast!$Q$8/$F$2) -> 66.73702087 | W166: =F166*(Forecast!$R$8/$F$2) -> 67.24512536 | X166: =F166*(Forecast!$S$8/$F$2) -> 67.66854576 | Y166: =F166*(Forecast!$T$8/$F$2) -> 68.09196616 | Z166: =F166*(Forecast!$U$8/$F$2) -> 68.51538656 | AA166: =F166*(Forecast!$V$8/$F$2) -> 69.02349104 | AB166: =F166*(Forecast!$W$8/$F$2) -> 69.44691144 | AC166: =F166*(Forecast!$X$8/$F$2) -> 69.87033184 | AD166: =F166*(Forecast!$Y$8/$F$2) -> 70.37843632 | AE166: =F166*(Forecast!$Z$8/$F$2) -> 70.80185672 | AF166: =F166*(Forecast!$AA$8/$F$2) -> 71.22527712 | AG166: =F166*(Forecast!$AB$8/$F$2) -> 71.64869752
A167: 2017-01-07T19:00:00 | B167: 26.70213127 | C167: 15.15838146 | D167: 15.07232666 | E167: 0.05035936087 | F167: 56.98319875 | H167: =F167*(Forecast!$C$8/$F$2) -> 61.24362643 | I167: =F167*(Forecast!$D$8/$F$2) -> 61.85492433 | J167: =F167*(Forecast!$E$8/$F$2) -> 62.02414175 | K167: =F167*(Forecast!$F$8/$F$2) -> 62.27796786 | L167: =F167*(Forecast!$G$8/$F$2) -> 62.44718527 | M167: =F167*(Forecast!$H$8/$F$2) -> 62.70101139 | N167: =F167*(Forecast!$I$8/$F$2) -> 63.20866363 | O167: =F167*(Forecast!$J$8/$F$2) -> 63.63170716 | P167: =F167*(Forecast!$K$8/$F$2) -> 64.05475069 | Q167: =F167*(Forecast!$L$8/$F$2) -> 64.47779421 | R167: =F167*(Forecast!$M$8/$F$2) -> 64.90083774 | S167: =F167*(Forecast!$N$8/$F$2) -> 65.40848998 | T167: =F167*(Forecast!$O$8/$F$2) -> 65.83153351 | U167: =F167*(Forecast!$P$8/$F$2) -> 66.25457704 | V167: =F167*(Forecast!$Q$8/$F$2) -> 66.67762057 | W167: =F167*(Forecast!$R$8/$F$2) -> 67.1852728 | X167: =F167*(Forecast!$S$8/$F$2) -> 67.60831633 | Y167: =F167*(Forecast!$T$8/$F$2) -> 68.03135986 | Z167: =F167*(Forecast!$U$8/$F$2) -> 68.45440339 | AA167: =F167*(Forecast!$V$8/$F$2) -> 68.96205562 | AB167: =F167*(Forecast!$W$8/$F$2) -> 69.38509915 | AC167: =F167*(Forecast!$X$8/$F$2) -> 69.80814268 | AD167: =F167*(Forecast!$Y$8/$F$2) -> 70.31579492 | AE167: =F167*(Forecast!$Z$8/$F$2) -> 70.73883844 | AF167: =F167*(Forecast!$AA$8/$F$2) -> 71.16188197 | AG167: =F167*(Forecast!$AB$8/$F$2) -> 71.5849255
A168: 2017-01-07T20:00:00 | B168: 26.64562988 | C168: 15.24996662 | D168: 15.11599064 | E168: 0.0618436411 | F168: 57.07343078 | H168: =F168*(Forecast!$C$8/$F$2) -> 61.34060479 | I168: =F168*(Forecast!$D$8/$F$2) -> 61.95287067 | J168: =F168*(Forecast!$E$8/$F$2) -> 62.12235603 | K168: =F168*(Forecast!$F$8/$F$2) -> 62.37658408 | L168: =F168*(Forecast!$G$8/$F$2) -> 62.54606944 | M168: =F168*(Forecast!$H$8/$F$2) -> 62.80029749 | N168: =F168*(Forecast!$I$8/$F$2) -> 63.30875359 | O168: =F168*(Forecast!$J$8/$F$2) -> 63.732467 | P168: =F168*(Forecast!$K$8/$F$2) -> 64.15618041 | Q168: =F168*(Forecast!$L$8/$F$2) -> 64.57989382 | R168: =F168*(Forecast!$M$8/$F$2) -> 65.00360723 | S168: =F168*(Forecast!$N$8/$F$2) -> 65.51206333 | T168: =F168*(Forecast!$O$8/$F$2) -> 65.93577674 | U168: =F168*(Forecast!$P$8/$F$2) -> 66.35949015 | V168: =F168*(Forecast!$Q$8/$F$2) -> 66.78320356 | W168: =F168*(Forecast!$R$8/$F$2) -> 67.29165966 | X168: =F168*(Forecast!$S$8/$F$2) -> 67.71537307 | Y168: =F168*(Forecast!$T$8/$F$2) -> 68.13908648 | Z168: =F168*(Forecast!$U$8/$F$2) -> 68.5627999 | AA168: =F168*(Forecast!$V$8/$F$2) -> 69.07125599 | AB168: =F168*(Forecast!$W$8/$F$2) -> 69.4949694 | AC168: =F168*(Forecast!$X$8/$F$2) -> 69.91868281 | AD168: =F168*(Forecast!$Y$8/$F$2) -> 70.42713891 | AE168: =F168*(Forecast!$Z$8/$F$2) -> 70.85085232 | AF168: =F168*(Forecast!$AA$8/$F$2) -> 71.27456573 | AG168: =F168*(Forecast!$AB$8/$F$2) -> 71.69827914
A169: 2017-01-07T21:00:00 | B169: 26.99361229 | C169: 15.22086906 | D169: 15.03876305 | E169: 0 | F169: 57.2532444 | H169: =F169*(Forecast!$C$8/$F$2) -> 61.53386242 | I169: =F169*(Forecast!$D$8/$F$2) -> 62.14805728 | J169: =F169*(Forecast!$E$8/$F$2) -> 62.31807662 | K169: =F169*(Forecast!$F$8/$F$2) -> 62.57310563 | L169: =F169*(Forecast!$G$8/$F$2) -> 62.74312497 | M169: =F169*(Forecast!$H$8/$F$2) -> 62.99815398 | N169: =F169*(Forecast!$I$8/$F$2) -> 63.508212 | O169: =F169*(Forecast!$J$8/$F$2) -> 63.93326035 | P169: =F169*(Forecast!$K$8/$F$2) -> 64.3583087 | Q169: =F169*(Forecast!$L$8/$F$2) -> 64.78335705 | R169: =F169*(Forecast!$M$8/$F$2) -> 65.20840539 | S169: =F169*(Forecast!$N$8/$F$2) -> 65.71846341 | T169: =F169*(Forecast!$O$8/$F$2) -> 66.14351176 | U169: =F169*(Forecast!$P$8/$F$2) -> 66.56856011 | V169: =F169*(Forecast!$Q$8/$F$2) -> 66.99360846 | W169: =F169*(Forecast!$R$8/$F$2) -> 67.50366648 | X169: =F169*(Forecast!$S$8/$F$2) -> 67.92871483 | Y169: =F169*(Forecast!$T$8/$F$2) -> 68.35376318 | Z169: =F169*(Forecast!$U$8/$F$2) -> 68.77881153 | AA169: =F169*(Forecast!$V$8/$F$2) -> 69.28886955 | AB169: =F169*(Forecast!$W$8/$F$2) -> 69.7139179 | AC169: =F169*(Forecast!$X$8/$F$2) -> 70.13896625 | AD169: =F169*(Forecast!$Y$8/$F$2) -> 70.64902426 | AE169: =F169*(Forecast!$Z$8/$F$2) -> 71.07407261 | AF169: =F169*(Forecast!$AA$8/$F$2) -> 71.49912096 | AG169: =F169*(Forecast!$AB$8/$F$2) -> 71.92416931
A170: 2017-01-07T22:00:00 | B170: 26.64562988 | C170: 14.93105412 | D170: 14.76283741 | E170: 0 | F170: 56.33952141 | H170: =F170*(Forecast!$C$8/$F$2) -> 60.55182366 | I170: =F170*(Forecast!$D$8/$F$2) -> 61.15621639 | J170: =F170*(Forecast!$E$8/$F$2) -> 61.32352234 | K170: =F170*(Forecast!$F$8/$F$2) -> 61.57448126 | L170: =F170*(Forecast!$G$8/$F$2) -> 61.7417872 | M170: =F170*(Forecast!$H$8/$F$2) -> 61.99274612 | N170: =F170*(Forecast!$I$8/$F$2) -> 62.49466396 | O170: =F170*(Forecast!$J$8/$F$2) -> 62.91292883 | P170: =F170*(Forecast!$K$8/$F$2) -> 63.33119369 | Q170: =F170*(Forecast!$L$8/$F$2) -> 63.74945856 | R170: =F170*(Forecast!$M$8/$F$2) -> 64.16772342 | S170: =F170*(Forecast!$N$8/$F$2) -> 64.66964126 | T170: =F170*(Forecast!$O$8/$F$2) -> 65.08790613 | U170: =F170*(Forecast!$P$8/$F$2) -> 65.50617099 | V170: =F170*(Forecast!$Q$8/$F$2) -> 65.92443586 | W170: =F170*(Forecast!$R$8/$F$2) -> 66.4263537 | X170: =F170*(Forecast!$S$8/$F$2) -> 66.84461856 | Y170: =F170*(Forecast!$T$8/$F$2) -> 67.26288343 | Z170: =F170*(Forecast!$U$8/$F$2) -> 67.68114829 | AA170: =F170*(Forecast!$V$8/$F$2) -> 68.18306613 | AB170: =F170*(Forecast!$W$8/$F$2) -> 68.601331 | AC170: =F170*(Forecast!$X$8/$F$2) -> 69.01959586 | AD170: =F170*(Forecast!$Y$8/$F$2) -> 69.5215137 | AE170: =F170*(Forecast!$Z$8/$F$2) -> 69.93977857 | AF170: =F170*(Forecast!$AA$8/$F$2) -> 70.35804343 | AG170: =F170*(Forecast!$AB$8/$F$2) -> 70.7763083
A171: 2017-01-07T23:00:00 | B171: 26.64562988 | C171: 14.73095512 | D171: 14.48530388 | E171: 0 | F171: 55.86188889 | H171: =F171*(Forecast!$C$8/$F$2) -> 60.03848028 | I171: =F171*(Forecast!$D$8/$F$2) -> 60.63774912 | J171: =F171*(Forecast!$E$8/$F$2) -> 60.80363669 | K171: =F171*(Forecast!$F$8/$F$2) -> 61.05246804 | L171: =F171*(Forecast!$G$8/$F$2) -> 61.21835561 | M171: =F171*(Forecast!$H$8/$F$2) -> 61.46718696 | N171: =F171*(Forecast!$I$8/$F$2) -> 61.96484966 | O171: =F171*(Forecast!$J$8/$F$2) -> 62.37956858 | P171: =F171*(Forecast!$K$8/$F$2) -> 62.7942875 | Q171: =F171*(Forecast!$L$8/$F$2) -> 63.20900642 | R171: =F171*(Forecast!$M$8/$F$2) -> 63.62372534 | S171: =F171*(Forecast!$N$8/$F$2) -> 64.12138804 | T171: =F171*(Forecast!$O$8/$F$2) -> 64.53610696 | U171: =F171*(Forecast!$P$8/$F$2) -> 64.95082588 | V171: =F171*(Forecast!$Q$8/$F$2) -> 65.3655448 | W171: =F171*(Forecast!$R$8/$F$2) -> 65.86320751 | X171: =F171*(Forecast!$S$8/$F$2) -> 66.27792643 | Y171: =F171*(Forecast!$T$8/$F$2) -> 66.69264534 | Z171: =F171*(Forecast!$U$8/$F$2) -> 67.10736426 | AA171: =F171*(Forecast!$V$8/$F$2) -> 67.60502697 | AB171: =F171*(Forecast!$W$8/$F$2) -> 68.01974589 | AC171: =F171*(Forecast!$X$8/$F$2) -> 68.43446481 | AD171: =F171*(Forecast!$Y$8/$F$2) -> 68.93212751 | AE171: =F171*(Forecast!$Z$8/$F$2) -> 69.34684643 | AF171: =F171*(Forecast!$AA$8/$F$2) -> 69.76156535 | AG171: =F171*(Forecast!$AB$8/$F$2) -> 70.17628427
A172: 2017-01-08 | B172: 25.71572685 | C172: 14.64590931 | D172: 14.40281487 | E172: 0 | F172: 54.76445103 | H172: =F172*(Forecast!$C$8/$F$2) -> 58.85899096 | I172: =F172*(Forecast!$D$8/$F$2) -> 59.44648683 | J172: =F172*(Forecast!$E$8/$F$2) -> 59.60911545 | K172: =F172*(Forecast!$F$8/$F$2) -> 59.85305837 | L172: =F172*(Forecast!$G$8/$F$2) -> 60.01568698 | M172: =F172*(Forecast!$H$8/$F$2) -> 60.2596299 | N172: =F172*(Forecast!$I$8/$F$2) -> 60.74751575 | O172: =F172*(Forecast!$J$8/$F$2) -> 61.15408728 | P172: =F172*(Forecast!$K$8/$F$2) -> 61.56065882 | Q172: =F172*(Forecast!$L$8/$F$2) -> 61.96723035 | R172: =F172*(Forecast!$M$8/$F$2) -> 62.37380189 | S172: =F172*(Forecast!$N$8/$F$2) -> 62.86168773 | T172: =F172*(Forecast!$O$8/$F$2) -> 63.26825927 | U172: =F172*(Forecast!$P$8/$F$2) -> 63.6748308 | V172: =F172*(Forecast!$Q$8/$F$2) -> 64.08140234 | W172: =F172*(Forecast!$R$8/$F$2) -> 64.56928818 | X172: =F172*(Forecast!$S$8/$F$2) -> 64.97585972 | Y172: =F172*(Forecast!$T$8/$F$2) -> 65.38243126 | Z172: =F172*(Forecast!$U$8/$F$2) -> 65.78900279 | AA172: =F172*(Forecast!$V$8/$F$2) -> 66.27688863 | AB172: =F172*(Forecast!$W$8/$F$2) -> 66.68346017 | AC172: =F172*(Forecast!$X$8/$F$2) -> 67.09003171 | AD172: =F172*(Forecast!$Y$8/$F$2) -> 67.57791755 | AE172: =F172*(Forecast!$Z$8/$F$2) -> 67.98448908 | AF172: =F172*(Forecast!$AA$8/$F$2) -> 68.39106062 | AG172: =F172*(Forecast!$AB$8/$F$2) -> 68.79763216
A173: 2017-01-08T01:00:00 | B173: 25.56562996 | C173: 14.60798359 | D173: 14.40281487 | E173: 0 | F173: 54.57642841 | H173: =F173*(Forecast!$C$8/$F$2) -> 58.65691058 | I173: =F173*(Forecast!$D$8/$F$2) -> 59.2423894 | J173: =F173*(Forecast!$E$8/$F$2) -> 59.40445966 | K173: =F173*(Forecast!$F$8/$F$2) -> 59.64756506 | L173: =F173*(Forecast!$G$8/$F$2) -> 59.80963532 | M173: =F173*(Forecast!$H$8/$F$2) -> 60.05274071 | N173: =F173*(Forecast!$I$8/$F$2) -> 60.5389515 | O173: =F173*(Forecast!$J$8/$F$2) -> 60.94412715 | P173: =F173*(Forecast!$K$8/$F$2) -> 61.34930281 | Q173: =F173*(Forecast!$L$8/$F$2) -> 61.75447846 | R173: =F173*(Forecast!$M$8/$F$2) -> 62.15965412 | S173: =F173*(Forecast!$N$8/$F$2) -> 62.6458649 | T173: =F173*(Forecast!$O$8/$F$2) -> 63.05104056 | U173: =F173*(Forecast!$P$8/$F$2) -> 63.45621621 | V173: =F173*(Forecast!$Q$8/$F$2) -> 63.86139187 | W173: =F173*(Forecast!$R$8/$F$2) -> 64.34760265 | X173: =F173*(Forecast!$S$8/$F$2) -> 64.75277831 | Y173: =F173*(Forecast!$T$8/$F$2) -> 65.15795396 | Z173: =F173*(Forecast!$U$8/$F$2) -> 65.56312962 | AA173: =F173*(Forecast!$V$8/$F$2) -> 66.04934041 | AB173: =F173*(Forecast!$W$8/$F$2) -> 66.45451606 | AC173: =F173*(Forecast!$X$8/$F$2) -> 66.85969172 | AD173: =F173*(Forecast!$Y$8/$F$2) -> 67.3459025 | AE173: =F173*(Forecast!$Z$8/$F$2) -> 67.75107816 | AF173: =F173*(Forecast!$AA$8/$F$2) -> 68.15625381 | AG173: =F173*(Forecast!$AB$8/$F$2) -> 68.56142947
A174: 2017-01-08T02:00:00 | B174: 25.38562965 | C174: 14.57005692 | D174: 14.40281487 | E174: 0 | F174: 54.35850143 | H174: =F174*(Forecast!$C$8/$F$2) -> 58.42268999 | I174: =F174*(Forecast!$D$8/$F$2) -> 59.00583096 | J174: =F174*(Forecast!$E$8/$F$2) -> 59.16725406 | K174: =F174*(Forecast!$F$8/$F$2) -> 59.40938872 | L174: =F174*(Forecast!$G$8/$F$2) -> 59.57081183 | M174: =F174*(Forecast!$H$8/$F$2) -> 59.81294649 | N174: =F174*(Forecast!$I$8/$F$2) -> 60.2972158 | O174: =F174*(Forecast!$J$8/$F$2) -> 60.70077357 | P174: =F174*(Forecast!$K$8/$F$2) -> 61.10433133 | Q174: =F174*(Forecast!$L$8/$F$2) -> 61.5078891 | R174: =F174*(Forecast!$M$8/$F$2) -> 61.91144686 | S174: =F174*(Forecast!$N$8/$F$2) -> 62.39571618 | T174: =F174*(Forecast!$O$8/$F$2) -> 62.79927394 | U174: =F174*(Forecast!$P$8/$F$2) -> 63.2028317 | V174: =F174*(Forecast!$Q$8/$F$2) -> 63.60638947 | W174: =F174*(Forecast!$R$8/$F$2) -> 64.09065879 | X174: =F174*(Forecast!$S$8/$F$2) -> 64.49421655 | Y174: =F174*(Forecast!$T$8/$F$2) -> 64.89777431 | Z174: =F174*(Forecast!$U$8/$F$2) -> 65.30133208 | AA174: =F174*(Forecast!$V$8/$F$2) -> 65.78560139 | AB174: =F174*(Forecast!$W$8/$F$2) -> 66.18915916 | AC174: =F174*(Forecast!$X$8/$F$2) -> 66.59271692 | AD174: =F174*(Forecast!$Y$8/$F$2) -> 67.07698624 | AE174: =F174*(Forecast!$Z$8/$F$2) -> 67.480544 | AF174: =F174*(Forecast!$AA$8/$F$2) -> 67.88410177 | AG174: =F174*(Forecast!$AB$8/$F$2) -> 68.28765953
A175: 2017-01-08T03:00:00 | B175: 25.51207352 | C175: 14.5321312 | D175: 14.40281487 | E175: 0 | F175: 54.44701958 | H175: =F175*(Forecast!$C$8/$F$2) -> 58.51782631 | I175: =F175*(Forecast!$D$8/$F$2) -> 59.10191688 | J175: =F175*(Forecast!$E$8/$F$2) -> 59.26360285 | K175: =F175*(Forecast!$F$8/$F$2) -> 59.5061318 | L175: =F175*(Forecast!$G$8/$F$2) -> 59.66781777 | M175: =F175*(Forecast!$H$8/$F$2) -> 59.91034672 | N175: =F175*(Forecast!$I$8/$F$2) -> 60.39540463 | O175: =F175*(Forecast!$J$8/$F$2) -> 60.79961955 | P175: =F175*(Forecast!$K$8/$F$2) -> 61.20383448 | Q175: =F175*(Forecast!$L$8/$F$2) -> 61.6080494 | R175: =F175*(Forecast!$M$8/$F$2) -> 62.01226432 | S175: =F175*(Forecast!$N$8/$F$2) -> 62.49732223 | T175: =F175*(Forecast!$O$8/$F$2) -> 62.90153715 | U175: =F175*(Forecast!$P$8/$F$2) -> 63.30575208 | V175: =F175*(Forecast!$Q$8/$F$2) -> 63.709967 | W175: =F175*(Forecast!$R$8/$F$2) -> 64.19502491 | X175: =F175*(Forecast!$S$8/$F$2) -> 64.59923983 | Y175: =F175*(Forecast!$T$8/$F$2) -> 65.00345476 | Z175: =F175*(Forecast!$U$8/$F$2) -> 65.40766968 | AA175: =F175*(Forecast!$V$8/$F$2) -> 65.89272759 | AB175: =F175*(Forecast!$W$8/$F$2) -> 66.29694251 | AC175: =F175*(Forecast!$X$8/$F$2) -> 66.70115743 | AD175: =F175*(Forecast!$Y$8/$F$2) -> 67.18621534 | AE175: =F175*(Forecast!$Z$8/$F$2) -> 67.59043026 | AF175: =F175*(Forecast!$AA$8/$F$2) -> 67.99464519 | AG175: =F175*(Forecast!$AB$8/$F$2) -> 68.39886011
A176: 2017-01-08T04:00:00 | B176: 25.56562996 | C176: 14.49420547 | D176: 14.40281487 | E176: 0 | F176: 54.4626503 | H176: =F176*(Forecast!$C$8/$F$2) -> 58.53462569 | I176: =F176*(Forecast!$D$8/$F$2) -> 59.11888393 | J176: =F176*(Forecast!$E$8/$F$2) -> 59.28061632 | K176: =F176*(Forecast!$F$8/$F$2) -> 59.5232149 | L176: =F176*(Forecast!$G$8/$F$2) -> 59.68494728 | M176: =F176*(Forecast!$H$8/$F$2) -> 59.92754586 | N176: =F176*(Forecast!$I$8/$F$2) -> 60.41274302 | O176: =F176*(Forecast!$J$8/$F$2) -> 60.81707399 | P176: =F176*(Forecast!$K$8/$F$2) -> 61.22140495 | Q176: =F176*(Forecast!$L$8/$F$2) -> 61.62573592 | R176: =F176*(Forecast!$M$8/$F$2) -> 62.03006689 | S176: =F176*(Forecast!$N$8/$F$2) -> 62.51526405 | T176: =F176*(Forecast!$O$8/$F$2) -> 62.91959501 | U176: =F176*(Forecast!$P$8/$F$2) -> 63.32392598 | V176: =F176*(Forecast!$Q$8/$F$2) -> 63.72825694 | W176: =F176*(Forecast!$R$8/$F$2) -> 64.2134541 | X176: =F176*(Forecast!$S$8/$F$2) -> 64.61778507 | Y176: =F176*(Forecast!$T$8/$F$2) -> 65.02211603 | Z176: =F176*(Forecast!$U$8/$F$2) -> 65.426447 | AA176: =F176*(Forecast!$V$8/$F$2) -> 65.91164416 | AB176: =F176*(Forecast!$W$8/$F$2) -> 66.31597512 | AC176: =F176*(Forecast!$X$8/$F$2) -> 66.72030609 | AD176: =F176*(Forecast!$Y$8/$F$2) -> 67.20550325 | AE176: =F176*(Forecast!$Z$8/$F$2) -> 67.60983421 | AF176: =F176*(Forecast!$AA$8/$F$2) -> 68.01416518 | AG176: =F176*(Forecast!$AB$8/$F$2) -> 68.41849615
A177: 2017-01-08T05:00:00 | B177: 25.96411324 | C177: 14.66847038 | D177: 14.48352337 | E177: 0 | F177: 55.11610699 | H177: =F177*(Forecast!$C$8/$F$2) -> 59.23693897 | I177: =F177*(Forecast!$D$8/$F$2) -> 59.82820729 | J177: =F177*(Forecast!$E$8/$F$2) -> 59.99188018 | K177: =F177*(Forecast!$F$8/$F$2) -> 60.23738952 | L177: =F177*(Forecast!$G$8/$F$2) -> 60.40106242 | M177: =F177*(Forecast!$H$8/$F$2) -> 60.64657175 | N177: =F177*(Forecast!$I$8/$F$2) -> 61.13759043 | O177: =F177*(Forecast!$J$8/$F$2) -> 61.54677266 | P177: =F177*(Forecast!$K$8/$F$2) -> 61.95595489 | Q177: =F177*(Forecast!$L$8/$F$2) -> 62.36513713 | R177: =F177*(Forecast!$M$8/$F$2) -> 62.77431936 | S177: =F177*(Forecast!$N$8/$F$2) -> 63.26533803 | T177: =F177*(Forecast!$O$8/$F$2) -> 63.67452027 | U177: =F177*(Forecast!$P$8/$F$2) -> 64.0837025 | V177: =F177*(Forecast!$Q$8/$F$2) -> 64.49288473 | W177: =F177*(Forecast!$R$8/$F$2) -> 64.98390341 | X177: =F177*(Forecast!$S$8/$F$2) -> 65.39308564 | Y177: =F177*(Forecast!$T$8/$F$2) -> 65.80226787 | Z177: =F177*(Forecast!$U$8/$F$2) -> 66.2114501 | AA177: =F177*(Forecast!$V$8/$F$2) -> 66.70246878 | AB177: =F177*(Forecast!$W$8/$F$2) -> 67.11165101 | AC177: =F177*(Forecast!$X$8/$F$2) -> 67.52083324 | AD177: =F177*(Forecast!$Y$8/$F$2) -> 68.01185192 | AE177: =F177*(Forecast!$Z$8/$F$2) -> 68.42103415 | AF177: =F177*(Forecast!$AA$8/$F$2) -> 68.83021638 | AG177: =F177*(Forecast!$AB$8/$F$2) -> 69.23939861
A178: 2017-01-08T06:00:00 | B178: 26.30273056 | C178: 14.85081196 | D178: 14.6931572 | E178: 0 | F178: 55.84669971 | H178: =F178*(Forecast!$C$8/$F$2) -> 60.02215547 | I178: =F178*(Forecast!$D$8/$F$2) -> 60.62126137 | J178: =F178*(Forecast!$E$8/$F$2) -> 60.78710383 | K178: =F178*(Forecast!$F$8/$F$2) -> 61.03586752 | L178: =F178*(Forecast!$G$8/$F$2) -> 61.20170998 | M178: =F178*(Forecast!$H$8/$F$2) -> 61.45047368 | N178: =F178*(Forecast!$I$8/$F$2) -> 61.94800106 | O178: =F178*(Forecast!$J$8/$F$2) -> 62.36260722 | P178: =F178*(Forecast!$K$8/$F$2) -> 62.77721337 | Q178: =F178*(Forecast!$L$8/$F$2) -> 63.19181953 | R178: =F178*(Forecast!$M$8/$F$2) -> 63.60642568 | S178: =F178*(Forecast!$N$8/$F$2) -> 64.10395307 | T178: =F178*(Forecast!$O$8/$F$2) -> 64.51855922 | U178: =F178*(Forecast!$P$8/$F$2) -> 64.93316538 | V178: =F178*(Forecast!$Q$8/$F$2) -> 65.34777153 | W178: =F178*(Forecast!$R$8/$F$2) -> 65.84529892 | X178: =F178*(Forecast!$S$8/$F$2) -> 66.25990507 | Y178: =F178*(Forecast!$T$8/$F$2) -> 66.67451123 | Z178: =F178*(Forecast!$U$8/$F$2) -> 67.08911738 | AA178: =F178*(Forecast!$V$8/$F$2) -> 67.58664477 | AB178: =F178*(Forecast!$W$8/$F$2) -> 68.00125092 | AC178: =F178*(Forecast!$X$8/$F$2) -> 68.41585708 | AD178: =F178*(Forecast!$Y$8/$F$2) -> 68.91338447 | AE178: =F178*(Forecast!$Z$8/$F$2) -> 69.32799062 | AF178: =F178*(Forecast!$AA$8/$F$2) -> 69.74259678 | AG178: =F178*(Forecast!$AB$8/$F$2) -> 70.15720293
A179: 2017-01-08T07:00:00 | B179: 26.59950447 | C179: 15.03315258 | D179: 14.90279102 | E179: 0 | F179: 56.53544807 | H179: =F179*(Forecast!$C$8/$F$2) -> 60.76239906 | I179: =F179*(Forecast!$D$8/$F$2) -> 61.36889363 | J179: =F179*(Forecast!$E$8/$F$2) -> 61.5367814 | K179: =F179*(Forecast!$F$8/$F$2) -> 61.78861305 | L179: =F179*(Forecast!$G$8/$F$2) -> 61.95650082 | M179: =F179*(Forecast!$H$8/$F$2) -> 62.20833248 | N179: =F179*(Forecast!$I$8/$F$2) -> 62.71199579 | O179: =F179*(Forecast!$J$8/$F$2) -> 63.13171522 | P179: =F179*(Forecast!$K$8/$F$2) -> 63.55143464 | Q179: =F179*(Forecast!$L$8/$F$2) -> 63.97115407 | R179: =F179*(Forecast!$M$8/$F$2) -> 64.39087349 | S179: =F179*(Forecast!$N$8/$F$2) -> 64.8945368 | T179: =F179*(Forecast!$O$8/$F$2) -> 65.31425623 | U179: =F179*(Forecast!$P$8/$F$2) -> 65.73397566 | V179: =F179*(Forecast!$Q$8/$F$2) -> 66.15369508 | W179: =F179*(Forecast!$R$8/$F$2) -> 66.65735839 | X179: =F179*(Forecast!$S$8/$F$2) -> 67.07707782 | Y179: =F179*(Forecast!$T$8/$F$2) -> 67.49679724 | Z179: =F179*(Forecast!$U$8/$F$2) -> 67.91651667 | AA179: =F179*(Forecast!$V$8/$F$2) -> 68.42017998 | AB179: =F179*(Forecast!$W$8/$F$2) -> 68.83989941 | AC179: =F179*(Forecast!$X$8/$F$2) -> 69.25961883 | AD179: =F179*(Forecast!$Y$8/$F$2) -> 69.76328215 | AE179: =F179*(Forecast!$Z$8/$F$2) -> 70.18300157 | AF179: =F179*(Forecast!$AA$8/$F$2) -> 70.602721 | AG179: =F179*(Forecast!$AB$8/$F$2) -> 71.02244042
A180: 2017-01-08T08:00:00 | B180: 26.97315598 | C180: 15.21549416 | D180: 15.1124239 | E180: 0 | F180: 57.30107403 | H180: =F180*(Forecast!$C$8/$F$2) -> 61.58526809 | I180: =F180*(Forecast!$D$8/$F$2) -> 62.19997606 | J180: =F180*(Forecast!$E$8/$F$2) -> 62.37013743 | K180: =F180*(Forecast!$F$8/$F$2) -> 62.6253795 | L180: =F180*(Forecast!$G$8/$F$2) -> 62.79554087 | M180: =F180*(Forecast!$H$8/$F$2) -> 63.05078293 | N180: =F180*(Forecast!$I$8/$F$2) -> 63.56126706 | O180: =F180*(Forecast!$J$8/$F$2) -> 63.98667049 | P180: =F180*(Forecast!$K$8/$F$2) -> 64.41207393 | Q180: =F180*(Forecast!$L$8/$F$2) -> 64.83747737 | R180: =F180*(Forecast!$M$8/$F$2) -> 65.2628808 | S180: =F180*(Forecast!$N$8/$F$2) -> 65.77336493 | T180: =F180*(Forecast!$O$8/$F$2) -> 66.19876836 | U180: =F180*(Forecast!$P$8/$F$2) -> 66.6241718 | V180: =F180*(Forecast!$Q$8/$F$2) -> 67.04957524 | W180: =F180*(Forecast!$R$8/$F$2) -> 67.56005936 | X180: =F180*(Forecast!$S$8/$F$2) -> 67.9854628 | Y180: =F180*(Forecast!$T$8/$F$2) -> 68.41086623 | Z180: =F180*(Forecast!$U$8/$F$2) -> 68.83626967 | AA180: =F180*(Forecast!$V$8/$F$2) -> 69.34675379 | AB180: =F180*(Forecast!$W$8/$F$2) -> 69.77215723 | AC180: =F180*(Forecast!$X$8/$F$2) -> 70.19756067 | AD180: =F180*(Forecast!$Y$8/$F$2) -> 70.70804479 | AE180: =F180*(Forecast!$Z$8/$F$2) -> 71.13344823 | AF180: =F180*(Forecast!$AA$8/$F$2) -> 71.55885166 | AG180: =F180*(Forecast!$AB$8/$F$2) -> 71.9842551
A181: 2017-01-08T09:00:00 | B181: 27.24921227 | C181: 15.42375755 | D181: 15.18325233 | E181: 0 | F181: 57.85622215 | H181: =F181*(Forecast!$C$8/$F$2) -> 62.18192263 | I181: =F181*(Forecast!$D$8/$F$2) -> 62.80258606 | J181: =F181*(Forecast!$E$8/$F$2) -> 62.974396 | K181: =F181*(Forecast!$F$8/$F$2) -> 63.23211091 | L181: =F181*(Forecast!$G$8/$F$2) -> 63.40392086 | M181: =F181*(Forecast!$H$8/$F$2) -> 63.66163577 | N181: =F181*(Forecast!$I$8/$F$2) -> 64.1770656 | O181: =F181*(Forecast!$J$8/$F$2) -> 64.60659046 | P181: =F181*(Forecast!$K$8/$F$2) -> 65.03611532 | Q181: =F181*(Forecast!$L$8/$F$2) -> 65.46564018 | R181: =F181*(Forecast!$M$8/$F$2) -> 65.89516504 | S181: =F181*(Forecast!$N$8/$F$2) -> 66.41059487 | T181: =F181*(Forecast!$O$8/$F$2) -> 66.84011973 | U181: =F181*(Forecast!$P$8/$F$2) -> 67.26964459 | V181: =F181*(Forecast!$Q$8/$F$2) -> 67.69916945 | W181: =F181*(Forecast!$R$8/$F$2) -> 68.21459928 | X181: =F181*(Forecast!$S$8/$F$2) -> 68.64412414 | Y181: =F181*(Forecast!$T$8/$F$2) -> 69.07364899 | Z181: =F181*(Forecast!$U$8/$F$2) -> 69.50317385 | AA181: =F181*(Forecast!$V$8/$F$2) -> 70.01860368 | AB181: =F181*(Forecast!$W$8/$F$2) -> 70.44812854 | AC181: =F181*(Forecast!$X$8/$F$2) -> 70.8776534 | AD181: =F181*(Forecast!$Y$8/$F$2) -> 71.39308323 | AE181: =F181*(Forecast!$Z$8/$F$2) -> 71.82260809 | AF181: =F181*(Forecast!$AA$8/$F$2) -> 72.25213295 | AG181: =F181*(Forecast!$AB$8/$F$2) -> 72.68165781
A182: 2017-01-08T10:00:00 | B182: 27.59494019 | C182: 15.53559685 | D182: 15.40801811 | E182: 0 | F182: 58.53855515 | H182: =F182*(Forecast!$C$8/$F$2) -> 62.9152712 | I182: =F182*(Forecast!$D$8/$F$2) -> 63.54325447 | J182: =F182*(Forecast!$E$8/$F$2) -> 63.71709067 | K182: =F182*(Forecast!$F$8/$F$2) -> 63.97784497 | L182: =F182*(Forecast!$G$8/$F$2) -> 64.15168118 | M182: =F182*(Forecast!$H$8/$F$2) -> 64.41243548 | N182: =F182*(Forecast!$I$8/$F$2) -> 64.93394408 | O182: =F182*(Forecast!$J$8/$F$2) -> 65.36853458 | P182: =F182*(Forecast!$K$8/$F$2) -> 65.80312508 | Q182: =F182*(Forecast!$L$8/$F$2) -> 66.23771559 | R182: =F182*(Forecast!$M$8/$F$2) -> 66.67230609 | S182: =F182*(Forecast!$N$8/$F$2) -> 67.19381469 | T182: =F182*(Forecast!$O$8/$F$2) -> 67.62840519 | U182: =F182*(Forecast!$P$8/$F$2) -> 68.06299569 | V182: =F182*(Forecast!$Q$8/$F$2) -> 68.4975862 | W182: =F182*(Forecast!$R$8/$F$2) -> 69.0190948 | X182: =F182*(Forecast!$S$8/$F$2) -> 69.4536853 | Y182: =F182*(Forecast!$T$8/$F$2) -> 69.8882758 | Z182: =F182*(Forecast!$U$8/$F$2) -> 70.3228663 | AA182: =F182*(Forecast!$V$8/$F$2) -> 70.84437491 | AB182: =F182*(Forecast!$W$8/$F$2) -> 71.27896541 | AC182: =F182*(Forecast!$X$8/$F$2) -> 71.71355591 | AD182: =F182*(Forecast!$Y$8/$F$2) -> 72.23506451 | AE182: =F182*(Forecast!$Z$8/$F$2) -> 72.66965502 | AF182: =F182*(Forecast!$AA$8/$F$2) -> 73.10424552 | AG182: =F182*(Forecast!$AB$8/$F$2) -> 73.53883602
A183: 2017-01-08T11:00:00 | B183: 28.99710464 | C183: 16.27942467 | D183: 16.33252335 | E183: 0 | F183: 61.60905266 | H183: =F183*(Forecast!$C$8/$F$2) -> 66.2153387 | I183: =F183*(Forecast!$D$8/$F$2) -> 66.87626131 | J183: =F183*(Forecast!$E$8/$F$2) -> 67.05921567 | K183: =F183*(Forecast!$F$8/$F$2) -> 67.3336472 | L183: =F183*(Forecast!$G$8/$F$2) -> 67.51660156 | M183: =F183*(Forecast!$H$8/$F$2) -> 67.79103309 | N183: =F183*(Forecast!$I$8/$F$2) -> 68.33989616 | O183: =F183*(Forecast!$J$8/$F$2) -> 68.79728205 | P183: =F183*(Forecast!$K$8/$F$2) -> 69.25466794 | Q183: =F183*(Forecast!$L$8/$F$2) -> 69.71205383 | R183: =F183*(Forecast!$M$8/$F$2) -> 70.16943972 | S183: =F183*(Forecast!$N$8/$F$2) -> 70.71830279 | T183: =F183*(Forecast!$O$8/$F$2) -> 71.17568868 | U183: =F183*(Forecast!$P$8/$F$2) -> 71.63307457 | V183: =F183*(Forecast!$Q$8/$F$2) -> 72.09046046 | W183: =F183*(Forecast!$R$8/$F$2) -> 72.63932352 | X183: =F183*(Forecast!$S$8/$F$2) -> 73.09670941 | Y183: =F183*(Forecast!$T$8/$F$2) -> 73.5540953 | Z183: =F183*(Forecast!$U$8/$F$2) -> 74.01148119 | AA183: =F183*(Forecast!$V$8/$F$2) -> 74.56034426 | AB183: =F183*(Forecast!$W$8/$F$2) -> 75.01773015 | AC183: =F183*(Forecast!$X$8/$F$2) -> 75.47511604 | AD183: =F183*(Forecast!$Y$8/$F$2) -> 76.02397911 | AE183: =F183*(Forecast!$Z$8/$F$2) -> 76.481365 | AF183: =F183*(Forecast!$AA$8/$F$2) -> 76.93875089 | AG183: =F183*(Forecast!$AB$8/$F$2) -> 77.39613678
A184: 2017-01-08T12:00:00 | B184: 28.72855186 | C184: 16.22549629 | D184: 16.17857361 | E184: 0 | F184: 61.13262177 | H184: =F184*(Forecast!$C$8/$F$2) -> 65.7032868 | I184: =F184*(Forecast!$D$8/$F$2) -> 66.35909841 | J184: =F184*(Forecast!$E$8/$F$2) -> 66.54063795 | K184: =F184*(Forecast!$F$8/$F$2) -> 66.81294727 | L184: =F184*(Forecast!$G$8/$F$2) -> 66.99448682 | M184: =F184*(Forecast!$H$8/$F$2) -> 67.26679613 | N184: =F184*(Forecast!$I$8/$F$2) -> 67.81141477 | O184: =F184*(Forecast!$J$8/$F$2) -> 68.26526364 | P184: =F184*(Forecast!$K$8/$F$2) -> 68.7191125 | Q184: =F184*(Forecast!$L$8/$F$2) -> 69.17296137 | R184: =F184*(Forecast!$M$8/$F$2) -> 69.62681023 | S184: =F184*(Forecast!$N$8/$F$2) -> 70.17142887 | T184: =F184*(Forecast!$O$8/$F$2) -> 70.62527773 | U184: =F184*(Forecast!$P$8/$F$2) -> 71.0791266 | V184: =F184*(Forecast!$Q$8/$F$2) -> 71.53297546 | W184: =F184*(Forecast!$R$8/$F$2) -> 72.0775941 | X184: =F184*(Forecast!$S$8/$F$2) -> 72.53144296 | Y184: =F184*(Forecast!$T$8/$F$2) -> 72.98529183 | Z184: =F184*(Forecast!$U$8/$F$2) -> 73.43914069 | AA184: =F184*(Forecast!$V$8/$F$2) -> 73.98375933 | AB184: =F184*(Forecast!$W$8/$F$2) -> 74.43760819 | AC184: =F184*(Forecast!$X$8/$F$2) -> 74.89145706 | AD184: =F184*(Forecast!$Y$8/$F$2) -> 75.4360757 | AE184: =F184*(Forecast!$Z$8/$F$2) -> 75.88992456 | AF184: =F184*(Forecast!$AA$8/$F$2) -> 76.34377343 | AG184: =F184*(Forecast!$AB$8/$F$2) -> 76.79762229
A185: 2017-01-08T13:00:00 | B185: 28.26563072 | C185: 16.17156792 | D185: 16.02462387 | E185: 0 | F185: 60.46182251 | H185: =F185*(Forecast!$C$8/$F$2) -> 64.98233431 | I185: =F185*(Forecast!$D$8/$F$2) -> 65.63094979 | J185: =F185*(Forecast!$E$8/$F$2) -> 65.81049733 | K185: =F185*(Forecast!$F$8/$F$2) -> 66.07981864 | L185: =F185*(Forecast!$G$8/$F$2) -> 66.25936618 | M185: =F185*(Forecast!$H$8/$F$2) -> 66.52868749 | N185: =F185*(Forecast!$I$8/$F$2) -> 67.0673301 | O185: =F185*(Forecast!$J$8/$F$2) -> 67.51619895 | P185: =F185*(Forecast!$K$8/$F$2) -> 67.9650678 | Q185: =F185*(Forecast!$L$8/$F$2) -> 68.41393665 | R185: =F185*(Forecast!$M$8/$F$2) -> 68.8628055 | S185: =F185*(Forecast!$N$8/$F$2) -> 69.40144811 | T185: =F185*(Forecast!$O$8/$F$2) -> 69.85031696 | U185: =F185*(Forecast!$P$8/$F$2) -> 70.29918581 | V185: =F185*(Forecast!$Q$8/$F$2) -> 70.74805466 | W185: =F185*(Forecast!$R$8/$F$2) -> 71.28669727 | X185: =F185*(Forecast!$S$8/$F$2) -> 71.73556612 | Y185: =F185*(Forecast!$T$8/$F$2) -> 72.18443497 | Z185: =F185*(Forecast!$U$8/$F$2) -> 72.63330382 | AA185: =F185*(Forecast!$V$8/$F$2) -> 73.17194643 | AB185: =F185*(Forecast!$W$8/$F$2) -> 73.62081528 | AC185: =F185*(Forecast!$X$8/$F$2) -> 74.06968413 | AD185: =F185*(Forecast!$Y$8/$F$2) -> 74.60832675 | AE185: =F185*(Forecast!$Z$8/$F$2) -> 75.0571956 | AF185: =F185*(Forecast!$AA$8/$F$2) -> 75.50606444 | AG185: =F185*(Forecast!$AB$8/$F$2) -> 75.95493329
A186: 2017-01-08T14:00:00 | B186: 28.28385353 | C186: 16.11763954 | D186: 15.87067318 | E186: 0 | F186: 60.27216625 | H186: =F186*(Forecast!$C$8/$F$2) -> 64.77849814 | I186: =F186*(Forecast!$D$8/$F$2) -> 65.42507905 | J186: =F186*(Forecast!$E$8/$F$2) -> 65.60406338 | K186: =F186*(Forecast!$F$8/$F$2) -> 65.87253989 | L186: =F186*(Forecast!$G$8/$F$2) -> 66.05152422 | M186: =F186*(Forecast!$H$8/$F$2) -> 66.32000073 | N186: =F186*(Forecast!$I$8/$F$2) -> 66.85695373 | O186: =F186*(Forecast!$J$8/$F$2) -> 67.30441457 | P186: =F186*(Forecast!$K$8/$F$2) -> 67.75187541 | Q186: =F186*(Forecast!$L$8/$F$2) -> 68.19933625 | R186: =F186*(Forecast!$M$8/$F$2) -> 68.64679709 | S186: =F186*(Forecast!$N$8/$F$2) -> 69.1837501 | T186: =F186*(Forecast!$O$8/$F$2) -> 69.63121093 | U186: =F186*(Forecast!$P$8/$F$2) -> 70.07867177 | V186: =F186*(Forecast!$Q$8/$F$2) -> 70.52613261 | W186: =F186*(Forecast!$R$8/$F$2) -> 71.06308562 | X186: =F186*(Forecast!$S$8/$F$2) -> 71.51054646 | Y186: =F186*(Forecast!$T$8/$F$2) -> 71.9580073 | Z186: =F186*(Forecast!$U$8/$F$2) -> 72.40546814 | AA186: =F186*(Forecast!$V$8/$F$2) -> 72.94242114 | AB186: =F186*(Forecast!$W$8/$F$2) -> 73.38988198 | AC186: =F186*(Forecast!$X$8/$F$2) -> 73.83734282 | AD186: =F186*(Forecast!$Y$8/$F$2) -> 74.37429583 | AE186: =F186*(Forecast!$Z$8/$F$2) -> 74.82175667 | AF186: =F186*(Forecast!$AA$8/$F$2) -> 75.2692175 | AG186: =F186*(Forecast!$AB$8/$F$2) -> 75.71667834
A187: 2017-01-08T15:00:00 | B187: 28.26563072 | C187: 16.06371117 | D187: 15.75281525 | E187: 0 | F187: 60.08215714 | H187: =F187*(Forecast!$C$8/$F$2) -> 64.57428273 | I187: =F187*(Forecast!$D$8/$F$2) -> 65.21882528 | J187: =F187*(Forecast!$E$8/$F$2) -> 65.39724536 | K187: =F187*(Forecast!$F$8/$F$2) -> 65.66487549 | L187: =F187*(Forecast!$G$8/$F$2) -> 65.84329557 | M187: =F187*(Forecast!$H$8/$F$2) -> 66.1109257 | N187: =F187*(Forecast!$I$8/$F$2) -> 66.64618595 | O187: =F187*(Forecast!$J$8/$F$2) -> 67.09223616 | P187: =F187*(Forecast!$K$8/$F$2) -> 67.53828637 | Q187: =F187*(Forecast!$L$8/$F$2) -> 67.98433658 | R187: =F187*(Forecast!$M$8/$F$2) -> 68.43038679 | S187: =F187*(Forecast!$N$8/$F$2) -> 68.96564705 | T187: =F187*(Forecast!$O$8/$F$2) -> 69.41169726 | U187: =F187*(Forecast!$P$8/$F$2) -> 69.85774747 | V187: =F187*(Forecast!$Q$8/$F$2) -> 70.30379768 | W187: =F187*(Forecast!$R$8/$F$2) -> 70.83905793 | X187: =F187*(Forecast!$S$8/$F$2) -> 71.28510814 | Y187: =F187*(Forecast!$T$8/$F$2) -> 71.73115835 | Z187: =F187*(Forecast!$U$8/$F$2) -> 72.17720856 | AA187: =F187*(Forecast!$V$8/$F$2) -> 72.71246881 | AB187: =F187*(Forecast!$W$8/$F$2) -> 73.15851902 | AC187: =F187*(Forecast!$X$8/$F$2) -> 73.60456923 | AD187: =F187*(Forecast!$Y$8/$F$2) -> 74.13982949 | AE187: =F187*(Forecast!$Z$8/$F$2) -> 74.5858797 | AF187: =F187*(Forecast!$AA$8/$F$2) -> 75.03192991 | AG187: =F187*(Forecast!$AB$8/$F$2) -> 75.47798012
A188: 2017-01-08T16:00:00 | B188: 28.46295738 | C188: 15.99659061 | D188: 15.75281525 | E188: 0 | F188: 60.21236324 | H188: =F188*(Forecast!$C$8/$F$2) -> 64.71422387 | I188: =F188*(Forecast!$D$8/$F$2) -> 65.36016324 | J188: =F188*(Forecast!$E$8/$F$2) -> 65.53896998 | K188: =F188*(Forecast!$F$8/$F$2) -> 65.8071801 | L188: =F188*(Forecast!$G$8/$F$2) -> 65.98598684 | M188: =F188*(Forecast!$H$8/$F$2) -> 66.25419696 | N188: =F188*(Forecast!$I$8/$F$2) -> 66.79061719 | O188: =F188*(Forecast!$J$8/$F$2) -> 67.23763405 | P188: =F188*(Forecast!$K$8/$F$2) -> 67.68465091 | Q188: =F188*(Forecast!$L$8/$F$2) -> 68.13166778 | R188: =F188*(Forecast!$M$8/$F$2) -> 68.57868464 | S188: =F188*(Forecast!$N$8/$F$2) -> 69.11510487 | T188: =F188*(Forecast!$O$8/$F$2) -> 69.56212173 | U188: =F188*(Forecast!$P$8/$F$2) -> 70.00913859 | V188: =F188*(Forecast!$Q$8/$F$2) -> 70.45615545 | W188: =F188*(Forecast!$R$8/$F$2) -> 70.99257569 | X188: =F188*(Forecast!$S$8/$F$2) -> 71.43959255 | Y188: =F188*(Forecast!$T$8/$F$2) -> 71.88660941 | Z188: =F188*(Forecast!$U$8/$F$2) -> 72.33362627 | AA188: =F188*(Forecast!$V$8/$F$2) -> 72.8700465 | AB188: =F188*(Forecast!$W$8/$F$2) -> 73.31706336 | AC188: =F188*(Forecast!$X$8/$F$2) -> 73.76408023 | AD188: =F188*(Forecast!$Y$8/$F$2) -> 74.30050046 | AE188: =F188*(Forecast!$Z$8/$F$2) -> 74.74751732 | AF188: =F188*(Forecast!$AA$8/$F$2) -> 75.19453418 | AG188: =F188*(Forecast!$AB$8/$F$2) -> 75.64155104
A189: 2017-01-08T17:00:00 | B189: 28.80296898 | C189: 15.88807392 | D189: 15.75281525 | E189: 0 | F189: 60.44385815 | H189: =F189*(Forecast!$C$8/$F$2) -> 64.96302681 | I189: =F189*(Forecast!$D$8/$F$2) -> 65.61144958 | J189: =F189*(Forecast!$E$8/$F$2) -> 65.79094377 | K189: =F189*(Forecast!$F$8/$F$2) -> 66.06018506 | L189: =F189*(Forecast!$G$8/$F$2) -> 66.23967925 | M189: =F189*(Forecast!$H$8/$F$2) -> 66.50892054 | N189: =F189*(Forecast!$I$8/$F$2) -> 67.04740312 | O189: =F189*(Forecast!$J$8/$F$2) -> 67.4961386 | P189: =F189*(Forecast!$K$8/$F$2) -> 67.94487408 | Q189: =F189*(Forecast!$L$8/$F$2) -> 68.39360956 | R189: =F189*(Forecast!$M$8/$F$2) -> 68.84234504 | S189: =F189*(Forecast!$N$8/$F$2) -> 69.38082762 | T189: =F189*(Forecast!$O$8/$F$2) -> 69.8295631 | U189: =F189*(Forecast!$P$8/$F$2) -> 70.27829858 | V189: =F189*(Forecast!$Q$8/$F$2) -> 70.72703406 | W189: =F189*(Forecast!$R$8/$F$2) -> 71.26551663 | X189: =F189*(Forecast!$S$8/$F$2) -> 71.71425211 | Y189: =F189*(Forecast!$T$8/$F$2) -> 72.16298759 | Z189: =F189*(Forecast!$U$8/$F$2) -> 72.61172307 | AA189: =F189*(Forecast!$V$8/$F$2) -> 73.15020565 | AB189: =F189*(Forecast!$W$8/$F$2) -> 73.59894113 | AC189: =F189*(Forecast!$X$8/$F$2) -> 74.04767661 | AD189: =F189*(Forecast!$Y$8/$F$2) -> 74.58615919 | AE189: =F189*(Forecast!$Z$8/$F$2) -> 75.03489467 | AF189: =F189*(Forecast!$AA$8/$F$2) -> 75.48363015 | AG189: =F189*(Forecast!$AB$8/$F$2) -> 75.93236563
A190: 2017-01-08T18:00:00 | B190: 28.42307663 | C190: 15.77955723 | D190: 15.74908638 | E190: 0 | F190: 59.95172024 | H190: =F190*(Forecast!$C$8/$F$2) -> 64.43409353 | I190: =F190*(Forecast!$D$8/$F$2) -> 65.0772368 | J190: =F190*(Forecast!$E$8/$F$2) -> 65.25526954 | K190: =F190*(Forecast!$F$8/$F$2) -> 65.52231865 | L190: =F190*(Forecast!$G$8/$F$2) -> 65.70035139 | M190: =F190*(Forecast!$H$8/$F$2) -> 65.96740049 | N190: =F190*(Forecast!$I$8/$F$2) -> 66.50149871 | O190: =F190*(Forecast!$J$8/$F$2) -> 66.94658055 | P190: =F190*(Forecast!$K$8/$F$2) -> 67.3916624 | Q190: =F190*(Forecast!$L$8/$F$2) -> 67.83674425 | R190: =F190*(Forecast!$M$8/$F$2) -> 68.28182609 | S190: =F190*(Forecast!$N$8/$F$2) -> 68.81592431 | T190: =F190*(Forecast!$O$8/$F$2) -> 69.26100615 | U190: =F190*(Forecast!$P$8/$F$2) -> 69.706088 | V190: =F190*(Forecast!$Q$8/$F$2) -> 70.15116985 | W190: =F190*(Forecast!$R$8/$F$2) -> 70.68526806 | X190: =F190*(Forecast!$S$8/$F$2) -> 71.13034991 | Y190: =F190*(Forecast!$T$8/$F$2) -> 71.57543175 | Z190: =F190*(Forecast!$U$8/$F$2) -> 72.0205136 | AA190: =F190*(Forecast!$V$8/$F$2) -> 72.55461182 | AB190: =F190*(Forecast!$W$8/$F$2) -> 72.99969366 | AC190: =F190*(Forecast!$X$8/$F$2) -> 73.44477551 | AD190: =F190*(Forecast!$Y$8/$F$2) -> 73.97887372 | AE190: =F190*(Forecast!$Z$8/$F$2) -> 74.42395557 | AF190: =F190*(Forecast!$AA$8/$F$2) -> 74.86903742 | AG190: =F190*(Forecast!$AB$8/$F$2) -> 75.31411926
A191: 2017-01-08T19:00:00 | B191: 28.21504593 | C191: 15.67104053 | D191: 15.55167389 | E191: 0 | F191: 59.43776035 | H191: =F191*(Forecast!$C$8/$F$2) -> 63.88170673 | I191: =F191*(Forecast!$D$8/$F$2) -> 64.51933639 | J191: =F191*(Forecast!$E$8/$F$2) -> 64.69584288 | K191: =F191*(Forecast!$F$8/$F$2) -> 64.9606026 | L191: =F191*(Forecast!$G$8/$F$2) -> 65.13710908 | M191: =F191*(Forecast!$H$8/$F$2) -> 65.4018688 | N191: =F191*(Forecast!$I$8/$F$2) -> 65.93138825 | O191: =F191*(Forecast!$J$8/$F$2) -> 66.37265446 | P191: =F191*(Forecast!$K$8/$F$2) -> 66.81392066 | Q191: =F191*(Forecast!$L$8/$F$2) -> 67.25518687 | R191: =F191*(Forecast!$M$8/$F$2) -> 67.69645307 | S191: =F191*(Forecast!$N$8/$F$2) -> 68.22597252 | T191: =F191*(Forecast!$O$8/$F$2) -> 68.66723873 | U191: =F191*(Forecast!$P$8/$F$2) -> 69.10850493 | V191: =F191*(Forecast!$Q$8/$F$2) -> 69.54977114 | W191: =F191*(Forecast!$R$8/$F$2) -> 70.07929058 | X191: =F191*(Forecast!$S$8/$F$2) -> 70.52055679 | Y191: =F191*(Forecast!$T$8/$F$2) -> 70.961823 | Z191: =F191*(Forecast!$U$8/$F$2) -> 71.4030892 | AA191: =F191*(Forecast!$V$8/$F$2) -> 71.93260865 | AB191: =F191*(Forecast!$W$8/$F$2) -> 72.37387485 | AC191: =F191*(Forecast!$X$8/$F$2) -> 72.81514106 | AD191: =F191*(Forecast!$Y$8/$F$2) -> 73.34466051 | AE191: =F191*(Forecast!$Z$8/$F$2) -> 73.78592671 | AF191: =F191*(Forecast!$AA$8/$F$2) -> 74.22719292 | AG191: =F191*(Forecast!$AB$8/$F$2) -> 74.66845912
A192: 2017-01-08T20:00:00 | B192: 28.06565857 | C192: 15.56252384 | D192: 15.35426044 | E192: 0 | F192: 58.98244286 | H192: =F192*(Forecast!$C$8/$F$2) -> 63.39234679 | I192: =F192*(Forecast!$D$8/$F$2) -> 64.02509195 | J192: =F192*(Forecast!$E$8/$F$2) -> 64.20024632 | K192: =F192*(Forecast!$F$8/$F$2) -> 64.46297788 | L192: =F192*(Forecast!$G$8/$F$2) -> 64.63813225 | M192: =F192*(Forecast!$H$8/$F$2) -> 64.9008638 | N192: =F192*(Forecast!$I$8/$F$2) -> 65.42632692 | O192: =F192*(Forecast!$J$8/$F$2) -> 65.86421284 | P192: =F192*(Forecast!$K$8/$F$2) -> 66.30209877 | Q192: =F192*(Forecast!$L$8/$F$2) -> 66.73998469 | R192: =F192*(Forecast!$M$8/$F$2) -> 67.17787062 | S192: =F192*(Forecast!$N$8/$F$2) -> 67.70333373 | T192: =F192*(Forecast!$O$8/$F$2) -> 68.14121966 | U192: =F192*(Forecast!$P$8/$F$2) -> 68.57910559 | V192: =F192*(Forecast!$Q$8/$F$2) -> 69.01699151 | W192: =F192*(Forecast!$R$8/$F$2) -> 69.54245462 | X192: =F192*(Forecast!$S$8/$F$2) -> 69.98034055 | Y192: =F192*(Forecast!$T$8/$F$2) -> 70.41822648 | Z192: =F192*(Forecast!$U$8/$F$2) -> 70.8561124 | AA192: =F192*(Forecast!$V$8/$F$2) -> 71.38157551 | AB192: =F192*(Forecast!$W$8/$F$2) -> 71.81946144 | AC192: =F192*(Forecast!$X$8/$F$2) -> 72.25734737 | AD192: =F192*(Forecast!$Y$8/$F$2) -> 72.78281048 | AE192: =F192*(Forecast!$Z$8/$F$2) -> 73.22069641 | AF192: =F192*(Forecast!$AA$8/$F$2) -> 73.65858233 | AG192: =F192*(Forecast!$AB$8/$F$2) -> 74.09646826
A193: 2017-01-08T21:00:00 | B193: 27.93550301 | C193: 15.45400715 | D193: 15.15684795 | E193: 0 | F193: 58.54635811 | H193: =F193*(Forecast!$C$8/$F$2) -> 62.92365756 | I193: =F193*(Forecast!$D$8/$F$2) -> 63.55172454 | J193: =F193*(Forecast!$E$8/$F$2) -> 63.72558392 | K193: =F193*(Forecast!$F$8/$F$2) -> 63.98637297 | L193: =F193*(Forecast!$G$8/$F$2) -> 64.16023235 | M193: =F193*(Forecast!$H$8/$F$2) -> 64.42102141 | N193: =F193*(Forecast!$I$8/$F$2) -> 64.94259952 | O193: =F193*(Forecast!$J$8/$F$2) -> 65.37724795 | P193: =F193*(Forecast!$K$8/$F$2) -> 65.81189639 | Q193: =F193*(Forecast!$L$8/$F$2) -> 66.24654482 | R193: =F193*(Forecast!$M$8/$F$2) -> 66.68119325 | S193: =F193*(Forecast!$N$8/$F$2) -> 67.20277137 | T193: =F193*(Forecast!$O$8/$F$2) -> 67.6374198 | U193: =F193*(Forecast!$P$8/$F$2) -> 68.07206823 | V193: =F193*(Forecast!$Q$8/$F$2) -> 68.50671666 | W193: =F193*(Forecast!$R$8/$F$2) -> 69.02829478 | X193: =F193*(Forecast!$S$8/$F$2) -> 69.46294321 | Y193: =F193*(Forecast!$T$8/$F$2) -> 69.89759164 | Z193: =F193*(Forecast!$U$8/$F$2) -> 70.33224007 | AA193: =F193*(Forecast!$V$8/$F$2) -> 70.85381819 | AB193: =F193*(Forecast!$W$8/$F$2) -> 71.28846662 | AC193: =F193*(Forecast!$X$8/$F$2) -> 71.72311505 | AD193: =F193*(Forecast!$Y$8/$F$2) -> 72.24469317 | AE193: =F193*(Forecast!$Z$8/$F$2) -> 72.6793416 | AF193: =F193*(Forecast!$AA$8/$F$2) -> 73.11399003 | AG193: =F193*(Forecast!$AB$8/$F$2) -> 73.54863846
A194: 2017-01-08T22:00:00 | B194: 27.3656311 | C194: 15.31908226 | D194: 14.95943546 | E194: 0 | F194: 57.64414883 | H194: =F194*(Forecast!$C$8/$F$2) -> 61.95399335 | I194: =F194*(Forecast!$D$8/$F$2) -> 62.57238172 | J194: =F194*(Forecast!$E$8/$F$2) -> 62.74356189 | K194: =F194*(Forecast!$F$8/$F$2) -> 63.00033214 | L194: =F194*(Forecast!$G$8/$F$2) -> 63.17151231 | M194: =F194*(Forecast!$H$8/$F$2) -> 63.42828257 | N194: =F194*(Forecast!$I$8/$F$2) -> 63.94182308 | O194: =F194*(Forecast!$J$8/$F$2) -> 64.3697735 | P194: =F194*(Forecast!$K$8/$F$2) -> 64.79772393 | Q194: =F194*(Forecast!$L$8/$F$2) -> 65.22567436 | R194: =F194*(Forecast!$M$8/$F$2) -> 65.65362478 | S194: =F194*(Forecast!$N$8/$F$2) -> 66.16716529 | T194: =F194*(Forecast!$O$8/$F$2) -> 66.59511572 | U194: =F194*(Forecast!$P$8/$F$2) -> 67.02306614 | V194: =F194*(Forecast!$Q$8/$F$2) -> 67.45101657 | W194: =F194*(Forecast!$R$8/$F$2) -> 67.96455708 | X194: =F194*(Forecast!$S$8/$F$2) -> 68.3925075 | Y194: =F194*(Forecast!$T$8/$F$2) -> 68.82045793 | Z194: =F194*(Forecast!$U$8/$F$2) -> 69.24840835 | AA194: =F194*(Forecast!$V$8/$F$2) -> 69.76194887 | AB194: =F194*(Forecast!$W$8/$F$2) -> 70.18989929 | AC194: =F194*(Forecast!$X$8/$F$2) -> 70.61784972 | AD194: =F194*(Forecast!$Y$8/$F$2) -> 71.13139023 | AE194: =F194*(Forecast!$Z$8/$F$2) -> 71.55934065 | AF194: =F194*(Forecast!$AA$8/$F$2) -> 71.98729108 | AG194: =F194*(Forecast!$AB$8/$F$2) -> 72.4152415
A195: 2017-01-08T23:00:00 | B195: 27.03102875 | C195: 15.15001202 | D195: 14.76202202 | E195: 0 | F195: 56.94306278 | H195: =F195*(Forecast!$C$8/$F$2) -> 61.20048964 | I195: =F195*(Forecast!$D$8/$F$2) -> 61.81135697 | J195: =F195*(Forecast!$E$8/$F$2) -> 61.9804552 | K195: =F195*(Forecast!$F$8/$F$2) -> 62.23410253 | L195: =F195*(Forecast!$G$8/$F$2) -> 62.40320076 | M195: =F195*(Forecast!$H$8/$F$2) -> 62.65684809 | N195: =F195*(Forecast!$I$8/$F$2) -> 63.16414276 | O195: =F195*(Forecast!$J$8/$F$2) -> 63.58688832 | P195: =F195*(Forecast!$K$8/$F$2) -> 64.00963388 | Q195: =F195*(Forecast!$L$8/$F$2) -> 64.43237944 | R195: =F195*(Forecast!$M$8/$F$2) -> 64.855125 | S195: =F195*(Forecast!$N$8/$F$2) -> 65.36241967 | T195: =F195*(Forecast!$O$8/$F$2) -> 65.78516523 | U195: =F195*(Forecast!$P$8/$F$2) -> 66.20791079 | V195: =F195*(Forecast!$Q$8/$F$2) -> 66.63065635 | W195: =F195*(Forecast!$R$8/$F$2) -> 67.13795102 | X195: =F195*(Forecast!$S$8/$F$2) -> 67.56069658 | Y195: =F195*(Forecast!$T$8/$F$2) -> 67.98344214 | Z195: =F195*(Forecast!$U$8/$F$2) -> 68.4061877 | AA195: =F195*(Forecast!$V$8/$F$2) -> 68.91348237 | AB195: =F195*(Forecast!$W$8/$F$2) -> 69.33622793 | AC195: =F195*(Forecast!$X$8/$F$2) -> 69.75897349 | AD195: =F195*(Forecast!$Y$8/$F$2) -> 70.26626816 | AE195: =F195*(Forecast!$Z$8/$F$2) -> 70.68901372 | AF195: =F195*(Forecast!$AA$8/$F$2) -> 71.11175928 | AG195: =F195*(Forecast!$AB$8/$F$2) -> 71.53450484
A196: 2017-01-09 | B196: 26.49606133 | C196: 14.98094177 | D196: 14.57988644 | E196: 0 | F196: 56.05688953 | H196: =F196*(Forecast!$C$8/$F$2) -> 60.24806042 | I196: =F196*(Forecast!$D$8/$F$2) -> 60.84942117 | J196: =F196*(Forecast!$E$8/$F$2) -> 61.01588781 | K196: =F196*(Forecast!$F$8/$F$2) -> 61.26558777 | L196: =F196*(Forecast!$G$8/$F$2) -> 61.43205442 | M196: =F196*(Forecast!$H$8/$F$2) -> 61.68175438 | N196: =F196*(Forecast!$I$8/$F$2) -> 62.1811543 | O196: =F196*(Forecast!$J$8/$F$2) -> 62.59732091 | P196: =F196*(Forecast!$K$8/$F$2) -> 63.01348752 | Q196: =F196*(Forecast!$L$8/$F$2) -> 63.42965412 | R196: =F196*(Forecast!$M$8/$F$2) -> 63.84582073 | S196: =F196*(Forecast!$N$8/$F$2) -> 64.34522065 | T196: =F196*(Forecast!$O$8/$F$2) -> 64.76138726 | U196: =F196*(Forecast!$P$8/$F$2) -> 65.17755386 | V196: =F196*(Forecast!$Q$8/$F$2) -> 65.59372047 | W196: =F196*(Forecast!$R$8/$F$2) -> 66.09312039 | X196: =F196*(Forecast!$S$8/$F$2) -> 66.509287 | Y196: =F196*(Forecast!$T$8/$F$2) -> 66.9254536 | Z196: =F196*(Forecast!$U$8/$F$2) -> 67.34162021 | AA196: =F196*(Forecast!$V$8/$F$2) -> 67.84102013 | AB196: =F196*(Forecast!$W$8/$F$2) -> 68.25718674 | AC196: =F196*(Forecast!$X$8/$F$2) -> 68.67335335 | AD196: =F196*(Forecast!$Y$8/$F$2) -> 69.17275327 | AE196: =F196*(Forecast!$Z$8/$F$2) -> 69.58891988 | AF196: =F196*(Forecast!$AA$8/$F$2) -> 70.00508648 | AG196: =F196*(Forecast!$AB$8/$F$2) -> 70.42125309
A197: 2017-01-09T01:00:00 | B197: 25.88880157 | C197: 14.81187153 | D197: 14.54812813 | E197: 0 | F197: 55.24880123 | H197: =F197*(Forecast!$C$8/$F$2) -> 59.37955428 | I197: =F197*(Forecast!$D$8/$F$2) -> 59.97224611 | J197: =F197*(Forecast!$E$8/$F$2) -> 60.13631305 | K197: =F197*(Forecast!$F$8/$F$2) -> 60.38241346 | L197: =F197*(Forecast!$G$8/$F$2) -> 60.5464804 | M197: =F197*(Forecast!$H$8/$F$2) -> 60.79258082 | N197: =F197*(Forecast!$I$8/$F$2) -> 61.28478164 | O197: =F197*(Forecast!$J$8/$F$2) -> 61.69494899 | P197: =F197*(Forecast!$K$8/$F$2) -> 62.10511635 | Q197: =F197*(Forecast!$L$8/$F$2) -> 62.5152837 | R197: =F197*(Forecast!$M$8/$F$2) -> 62.92545106 | S197: =F197*(Forecast!$N$8/$F$2) -> 63.41765188 | T197: =F197*(Forecast!$O$8/$F$2) -> 63.82781923 | U197: =F197*(Forecast!$P$8/$F$2) -> 64.23798659 | V197: =F197*(Forecast!$Q$8/$F$2) -> 64.64815394 | W197: =F197*(Forecast!$R$8/$F$2) -> 65.14035477 | X197: =F197*(Forecast!$S$8/$F$2) -> 65.55052212 | Y197: =F197*(Forecast!$T$8/$F$2) -> 65.96068947 | Z197: =F197*(Forecast!$U$8/$F$2) -> 66.37085683 | AA197: =F197*(Forecast!$V$8/$F$2) -> 66.86305765 | AB197: =F197*(Forecast!$W$8/$F$2) -> 67.27322501 | AC197: =F197*(Forecast!$X$8/$F$2) -> 67.68339236 | AD197: =F197*(Forecast!$Y$8/$F$2) -> 68.17559319 | AE197: =F197*(Forecast!$Z$8/$F$2) -> 68.58576054 | AF197: =F197*(Forecast!$AA$8/$F$2) -> 68.99592789 | AG197: =F197*(Forecast!$AB$8/$F$2) -> 69.40609525
A198: 2017-01-09T02:00:00 | B198: 25.74563026 | C198: 14.64280128 | D198: 14.51636887 | E198: 0 | F198: =SUM(B198:E198) -> 54.90480042 | H198: =F198*(Forecast!$C$8/$F$2) -> 59.00983377 | I198: =F198*(Forecast!$D$8/$F$2) -> 59.59883526 | J198: =F198*(Forecast!$E$8/$F$2) -> 59.76188066 | K198: =F198*(Forecast!$F$8/$F$2) -> 60.00644875 | L198: =F198*(Forecast!$G$8/$F$2) -> 60.16949415 | M198: =F198*(Forecast!$H$8/$F$2) -> 60.41406224 | N198: =F198*(Forecast!$I$8/$F$2) -> 60.90319843 | O198: =F198*(Forecast!$J$8/$F$2) -> 61.31081192 | P198: =F198*(Forecast!$K$8/$F$2) -> 61.71842541 | Q198: =F198*(Forecast!$L$8/$F$2) -> 62.1260389 | R198: =F198*(Forecast!$M$8/$F$2) -> 62.53365239 | S198: =F198*(Forecast!$N$8/$F$2) -> 63.02278858 | T198: =F198*(Forecast!$O$8/$F$2) -> 63.43040207 | U198: =F198*(Forecast!$P$8/$F$2) -> 63.83801556 | V198: =F198*(Forecast!$Q$8/$F$2) -> 64.24562905 | W198: =F198*(Forecast!$R$8/$F$2) -> 64.73476524 | X198: =F198*(Forecast!$S$8/$F$2) -> 65.14237873 | Y198: =F198*(Forecast!$T$8/$F$2) -> 65.54999222 | Z198: =F198*(Forecast!$U$8/$F$2) -> 65.95760571 | AA198: =F198*(Forecast!$V$8/$F$2) -> 66.4467419 | AB198: =F198*(Forecast!$W$8/$F$2) -> 66.85435539 | AC198: =F198*(Forecast!$X$8/$F$2) -> 67.26196888 | AD198: =F198*(Forecast!$Y$8/$F$2) -> 67.75110507 | AE198: =F198*(Forecast!$Z$8/$F$2) -> 68.15871856 | AF198: =F198*(Forecast!$AA$8/$F$2) -> 68.56633205 | AG198: =F198*(Forecast!$AB$8/$F$2) -> 68.97394554
A199: 2017-01-09T03:00:00 | B199: 25.46049881 | C199: 14.47373009 | D199: 14.48461056 | E199: 0 | F199: 54.41883945 | H199: =F199*(Forecast!$C$8/$F$2) -> 58.48753926 | I199: =F199*(Forecast!$D$8/$F$2) -> 59.07132752 | J199: =F199*(Forecast!$E$8/$F$2) -> 59.23292981 | K199: =F199*(Forecast!$F$8/$F$2) -> 59.47533323 | L199: =F199*(Forecast!$G$8/$F$2) -> 59.63693552 | M199: =F199*(Forecast!$H$8/$F$2) -> 59.87933895 | N199: =F199*(Forecast!$I$8/$F$2) -> 60.36414581 | O199: =F199*(Forecast!$J$8/$F$2) -> 60.76815152 | P199: =F199*(Forecast!$K$8/$F$2) -> 61.17215723 | Q199: =F199*(Forecast!$L$8/$F$2) -> 61.57616295 | R199: =F199*(Forecast!$M$8/$F$2) -> 61.98016866 | S199: =F199*(Forecast!$N$8/$F$2) -> 62.46497552 | T199: =F199*(Forecast!$O$8/$F$2) -> 62.86898123 | U199: =F199*(Forecast!$P$8/$F$2) -> 63.27298694 | V199: =F199*(Forecast!$Q$8/$F$2) -> 63.67699266 | W199: =F199*(Forecast!$R$8/$F$2) -> 64.16179952 | X199: =F199*(Forecast!$S$8/$F$2) -> 64.56580523 | Y199: =F199*(Forecast!$T$8/$F$2) -> 64.96981094 | Z199: =F199*(Forecast!$U$8/$F$2) -> 65.37381666 | AA199: =F199*(Forecast!$V$8/$F$2) -> 65.85862351 | AB199: =F199*(Forecast!$W$8/$F$2) -> 66.26262923 | AC199: =F199*(Forecast!$X$8/$F$2) -> 66.66663494 | AD199: =F199*(Forecast!$Y$8/$F$2) -> 67.1514418 | AE199: =F199*(Forecast!$Z$8/$F$2) -> 67.55544751 | AF199: =F199*(Forecast!$AA$8/$F$2) -> 67.95945323 | AG199: =F199*(Forecast!$AB$8/$F$2) -> 68.36345894
A200: 2017-01-09T04:00:00 | B200: 25.56562996 | C200: 14.50225067 | D200: 14.45285225 | E200: 0 | F200: 54.52073288 | H200: =F200*(Forecast!$C$8/$F$2) -> 58.59705089 | I200: =F200*(Forecast!$D$8/$F$2) -> 59.18193223 | J200: =F200*(Forecast!$E$8/$F$2) -> 59.3438371 | K200: =F200*(Forecast!$F$8/$F$2) -> 59.5866944 | L200: =F200*(Forecast!$G$8/$F$2) -> 59.74859927 | M200: =F200*(Forecast!$H$8/$F$2) -> 59.99145657 | N200: =F200*(Forecast!$I$8/$F$2) -> 60.47717118 | O200: =F200*(Forecast!$J$8/$F$2) -> 60.88193335 | P200: =F200*(Forecast!$K$8/$F$2) -> 61.28669552 | Q200: =F200*(Forecast!$L$8/$F$2) -> 61.69145769 | R200: =F200*(Forecast!$M$8/$F$2) -> 62.09621986 | S200: =F200*(Forecast!$N$8/$F$2) -> 62.58193447 | T200: =F200*(Forecast!$O$8/$F$2) -> 62.98669664 | U200: =F200*(Forecast!$P$8/$F$2) -> 63.39145881 | V200: =F200*(Forecast!$Q$8/$F$2) -> 63.79622098 | W200: =F200*(Forecast!$R$8/$F$2) -> 64.28193559 | X200: =F200*(Forecast!$S$8/$F$2) -> 64.68669776 | Y200: =F200*(Forecast!$T$8/$F$2) -> 65.09145993 | Z200: =F200*(Forecast!$U$8/$F$2) -> 65.4962221 | AA200: =F200*(Forecast!$V$8/$F$2) -> 65.9819367 | AB200: =F200*(Forecast!$W$8/$F$2) -> 66.38669888 | AC200: =F200*(Forecast!$X$8/$F$2) -> 66.79146105 | AD200: =F200*(Forecast!$Y$8/$F$2) -> 67.27717565 | AE200: =F200*(Forecast!$Z$8/$F$2) -> 67.68193782 | AF200: =F200*(Forecast!$AA$8/$F$2) -> 68.08669999 | AG200: =F200*(Forecast!$AB$8/$F$2) -> 68.49146216
... 2050 more rows

Sheet Forecast
B3: Long Term Labrador Interconnected Base Case Load Forecast Summary
C5: 2019 | D5: 2020 | E5: 2021 | F5: 2022 | G5: 2023 | H5: 2024 | I5: 2025 | J5: 2026 | K5: 2027 | L5: 2028 | M5: 2029 | N5: 2030 | O5: 2031 | P5: 2032 | Q5: 2033 | R5: 2034 | S5: 2035 | T5: 2036 | U5: 2037 | V5: 2038 | W5: 2039 | X5: 2040 | Y5: 2041 | Z5: 2042 | AA5: 2043 | AB5: 2044
B7: HV-GB (BASELINE)
B8: Peak (kW) - P90 (NO DATA CENTERS) | C8: 72.38454465 | D8: 73.10704465 | E8: 73.30704465 | F8: 73.60704465 | G8: 73.80704465 | H8: 74.10704465 | I8: 74.70704465 | J8: 75.20704465 | K8: 75.70704465 | L8: 76.20704465 | M8: 76.70704465 | N8: 77.30704465 | O8: 77.80704465 | P8: 78.30704465 | Q8: 78.80704465 | R8: 79.40704465 | S8: 79.90704465 | T8: 80.40704465 | U8: 80.90704465 | V8: 81.50704465 | W8: 82.00704465 | X8: 82.50704465 | Y8: 83.10704465 | Z8: 83.60704465 | AA8: 84.10704465 | AB8: 84.60704465

Sheet System Capacity_Reliablity Info
B1: Year | C1: BASELINE CAPACITY (Per Year) (MW)
C2: N-0 | D2: Loss of 1302 (Portion #1) | E2: Loss of 1302 (Portion #2)
B3: 2018 | C3: 102 | D3: N/A | E3: 25
B4: 2019 | C4: 102 | D4: N/A | E4: 25
B5: 2020 | C5: 129 | D5: 102 | E5: 25 | G5: Post MF-HVY Interconnection
B6: 2021 | C6: 129 | D6: 102 | E6: 25
B7: 2022 | C7: 129 | D7: 102 | E7: 25
B8: 2023 | C8: 129 | D8: 102 | E8: 25
B9: 2024 | C9: 129 | D9: 102 | E9: 25
B10: 2025 | C10: 129 | D10: 102 | E10: 25
B11: 2026 | C11: 129 | D11: 102 | E11: 25
B12: 2027 | C12: 129 | D12: 102 | E12: 25
B13: 2028 | C13: 129 | D13: 102 | E13: 25
B14: 2029 | C14: 129 | D14: 102 | E14: 25
B15: 2030 | C15: 129 | D15: 102 | E15: 25
B16: 2031 | C16: 129 | D16: 102 | E16: 25
B17: 2032 | C17: 129 | D17: 102 | E17: 25
B18: 2033 | C18: 129 | D18: 102 | E18: 25
B19: 2034 | C19: 129 | D19: 102 | E19: 25
B20: 2035 | C20: 129 | D20: 102 | E20: 25
B21: 2036 | C21: 129 | D21: 102 | E21: 25
B22: 2037 | C22: 129 | D22: 102 | E22: 25
B23: 2038 | C23: 129 | D23: 102 | E23: 25
B24: 2039 | C24: 129 | D24: 102 | E24: 25
B25: 2040 | C25: 129 | D25: 102 | E25: 25
B26: 2041 | C26: 129 | D26: 102 | E26: 25
B27: 2042 | C27: 129 | D27: 102 | E27: 25
B28: 2043 | C28: 129 | D28: 102 | E28: 25
B29: Note: Capacity values include HVY GT
B31: Reliability Statistics (As Per CEA)
B32: Component | C32: Length (km) | D32: Unavailablity
B33: L1302 (Portion #1) | C33: 6 | D33: 0.000102
B34: L1302 (Portion #2) | C34: 30 | D34: 0.00051
B35: L1301 | C35: 270 | D35: =C35/100*0.00107 -> 0.002889

Sheet EUE Calculations - Baseline
B1: 2019 | H1: 2020 | N1: 2021 | T1: 2022 | Z1: 2023 | AF1: 2024 | AL1: 2025 | AR1: 2026 | AX1: 2027 | BD1: 2028 | BJ1: 2029 | BP1: 2030 | BV1: 2031 | CB1: 2032 | CH1: 2033 | CN1: 2034 | CT1: 2035 | CZ1: 2036 | DF1: 2037 | DL1: 2038 | DR1: 2039 | DX1: 2040 | ED1: 2041 | EJ1: 2042 | EP1: 2043 | EV1: 2044
B2: Load (MW) | C2: Loss of 1302a | E2: Loss of 1302b | H2: Load (MW) | N2: Load (MW) | T2: Load (MW) | Z2: Load (MW) | AF2: Load (MW) | AL2: Load (MW) | AR2: Load (MW) | AX2: Load (MW) | BD2: Load (MW) | BJ2: Load (MW) | BP2: Load (MW) | BV2: Load (MW) | CB2: Load (MW) | CH2: Load (MW) | CN2: Load (MW) | CT2: Load (MW) | CZ2: Load (MW) | DF2: Load (MW) | DL2: Load (MW) | DR2: Load (MW) | DX2: Load (MW) | ED2: Load (MW) | EJ2: Load (MW) | EP2: Load (MW) | EV2: Load (MW)
C3: Capacity Deficit (MW) | D3: EUE (MWh) | E3: Capacity Deficit (MW) | F3: EUE (MWh) | I3: Capacity Deficit (MW) | J3: EUE (MWh) | K3: Capacity Deficit (MW) | L3: EUE (MWh) | O3: Capacity Deficit (MW) | P3: EUE (MWh) | Q3: Capacity Deficit (MW) | R3: EUE (MWh) | U3: Capacity Deficit (MW) | V3: EUE (MWh) | W3: Capacity Deficit (MW) | X3: EUE (MWh) | AA3: Capacity Deficit (MW) | AB3: EUE (MWh) | AC3: Capacity Deficit (MW) | AD3: EUE (MWh) | AG3: Capacity Deficit (MW) | AH3: EUE (MWh) | AI3: Capacity Deficit (MW) | AJ3: EUE (MWh) | AM3: Capacity Deficit (MW) | AN3: EUE (MWh) | AO3: Capacity Deficit (MW) | AP3: EUE (MWh) | AS3: Capacity Deficit (MW) | AT3: EUE (MWh) | AU3: Capacity Deficit (MW) | AV3: EUE (MWh) | AY3: Capacity Deficit (MW) | AZ3: EUE (MWh) | BA3: Capacity Deficit (MW) | BB3: EUE (MWh) | BE3: Capacity Deficit (MW) | BF3: EUE (MWh) | BG3: Capacity Deficit (MW) | BH3: EUE (MWh) | BK3: Capacity Deficit (MW) | BL3: EUE (MWh) | BM3: Capacity Deficit (MW) | BN3: EUE (MWh) | BQ3: Capacity Deficit (MW) | BR3: EUE (MWh) | BS3: Capacity Deficit (MW) | BT3: EUE (MWh) | BW3: Capacity Deficit (MW) | BX3: EUE (MWh) | BY3: Capacity Deficit (MW) | BZ3: EUE (MWh) | CC3: Capacity Deficit (MW) | CD3: EUE (MWh) | CE3: Capacity Deficit (MW) | CF3: EUE (MWh) | CI3: Capacity Deficit (MW) | CJ3: EUE (MWh) | CK3: Capacity Deficit (MW) | CL3: EUE (MWh) | CO3: Capacity Deficit (MW) | CP3: EUE (MWh) | CQ3: Capacity Deficit (MW) | CR3: EUE (MWh) | CU3: Capacity Deficit (MW) | CV3: EUE (MWh) | CW3: Capacity Deficit (MW) | CX3: EUE (MWh) | DA3: Capacity Deficit (MW) | DB3: EUE (MWh) | DC3: Capacity Deficit (MW) | DD3: EUE (MWh) | DG3: Capacity Deficit (MW) | DH3: EUE (MWh) | DI3: Capacity Deficit (MW) | DJ3: EUE (MWh) | DM3: Capacity Deficit (MW) | DN3: EUE (MWh) | DO3: Capacity Deficit (MW) | DP3: EUE (MWh) | DS3: Capacity Deficit (MW) | DT3: EUE (MWh) | DU3: Capacity Deficit (MW) | DV3: EUE (MWh) | DY3: Capacity Deficit (MW) | DZ3: EUE (MWh) | EA3: Capacity Deficit (MW) | EB3: EUE (MWh) | EE3: Capacity Deficit (MW) | EF3: EUE (MWh) | EG3: Capacity Deficit (MW) | EH3: EUE (MWh) | EK3: Capacity Deficit (MW) | EL3: EUE (MWh) | EM3: Capacity Deficit (MW) | EN3: EUE (MWh) | EQ3: Capacity Deficit (MW) | ER3: EUE (MWh) | ES3: Capacity Deficit (MW) | ET3: EUE (MWh) | EW3: Capacity Deficit (MW) | EX3: EUE (MWh) | EY3: Capacity Deficit (MW) | EZ3: EUE (MWh)
A4: Max: | B4: =MAX(B6:B8766) -> 72.38454465 | C4: =MAX(C6:C8766) -> 47.38454465 | E4: =MAX(E6:E8766) -> 47.38454465 | G4: Max: | H4: =MAX(H6:H8766) -> 73.10704465 | I4: =MAX(I6:I8766) -> 0 | K4: =MAX(K6:K8766) -> 48.10704465 | M4: Max: | N4: =MAX(N6:N8766) -> 73.30704465 | O4: =MAX(O6:O8766) -> 0 | Q4: =MAX(Q6:Q8766) -> 48.30704465 | S4: Max: | T4: =MAX(T6:T8766) -> 73.60704465 | U4: =MAX(U6:U8766) -> 0 | W4: =MAX(W6:W8766) -> 48.60704465 | Y4: Max: | Z4: =MAX(Z6:Z8766) -> 73.80704465 | AA4: =MAX(AA6:AA8766) -> 0 | AC4: =MAX(AC6:AC8766) -> 48.80704465 | AE4: Max: | AF4: =MAX(AF6:AF8766) -> 74.10704465 | AG4: =MAX(AG6:AG8766) -> 0 | AI4: =MAX(AI6:AI8766) -> 49.10704465 | AK4: Max: | AL4: =MAX(AL6:AL8766) -> 74.70704465 | AM4: =MAX(AM6:AM8766) -> 0 | AO4: =MAX(AO6:AO8766) -> 49.70704465 | AQ4: Max: | AR4: =MAX(AR6:AR8766) -> 75.20704465 | AS4: =MAX(AS6:AS8766) -> 0 | AU4: =MAX(AU6:AU8766) -> 50.20704465 | AW4: Max: | AX4: =MAX(AX6:AX8766) -> 75.70704465 | AY4: =MAX(AY6:AY8766) -> 0 | BA4: =MAX(BA6:BA8766) -> 50.70704465 | BC4: Max: | BD4: =MAX(BD6:BD8766) -> 76.20704465 | BE4: =MAX(BE6:BE8766) -> 0 | BG4: =MAX(BG6:BG8766) -> 51.20704465 | BI4: Max: | BJ4: =MAX(BJ6:BJ8766) -> 76.70704465 | BK4: =MAX(BK6:BK8766) -> 0 | BM4: =MAX(BM6:BM8766) -> 51.70704465 | BO4: Max: | BP4: =MAX(BP6:BP8766) -> 77.30704465 | BQ4: =MAX(BQ6:BQ8766) -> 0 | BS4: =MAX(BS6:BS8766) -> 52.30704465 | BU4: Max: | BV4: =MAX(BV6:BV8766) -> 77.80704465 | BW4: =MAX(BW6:BW8766) -> 0 | BY4: =MAX(BY6:BY8766) -> 52.80704465 | CA4: Max: | CB4: =MAX(CB6:CB8766) -> 78.30704465 | CC4: =MAX(CC6:CC8766) -> 0 | CE4: =MAX(CE6:CE8766) -> 53.30704465 | CG4: Max: | CH4: =MAX(CH6:CH8766) -> 78.80704465 | CI4: =MAX(CI6:CI8766) -> 0 | CK4: =MAX(CK6:CK8766) -> 53.80704465 | CM4: Max: | CN4: =MAX(CN6:CN8766) -> 79.40704465 | CO4: =MAX(CO6:CO8766) -> 0 | CQ4: =MAX(CQ6:CQ8766) -> 54.40704465 | CS4: Max: | CT4: =MAX(CT6:CT8766) -> 79.90704465 | CU4: =MAX(CU6:CU8766) -> 0 | CW4: =MAX(CW6:CW8766) -> 54.90704465 | CY4: Max: | CZ4: =MAX(CZ6:CZ8766) -> 80.40704465 | DA4: =MAX(DA6:DA8766) -> 0 | DC4: =MAX(DC6:DC8766) -> 55.40704465 | DE4: Max: | DF4: =MAX(DF6:DF8766) -> 80.90704465 | DG4: =MAX(DG6:DG8766) -> 0 | DI4: =MAX(DI6:DI8766) -> 55.90704465 | DK4: Max: | DL4: =MAX(DL6:DL8766) -> 81.50704465 | DM4: =MAX(DM6:DM8766) -> 0 | DO4: =MAX(DO6:DO8766) -> 56.50704465 | DQ4: Max: | DR4: =MAX(DR6:DR8766) -> 82.00704465 | DS4: =MAX(DS6:DS8766) -> 0 | DU4: =MAX(DU6:DU8766) -> 57.00704465 | DW4: Max: | DX4: =MAX(DX6:DX8766) -> 82.50704465 | DY4: =MAX(DY6:DY8766) -> 0 | EA4: =MAX(EA6:EA8766) -> 57.50704465 | EC4: Max: | ED4: =MAX(ED6:ED8766) -> 83.10704465 | EE4: =MAX(EE6:EE8766) -> 0 | EG4: =MAX(EG6:EG8766) -> 58.10704465 | EI4: Max: | EJ4: =MAX(EJ6:EJ8766) -> 83.60704465 | EK4: =MAX(EK6:EK8766) -> 0 | EM4: =MAX(EM6:EM8766) -> 58.60704465 | EO4: Max: | EP4: =MAX(EP6:EP8766) -> 84.10704465 | EQ4: =MAX(EQ6:EQ8766) -> 0 | ES4: =MAX(ES6:ES8766) -> 59.10704465 | EU4: Max: | EV4: =MAX(EV6:EV8766) -> 84.60704465 | EW4: =MAX(EW6:EW8766) -> 0 | EY4: =MAX(EY6:EY8766) -> 59.60704465
A5: Sum: | D5: =SUM(D6:D8766) -> 294.2626837 | F5: =SUM(F6:F8766) -> 51.94668352 | G5: Sum: | J5: =SUM(J6:J8766) -> 0 | L5: =SUM(L6:L8766) -> 53.17632657 | M5: Sum: | P5: =SUM(P6:P8766) -> 0 | R5: =SUM(R6:R8766) -> 53.51758708 | S5: Sum: | V5: =SUM(V6:V8766) -> 0 | X5: =SUM(X6:X8766) -> 54.03037847 | Y5: Sum: | AB5: =SUM(AB6:AB8766) -> 0 | AD5: =SUM(AD6:AD8766) -> 54.3728293 | AE5: Sum: | AH5: =SUM(AH6:AH8766) -> 0 | AJ5: =SUM(AJ6:AJ8766) -> 54.88729643 | AK5: Sum: | AN5: =SUM(AN6:AN8766) -> 0 | AP5: =SUM(AP6:AP8766) -> 55.91847778 | AQ5: Sum: | AT5: =SUM(AT6:AT8766) -> 0 | AV5: =SUM(AV6:AV8766) -> 56.78022625 | AW5: Sum: | AZ5: =SUM(AZ6:AZ8766) -> 0 | BB5: =SUM(BB6:BB8766) -> 57.64395288 | BC5: Sum: | BF5: =SUM(BF6:BF8766) -> 0 | BH5: =SUM(BH6:BH8766) -> 58.51087144 | BI5: Sum: | BL5: =SUM(BL6:BL8766) -> 0 | BN5: =SUM(BN6:BN8766) -> 59.38000089 | BO5: Sum: | BR5: =SUM(BR6:BR8766) -> 0 | BT5: =SUM(BT6:BT8766) -> 60.42622003 | BU5: Sum: | BX5: =SUM(BX6:BX8766) -> 0 | BZ5: =SUM(BZ6:BZ8766) -> 61.30082934 | CA5: Sum: | CD5: =SUM(CD6:CD8766) -> 0 | CF5: =SUM(CF6:CF8766) -> 62.17785013 | CG5: Sum: | CJ5: =SUM(CJ6:CJ8766) -> 0 | CL5: =SUM(CL6:CL8766) -> 63.05776521 | CM5: Sum: | CP5: =SUM(CP6:CP8766) -> 0 | CR5: =SUM(CR6:CR8766) -> 64.11721436 | CS5: Sum: | CV5: =SUM(CV6:CV8766) -> 0 | CX5: =SUM(CX6:CX8766) -> 65.0028989 | CY5: Sum: | DB5: =SUM(DB6:DB8766) -> 0 | DD5: =SUM(DD6:DD8766) -> 65.89072544 | DE5: Sum: | DH5: =SUM(DH6:DH8766) -> 0 | DJ5: =SUM(DJ6:DJ8766) -> 66.78062221 | DK5: Sum: | DN5: =SUM(DN6:DN8766) -> 0 | DP5: =SUM(DP6:DP8766) -> 67.85170297 | DQ5: Sum: | DT5: =SUM(DT6:DT8766) -> 0 | DV5: =SUM(DV6:DV8766) -> 68.74672414 | DW5: Sum: | DZ5: =SUM(DZ6:DZ8766) -> 0 | EB5: =SUM(EB6:EB8766) -> 69.64355669 | EC5: Sum: | EF5: =SUM(EF6:EF8766) -> 0 | EH5: =SUM(EH6:EH8766) -> 70.72190265 | EI5: Sum: | EL5: =SUM(EL6:EL8766) -> 0 | EN5: =SUM(EN6:EN8766) -> 71.62265844 | EO5: Sum: | ER5: =SUM(ER6:ER8766) -> 0 | ET5: =SUM(ET6:ET8766) -> 72.52610891 | EU5: Sum: | EX5: =SUM(EX6:EX8766) -> 0 | EZ5: =SUM(EZ6:EZ8766) -> 73.43150395
